Workbook

Sheet Maestro (hidden)
A1: Número de cuenta | B1: Texto p.posición balance/PyG | C1: Agrupación
A2: Costo de adquisición
A3: 120100100 | B3: TERRENO | C3: Terreno
A4: 120100510 | B4: TERRENO Y SERVIDUMBRE DE PASO REVALUADO | C4: Terreno
A5: 120200100 | B5: EDIFICIO | C5: Edificaciones
A6: 120200510 | B6: REVALUACION EDIFICIO | C6: Edificaciones
A7: 120300100 | B7: PRESAS Y REPRESAS | C7: Presas y equipos de subestación
A8: 120400100 | B8: HIDROTURBINA (MECANICA) | C8: Presas y equipos de subestación
A9: 120500100 | B9: GENERADORES (ELECTRICA) | C9: Presas y equipos de subestación
A10: 121400100 | B10: EQUIPOS DE SUB-ESTACION | C10: Presas y equipos de subestación
A11: 120400510 | B11: REVALUACION HIDROTURBINA MECANICA | C11: Presas y equipos de subestación
A12: 120500510 | B12: REVALUACION GENERADORA ELECTRICA | C12: Presas y equipos de subestación
A13: 121400510 | B13: REVALUACION EQUIPO DE SUB-ESTACION | C13: Presas y equipos de subestación
A14: 120800100 | B14: MOBILIARIO Y EQUIPO DE OFICINA | C14: Mobiliario y equipos de oficina
A15: 120800300 | B15: ALTA ANTICIPO MOB. Y EQP. OFICINA | C15: Mobiliario y equipos de oficina
A16: 120800400 | B16: CONTRAPARTIDA ADQ. MOB. Y EQP. OFICINA | C16: Mobiliario y equipos de oficina
A17: 120800500 | B17: COMPENSACION ANTCIPO MAQ. Y EQP. ELECTRICO | C17: Mobiliario y equipos de oficina
A18: 121800100 | B18: MOBILIARIOS DE ALOJAMIENTO | C18: Mobiliario y equipos de oficina
A19: 121800400 | B19: CONTRAPARTIDA ADQ. ALOJAMIENTO | C19: Mobiliario y equipos de oficina
A20: 120800510 | B20: REVALUACION DE MOBILIARIO Y EQUIPO DE O | C20: Mobiliario y equipos de oficina
A21: 121800510 | B21: REVALUACION MOBILIARIO Y ALOJAMIENTO | C21: Mobiliario y equipos de oficina
A22: 120600100 | B22: MAQUINARIA Y EQUIPO MEC. | C22: Equipos de transporte y otros activos
A23: 120700100 | B23: MAQUINARIA Y EQUIPO ELECT. | C23: Equipos de transporte y otros activos
A24: 120700300 | B24: ALTA ANTICIPO MAQ. Y EQP. ELECTRICO | C24: Equipos de transporte y otros activos
A25: 120700400 | B25: CONTRAPARTIDA ADQ. MAQ. Y EQP. ELECTRICO | C25: Equipos de transporte y otros activos
A26: 120700500 | B26: COMPENSACION ANTCIPO MAQ. Y EQP. ELECTRICO | C26: Equipos de transporte y otros activos
A27: 120900100 | B27: EQUIPOS DE TRANSPORTE | C27: Equipos de transporte y otros activos
A28: 120900300 | B28: ALTA ANTICIPO EQ. TRANSPORTE | C28: Equipos de transporte y otros activos
A29: 120900400 | B29: CONTRAPARTIDA ADQ. EQ. TRANSPORTE | C29: Equipos de transporte y otros activos
A30: 120900500 | B30: COMPENSACION ANTCIPO EQ. TRASPORTE | C30: Equipos de transporte y otros activos
A31: 121100100 | B31: EQUIPOS DE COMPUTOS | C31: Equipos de transporte y otros activos
A32: 121100300 | B32: ALTA ANTICIPO EQ. DE COMPUTO | C32: Equipos de transporte y otros activos
A33: 121100400 | B33: CONTRAPARTIDA ADQ. EQ. DE COMPUTO | C33: Equipos de transporte y otros activos
A34: 121100500 | B34: COMPENSACION ANTCIPO EQ. DE COMPUTO | C34: Equipos de transporte y otros activos
A35: 121110100 | B35: EQUIPOS AUDIO VISUALES | C35: Equipos de transporte y otros activos
A36: 121110300 | B36: ALTA ANTICIPO EQUIPOS AUDIO VISUALES | C36: Equipos de transporte y otros activos
A37: 121110400 | B37: CONTRA PARTIDA ADQ. EQUIPOS AUDIO VISUALES | C37: Equipos de transporte y otros activos
A38: 121110500 | B38: COMPENSACION ANTIC. EQUIPOS AUDIO VISUALES | C38: Equipos de transporte y otros activos
A39: 121200100 | B39: EQUIPOS DE COMUNICACION | C39: Equipos de transporte y otros activos
A40: 121200300 | B40: ALTA ANTICIPO EQ. DE COMUNICACION | C40: Equipos de transporte y otros activos
A41: 121200400 | B41: CONTRAPARTIDA ADQ. EQ. DE COMUNICACION | C41: Equipos de transporte y otros activos
A42: 121200500 | B42: COMPENSACION ANTCIPO EQ. DE COMUNICACION | C42: Equipos de transporte y otros activos
A43: 121300100 | B43: HERRAMIENTAS Y EQUIPO DE TRABAJO | C43: Equipos de transporte y otros activos
A44: 121300300 | B44: ALTA ANTICIPO EQ. DE TRABAJO | C44: Equipos de transporte y otros activos
A45: 121300400 | B45: CONTRAPARTIDA ADQ. EQ. DE TRABAJO | C45: Equipos de transporte y otros activos
A46: 121300500 | B46: COMPENSACION ANTCIPO EQ. DE TRABAJO | C46: Equipos de transporte y otros activos
A47: 121700100 | B47: ELECTRODOMESTICOS | C47: Equipos de transporte y otros activos
A48: 121700300 | B48: ALTA ANTICIPO EQ. ELECTRODOMESTICOS | C48: Equipos de transporte y otros activos
A49: 121700400 | B49: CONTRAPARTIDA ADQ. ELECTRODOMESTICOS | C49: Equipos de transporte y otros activos
A50: 121700500 | B50: COMPENSACION ANTCIPO ELECTRODOMESTICOS | C50: Equipos de transporte y otros activos
A51: 122200100 | B51: CAMARAS Y VIDEOS | C51: Equipos de transporte y otros activos
A52: 122200400 | B52: CONTRAPARTIDA ADQ.CAMARAS Y VIDEOS | C52: Equipos de transporte y otros activos
A53: 122400100 | B53: ALTA PANELES ELECTRICOS Y AFINES | C53: Equipos de transporte y otros activos
A54: 120600510 | B54: REVALUACION MAQ. Y EQUIPO MECANICO | C54: Equipos de transporte y otros activos
A55: 120700510 | B55: REVALUACION MAQUINARIAS Y EQUIPOS ELECT | C55: Equipos de transporte y otros activos
A56: 120900510 | B56: REVALUACIÓN EQUIPO DE TRANSPORTE | C56: Equipos de transporte y otros activos
A57: 121100510 | B57: REV.EQ. DE COMPUTOS | C57: Equipos de transporte y otros activos
A58: 121110510 | B58: REVALUACION EQUIPOS AUDIOVISUALES | C58: Equipos de transporte y otros activos
A59: 121200510 | B59: REVALUACION EQUIPO DE COMUNICACIONES | C59: Equipos de transporte y otros activos
A60: 121300510 | B60: REVALUACION DE HERRAMIENTAS | C60: Equipos de transporte y otros activos
A61: 121700510 | B61: REVALUACION ELECTRODOMESTICOS | C61: Equipos de transporte y otros activos
A62: 122200510 | B62: REVALUACION CAMARAS Y VIDEOS | C62: Equipos de transporte y otros activos
A63: 122400510 | B63: REVALUACION PANELES ELECTRICOS Y AFINES | C63: Equipos de transporte y otros activos
A64: 121900100 | B64: EQUI. Y MAQ. DE ELEVACION | C64: Equipos de transporte y otros activos
A65: 122500100 | B65: EQ. DE DEFENSA Y SEGURIDAD (CAMARA DE VIGILANCIA) | C65: Equipos de transporte y otros activos
A66: 121500100 | B66: EQUIPOS MISCELANEOS | C66: Piezas y accesorios
A67: 121500300 | B67: ALTA ANTICIPO EQ. MISCELANEOS | C67: Piezas y accesorios
A68: 121500400 | B68: CONTRAPARTIDA ADQ. EQ. MISCELANEOS | C68: Piezas y accesorios
A69: 121500500 | B69: COMPENSACION ANTCIPO EQ. MISCELANEOS | C69: Piezas y accesorios
A70: 121500510 | B70: REVALUACIÓN EQUIPOS MIESCELANEOS | C70: Piezas y accesorios
A71: 121600100 | B71: CARRETERAS, CAMINOS VECINALES, CONST. MENORES | C71: Construcción en proceso
A72: 123100000 | B72: CONSTRUCCIONES EN PROCESO | C72: Construcción en proceso
A73: 123100511 | B73: ACTIVO EN CURSO | C73: Construcción en proceso
A74: 123100100 | B74: PROYECTO HIDROELECTRICO PINALITO | C74: Construcción en proceso
A75: 123100300 | B75: COMPENSACION ANTCIPO CONSTRUCCION EN PROCESO | C75: Construcción en proceso
A77: Deterioro
A78: 120200600 | B78: DETERIORO EDIFICIO | C78: Edificaciones
A79: 120400600 | B79: DETERIORO HIDROTURBINA MECANICA | C79: Presas y equipos de subestación
A80: 120500600 | B80: DETERIORO GENERADORA ELECTRICA | C80: Presas y equipos de subestación
A81: 121400600 | B81: DETERIORO EQUIPO DE SUB-ESTACION | C81: Presas y equipos de subestación
A82: 120800600 | B82: DETERIORO MOBILIARIOS Y EQUIPOS DE OFIN | C82: Mobiliario y equipos de oficina
A83: 121800600 | B83: DETERIORO MOILIARIOS DE ALOJAMIENTO | C83: Mobiliario y equipos de oficina
A84: 120600600 | B84: DETERIORO MAQUINARIA Y EQUIPO MECANICO | C84: Equipos de transporte y otros activos
A85: 120700600 | B85: DETERIORO MAQUINARIAS Y EQUIPOS ELECTRI | C85: Equipos de transporte y otros activos
A86: 120900600 | B86: DETERIORO EQUIPOS DE TRANSPORTE | C86: Equipos de transporte y otros activos
A87: 121100600 | B87: DETERIORO EQUIPOS DE COMPUTO | C87: Equipos de transporte y otros activos
A88: 121110600 | B88: DETERIORO EQUIPOS AUDIOVISUALES | C88: Equipos de transporte y otros activos
A89: 121200600 | B89: DETERIORO EQUIPOS DE COMUNICACIOJN | C89: Equipos de transporte y otros activos
A90: 121300600 | B90: DETERIORO HERRAMIENTAS Y EQUIPOS DE TR | C90: Equipos de transporte y otros activos
A91: 122200600 | B91: DETERIORO CAMARAS Y VIDEOS | C91: Equipos de transporte y otros activos
A92: 122400600 | B92: DETERIORO PANELES ELECTRICOS Y AFINES | C92: Equipos de transporte y otros activos
A93: 121700600 | B93: DETERIORO ELECTRODOMESTICOS | C93: Equipos de transporte y otros activos
A94: 121500600 | B94: DETERIORO EQUIPOS MISCELANEOS | C94: Piezas y accesorios
A96: Depreciación acumulada
A97: 120200200 | B97: DEPRECIACION ACUMULADA EDIFICIO | C97: Edificaciones
A98: 120200511 | B98: DEP. ACUM. REVA. EDIFICIO | C98: Edificaciones
A99: 120300200 | B99: DEPRECIACION ACUMULADA PRESAS Y REPRESAS | C99: Presas y equipos de subestación
A100: 120400200 | B100: DEPRECIACION ACUMULADA HIDROTURBINAS | C100: Presas y equipos de subestación
A101: 120500200 | B101: DEPRECIACION ACUMULADA GENERADORES | C101: Presas y equipos de subestación
A102: 121400200 | B102: DEP. ACUMULADA EQ. SUB-ESTACION | C102: Presas y equipos de subestación
A103: 120400511 | B103: DEP. ACUM. REVA. HIDROTURBINA | C103: Presas y equipos de subestación
A104: 120500511 | B104: DEP. ACUM. REVA. GENERADORES ELECTRICA | C104: Presas y equipos de subestación
A105: 121400511 | B105: DEP. ACUM -REV.EQUIPO SUB-ESTACION | C105: Presas y equipos de subestación
A106: 120800200 | B106: DEP. ACUMULADA MOB. Y EQ. DE OFICINA | C106: Mobiliario y equipos de oficina
A107: 121800200 | B107: DEP. ACUMULADA MOBILIARIOS DE ALOJAMIENTO | C107: Mobiliario y equipos de oficina
A108: 120800511 | B108: DEP. ACUM - REV.MOBILIARIO Y EQP. OFICI | C108: Mobiliario y equipos de oficina
A109: 121800511 | B109: DEP. ACUM. REVA. MOBILIARIO DE ALOJAMIE | C109: Mobiliario y equipos de oficina
A110: 120600200 | B110: DEP. ACUMULADA MAQ.Y EQ. MECANICO | C110: Equipos de transporte y otros activos
A111: 120700200 | B111: DEP. ACUMULADA MAQ.Y EQ. ELECTRICO | C111: Equipos de transporte y otros activos
A112: 120900200 | B112: DEP. ACUMULADA EQ. DE TRANSPORTE | C112: Equipos de transporte y otros activos
A113: 121100200 | B113: DEP.ACUMULADA EQ. DE COMPUTOS | C113: Equipos de transporte y otros activos
A114: 121110200 | B114: DEP. ACUM. EQUIPOS AUDIO VISUALES | C114: Equipos de transporte y otros activos
A115: 121200200 | B115: DEP. ACUMULADA EQ. DE COMUNICACION | C115: Equipos de transporte y otros activos
A116: 121300200 | B116: DEP.ACUMULADA EQ. DE TRABAJO | C116: Equipos de transporte y otros activos
A117: 121700200 | B117: DEP. ACUMULADA ELECTRODOMESTICOS | C117: Equipos de transporte y otros activos
A118: 122200200 | B118: DEP. ACUMULADA CAMARAS Y VIDEOS | C118: Equipos de transporte y otros activos
A119: 122400200 | B119: DEP. ACUMULADA PANELES ELECT. Y AFINES | C119: Equipos de transporte y otros activos
A120: 120600511 | B120: DEP. ACUM. REVA. MAQUINARIA Y EQUIPO M | C120: Equipos de transporte y otros activos
A121: 120700511 | B121: DEP. ACUM. REVA. MAQUINARIA Y EQUIPOS E | C121: Equipos de transporte y otros activos
A122: 120900511 | B122: DEP. ACUM - REV. EQUIPO DE TRANSPORTE | C122: Equipos de transporte y otros activos
A123: 121100511 | B123: DEP. ACU. REV. EQ. DE COMPUTOS. | C123: Equipos de transporte y otros activos
A124: 121110511 | B124: DEP. ACUM. REVA. EQUIPOS AUDIOVISUALES | C124: Equipos de transporte y otros activos
A125: 121200511 | B125: DEP. ACUM - REV EQUIPO DE COMUNICACION | C125: Equipos de transporte y otros activos
A126: 121300511 | B126: DEP. ACUM - REV. HERRAMIENTAS Y EQUIPOS | C126: Equipos de transporte y otros activos
A127: 121700511 | B127: DEP. ACUM. REVA. ELECTRODOMESTICOS | C127: Equipos de transporte y otros activos
A128: 122200511 | B128: DEP. ACUM. REVA. CAMARA Y VIDEO | C128: Equipos de transporte y otros activos
A129: 122400511 | B129: DEP. ACUM. REVA. PANELES ELECTRICOS Y A | C129: Equipos de transporte y otros activos
A130: 121900200 | B130: DEP. ACUMULADA EQ. DE ELEVACION | C130: Equipos de transporte y otros activos
A131: 122500200 | B131: DEP. ACUM. EQ. DEFENSA Y SEGURIDAD (CAM | C131: Equipos de transporte y otros activos
A132: 121500200 | B132: DEP. ACUMULADA EQ. MISCELANEOS | C132: Piezas y accesorios
A133: 121500511 | B133: DEP. ACU. REV. EQ. MISCELANEOS | C133: Piezas y accesorios
A136: 120200400 | B136: 120200400 CONTRAPARTIDA ADQ. EDIFICIO | C136: Edificaciones | D136: =VLOOKUP(A136,Balanza!A:C,3,FALSE) -> (11.00)
A137: 120300400 | B137: 120300400 CONTRAPARTIDA ADQ. PRESAS Y REPRESAS | C137: Presas y equipos de subestación | D137: =VLOOKUP(A137,Balanza!A:C,3,FALSE) -> (4.00)
A138: 120400400 | B138: 120400400 CONTRAPARTIDA ADQ. HIDROTURBINAS | C138: Presas y equipos de subestación | D138: =VLOOKUP(A138,Balanza!A:C,3,FALSE) -> (24.00)
A139: 120500400 | B139: 120500400 CONTRAPARTIDA ADQ. GENERADORES | C139: Presas y equipos de subestación | D139: =VLOOKUP(A139,Balanza!A:C,3,FALSE) -> (3.00)
A140: 120600400 | B140: 120600400 CONTRAPARTIDA ADQ. MAQ. Y EQP. MECANICO | C140: Equipos de transporte y otros activos | D140: =VLOOKUP(A140,Balanza!A:C,3,FALSE) -> (102.00)
A141: 120700400 | B141: 120700400 CONTRAPARTIDA ADQ. MAQ. Y EQP. ELECTRICO | C141: Equipos de transporte y otros activos | D141: =VLOOKUP(A141,Balanza!A:C,3,FALSE) -> (673.00)
A142: 120800400 | B142: 120800400 CONTRAPARTIDA ADQ. MOB. Y EQP. OFICINA | C142: Mobiliario y equipos de oficina | D142: =VLOOKUP(A142,Balanza!A:C,3,FALSE) -> (18,983.00)
A143: 120900400 | B143: 120900400 CONTRAPARTIDA ADQ. EQ. TRANSPORTE | C143: Equipos de transporte y otros activos | D143: =VLOOKUP(A143,Balanza!A:C,3,FALSE) -> (58.00)
A144: 121100400 | B144: 121100400 CONTRAPARTIDA ADQ. EQ. DE COMPUTO | C144: Equipos de transporte y otros activos | D144: =VLOOKUP(A144,Balanza!A:C,3,FALSE) -> (55,377.51)
A145: 121200400 | B145: 121200400 CONTRAPARTIDA ADQ. EQ. DE COMUNICACION | C145: Equipos de transporte y otros activos | D145: =VLOOKUP(A145,Balanza!A:C,3,FALSE) -> (323.00)
A146: 121110400 | B146: 121110400 CONTRA PARTIDA ADQ. EQUIPOS AUDIO VISUALES | C146: Equipos de transporte y otros activos | D146: =VLOOKUP(A146,Balanza!A:C,3,FALSE) -> (17.00)
A147: 121300400 | B147: 121300400 CONTRAPARTIDA ADQ. EQ. DE TRABAJO | C147: Equipos de transporte y otros activos | D147: =VLOOKUP(A147,Balanza!A:C,3,FALSE) -> (31,049.00)
A148: 121400400 | B148: 121400400 CONTRAPARTIDA ADQ. EQ. DE SUB-ESTACION | C148: Presas y equipos de subestación | D148: =VLOOKUP(A148,Balanza!A:C,3,FALSE) -> (393.00)
A149: 121500400 | B149: 121500400 CONTRAPARTIDA ADQ. EQ. MISCELANEOS | C149: Piezas y accesorios | D149: =VLOOKUP(A149,Balanza!A:C,3,FALSE) -> (8,345.00)
A150: 121700400 | B150: 121700400 CONTRAPARTIDA ADQ. ELECTRODOMESTICOS | C150: Equipos de transporte y otros activos | D150: =VLOOKUP(A150,Balanza!A:C,3,FALSE) -> (15,601.00)
A151: 121800400 | B151: 121800400 CONTRAPARTIDA ADQ. ALOJAMIENTO | C151: Mobiliario y equipos de oficina | D151: =VLOOKUP(A151,Balanza!A:C,3,FALSE) -> (116.00)
A152: 121900400 | B152: 121900400 CONTRAPARTIDA ADQ. EQ.ELEVACION | C152: Equipos de transporte y otros activos | D152: =VLOOKUP(A152,Balanza!A:C,3,FALSE) -> (6.00)
A153: 122200400 | B153: 122200400 CONTRAPARTIDA ADQ.CAMARAS Y VIDEOS | C153: Equipos de transporte y otros activos | D153: =VLOOKUP(A153,Balanza!A:C,3,FALSE) -> (3.00)
A154: 122500400 | B154: 122500400 CONTRAPARTIDAEQ. DE DEFENSA Y SEGURIDAD CAM. VIG. | C154: Equipos de transporte y otros activos | D154: =VLOOKUP(A154,Balanza!A:C,3,FALSE) -> (8.00)
A155: 122400400 | B155: 122400400 CONTRAPARTIDA PANELES ELECTRICOS Y AFINES | C155: Equipos de transporte y otros activos | D155: =VLOOKUP(A155,Balanza!A:C,3,FALSE) -> (14.00)

Sheet Balanza (hidden)
A1: Número de cuenta | B1: Texto p.posición balance/PyG | C1: Total períodos de informe | D1: Total períodos de comparación | E1: Desviación absoluta | F1: Desviación relativa
B2: A C T I V OS | C2: 0.00 | D2: 0.00 | E2: 0.00
B3: =========== | C3: 0.00 | D3: 0.00 | E3: 0.00
B4: Activos Corrientes | C4: 0.00 | D4: 0.00 | E4: 0.00
B5: =============== | C5: 0.00 | D5: 0.00 | E5: 0.00
A6: 100100200 | B6: 100100200 FONDOS DE CAJA CHICA | C6: -64,022.16 | D6: 0.00 | E6: -64,022.16
A7: 100100201 | B7: 100100201 CAJA CHICA 1 | C7: 2,141,934.55 | D7: 807,350.69 | E7: 1,334,583.86 | F7: 165.3
B8: Sub - Total Caja | C8: 2,077,912.39 | D8: 807,350.69 | E8: 1,270,561.70 | F8: 157.4
A9: 100210100 | B9: 100210100 CUENTA DE OPERACIONES 100-01-240-0126-47-4 | C9: 460,953,941.38 | D9: 288,409,510.54 | E9: 172,544,430.84 | F9: 59.8
A10: 100210101 | B10: 100210101 CHEQUES 100-01-240-0126-47-4 | C10: -79,108,145.57 | D10: -32,169,421.27 | E10: -46,938,724.30 | F10: 145.9-
A11: 100210102 | B11: 100210102 DEPOSITOS 100-01-240-0126-47-4 | C11: 22,891.81 | D11: 0.00 | E11: 22,891.81
A12: 100220100 | B12: 100220100 CUENTA DE NOMINAS 100-01-240-012648-2 | C12: 167,657,905.86 | D12: 171,818,198.99 | E12: -4,160,293.13 | F12: 2.4-
A13: 100220101 | B13: 100220101 CHEQUES 100-01-240-012648-2 | C13: -4,406,322.53 | D13: -4,819,714.01 | E13: 413,391.48 | F13: 8.6
A14: 100220105 | B14: 100220105 T/D 100-01-240-012648-2 | C14: -31,318,912.40 | D14: 0.00 | E14: -31,318,912.40
A15: 100220107 | B15: 100220107 100-01-240-012648-2 | C15: 1,076,051.76 | D15: 1,646,518.75 | E15: -570,466.99 | F15: 34.6-
A16: 100230100 | B16: 100230100 CUENTA DE INGRESOS 100-01-240-012649-0 | C16: 619,466,863.47 | D16: 1,098,936,679.17 | E16: -479,469,815.70 | F16: 43.6-
A17: 100230102 | B17: 100230102 DEPOSITOS 100-01-240-012649-0 | C17: -233,617.80 | D17: 0.00 | E17: -233,617.80
A18: 100240100 | B18: 100240100 CUENTA DE PROYECTOS 100-01-240-012650-4 | C18: 404,963,105.64 | D18: 354,222,027.91 | E18: 50,741,077.73 | F18: 14.3
A19: 100240101 | B19: 100240101 CHEQUES 100-01-240-012650-4 | C19: -42,787,920.66 | D19: -50,819,328.20 | E19: 8,031,407.54 | F19: 15.8
B20: Sub - Total Cuentas Corriente RD$ | C20: 1,496,285,840.96 | D20: 1,827,224,471.88 | E20: -330,938,630.92 | F20: 18.1-
A21: 100250100 | B21: 100250100 CUENTA DE DOLARES 200-02-240-003911-8 | C21: 1,765,111,486.22 | D21: 2,795,817,559.63 | E21: -1,030,706,073.41 | F21: 36.9-
A22: 100250103 | B22: 100250103 N/C 200-02-240-003911-8 | C22: -81,442.12 | D22: 0.00 | E22: -81,442.12
A23: 100250104 | B23: 100250104 N/D 200-02-240-003911-8 | C23: 81,455.41 | D23: 0.00 | E23: 81,455.41
A24: 100250105 | B24: 100250105 T/D 200-02-240-003911-8 | C24: 10,519,892.12 | D24: 0.00 | E24: 10,519,892.12
A25: 100250106 | B25: 100250106 T/C 200-02-240-003911-8 | C25: -3,700,150.41 | D25: -644,204.30 | E25: -3,055,946.11 | F25: 474.4-
A26: 100260106 | B26: 100260106 T/C MINICENTRALES | C26: -0.03 | D26: -0.03 | E26: 0.00 | F26: 0.0
A27: 100290000 | B27: 100290000 Efectivo- Diferencia en cambio | C27: 639,351,166.26 | D27: 530,050,748.74 | E27: 109,300,417.52 | F27: 20.6
B28: Sub - Total Cuentas Corriente USD$ | C28: 2,411,282,407.45 | D28: 3,325,224,104.04 | E28: -913,941,696.59 | F28: 27.5-
A29: 110300100 | B29: 110300100 INVERSIONES EN US$ | C29: 2,206,671,343.99 | D29: 2,111,763,839.55 | E29: 94,907,504.44 | F29: 4.5
A30: 110300110 | B30: 110300110 Inversion- Diferencia en cambio | C30: 490,298,677.43 | D30: 359,917,622.94 | E30: 130,381,054.49 | F30: 36.2
A31: 110300200 | B31: 110300200 INVERSIONES EN RD$ | C31: 751,285,828.55 | D31: 706,634,800.77 | E31: 44,651,027.78 | F31: 6.3
B32: Sub - Total Fondos de Trabajo | C32: 3,448,255,849.97 | D32: 3,178,316,263.26 | E32: 269,939,586.71 | F32: 8.5
B33: Efectivo y Equivalentes Ctas Corrientes | C33: 7,357,902,010.77 | D33: 8,331,572,189.87 | E33: -973,670,179.10 | F33: 11.7-
B34: ==================================== | C34: 0.00 | D34: 0.00 | E34: 0.00
A35: 110400100 | B35: 110400100 CXC MERCADO SPOT | C35: 19,726,912,577.42 | D35: 19,397,292,290.59 | E35: 329,620,286.83 | F35: 1.7
A36: 110400200 | B36: 110400200 CXC MERCADO CONTRATO | C36: 55,330,581,608.64 | D36: 58,054,035,190.24 | E36: -2,723,453,581.60 | F36: 4.7-
A37: 110400210 | B37: 110400210 DEUDORES AJUSTE POR DIFERENCIA CAMBIARIA | C37: 14,944,514,923.83 | D37: 12,203,009,581.40 | E37: 2,741,505,342.43 | F37: 22.5
A38: 110400410 | B38: 110400410 CUENTAS POR COBRAR COOPERATIVA CDEEE | C38: 8,854,166.54 | D38: 11,510,416.55 | E38: -2,656,250.01 | F38: 23.1-
A39: 110400500 | B39: 110400500 CUENTAS POR COBRAR EMPLEADOS | C39: -904,290.68 | D39: 275,668.30 | E39: -1,179,958.98 | F39: 428.0-
A40: 110400510 | B40: 110400510 CXC EMPL. AVANCE A PRESTACIONES LABORALES | C40: 96,200,638.89 | D40: 99,988,311.24 | E40: -3,787,672.35 | F40: 3.8-
A41: 110400600 | B41: 110400600 CXC EMPLEADOS SUJETO A LIQUIDACION | C41: 4,189,000.00 | D41: 2,934,000.00 | E41: 1,255,000.00 | F41: 42.8
A42: 110400800 | B42: 110400800 RECLAMACIONES POR COBRAR | C42: 1,974,076.13 | D42: 1,974,076.13 | E42: 0.00 | F42: 0.0
A43: 110400900 | B43: 110400900 PROVISION PARA CUENTAS INCOBRABLES | C43: -4,513,917.24 | D43: -4,513,917.24 | E43: 0.00 | F43: 0.0
A44: 200200115 | B44: 200200115 PROVISION CUENTAS POR PAG. DEMANDAS EXEMPLEADOS | C44: 20,943,225.14 | D44: 33,281,800.30 | E44: -12,338,575.16 | F44: 37.1-
B45: Cuentas por Cobrar | C45: 90,128,752,008.67 | D45: 89,799,787,417.51 | E45: 328,964,591.16 | F45: 0.4
B46: ======================= | C46: 0.00 | D46: 0.00 | E46: 0.00
A47: 110500101 | B47: 110500101 PRODUCTOS DE PAPEL Y CARTON | C47: 2,004,101.71 | D47: 1,326,805.38 | E47: 677,296.33 | F47: 51.0
A48: 110500102 | B48: 110500102 PRODUCTOS PLASTICOS | C48: 3,088,411.97 | D48: 3,458,341.55 | E48: -369,929.58 | F48: 10.7-
A49: 110500103 | B49: 110500103 PAPELERIA | C49: 331,661.77 | D49: 109,250.18 | E49: 222,411.59 | F49: 203.6
A50: 110500104 | B50: 110500104 MATERIAL GASTABLE DE OFICINA | C50: 1,003,057.70 | D50: 1,312,996.69 | E50: -309,938.99 | F50: 23.6-
A51: 110500105 | B51: 110500105 MATERIALES ELECTRICOS | C51: 10,751,464.03 | D51: 8,609,867.62 | E51: 2,141,596.41 | F51: 24.9
A52: 110500106 | B52: 110500106 MATERIALES MECANICOS | C52: 13,901,736.63 | D52: 15,821,881.97 | E52: -1,920,145.34 | F52: 12.1-
A53: 110500107 | B53: 110500107 HERRAMIENTAS DE METAL | C53: 243,473.52 | D53: 198,536.70 | E53: 44,936.82 | F53: 22.6
A54: 110500108 | B54: 110500108 EQUIPO DE PRODUCCION | C54: 131,663.07 | D54: 142,595.63 | E54: -10,932.56 | F54: 7.7-
A55: 110500109 | B55: 110500109 ARTICULOS DE LIMPIEZA | C55: 898,203.97 | D55: 2,184,026.44 | E55: -1,285,822.47 | F55: 58.9-
A56: 110500110 | B56: 110500110 CALZADO | C56: 131,238.77 | D56: 0.31 | E56: 131,238.46 | F56: 42334987.1
A57: 110500111 | B57: 110500111 UNIFORMES | C57: 18.20 | D57: 57,201.44 | E57: -57,183.24 | F57: 100.0-
A58: 110500112 | B58: 110500112 CERRAJERIA | C58: 12,850.67 | D58: 13,751.04 | E58: -900.37 | F58: 6.5-
A59: 110500113 | B59: 110500113 EQUIPO Y MOBILIARIO DE OFICINA | C59: 14,990.48 | D59: 5,039.40 | E59: 9,951.08 | F59: 197.5
A60: 110500114 | B60: 110500114 EQUIPOS DE COMPUTOS | C60: 145,140.00 | D60: 145,140.00 | E60: 0.00 | F60: 0.0
A61: 110500115 | B61: 110500115 MATERIALES DE COMPUTOS | C61: 5,359,322.52 | D61: 5,285,371.23 | E61: 73,951.29 | F61: 1.4
A62: 110500116 | B62: 110500116 EQUIPOS DE COMUNICACION | C62: 200.00 | D62: 2,693.75 | E62: -2,493.75 | F62: 92.6-
A63: 110500117 | B63: 110500117 PRODUCTOS MINERALES NO METALICOS | C63: 8,593.40 | D63: 761,100.00 | E63: -752,506.60 | F63: 98.9-
A64: 110500118 | B64: 110500118 LLANTAS Y NEUMATICOS | C64: 3,732,881.76 | D64: 3,403,493.01 | E64: 329,388.75 | F64: 9.7
A65: 110500119 | B65: 110500119 TUBERIAS Y ACCESORIOS PLASTICOS | C65: 32,948.43 | D65: 32,950.43 | E65: -2.00 | F65: 0.0
A66: 110500120 | B66: 110500120 TUBERIAS Y ACCESORIOS GALVANIZADOS | C66: 130,083.53 | D66: 234,494.36 | E66: -104,410.83 | F66: 44.5-
A67: 110500121 | B67: 110500121 LUBRICANTES | C67: 1,322,368.69 | D67: 90,166.95 | E67: 1,232,201.74 | F67: 1,366.6
A68: 110500122 | B68: 110500122 COMBUSTIBLE | C68: 1,142,235.23 | D68: 2,711,902.75 | E68: -1,569,667.52 | F68: 57.9-
A69: 110500123 | B69: 110500123 CABLES | C69: 25,601.75 | D69: 31,195.87 | E69: -5,594.12 | F69: 17.9-
A70: 110500124 | B70: 110500124 MATERIALES DIVERSOS | C70: 3,767,029.99 | D70: 2,619,945.67 | E70: 1,147,084.32 | F70: 43.8
A71: 110500127 | B71: 110500127 MATERIALES ELECTRONICOS | C71: 398,940.39 | D71: 438,166.53 | E71: -39,226.14 | F71: 9.0-
A72: 110500128 | B72: 110500128 UTILES DE COCINA | C72: 143,490.60 | D72: 91,308.97 | E72: 52,181.63 | F72: 57.1
A73: 110500129 | B73: 110500129 PRODUCTOS QUIMICO | C73: 7,157.53 | D73: 99,516.27 | E73: -92,358.74 | F73: 92.8-
A74: 110500130 | B74: 110500130 ALIMENTOS Y REFREIGERIOS | C74: 383,613.35 | D74: 953,746.04 | E74: -570,132.69 | F74: 59.8-
B75: Inventarios | C75: 49,112,479.66 | D75: 50,141,486.18 | E75: -1,029,006.52 | F75: 2.1-
B76: =============== | C76: 0.00 | D76: 0.00 | E76: 0.00
A77: 110600100 | B77: 110600100 ANTICIPOS A PROVEEDORES | C77: 322,644,858.63 | D77: 78,295,468.24 | E77: 244,349,390.39 | F77: 312.1
A78: 110600200 | B78: 110600200 ANTICIPOS A CONTRATISTAS | C78: 3,964,717,428.91 | D78: 3,338,941,324.68 | E78: 625,776,104.23 | F78: 18.7
B79: Gastos Pagados por Anticipado | C79: 4,287,362,287.54 | D79: 3,417,236,792.92 | E79: 870,125,494.62 | F79: 25.5
B80: ============================== | C80: 0.00 | D80: 0.00 | E80: 0.00
A81: 130100100 | B81: 130100100 GASTOS PAG. POR ADELANTADO | C81: 1,425,592.44 | D81: 4,195,653.25 | E81: -2,770,060.81 | F81: 66.0-
A82: 130100110 | B82: 130100110 SUSCRIPCIONES | C82: 277,797.25 | D82: 74,333.13 | E82: 203,464.12 | F82: 273.7
A83: 130200100 | B83: 130200100 FIANZAS Y DEPOSITOS | C83: 1,146,376.79 | D83: 1,146,376.79 | E83: 0.00 | F83: 0.0
A84: 130300100 | B84: 130300100 SOFTWARE Y LICENCIA | C84: 77,273,714.60 | D84: 24,334,941.44 | E84: 52,938,773.16 | F84: 217.5
A85: 130900100 | B85: 130900100 ACTIVO POR DERECHO DE USO | C85: 5,603,409.00 | D85: 5,603,409.00 | E85: 0.00 | F85: 0.0
A86: 130900110 | B86: 130900110 AMORTIZACION ACTIVO POR DERECHO DE USO | C86: -1,067,531.00 | D86: -1,067,531.00 | E86: 0.00 | F86: 0.0
B87: Activos Diferidos | C87: 84,659,359.08 | D87: 34,287,182.61 | E87: 50,372,176.47 | F87: 146.9
B88: =================== | C88: 0.00 | D88: 0.00 | E88: 0.00
B89: Total Activos Corrientes | C89: 101,907,788,145.72 | D89: 101,633,025,069.09 | E89: 274,763,076.63 | F89: 0.3
B90: ======================= | C90: 0.00 | D90: 0.00 | E90: 0.00
B91: Activos Fijos | C91: 0.00 | D91: 0.00 | E91: 0.00
B92: ========== | C92: 0.00 | D92: 0.00 | E92: 0.00
A93: 120100100 | B93: 120100100 TERRENO | C93: 6,961,498,986.27 | D93: 6,961,498,986.27 | E93: 0.00 | F93: 0.0
C94: 6,961,498,986.27 | D94: 6,961,498,986.27 | E94: 0.00 | F94: 0.0
A95: 120100510 | B95: 120100510 TERRENO Y SERVIDUMBRE DE PASO REVALUADO | C95: 1,825,588,822.02 | D95: 1,825,588,822.02 | E95: 0.00 | F95: 0.0
C96: 1,825,588,822.02 | D96: 1,825,588,822.02 | E96: 0.00 | F96: 0.0
A97: 120200100 | B97: 120200100 EDIFICIO | C97: 62,430,183,712.63 | D97: 62,430,183,702.63 | E97: 10.00 | F97: 0.0
A98: 120200400 | B98: 120200400 CONTRAPARTIDA ADQ. EDIFICIO | C98: -11.00 | D98: -1.00 | E98: -10.00 | F98: 1,000.0-
A99: 120200510 | B99: 120200510 REVALUACION EDIFICIO | C99: 9,617,399,674.06 | D99: 9,617,399,674.06 | E99: 0.00 | F99: 0.0
A100: 120200600 | B100: 120200600 DETERIORO EDIFICIO | C100: -327,780,324.22 | D100: -327,780,324.22 | E100: 0.00 | F100: 0.0
C101: 71,719,803,051.47 | D101: 71,719,803,051.47 | E101: 0.00 | F101: 0.0
A102: 120300100 | B102: 120300100 PRESAS Y REPRESAS | C102: 1,655,780,076.63 | D102: 1,655,780,076.63 | E102: 0.00 | F102: 0.0
A103: 120300400 | B103: 120300400 CONTRAPARTIDA ADQ. PRESAS Y REPRESAS | C103: -4.00 | D103: -4.00 | E103: 0.00 | F103: 0.0
C104: 1,655,780,072.63 | D104: 1,655,780,072.63 | E104: 0.00 | F104: 0.0
A105: 120400100 | B105: 120400100 HIDROTURBINA (MECANICA) | C105: 8,908,474,578.01 | D105: 8,908,474,556.01 | E105: 22.00 | F105: 0.0
A106: 120400400 | B106: 120400400 CONTRAPARTIDA ADQ. HIDROTURBINAS | C106: -24.00 | D106: -2.00 | E106: -22.00 | F106: 1,100.0-
A107: 120400510 | B107: 120400510 REVALUACION HIDROTURBINA MECANICA | C107: 724,018,908.44 | D107: 724,018,908.44 | E107: 0.00 | F107: 0.0
A108: 120400600 | B108: 120400600 DETERIORO HIDROTURBINA MECANICA | C108: -59,210,561.81 | D108: -59,210,561.81 | E108: 0.00 | F108: 0.0
C109: 9,573,282,900.64 | D109: 9,573,282,900.64 | E109: 0.00 | F109: 0.0
A110: 120500100 | B110: 120500100 GENERADORES (ELECTRICA) | C110: 8,059,356,973.54 | D110: 8,059,356,970.54 | E110: 3.00 | F110: 0.0
A111: 120500400 | B111: 120500400 CONTRAPARTIDA ADQ. GENERADORES | C111: -3.00 | D111: 0.00 | E111: -3.00
A112: 120500510 | B112: 120500510 REVALUACION GENERADORA ELECTRICA | C112: 460,389,578.60 | D112: 460,389,578.60 | E112: 0.00 | F112: 0.0
A113: 120500600 | B113: 120500600 DETERIORO GENERADORA ELECTRICA | C113: -331,678,880.42 | D113: -331,678,880.42 | E113: 0.00 | F113: 0.0
C114: 8,188,067,668.72 | D114: 8,188,067,668.72 | E114: 0.00 | F114: 0.0
A115: 120600100 | B115: 120600100 MAQUINARIA Y EQUIPO MEC. | C115: 1,087,878,929.00 | D115: 1,087,878,834.00 | E115: 95.00 | F115: 0.0
A116: 120600400 | B116: 120600400 CONTRAPARTIDA ADQ. MAQ. Y EQP. MECANICO | C116: -102.00 | D116: -7.00 | E116: -95.00 | F116: 1,357.1-
A117: 120600510 | B117: 120600510 REVALUACION MAQ. Y EQUIPO MECANICO | C117: 278,530,889.40 | D117: 278,530,889.40 | E117: 0.00 | F117: 0.0
A118: 120600600 | B118: 120600600 DETERIORO MAQUINARIA Y EQUIPO MECANICO | C118: -1,890,474.40 | D118: -1,890,474.40 | E118: 0.00 | F118: 0.0
C119: 1,364,519,242.00 | D119: 1,364,519,242.00 | E119: 0.00 | F119: 0.0
A120: 120700100 | B120: 120700100 MAQUINARIA Y EQUIPO ELECT. | C120: 1,451,046,715.37 | D120: 1,443,930,135.13 | E120: 7,116,580.24 | F120: 0.5
A121: 120700300 | B121: 120700300 ALTA ANTICIPO MAQ. Y EQP. ELECTRICO | C121: 346,443.81 | D121: 7,202.07 | E121: 339,241.74 | F121: 4,710.3
A122: 120700400 | B122: 120700400 CONTRAPARTIDA ADQ. MAQ. Y EQP. ELECTRICO | C122: -673.00 | D122: -130.00 | E122: -543.00 | F122: 417.7-
A123: 120700500 | B123: 120700500 COMPENSACION ANTCIPO MAQ. Y EQP. ELECTRICO | C123: -346,443.81 | D123: -7,202.07 | E123: -339,241.74 | F123: 4,710.3-
A124: 120700510 | B124: 120700510 REVALUACION MAQUINARIAS Y EQUIPOS ELECTRICOS | C124: 66,322,011.00 | D124: 66,322,011.00 | E124: 0.00 | F124: 0.0
A125: 120700600 | B125: 120700600 DETERIORO MAQUINARIAS Y EQUIPOS ELECTRICOS | C125: -332,591,217.90 | D125: -332,591,217.90 | E125: 0.00 | F125: 0.0
C126: 1,184,776,835.47 | D126: 1,177,660,798.23 | E126: 7,116,037.24 | F126: 0.6
A127: 120800100 | B127: 120800100 MOBILIARIO Y EQUIPO DE OFICINA | C127: 126,986,894.05 | D127: 123,592,129.58 | E127: 3,394,764.47 | F127: 2.7
A128: 120800300 | B128: 120800300 ALTA ANTICIPO MOB. Y EQP. OFICINA | C128: 281,995.84 | D128: 281,995.84 | E128: 0.00 | F128: 0.0
A129: 120800400 | B129: 120800400 CONTRAPARTIDA ADQ. MOB. Y EQP. OFICINA | C129: -18,983.00 | D129: -17,945.00 | E129: -1,038.00 | F129: 5.8-
A130: 120800500 | B130: 120800500 COMPENSACION ANTCIPO MAQ. Y EQP. ELECTRICO | C130: -281,995.84 | D130: -281,995.84 | E130: 0.00 | F130: 0.0
A131: 120800510 | B131: 120800510 REVALUACION DE MOBILIARIO Y EQUIPO DE OFICINA | C131: 42,703,248.26 | D131: 42,703,248.26 | E131: 0.00 | F131: 0.0
A132: 120800600 | B132: 120800600 DETERIORO MOBILIARIOS Y EQUIPOS DE OFINA | C132: -501,582.05 | D132: -501,582.05 | E132: 0.00 | F132: 0.0
C133: 169,169,577.26 | D133: 165,775,850.79 | E133: 3,393,726.47 | F133: 2.0
A134: 120900100 | B134: 120900100 EQUIPOS DE TRANSPORTE | C134: 541,246,216.38 | D134: 475,026,031.23 | E134: 66,220,185.15 | F134: 13.9
A135: 120900300 | B135: 120900300 ALTA ANTICIPO EQ. TRANSPORTE | C135: 38,887,066.50 | D135: 52,131,102.73 | E135: -13,244,036.23 | F135: 25.4-
A136: 120900400 | B136: 120900400 CONTRAPARTIDA ADQ. EQ. TRANSPORTE | C136: -58.00 | D136: -54.00 | E136: -4.00 | F136: 7.4-
A137: 120900500 | B137: 120900500 COMPENSACION ANTCIPO EQ. TRASPORTE | C137: -38,866,276.50 | D137: -52,110,312.73 | E137: 13,244,036.23 | F137: 25.4
A138: 120900510 | B138: 120900510 REVALUACIÓN EQUIPO DE TRANSPORTE | C138: 116,034,771.54 | D138: 116,034,771.54 | E138: 0.00 | F138: 0.0
A139: 120900600 | B139: 120900600 DETERIORO EQUIPOS DE TRANSPORTE | C139: -117,883.48 | D139: -117,883.48 | E139: 0.00 | F139: 0.0
C140: 657,183,836.44 | D140: 590,963,655.29 | E140: 66,220,181.15 | F140: 11.2
A141: 121100100 | B141: 121100100 EQUIPOS DE COMPUTOS | C141: 312,262,003.70 | D141: 309,286,511.27 | E141: 2,975,492.43 | F141: 1.0
A142: 121100300 | B142: 121100300 ALTA ANTICIPO EQ. DE COMPUTO | C142: 21,466.56 | D142: 21,466.56 | E142: 0.00 | F142: 0.0
A143: 121100400 | B143: 121100400 CONTRAPARTIDA ADQ. EQ. DE COMPUTO | C143: -55,377.51 | D143: -55,082.51 | E143: -295.00 | F143: 0.5-
A144: 121100500 | B144: 121100500 COMPENSACION ANTCIPO EQ. DE COMPUTO | C144: -21,466.56 | D144: -21,466.56 | E144: 0.00 | F144: 0.0
A145: 121100510 | B145: 121100510 REV.EQ. DE COMPUTOS | C145: 30,715,030.50 | D145: 30,715,030.50 | E145: 0.00 | F145: 0.0
A146: 121100600 | B146: 121100600 DETERIORO EQUIPOS DE COMPUTO | C146: -438,184.90 | D146: -438,184.90 | E146: 0.00 | F146: 0.0
C147: 342,483,471.79 | D147: 339,508,274.36 | E147: 2,975,197.43 | F147: 0.9
A148: 121200100 | B148: 121200100 EQUIPOS DE COMUNICACION | C148: 69,511,999.80 | D148: 69,511,792.80 | E148: 207.00 | F148: 0.0
A149: 121200300 | B149: 121200300 ALTA ANTICIPO EQ. DE COMUNICACION | C149: 666,786.70 | D149: 666,786.70 | E149: 0.00 | F149: 0.0
A150: 121200400 | B150: 121200400 CONTRAPARTIDA ADQ. EQ. DE COMUNICACION | C150: -323.00 | D150: -116.00 | E150: -207.00 | F150: 178.4-
A151: 121200500 | B151: 121200500 COMPENSACION ANTCIPO EQ. DE COMUNICACION | C151: -666,786.70 | D151: -666,786.70 | E151: 0.00 | F151: 0.0
A152: 121200510 | B152: 121200510 REVALUACION EQUIPO DE COMUNICACIONES | C152: 7,204,425.41 | D152: 7,204,425.41 | E152: 0.00 | F152: 0.0
A153: 121200600 | B153: 121200600 DETERIORO EQUIPOS DE COMUNICACIOJN | C153: -1,553,699.31 | D153: -1,553,699.31 | E153: 0.00 | F153: 0.0
C154: 75,162,402.90 | D154: 75,162,402.90 | E154: 0.00 | F154: 0.0
A155: 121110100 | B155: 121110100 EQUIPOS AUDIO VISUALES | C155: 4,611,865.77 | D155: 4,387,851.17 | E155: 224,014.60 | F155: 5.1
A156: 121110400 | B156: 121110400 CONTRA PARTIDA ADQ. EQUIPOS AUDIO VISUALES | C156: -17.00 | D156: -12.00 | E156: -5.00 | F156: 41.7-
A157: 121110510 | B157: 121110510 REVALUACION EQUIPOS AUDIOVISUALES | C157: 1,138,990.17 | D157: 1,138,990.17 | E157: 0.00 | F157: 0.0
A158: 121110511 | B158: 121110511 DEP. ACUM. REVA. EQUIPOS AUDIOVISUALES | C158: -1,138,990.17 | D158: -1,138,990.16 | E158: -0.01 | F158: 0.0
A159: 121110600 | B159: 121110600 DETERIORO EQUIPOS AUDIOVISUALES | C159: -38,917.01 | D159: -38,917.01 | E159: 0.00 | F159: 0.0
C160: 4,572,931.76 | D160: 4,348,922.17 | E160: 224,009.59 | F160: 5.2
A161: 121300100 | B161: 121300100 HERRAMIENTAS Y EQUIPO DE TRABAJO | C161: 129,596,413.66 | D161: 125,509,804.23 | E161: 4,086,609.43 | F161: 3.3
A162: 121300300 | B162: 121300300 ALTA ANTICIPO EQ. DE TRABAJO | C162: 537,218.60 | D162: 0.00 | E162: 537,218.60
A163: 121300400 | B163: 121300400 CONTRAPARTIDA ADQ. EQ. DE TRABAJO | C163: -31,049.00 | D163: -30,732.00 | E163: -317.00 | F163: 1.0-
A164: 121300500 | B164: 121300500 COMPENSACION ANTCIPO EQ. DE TRABAJO | C164: -537,218.60 | D164: 0.00 | E164: -537,218.60
A165: 121300510 | B165: 121300510 REVALUACION DE HERRAMIENTAS | C165: 21,777,127.28 | D165: 21,777,127.28 | E165: 0.00 | F165: 0.0
A166: 121300600 | B166: 121300600 DETERIORO HERRAMIENTAS Y EQUIPOS DE TRABAJO | C166: -1,540,764.67 | D166: -1,540,764.67 | E166: 0.00 | F166: 0.0
C167: 149,801,727.27 | D167: 145,715,434.84 | E167: 4,086,292.43 | F167: 2.8
A168: 121400100 | B168: 121400100 EQUIPOS DE SUB-ESTACION | C168: 1,890,339,669.85 | D168: 1,890,339,281.85 | E168: 388.00 | F168: 0.0
A169: 121400400 | B169: 121400400 CONTRAPARTIDA ADQ. EQ. DE SUB-ESTACION | C169: -393.00 | D169: -5.00 | E169: -388.00 | F169: 7,760.0-
A170: 121400510 | B170: 121400510 REVALUACION EQUIPO DE SUB-ESTACION | C170: 273,427,208.01 | D170: 273,427,208.01 | E170: 0.00 | F170: 0.0
A171: 121400600 | B171: 121400600 DETERIORO EQUIPO DE SUB-ESTACION | C171: -8,346,330.56 | D171: -8,346,330.56 | E171: 0.00 | F171: 0.0
C172: 2,155,420,154.30 | D172: 2,155,420,154.30 | E172: 0.00 | F172: 0.0
A173: 121500100 | B173: 121500100 EQUIPOS MISCELANEOS | C173: 55,280,790.19 | D173: 54,844,065.19 | E173: 436,725.00 | F173: 0.8
A174: 121500400 | B174: 121500400 CONTRAPARTIDA ADQ. EQ. MISCELANEOS | C174: -8,345.00 | D174: -7,952.00 | E174: -393.00 | F174: 4.9-
A175: 121500510 | B175: 121500510 REVALUACIÓN EQUIPOS MIESCELANEOS | C175: 12,272,662.31 | D175: 12,272,662.31 | E175: 0.00 | F175: 0.0
A176: 121500600 | B176: 121500600 DETERIORO EQUIPOS MISCELANEOS | C176: -578,469.80 | D176: -578,469.80 | E176: 0.00 | F176: 0.0
C177: 66,966,637.70 | D177: 66,530,305.70 | E177: 436,332.00 | F177: 0.7
A178: 121700100 | B178: 121700100 ELECTRODOMESTICOS | C178: 27,772,041.44 | D178: 21,576,805.90 | E178: 6,195,235.54 | F178: 28.7
A179: 121700300 | B179: 121700300 ALTA ANTICIPO EQ. ELECTRODOMESTICOS | C179: 138,000.00 | D179: 929,630.29 | E179: -791,630.29 | F179: 85.2-
A180: 121700400 | B180: 121700400 CONTRAPARTIDA ADQ. ELECTRODOMESTICOS | C180: -15,601.00 | D180: -15,351.00 | E180: -250.00 | F180: 1.6-
A181: 121700500 | B181: 121700500 COMPENSACION ANTCIPO ELECTRODOMESTICOS | C181: -138,000.00 | D181: -929,630.29 | E181: 791,630.29 | F181: 85.2
A182: 121700510 | B182: 121700510 REVALUACION ELECTRODOMESTICOS | C182: 14,940,017.29 | D182: 14,940,017.29 | E182: 0.00 | F182: 0.0
A183: 121700511 | B183: 121700511 DEP. ACUM. REVA. ELECTRODOMESTICOS | C183: -14,940,017.29 | D183: -14,940,017.08 | E183: -0.21 | F183: 0.0
A184: 121700600 | B184: 121700600 DETERIORO ELECTRODOMESTICOS | C184: -440,454.23 | D184: -440,454.23 | E184: 0.00 | F184: 0.0
C185: 27,315,986.21 | D185: 21,121,000.88 | E185: 6,194,985.33 | F185: 29.3
A186: 121800100 | B186: 121800100 MOBILIARIOS DE ALOJAMIENTO | C186: 5,770,734.45 | D186: 4,519,363.29 | E186: 1,251,371.16 | F186: 27.7
A187: 121800400 | B187: 121800400 CONTRAPARTIDA ADQ. ALOJAMIENTO | C187: -116.00 | D187: -31.00 | E187: -85.00 | F187: 274.2-
A188: 121800510 | B188: 121800510 REVALUACION MOBILIARIO Y ALOJAMIENTO | C188: 1,163,208.71 | D188: 1,163,208.71 | E188: 0.00 | F188: 0.0
A189: 121800511 | B189: 121800511 DEP. ACUM. REVA. MOBILIARIO DE ALOJAMIENTO | C189: -1,163,208.71 | D189: -1,163,208.67 | E189: -0.04 | F189: 0.0
A190: 121800600 | B190: 121800600 DETERIORO MOILIARIOS DE ALOJAMIENTO | C190: -163,562.98 | D190: -163,562.98 | E190: 0.00 | F190: 0.0
C191: 5,607,055.47 | D191: 4,355,769.35 | E191: 1,251,286.12 | F191: 28.7
A192: 121900100 | B192: 121900100 EQUI. Y MAQ. DE ELEVACION | C192: 10,470,255.10 | D192: 10,470,250.10 | E192: 5.00 | F192: 0.0
A193: 121900400 | B193: 121900400 CONTRAPARTIDA ADQ. EQ.ELEVACION | C193: -6.00 | D193: -1.00 | E193: -5.00 | F193: 500.0-
C194: 10,470,249.10 | D194: 10,470,249.10 | E194: 0.00 | F194: 0.0
A195: 122200100 | B195: 122200100 CAMARAS Y VIDEOS | C195: 12,586,013.98 | D195: 12,620,823.98 | E195: -34,810.00 | F195: 0.3-
A196: 122200400 | B196: 122200400 CONTRAPARTIDA ADQ.CAMARAS Y VIDEOS | C196: -3.00 | D196: -3.00 | E196: 0.00 | F196: 0.0
A197: 122200510 | B197: 122200510 REVALUACION CAMARAS Y VIDEOS | C197: 1,948,436.49 | D197: 1,948,436.49 | E197: 0.00 | F197: 0.0
A198: 122200511 | B198: 122200511 DEP. ACUM. REVA. CAMARA Y VIDEO | C198: -1,948,436.49 | D198: -1,948,436.47 | E198: -0.02 | F198: 0.0
A199: 122200600 | B199: 122200600 DETERIORO CAMARAS Y VIDEOS | C199: -108,422.32 | D199: -108,422.32 | E199: 0.00 | F199: 0.0
C200: 12,477,588.66 | D200: 12,512,398.68 | E200: -34,810.02 | F200: 0.3-
... 430 more rows

Sheet NOTA 14
A1: Nota# 14 Propiedad planta y equipo
A2: Descripccion | B2: Terreno | C2: Edificaciones | D2: Presas y equipos de subestación | E2: Mobiliario y equipos de oficina | F2: Equipos de transporte y otros activos | G2: Piezas y accesorios | H2: Construcción en proceso | I2: Total
A3: Costo de adquisición
A4: Al 01 de enero de 2024 | B4: =SUMIF('Movimiento por Cta.'!$N$3:$N$76,'NOTA 14'!B2,'Movimiento por Cta.'!$C$3:$C$76) -> 8,787,087,810.00 | C4: =SUMIF('Movimiento por Cta.'!$N$3:$N$76,'NOTA 14'!C2,'Movimiento por Cta.'!$C$3:$C$76) -> 71,719,803,058.37 | D4: =SUMIF('Movimiento por Cta.'!$N$3:$N$76,'NOTA 14'!D2,'Movimiento por Cta.'!$C$3:$C$76) -> 21,572,550,788.98 | E4: =SUMIF('Movimiento por Cta.'!$N$3:$N$76,'NOTA 14'!E2,'Movimiento por Cta.'!$C$3:$C$76) -> 171,312,825.92 | F4: =SUMIF('Movimiento por Cta.'!$N$3:$N$76,'NOTA 14'!F2,'Movimiento por Cta.'!$C$3:$C$76) -> 4,675,552,028.14 | G4: =SUMIF('Movimiento por Cta.'!$N$3:$N$76,'NOTA 14'!G2,'Movimiento por Cta.'!$C$3:$C$76) -> 66,538,280.11 | H4: =SUMIF('Movimiento por Cta.'!$N$3:$N$76,'NOTA 14'!H2,'Movimiento por Cta.'!$C$3:$C$76) -> 17,246,660,088.23 | I4: =SUM(B4:H4) -> 124,239,504,879.75
A5: Adiciones | B5: =SUMIF('Movimiento por Cta.'!$N$3:$N$55,'NOTA 14'!B2,'Movimiento por Cta.'!$D$3:$D$55) -> 0 | C5: =SUMIF('Movimiento por Cta.'!$N$3:$N$55,'NOTA 14'!C2,'Movimiento por Cta.'!$D$3:$D$55) -> 10.00 | D5: =SUMIF('Movimiento por Cta.'!$N$3:$N$55,'NOTA 14'!D2,'Movimiento por Cta.'!$D$3:$D$55) -> 413.00 | E5: =SUMIF('Movimiento por Cta.'!$N$3:$N$55,'NOTA 14'!E2,'Movimiento por Cta.'!$D$3:$D$55) -> 4,646,135.63 | F5: =SUMIF('Movimiento por Cta.'!$N$3:$N$55,'NOTA 14'!F2,'Movimiento por Cta.'!$D$3:$D$55) -> 16,640,103.80 | G5: =SUMIF('Movimiento por Cta.'!$N$3:$N$55,'NOTA 14'!G2,'Movimiento por Cta.'!$D$3:$D$55) -> 436,725.00 | H5: =SUMIF('Movimiento por Cta.'!$N$3:$N$55,'NOTA 14'!H2,'Movimiento por Cta.'!$D$3:$D$55) -> 11,338,959,282.07 | I5: 11,360,682,669.50
A6: Superávit revaluación | B6: 0 | C6: 0 | D6: 0 | E6: 0 | F6: 0 | G6: 0 | H6: 0 | I6: 0
A7: Retiros | B7: =SUMIF('Movimiento por Cta.'!$N$3:$N$55,'NOTA 14'!B2,'Movimiento por Cta.'!$F$3:$F$55) -> 0 | C7: =SUMIF('Movimiento por Cta.'!$N$3:$N$55,'NOTA 14'!C2,'Movimiento por Cta.'!$F$3:$F$55) -> 0 | D7: =SUMIF('Movimiento por Cta.'!$N$3:$N$55,'NOTA 14'!D2,'Movimiento por Cta.'!$F$3:$F$55) -> 0 | E7: =SUMIF('Movimiento por Cta.'!$N$3:$N$55,'NOTA 14'!E2,'Movimiento por Cta.'!$F$3:$F$55) -> 0 | F7: =SUMIF('Movimiento por Cta.'!$N$3:$N$55,'NOTA 14'!F2,'Movimiento por Cta.'!$F$3:$F$55) -> (93,810.00) | G7: =SUMIF('Movimiento por Cta.'!$N$3:$N$55,'NOTA 14'!G2,'Movimiento por Cta.'!$F$3:$F$55) -> 0 | H7: =SUMIF('Movimiento por Cta.'!$N$3:$N$55,'NOTA 14'!H2,'Movimiento por Cta.'!$F$3:$F$55) -> 0 | I7: (93,810.00)
A8: Otros | B8: =SUMIF(Maestro!$C$136:$C$155,'NOTA 14'!B2,Maestro!$D$136:$D$155) -> 0 | C8: =SUMIF(Maestro!$C$136:$C$155,'NOTA 14'!C2,Maestro!$D$136:$D$155) -> (11.00) | D8: =SUMIF(Maestro!$C$136:$C$155,'NOTA 14'!D2,Maestro!$D$136:$D$155) -> (424.00) | E8: =SUMIF(Maestro!$C$136:$C$155,'NOTA 14'!E2,Maestro!$D$136:$D$155) -> (19,099.00) | F8: =SUMIF(Maestro!$C$136:$C$155,'NOTA 14'!F2,Maestro!$D$136:$D$155) -> (103,231.51) | G8: =SUMIF(Maestro!$C$136:$C$155,'NOTA 14'!G2,Maestro!$D$136:$D$155)+14.85 -> (8,330.15) | H8: =SUMIF(Maestro!$C$136:$C$155,'NOTA 14'!H2,Maestro!$D$136:$D$155) -> 0 | I8: (131,095.66)
A9: Transferencias | B9: 0 | C9: 0 | D9: 0 | E9: 0 | F9: 0 | G9: 0 | H9: =SUMIF('Movimiento por Cta.'!$N$3:$N$55,'NOTA 14'!H2,'Movimiento por Cta.'!$E$3:$E$55) -> 0 | I9: 0
A10: Saldo al final del periodo | B10: =SUM(B4:B9) -> 8,787,087,810.00 | C10: 71,719,803,057.37 | D10: 21,572,550,777.98 | E10: 175,939,862.55 | F10: 4,691,995,090.43 | G10: 66,966,674.96 | H10: =SUM(H4:H9) -> 28,585,619,370.30 | I10: 135,599,962,643.59
A11: Depreciación acumulada
A12: Dep. Acum. al inicio del periodo | B12: =SUMIF('Movimiento por Cta.'!$N$81:$N$121,'NOTA 14'!B2,'Movimiento por Cta.'!$C$81:$C$121) -> 0 | C12: =SUMIF('Movimiento por Cta.'!$N$81:$N$121,'NOTA 14'!C2,'Movimiento por Cta.'!$C$81:$C$121) -> (17,320,035,754.58) | D12: =SUMIF('Movimiento por Cta.'!$N$81:$N$121,'NOTA 14'!D2,'Movimiento por Cta.'!$C$81:$C$121) -> (7,118,262,545.25) | E12: =SUMIF('Movimiento por Cta.'!$N$81:$N$121,'NOTA 14'!E2,'Movimiento por Cta.'!$C$81:$C$121) -> (156,778,783.80) | F12: =SUMIF('Movimiento por Cta.'!$N$81:$N$121,'NOTA 14'!F2,'Movimiento por Cta.'!$C$81:$C$121) -> (2,620,957,547.16) | G12: =SUMIF('Movimiento por Cta.'!$N$81:$N$121,'NOTA 14'!G2,'Movimiento por Cta.'!$C$81:$C$121) -> (51,322,925.02) | H12: =SUMIF('Movimiento por Cta.'!$N$81:$N$121,'NOTA 14'!H2,'Movimiento por Cta.'!$C$81:$C$121)-SUMIF('Movimiento por Cta.'!$N$81:$N$100,'NOTA 14'!H2,'Movimiento por Cta.'!$L$81:$L$100) -> 0 | I12: =SUM(B12:H12) -> (27,267,357,555.81)
A13: Cargo del periodo | B13: =SUMIF('Movimiento por Cta.'!$N$81:$N$121,'NOTA 14'!B2,'Movimiento por Cta.'!$D$81:$D$121) -> 0 | C13: =SUMIF('Movimiento por Cta.'!$N$81:$N$121,'NOTA 14'!C2,'Movimiento por Cta.'!$D$81:$D$121) -> (2,403,006,947.11) | D13: =SUMIF('Movimiento por Cta.'!$N$81:$N$121,'NOTA 14'!D2,'Movimiento por Cta.'!$D$81:$D$121) -> (974,953,644.89) | E13: =SUMIF('Movimiento por Cta.'!$N$81:$N$121,'NOTA 14'!E2,'Movimiento por Cta.'!$D$81:$D$121) -> (5,642,209.53) | F13: =SUMIF('Movimiento por Cta.'!$N$81:$N$121,'NOTA 14'!F2,'Movimiento por Cta.'!$D$81:$D$121) -> (339,497,368.13) | G13: =SUMIF('Movimiento por Cta.'!$N$81:$N$121,'NOTA 14'!G2,'Movimiento por Cta.'!$D$81:$D$121) -> (4,561,993.84) | H13: =SUMIF('Movimiento por Cta.'!$N$81:$N$121,'NOTA 14'!H2,'Movimiento por Cta.'!$D$81:$D$121) -> 0 | I13: =SUM(B13:H13) -> (3,727,662,163.50)
A14: Retiros | B14: =SUMIF('Movimiento por Cta.'!$N$81:$N$121,'NOTA 14'!B2,'Movimiento por Cta.'!$F$81:$F$121) -> 0 | C14: =SUMIF('Movimiento por Cta.'!$N$81:$N$121,'NOTA 14'!C2,'Movimiento por Cta.'!$F$81:$F$121) -> 0 | D14: =SUMIF('Movimiento por Cta.'!$N$81:$N$121,'NOTA 14'!D2,'Movimiento por Cta.'!$F$81:$F$121) -> 0 | E14: =SUMIF('Movimiento por Cta.'!$N$81:$N$121,'NOTA 14'!E2,'Movimiento por Cta.'!$F$81:$F$121) -> 0 | F14: =SUMIF('Movimiento por Cta.'!$N$81:$N$121,'NOTA 14'!F2,'Movimiento por Cta.'!$F$81:$F$121) -> 28,323.50 | G14: =SUMIF('Movimiento por Cta.'!$N$81:$N$121,'NOTA 14'!G2,'Movimiento por Cta.'!$F$81:$F$121) -> 0 | H14: =SUMIF('Movimiento por Cta.'!$N$81:$N$121,'NOTA 14'!H2,'Movimiento por Cta.'!$F$81:$F$121) -> 0 | I14: =SUM(B14:H14) -> 28,323.50
A15: Saldo al final del periodo | B15: =SUM(B12:B14) -> 0 | C15: =SUM(C12:C14) -> (19,723,042,701.69) | D15: (8,093,216,190.14) | E15: (162,420,993.33) | F15: (2,960,426,591.79) | G15: (55,884,918.86) | H15: 0 | I15: =SUM(B15:H15) -> (30,994,991,395.81)
A16: Prop. planta y equipos neto (Dic. 2024) | B16: =+B10+B15 -> 8,787,087,810.00 | C16: =+C10+C15 -> 51,996,760,355.68 | D16: 13,479,334,587.84 | E16: 13,518,869.22 | F16: 1,731,568,498.64 | G16: 11,081,756.10 | H16: 28,585,619,370.30 | I16: =+I10+I15 -> 104,604,971,247.78 | J16: =Balanza!C255 -> 104,604,971,247.78 | K16: =I16-J16 -> 0

Sheet Movimiento por Cta.
C1: Valor de Adq. Periodo comprendido desde el 1 de Enero al 31 de Diciembre 2024
C2: Valor Adq. Inicial Al 1-Enero-2024 | D2: Adiciones | E2: Transferencias | F2: Retiros | G2: Ajustes | H2: Valor Actual | J2: Valor Según Cta. Contable - Catálogo de Ctas. | L2: Diferencia
A3: 120100100 | B3: TERRENO | C3: =SUMIF('Auxiliar Costo Histórico'!F:F,'Movimiento por Cta.'!A3,'Auxiliar Costo Histórico'!M:M) -> 6,961,498,988 | D3: =SUMIFS('Auxiliar Costo Histórico'!N:N,'Auxiliar Costo Histórico'!N:N,">0",'Auxiliar Costo Histórico'!F:F,'Movimiento por Cta.'!A3) -> 0 | E3: =SUMIF('Auxiliar Costo Histórico'!F:F,'Movimiento por Cta.'!A3,'Auxiliar Costo Histórico'!P:P) -> 0 | F3: =SUMIF('Auxiliar Costo Histórico'!F:F,'Movimiento por Cta.'!A3,'Auxiliar Costo Histórico'!O:O) -> 0 | G3: =SUMIFS('Auxiliar Costo Histórico'!N:N,'Auxiliar Costo Histórico'!N:N,"<0",'Auxiliar Costo Histórico'!F:F,'Movimiento por Cta.'!A3) -> 0 | H3: =SUM(C3:G3) -> 6,961,498,988 | J3: =VLOOKUP(A3,Balanza!A:C,3,FALSE) -> 6,961,498,986 | L3: =H3-J3 -> 2 | N3: =VLOOKUP(A3,Maestro!A:C,3,FALSE) -> Terreno
A4: 120200100 | B4: EDIFICIO | C4: =SUMIF('Auxiliar Costo Histórico'!F:F,'Movimiento por Cta.'!A4,'Auxiliar Costo Histórico'!M:M) -> 62,430,183,709 | D4: =SUMIFS('Auxiliar Costo Histórico'!N:N,'Auxiliar Costo Histórico'!N:N,">0",'Auxiliar Costo Histórico'!F:F,'Movimiento por Cta.'!A4) -> 10 | E4: =SUMIF('Auxiliar Costo Histórico'!F:F,'Movimiento por Cta.'!A4,'Auxiliar Costo Histórico'!P:P) -> 0 | F4: =SUMIF('Auxiliar Costo Histórico'!F:F,'Movimiento por Cta.'!A4,'Auxiliar Costo Histórico'!O:O) -> 0 | G4: =SUMIFS('Auxiliar Costo Histórico'!N:N,'Auxiliar Costo Histórico'!N:N,"<0",'Auxiliar Costo Histórico'!F:F,'Movimiento por Cta.'!A4) -> 0 | H4: =SUM(C4:G4) -> 62,430,183,719 | J4: =VLOOKUP(A4,Balanza!A:C,3,FALSE) -> 62,430,183,713 | L4: =H4-J4 -> 6 | N4: =VLOOKUP(A4,Maestro!A:C,3,FALSE) -> Edificaciones
A5: 120300100 | B5: PRESAS Y REPRESAS | C5: =SUMIF('Auxiliar Costo Histórico'!F:F,'Movimiento por Cta.'!A5,'Auxiliar Costo Histórico'!M:M) -> 1,655,780,077 | D5: =SUMIFS('Auxiliar Costo Histórico'!N:N,'Auxiliar Costo Histórico'!N:N,">0",'Auxiliar Costo Histórico'!F:F,'Movimiento por Cta.'!A5) -> 0 | E5: =SUMIF('Auxiliar Costo Histórico'!F:F,'Movimiento por Cta.'!A5,'Auxiliar Costo Histórico'!P:P) -> 0 | F5: =SUMIF('Auxiliar Costo Histórico'!F:F,'Movimiento por Cta.'!A5,'Auxiliar Costo Histórico'!O:O) -> 0 | G5: =SUMIFS('Auxiliar Costo Histórico'!N:N,'Auxiliar Costo Histórico'!N:N,"<0",'Auxiliar Costo Histórico'!F:F,'Movimiento por Cta.'!A5) -> 0 | H5: 1,655,780,077 | J5: =VLOOKUP(A5,Balanza!A:C,3,FALSE) -> 1,655,780,077 | L5: 0 | N5: =VLOOKUP(A5,Maestro!A:C,3,FALSE) -> Presas y equipos de subestación
A6: 120400100 | B6: HIDROTURBINA (MECANICA) | C6: =SUMIF('Auxiliar Costo Histórico'!F:F,'Movimiento por Cta.'!A6,'Auxiliar Costo Histórico'!M:M) -> 8,908,474,556 | D6: =SUMIFS('Auxiliar Costo Histórico'!N:N,'Auxiliar Costo Histórico'!N:N,">0",'Auxiliar Costo Histórico'!F:F,'Movimiento por Cta.'!A6) -> 22 | E6: =SUMIF('Auxiliar Costo Histórico'!F:F,'Movimiento por Cta.'!A6,'Auxiliar Costo Histórico'!P:P) -> 0 | F6: =SUMIF('Auxiliar Costo Histórico'!F:F,'Movimiento por Cta.'!A6,'Auxiliar Costo Histórico'!O:O) -> 0 | G6: =SUMIFS('Auxiliar Costo Histórico'!N:N,'Auxiliar Costo Histórico'!N:N,"<0",'Auxiliar Costo Histórico'!F:F,'Movimiento por Cta.'!A6) -> 0 | H6: 8,908,474,578 | J6: =VLOOKUP(A6,Balanza!A:C,3,FALSE) -> 8,908,474,578 | L6: 0 | N6: =VLOOKUP(A6,Maestro!A:C,3,FALSE) -> Presas y equipos de subestación
A7: 120500100 | B7: GENERADORES (ELECTRICA) | C7: =SUMIF('Auxiliar Costo Histórico'!F:F,'Movimiento por Cta.'!A7,'Auxiliar Costo Histórico'!M:M) -> 8,059,356,971 | D7: =SUMIFS('Auxiliar Costo Histórico'!N:N,'Auxiliar Costo Histórico'!N:N,">0",'Auxiliar Costo Histórico'!F:F,'Movimiento por Cta.'!A7) -> 3 | E7: =SUMIF('Auxiliar Costo Histórico'!F:F,'Movimiento por Cta.'!A7,'Auxiliar Costo Histórico'!P:P) -> 0 | F7: =SUMIF('Auxiliar Costo Histórico'!F:F,'Movimiento por Cta.'!A7,'Auxiliar Costo Histórico'!O:O) -> 0 | G7: =SUMIFS('Auxiliar Costo Histórico'!N:N,'Auxiliar Costo Histórico'!N:N,"<0",'Auxiliar Costo Histórico'!F:F,'Movimiento por Cta.'!A7) -> 0 | H7: 8,059,356,974 | J7: =VLOOKUP(A7,Balanza!A:C,3,FALSE) -> 8,059,356,974 | L7: 0 | N7: =VLOOKUP(A7,Maestro!A:C,3,FALSE) -> Presas y equipos de subestación
A8: 120600100 | B8: MAQUINARIA Y EQUIPO MEC. | C8: =SUMIF('Auxiliar Costo Histórico'!F:F,'Movimiento por Cta.'!A8,'Auxiliar Costo Histórico'!M:M) -> 1,087,878,834 | D8: =SUMIFS('Auxiliar Costo Histórico'!N:N,'Auxiliar Costo Histórico'!N:N,">0",'Auxiliar Costo Histórico'!F:F,'Movimiento por Cta.'!A8) -> 95 | E8: =SUMIF('Auxiliar Costo Histórico'!F:F,'Movimiento por Cta.'!A8,'Auxiliar Costo Histórico'!P:P) -> 0 | F8: =SUMIF('Auxiliar Costo Histórico'!F:F,'Movimiento por Cta.'!A8,'Auxiliar Costo Histórico'!O:O) -> 0 | G8: =SUMIFS('Auxiliar Costo Histórico'!N:N,'Auxiliar Costo Histórico'!N:N,"<0",'Auxiliar Costo Histórico'!F:F,'Movimiento por Cta.'!A8) -> 0 | H8: 1,087,878,929 | J8: =VLOOKUP(A8,Balanza!A:C,3,FALSE) -> 1,087,878,929 | L8: 0 | N8: =VLOOKUP(A8,Maestro!A:C,3,FALSE) -> Equipos de transporte y otros activos
A9: 120700100 | B9: MAQUINARIA Y EQUIPO ELECT. | C9: =SUMIF('Auxiliar Costo Histórico'!F:F,'Movimiento por Cta.'!A9,'Auxiliar Costo Histórico'!M:M)+(VLOOKUP("120700500",Balanza!A:D,4,FALSE)) -> 1,443,930,126 | D9: =SUMIFS('Auxiliar Costo Histórico'!N:N,'Auxiliar Costo Histórico'!N:N,">0",'Auxiliar Costo Histórico'!F:F,'Movimiento por Cta.'!A9)+(VLOOKUP("120700500",Balanza!A:E,5,FALSE)) -> 7,116,580 | E9: =SUMIF('Auxiliar Costo Histórico'!F:F,'Movimiento por Cta.'!A9,'Auxiliar Costo Histórico'!P:P) -> 0 | F9: =SUMIF('Auxiliar Costo Histórico'!F:F,'Movimiento por Cta.'!A9,'Auxiliar Costo Histórico'!O:O) -> 0 | G9: =SUMIFS('Auxiliar Costo Histórico'!N:N,'Auxiliar Costo Histórico'!N:N,"<0",'Auxiliar Costo Histórico'!F:F,'Movimiento por Cta.'!A9) -> 0 | H9: 1,451,046,706 | J9: =VLOOKUP(A9,Balanza!A:C,3,FALSE) -> 1,451,046,715 | L9: (9) | N9: =VLOOKUP(A9,Maestro!A:C,3,FALSE) -> Equipos de transporte y otros activos
A10: 120800100 | B10: MOBILIARIO Y EQUIPO DE OFICINA | C10: =SUMIF('Auxiliar Costo Histórico'!F:F,'Movimiento por Cta.'!A10,'Auxiliar Costo Histórico'!M:M)+(VLOOKUP("120800500",Balanza!A:D,4,FALSE)) -> 123,592,151 | D10: =SUMIFS('Auxiliar Costo Histórico'!N:N,'Auxiliar Costo Histórico'!N:N,">0",'Auxiliar Costo Histórico'!F:F,'Movimiento por Cta.'!A10) -> 3,394,764 | E10: =SUMIF('Auxiliar Costo Histórico'!F:F,'Movimiento por Cta.'!A10,'Auxiliar Costo Histórico'!P:P) -> 0 | F10: =SUMIF('Auxiliar Costo Histórico'!F:F,'Movimiento por Cta.'!A10,'Auxiliar Costo Histórico'!O:O) -> 0 | G10: =SUMIFS('Auxiliar Costo Histórico'!N:N,'Auxiliar Costo Histórico'!N:N,"<0",'Auxiliar Costo Histórico'!F:F,'Movimiento por Cta.'!A10) -> 0 | H10: 126,986,915 | J10: =VLOOKUP(A10,Balanza!A:C,3,FALSE) -> 126,986,894 | L10: 21 | N10: =VLOOKUP(A10,Maestro!A:C,3,FALSE) -> Mobiliario y equipos de oficina
A11: 120900100 | B11: EQUIPOS DE TRANSPORTE | C11: =SUMIF('Auxiliar Costo Histórico'!F:F,'Movimiento por Cta.'!A11,'Auxiliar Costo Histórico'!M:M)+(VLOOKUP("120900500",Balanza!A:D,4,FALSE))+66220183.15 -> 541,267,012 | D11: =SUMIFS('Auxiliar Costo Histórico'!N:N,'Auxiliar Costo Histórico'!N:N,">0",'Auxiliar Costo Histórico'!F:F,'Movimiento por Cta.'!A11)+(VLOOKUP("120900500",Balanza!A:E,5,FALSE))-66220183.15 -> 2 | E11: =SUMIF('Auxiliar Costo Histórico'!F:F,'Movimiento por Cta.'!A11,'Auxiliar Costo Histórico'!P:P) -> 0 | F11: =SUMIF('Auxiliar Costo Histórico'!F:F,'Movimiento por Cta.'!A11,'Auxiliar Costo Histórico'!O:O) -> 0 | G11: =SUMIFS('Auxiliar Costo Histórico'!N:N,'Auxiliar Costo Histórico'!N:N,"<0",'Auxiliar Costo Histórico'!F:F,'Movimiento por Cta.'!A11) -> 0 | H11: 541,267,014 | J11: =VLOOKUP(A11,Balanza!A:C,3,FALSE) -> 541,246,216 | L11: 20,798 | N11: =VLOOKUP(A11,Maestro!A:C,3,FALSE) -> Equipos de transporte y otros activos
A12: 121100100 | B12: EQUIPOS DE COMPUTOS | C12: =SUMIF('Auxiliar Costo Histórico'!F:F,'Movimiento por Cta.'!A12,'Auxiliar Costo Histórico'!M:M)+(VLOOKUP("121100500",Balanza!A:D,4,FALSE)) -> 309,286,570 | D12: =SUMIFS('Auxiliar Costo Histórico'!N:N,'Auxiliar Costo Histórico'!N:N,">0",'Auxiliar Costo Histórico'!F:F,'Movimiento por Cta.'!A12)+(VLOOKUP("121100500",Balanza!A:E,5,FALSE)) -> 2,975,492 | E12: =SUMIF('Auxiliar Costo Histórico'!F:F,'Movimiento por Cta.'!A12,'Auxiliar Costo Histórico'!P:P) -> 0 | F12: =SUMIF('Auxiliar Costo Histórico'!F:F,'Movimiento por Cta.'!A12,'Auxiliar Costo Histórico'!O:O) -> 0 | G12: =SUMIFS('Auxiliar Costo Histórico'!N:N,'Auxiliar Costo Histórico'!N:N,"<0",'Auxiliar Costo Histórico'!F:F,'Movimiento por Cta.'!A12) -> 0 | H12: 312,262,063 | J12: =VLOOKUP(A12,Balanza!A:C,3,FALSE) -> 312,262,004 | L12: 59 | N12: =VLOOKUP(A12,Maestro!A:C,3,FALSE) -> Equipos de transporte y otros activos
A13: 121110100 | B13: EQUIPOS AUDIO VISUALES | C13: =SUMIF('Auxiliar Costo Histórico'!F:F,'Movimiento por Cta.'!A13,'Auxiliar Costo Histórico'!M:M) -> 4,387,849 | D13: =SUMIFS('Auxiliar Costo Histórico'!N:N,'Auxiliar Costo Histórico'!N:N,">0",'Auxiliar Costo Histórico'!F:F,'Movimiento por Cta.'!A13) -> 224,015 | E13: =SUMIF('Auxiliar Costo Histórico'!F:F,'Movimiento por Cta.'!A13,'Auxiliar Costo Histórico'!P:P) -> 0 | F13: =SUMIF('Auxiliar Costo Histórico'!F:F,'Movimiento por Cta.'!A13,'Auxiliar Costo Histórico'!O:O) -> 0 | G13: =SUMIFS('Auxiliar Costo Histórico'!N:N,'Auxiliar Costo Histórico'!N:N,"<0",'Auxiliar Costo Histórico'!F:F,'Movimiento por Cta.'!A13) -> 0 | H13: 4,611,863 | J13: =VLOOKUP(A13,Balanza!A:C,3,FALSE) -> 4,611,866 | L13: (3) | N13: =VLOOKUP(A13,Maestro!A:C,3,FALSE) -> Equipos de transporte y otros activos
A14: 121200100 | B14: EQUIPOS DE COMUNICACION | C14: =SUMIF('Auxiliar Costo Histórico'!F:F,'Movimiento por Cta.'!A14,'Auxiliar Costo Histórico'!M:M)+(VLOOKUP("121200500",Balanza!A:D,4,FALSE)) -> 69,511,681 | D14: =SUMIFS('Auxiliar Costo Histórico'!N:N,'Auxiliar Costo Histórico'!N:N,">0",'Auxiliar Costo Histórico'!F:F,'Movimiento por Cta.'!A14)+(VLOOKUP("121200500",Balanza!A:E,5,FALSE)) -> 207 | E14: =SUMIF('Auxiliar Costo Histórico'!F:F,'Movimiento por Cta.'!A14,'Auxiliar Costo Histórico'!P:P) -> 0 | F14: =SUMIF('Auxiliar Costo Histórico'!F:F,'Movimiento por Cta.'!A14,'Auxiliar Costo Histórico'!O:O) -> 0 | G14: =SUMIFS('Auxiliar Costo Histórico'!N:N,'Auxiliar Costo Histórico'!N:N,"<0",'Auxiliar Costo Histórico'!F:F,'Movimiento por Cta.'!A14) -> 0 | H14: 69,511,888 | J14: =VLOOKUP(A14,Balanza!A:C,3,FALSE) -> 69,512,000 | L14: (112) | N14: =VLOOKUP(A14,Maestro!A:C,3,FALSE) -> Equipos de transporte y otros activos
A15: 121300100 | B15: HERRAMIENTAS Y EQUIPO DE TRABAJO | C15: =SUMIF('Auxiliar Costo Histórico'!F:F,'Movimiento por Cta.'!A15,'Auxiliar Costo Histórico'!M:M) -> 125,509,809 | D15: =SUMIFS('Auxiliar Costo Histórico'!N:N,'Auxiliar Costo Histórico'!N:N,">0",'Auxiliar Costo Histórico'!F:F,'Movimiento por Cta.'!A15)+(VLOOKUP("121300500",Balanza!A:E,5,FALSE)) -> 4,086,609 | E15: =SUMIF('Auxiliar Costo Histórico'!F:F,'Movimiento por Cta.'!A15,'Auxiliar Costo Histórico'!P:P) -> 0 | F15: =SUMIF('Auxiliar Costo Histórico'!F:F,'Movimiento por Cta.'!A15,'Auxiliar Costo Histórico'!O:O) -> 0 | G15: =SUMIFS('Auxiliar Costo Histórico'!N:N,'Auxiliar Costo Histórico'!N:N,"<0",'Auxiliar Costo Histórico'!F:F,'Movimiento por Cta.'!A15) -> 0 | H15: 129,596,419 | J15: =VLOOKUP(A15,Balanza!A:C,3,FALSE) -> 129,596,414 | L15: 5 | N15: =VLOOKUP(A15,Maestro!A:C,3,FALSE) -> Equipos de transporte y otros activos
A16: 121400100 | B16: EQUIPOS DE SUB-ESTACION | C16: =SUMIF('Auxiliar Costo Histórico'!F:F,'Movimiento por Cta.'!A16,'Auxiliar Costo Histórico'!M:M) -> 1,890,339,264 | D16: =SUMIFS('Auxiliar Costo Histórico'!N:N,'Auxiliar Costo Histórico'!N:N,">0",'Auxiliar Costo Histórico'!F:F,'Movimiento por Cta.'!A16) -> 388 | E16: =SUMIF('Auxiliar Costo Histórico'!F:F,'Movimiento por Cta.'!A16,'Auxiliar Costo Histórico'!P:P) -> 0 | F16: =SUMIF('Auxiliar Costo Histórico'!F:F,'Movimiento por Cta.'!A16,'Auxiliar Costo Histórico'!O:O) -> 0 | G16: =SUMIFS('Auxiliar Costo Histórico'!N:N,'Auxiliar Costo Histórico'!N:N,"<0",'Auxiliar Costo Histórico'!F:F,'Movimiento por Cta.'!A16) -> 0 | H16: 1,890,339,652 | J16: =VLOOKUP(A16,Balanza!A:C,3,FALSE) -> 1,890,339,670 | L16: (18) | N16: =VLOOKUP(A16,Maestro!A:C,3,FALSE) -> Presas y equipos de subestación
A17: 121500100 | B17: EQUIPOS MISCELANEOS | C17: =SUMIF('Auxiliar Costo Histórico'!F:F,'Movimiento por Cta.'!A17,'Auxiliar Costo Histórico'!M:M) -> 54,844,088 | D17: =SUMIFS('Auxiliar Costo Histórico'!N:N,'Auxiliar Costo Histórico'!N:N,">0",'Auxiliar Costo Histórico'!F:F,'Movimiento por Cta.'!A17) -> 436,725 | E17: =SUMIF('Auxiliar Costo Histórico'!F:F,'Movimiento por Cta.'!A17,'Auxiliar Costo Histórico'!P:P) -> 0 | F17: =SUMIF('Auxiliar Costo Histórico'!F:F,'Movimiento por Cta.'!A17,'Auxiliar Costo Histórico'!O:O) -> 0 | G17: =SUMIFS('Auxiliar Costo Histórico'!N:N,'Auxiliar Costo Histórico'!N:N,"<0",'Auxiliar Costo Histórico'!F:F,'Movimiento por Cta.'!A17) -> 0 | H17: 55,280,813 | J17: =VLOOKUP(A17,Balanza!A:C,3,FALSE) -> 55,280,790 | L17: 22 | N17: =VLOOKUP(A17,Maestro!A:C,3,FALSE) -> Piezas y accesorios
A18: 121700100 | B18: ELECTRODOMESTICOS | C18: =SUMIF('Auxiliar Costo Histórico'!F:F,'Movimiento por Cta.'!A18,'Auxiliar Costo Histórico'!M:M)+(VLOOKUP("121700500",Balanza!A:D,4,FALSE))+3958151.44 -> 25,534,958 | D18: =SUMIFS('Auxiliar Costo Histórico'!N:N,'Auxiliar Costo Histórico'!N:N,">0",'Auxiliar Costo Histórico'!F:F,'Movimiento por Cta.'!A18)+(VLOOKUP("121700500",Balanza!A:E,5,FALSE))-3958151.44 -> 2,237,084 | E18: =SUMIF('Auxiliar Costo Histórico'!F:F,'Movimiento por Cta.'!A18,'Auxiliar Costo Histórico'!P:P) -> 0 | F18: =SUMIF('Auxiliar Costo Histórico'!F:F,'Movimiento por Cta.'!A18,'Auxiliar Costo Histórico'!O:O) -> 0 | G18: =SUMIFS('Auxiliar Costo Histórico'!N:N,'Auxiliar Costo Histórico'!N:N,"<0",'Auxiliar Costo Histórico'!F:F,'Movimiento por Cta.'!A18) -> 0 | H18: 27,772,042 | J18: =VLOOKUP(A18,Balanza!A:C,3,FALSE) -> 27,772,041 | L18: 1 | N18: =VLOOKUP(A18,Maestro!A:C,3,FALSE) -> Equipos de transporte y otros activos
A19: 121800100 | B19: MOBILIARIOS DE ALOJAMIENTO | C19: =SUMIF('Auxiliar Costo Histórico'!F:F,'Movimiento por Cta.'!A19,'Auxiliar Costo Histórico'!M:M) -> 4,519,363 | D19: =SUMIFS('Auxiliar Costo Histórico'!N:N,'Auxiliar Costo Histórico'!N:N,">0",'Auxiliar Costo Histórico'!F:F,'Movimiento por Cta.'!A19) -> 1,251,371 | E19: =SUMIF('Auxiliar Costo Histórico'!F:F,'Movimiento por Cta.'!A19,'Auxiliar Costo Histórico'!P:P) -> 0 | F19: =SUMIF('Auxiliar Costo Histórico'!F:F,'Movimiento por Cta.'!A19,'Auxiliar Costo Histórico'!O:O) -> 0 | G19: =SUMIFS('Auxiliar Costo Histórico'!N:N,'Auxiliar Costo Histórico'!N:N,"<0",'Auxiliar Costo Histórico'!F:F,'Movimiento por Cta.'!A19) -> 0 | H19: 5,770,734 | J19: =VLOOKUP(A19,Balanza!A:C,3,FALSE) -> 5,770,734 | L19: (0) | N19: =VLOOKUP(A19,Maestro!A:C,3,FALSE) -> Mobiliario y equipos de oficina
A20: 121900100 | B20: EQUI. Y MAQ. DE ELEVACION | C20: =SUMIF('Auxiliar Costo Histórico'!F:F,'Movimiento por Cta.'!A20,'Auxiliar Costo Histórico'!M:M) -> 10,470,250 | D20: =SUMIFS('Auxiliar Costo Histórico'!N:N,'Auxiliar Costo Histórico'!N:N,">0",'Auxiliar Costo Histórico'!F:F,'Movimiento por Cta.'!A20) -> 5 | E20: =SUMIF('Auxiliar Costo Histórico'!F:F,'Movimiento por Cta.'!A20,'Auxiliar Costo Histórico'!P:P) -> 0 | F20: =SUMIF('Auxiliar Costo Histórico'!F:F,'Movimiento por Cta.'!A20,'Auxiliar Costo Histórico'!O:O) -> 0 | G20: =SUMIFS('Auxiliar Costo Histórico'!N:N,'Auxiliar Costo Histórico'!N:N,"<0",'Auxiliar Costo Histórico'!F:F,'Movimiento por Cta.'!A20) -> 0 | H20: =SUM(C20:G20) -> 10,470,255 | J20: =VLOOKUP(A20,Balanza!A:C,3,FALSE) -> 10,470,255 | L20: 0 | N20: =VLOOKUP(A20,Maestro!A:C,3,FALSE) -> Equipos de transporte y otros activos
A21: 122200100 | B21: CAMARAS Y VIDEOS | C21: =SUMIF('Auxiliar Costo Histórico'!F:F,'Movimiento por Cta.'!A21,'Auxiliar Costo Histórico'!M:M) -> 12,620,824 | D21: =SUMIFS('Auxiliar Costo Histórico'!N:N,'Auxiliar Costo Histórico'!N:N,">0",'Auxiliar Costo Histórico'!F:F,'Movimiento por Cta.'!A21) -> 0 | E21: =SUMIF('Auxiliar Costo Histórico'!F:F,'Movimiento por Cta.'!A21,'Auxiliar Costo Histórico'!P:P) -> 0 | F21: =SUMIF('Auxiliar Costo Histórico'!F:F,'Movimiento por Cta.'!A21,'Auxiliar Costo Histórico'!O:O) -> (34,810) | G21: =SUMIFS('Auxiliar Costo Histórico'!N:N,'Auxiliar Costo Histórico'!N:N,"<0",'Auxiliar Costo Histórico'!F:F,'Movimiento por Cta.'!A21) -> 0 | H21: 12,586,014 | J21: =VLOOKUP(A21,Balanza!A:C,3,FALSE) -> 12,586,014 | L21: 0 | N21: =VLOOKUP(A21,Maestro!A:C,3,FALSE) -> Equipos de transporte y otros activos
A22: 122400100 | B22: ALTA PANELES ELECTRICOS Y AFINES | C22: =SUMIF('Auxiliar Costo Histórico'!F:F,'Movimiento por Cta.'!A22,'Auxiliar Costo Histórico'!M:M)+(VLOOKUP("122400500",Balanza!A:D,4,FALSE)) -> 730,056,613 | D22: =SUMIFS('Auxiliar Costo Histórico'!N:N,'Auxiliar Costo Histórico'!N:N,">0",'Auxiliar Costo Histórico'!F:F,'Movimiento por Cta.'!A22)+(VLOOKUP("122400500",Balanza!A:E,5,FALSE)) -> 8 | E22: =SUMIF('Auxiliar Costo Histórico'!F:F,'Movimiento por Cta.'!A22,'Auxiliar Costo Histórico'!P:P) -> 0 | F22: =SUMIF('Auxiliar Costo Histórico'!F:F,'Movimiento por Cta.'!A22,'Auxiliar Costo Histórico'!O:O) -> 0 | G22: =SUMIFS('Auxiliar Costo Histórico'!N:N,'Auxiliar Costo Histórico'!N:N,"<0",'Auxiliar Costo Histórico'!F:F,'Movimiento por Cta.'!A22) -> 0 | H22: 730,056,621 | J22: =VLOOKUP(A22,Balanza!A:C,3,FALSE) -> 730,056,618 | L22: 3 | N22: =VLOOKUP(A22,Maestro!A:C,3,FALSE) -> Equipos de transporte y otros activos
A23: 122500100 | B23: EQ. DE DEFENSA Y SEGURIDAD (CAMARA DE VIGILANCIA) | C23: =SUMIF('Auxiliar Costo Histórico'!F:F,'Movimiento por Cta.'!A23,'Auxiliar Costo Histórico'!M:M)+(VLOOKUP("122500500",Balanza!A:D,4,FALSE)) -> 2,073,034 | D23: =SUMIFS('Auxiliar Costo Histórico'!N:N,'Auxiliar Costo Histórico'!N:N,">0",'Auxiliar Costo Histórico'!F:F,'Movimiento por Cta.'!A23)+(VLOOKUP("122500500",Balanza!A:E,5,FALSE)) -> 6 | E23: =SUMIF('Auxiliar Costo Histórico'!F:F,'Movimiento por Cta.'!A23,'Auxiliar Costo Histórico'!P:P) -> 0 | F23: =SUMIF('Auxiliar Costo Histórico'!F:F,'Movimiento por Cta.'!A23,'Auxiliar Costo Histórico'!O:O) -> (59,000) | G23: =SUMIFS('Auxiliar Costo Histórico'!N:N,'Auxiliar Costo Histórico'!N:N,"<0",'Auxiliar Costo Histórico'!F:F,'Movimiento por Cta.'!A23) -> 0 | H23: 2,014,040 | J23: =VLOOKUP(A23,Balanza!A:C,3,FALSE) -> 2,014,040 | L23: 0 | N23: =VLOOKUP(A23,Maestro!A:C,3,FALSE) -> Equipos de transporte y otros activos
A24: 121600100 | B24: CARRETERAS, CAMINOS VECINALES, CONST. MENORES | C24: =SUMIF('Auxiliar Costo Histórico'!F:F,'Movimiento por Cta.'!A24,'Auxiliar Costo Histórico'!M:M) -> 55,067,647 | D24: =SUMIFS('Auxiliar Costo Histórico'!N:N,'Auxiliar Costo Histórico'!N:N,">0",'Auxiliar Costo Histórico'!F:F,'Movimiento por Cta.'!A24) -> 0 | E24: =SUMIF('Auxiliar Costo Histórico'!F:F,'Movimiento por Cta.'!A24,'Auxiliar Costo Histórico'!P:P) -> 0 | F24: =SUMIF('Auxiliar Costo Histórico'!F:F,'Movimiento por Cta.'!A24,'Auxiliar Costo Histórico'!O:O) -> 0 | G24: =SUMIFS('Auxiliar Costo Histórico'!N:N,'Auxiliar Costo Histórico'!N:N,"<0",'Auxiliar Costo Histórico'!F:F,'Movimiento por Cta.'!A24) -> 0 | H24: 55,067,647 | J24: 55,067,647 | L24: 0 | N24: =VLOOKUP(A24,Maestro!A:C,3,FALSE) -> Construcción en proceso
A25: 121600100 | B25: CARRETERAS, CAMINOS VECINALES, CONST. MENORES | C25: =SUMIF('Auxiliar Costo Histórico'!F:F,'Movimiento por Cta.'!A24,'Auxiliar Costo Histórico'!T:T) -> (55,067,647) | D25: =SUMIF('Auxiliar Costo Histórico'!F:F,'Movimiento por Cta.'!A24,'Auxiliar Costo Histórico'!U:U) -> 0 | E25: 0 | F25: 0 | G25: 0 | H25: =SUM(C25:G25) -> (55,067,647) | J25: (55,067,647) | L25: =H25-J25 -> 0 | N25: =VLOOKUP(A25,Maestro!A:C,3,FALSE) -> Construcción en proceso
B26: Sub - Total Propiedades, Plantas y Equipos | C26: =SUM(C3:C25) -> 94,451,116,725 | D26: 21,723,387 | E26: 0 | F26: (93,810) | G26: 0 | H26: 94,472,746,303 | J26: =SUM(J3:J25) -> 94,472,725,528 | L26: =SUM(L3:L25) -> 20,775
A28: 123100000 | B28: CONSTRUCCIONES EN PROCESO | C28: =SUMIF('Auxiliar Costo Histórico'!F:F,'Movimiento por Cta.'!A28,'Auxiliar Costo Histórico'!M:M) -> 20,358,894,879 | D28: =SUMIF('Auxiliar Costo Histórico'!F:F,'Movimiento por Cta.'!A28,'Auxiliar Costo Histórico'!N:N) -> 11,848,535,102 | E28: =SUMIF('Auxiliar Costo Histórico'!F:F,'Movimiento por Cta.'!A28,'Auxiliar Costo Histórico'!P:P) -> 0 | F28: =SUMIF('Auxiliar Costo Histórico'!F:F,'Movimiento por Cta.'!A28,'Auxiliar Costo Histórico'!O:O) -> 0 | G28: 0 | H28: =SUM(C28:G28) -> 32,207,429,982 | J28: =VLOOKUP(A28,Balanza!A:C,3,FALSE) -> 32,207,429,982 | L28: =H28-J28 -> 0 | N28: =VLOOKUP(A28,Maestro!A:C,3,FALSE) -> Construcción en proceso
A29: 123100511 | B29: ACTIVO EN CURSO | C29: 50,371,752 | D29: =SUMIF('Auxiliar Costo Histórico'!F:F,'Movimiento por Cta.'!A29,'Auxiliar Costo Histórico'!N:N) -> 0 | H29: =SUM(C29:G29) -> 50,371,752 | J29: =VLOOKUP(A29,Balanza!A:C,3,FALSE) -> 50,371,752 | L29: =H29-J29 -> 0 | N29: =VLOOKUP(A29,Maestro!A:C,3,FALSE) -> Construcción en proceso
A30: 123100300 | B30: 123100300 COMPENSACION ANTCIPO CONSTRUCCION EN PROCESO | C30: =VLOOKUP(A30,Balanza!A:D,4,FALSE) -> (3,162,606,543) | D30: (509,575,820) | E30: 0 | F30: 0 | G30: 0 | H30: =SUM(C30:G30) -> (3,672,182,364) | J30: =VLOOKUP(A30,Balanza!A:C,3,FALSE) -> (3,672,182,364) | L30: =H30-J30 -> 0 | N30: =VLOOKUP(A30,Maestro!A:C,3,FALSE) -> Construcción en proceso
B31: Sub - Total Construcciones en Procesos | C31: =SUM(C28:C30) -> 17,246,660,088 | D31: =SUM(D28:D30) -> 11,338,959,282 | E31: 0 | F31: 0 | G31: 0 | H31: 28,585,619,370 | J31: 28,585,619,370 | L31: 0
C33: =C26+C31 -> 111,697,776,814 | D33: =D26+D31 -> 11,360,682,670 | E33: 0 | F33: (93,810) | G33: 0 | H33: 123,058,365,673 | J33: 123,058,344,898 | L33: 20,775
C36: Valores Revaluados Periodo comprendido desde el 1 de Enero al 31 de Diciembre 2024
C37: Valor Adq. Inicial Al 1-Enero-2024 | D37: Adiciones | E37: Transferencias | F37: Retiros | G37: Ajustes | H37: Valor Actual
A38: 120100510 | B38: TERRENO Y SERVIDUMBRE DE PASO REVALUADO | C38: =SUMIF('Auxiliar Act. Revaluados'!G:G,'Movimiento por Cta.'!A38,'Auxiliar Act. Revaluados'!K:K)+'Auxiliar Act. Deterioro'!J12+'Auxiliar Act. Deterioro'!J36 -> 1,825,588,822 | D38: 0 | E38: 0 | F38: 0 | G38: 0 | H38: =SUM(C38:G38) -> 1,825,588,822 | J38: =VLOOKUP(A38,Balanza!A:C,3,FALSE) -> 1,825,588,822 | L38: =H38-J38 -> (0) | N38: =VLOOKUP(A38,Maestro!A:C,3,FALSE) -> Terreno
A39: 120200510 | B39: REVALUACION EDIFICIO | C39: =SUMIF('Auxiliar Act. Revaluados'!G:G,'Movimiento por Cta.'!A39,'Auxiliar Act. Revaluados'!K:K)+'Auxiliar Act. Deterioro'!J13+'Auxiliar Act. Deterioro'!J37 -> 9,617,399,674 | D39: 0 | E39: 0 | F39: 0 | G39: 0 | H39: 9,617,399,674 | J39: =VLOOKUP(A39,Balanza!A:C,3,FALSE) -> 9,617,399,674 | L39: =H39-J39 -> 0 | N39: =VLOOKUP(A39,Maestro!A:C,3,FALSE) -> Edificaciones
A40: 120400510 | B40: REVALUACION HIDROTURBINA MECANICA | C40: =SUMIF('Auxiliar Act. Revaluados'!G:G,'Movimiento por Cta.'!A40,'Auxiliar Act. Revaluados'!K:K)+'Auxiliar Act. Deterioro'!J14+'Auxiliar Act. Deterioro'!J38 -> 724,018,908 | D40: 0 | E40: 0 | F40: 0 | G40: 0 | H40: 724,018,908 | J40: =VLOOKUP(A40,Balanza!A:C,3,FALSE) -> 724,018,908 | L40: 0 | N40: =VLOOKUP(A40,Maestro!A:C,3,FALSE) -> Presas y equipos de subestación
A41: 120500510 | B41: REVALUACION GENERADORA ELECTRICA | C41: =SUMIF('Auxiliar Act. Revaluados'!G:G,'Movimiento por Cta.'!A41,'Auxiliar Act. Revaluados'!K:K)+'Auxiliar Act. Deterioro'!J15+'Auxiliar Act. Deterioro'!J39 -> 460,389,579 | D41: 0 | E41: 0 | F41: 0 | G41: 0 | H41: 460,389,579 | J41: =VLOOKUP(A41,Balanza!A:C,3,FALSE) -> 460,389,579 | L41: 0 | N41: =VLOOKUP(A41,Maestro!A:C,3,FALSE) -> Presas y equipos de subestación
A42: 120600510 | B42: REVALUACION MAQ. Y EQUIPO MECANICO | C42: =SUMIF('Auxiliar Act. Revaluados'!G:G,'Movimiento por Cta.'!A42,'Auxiliar Act. Revaluados'!K:K)+'Auxiliar Act. Deterioro'!J16+'Auxiliar Act. Deterioro'!J40 -> 278,530,889 | D42: 0 | E42: 0 | F42: 0 | G42: 0 | H42: 278,530,889 | J42: =VLOOKUP(A42,Balanza!A:C,3,FALSE) -> 278,530,889 | L42: 0 | N42: =VLOOKUP(A42,Maestro!A:C,3,FALSE) -> Equipos de transporte y otros activos
A43: 120700510 | B43: REVALUACION MAQUINARIAS Y EQUIPOS ELECT | C43: =SUMIF('Auxiliar Act. Revaluados'!G:G,'Movimiento por Cta.'!A43,'Auxiliar Act. Revaluados'!K:K)+'Auxiliar Act. Deterioro'!J17+'Auxiliar Act. Deterioro'!J41 -> 66,322,011 | D43: 0 | E43: 0 | F43: 0 | G43: 0 | H43: 66,322,011 | J43: =VLOOKUP(A43,Balanza!A:C,3,FALSE) -> 66,322,011 | L43: 0 | N43: =VLOOKUP(A43,Maestro!A:C,3,FALSE) -> Equipos de transporte y otros activos
A44: 120800510 | B44: REVALUACION DE MOBILIARIO Y EQUIPO DE O | C44: =SUMIF('Auxiliar Act. Revaluados'!G:G,'Movimiento por Cta.'!A44,'Auxiliar Act. Revaluados'!K:K)+'Auxiliar Act. Deterioro'!J18+'Auxiliar Act. Deterioro'!J42 -> 42,703,248 | D44: 0 | E44: 0 | F44: 0 | G44: 0 | H44: =SUM(C44:G44) -> 42,703,248 | J44: =VLOOKUP(A44,Balanza!A:C,3,FALSE) -> 42,703,248 | L44: 0 | N44: =VLOOKUP(A44,Maestro!A:C,3,FALSE) -> Mobiliario y equipos de oficina
A45: 120900510 | B45: REVALUACIÓN EQUIPO DE TRANSPORTE | C45: =SUMIF('Auxiliar Act. Revaluados'!G:G,'Movimiento por Cta.'!A45,'Auxiliar Act. Revaluados'!K:K)+'Auxiliar Act. Deterioro'!J19+'Auxiliar Act. Deterioro'!J43 -> 116,034,772 | D45: 0 | E45: 0 | F45: 0 | G45: 0 | H45: 116,034,772 | J45: =VLOOKUP(A45,Balanza!A:C,3,FALSE) -> 116,034,772 | L45: 0 | N45: =VLOOKUP(A45,Maestro!A:C,3,FALSE) -> Equipos de transporte y otros activos
A46: 121100510 | B46: REV.EQ. DE COMPUTOS | C46: =SUMIF('Auxiliar Act. Revaluados'!G:G,'Movimiento por Cta.'!A46,'Auxiliar Act. Revaluados'!K:K)+'Auxiliar Act. Deterioro'!J20+'Auxiliar Act. Deterioro'!J44 -> 30,715,031 | D46: 0 | E46: 0 | F46: 0 | G46: 0 | H46: 30,715,031 | J46: =VLOOKUP(A46,Balanza!A:C,3,FALSE) -> 30,715,031 | L46: 0 | N46: =VLOOKUP(A46,Maestro!A:C,3,FALSE) -> Equipos de transporte y otros activos
A47: 121110510 | B47: REVALUACION EQUIPOS AUDIOVISUALES | C47: =SUMIF('Auxiliar Act. Revaluados'!G:G,'Movimiento por Cta.'!A47,'Auxiliar Act. Revaluados'!K:K)+'Auxiliar Act. Deterioro'!J21+'Auxiliar Act. Deterioro'!J45 -> 1,138,990 | D47: 0 | E47: 0 | F47: 0 | G47: 0 | H47: 1,138,990 | J47: =VLOOKUP(A47,Balanza!A:C,3,FALSE) -> 1,138,990 | L47: 0 | N47: =VLOOKUP(A47,Maestro!A:C,3,FALSE) -> Equipos de transporte y otros activos
A48: 121200510 | B48: REVALUACION EQUIPO DE COMUNICACIONES | C48: =SUMIF('Auxiliar Act. Revaluados'!G:G,'Movimiento por Cta.'!A48,'Auxiliar Act. Revaluados'!K:K)+'Auxiliar Act. Deterioro'!J22+'Auxiliar Act. Deterioro'!J46 -> 7,204,425 | D48: 0 | E48: 0 | F48: 0 | G48: 0 | H48: 7,204,425 | J48: =VLOOKUP(A48,Balanza!A:C,3,FALSE) -> 7,204,425 | L48: 0 | N48: =VLOOKUP(A48,Maestro!A:C,3,FALSE) -> Equipos de transporte y otros activos
A49: 121300510 | B49: REVALUACION DE HERRAMIENTAS | C49: =SUMIF('Auxiliar Act. Revaluados'!G:G,'Movimiento por Cta.'!A49,'Auxiliar Act. Revaluados'!K:K)+'Auxiliar Act. Deterioro'!J23+'Auxiliar Act. Deterioro'!J47 -> 21,777,127 | D49: 0 | E49: 0 | F49: 0 | G49: 0 | H49: 21,777,127 | J49: =VLOOKUP(A49,Balanza!A:C,3,FALSE) -> 21,777,127 | L49: 0 | N49: =VLOOKUP(A49,Maestro!A:C,3,FALSE) -> Equipos de transporte y otros activos
A50: 121400510 | B50: REVALUACION EQUIPO DE SUB-ESTACION | C50: =SUMIF('Auxiliar Act. Revaluados'!G:G,'Movimiento por Cta.'!A50,'Auxiliar Act. Revaluados'!K:K)+'Auxiliar Act. Deterioro'!J24+'Auxiliar Act. Deterioro'!J48 -> 273,427,208 | D50: 0 | E50: 0 | F50: 0 | G50: 0 | H50: 273,427,208 | J50: =VLOOKUP(A50,Balanza!A:C,3,FALSE) -> 273,427,208 | L50: 0 | N50: =VLOOKUP(A50,Maestro!A:C,3,FALSE) -> Presas y equipos de subestación
A51: 121500510 | B51: REVALUACIÓN EQUIPOS MIESCELANEOS | C51: =SUMIF('Auxiliar Act. Revaluados'!G:G,'Movimiento por Cta.'!A51,'Auxiliar Act. Revaluados'!K:K)+'Auxiliar Act. Deterioro'!J25+'Auxiliar Act. Deterioro'!J49 -> 12,272,662 | D51: 0 | E51: 0 | F51: 0 | G51: 0 | H51: =SUM(C51:G51) -> 12,272,662 | J51: =VLOOKUP(A51,Balanza!A:C,3,FALSE) -> 12,272,662 | L51: 0 | N51: =VLOOKUP(A51,Maestro!A:C,3,FALSE) -> Piezas y accesorios
A52: 121700510 | B52: REVALUACION ELECTRODOMESTICOS | C52: =SUMIF('Auxiliar Act. Revaluados'!G:G,'Movimiento por Cta.'!A52,'Auxiliar Act. Revaluados'!K:K)+'Auxiliar Act. Deterioro'!J26+'Auxiliar Act. Deterioro'!J50 -> 14,940,017 | D52: 0 | E52: 0 | F52: 0 | G52: 0 | H52: =SUM(C52:G52) -> 14,940,017 | J52: =VLOOKUP(A52,Balanza!A:C,3,FALSE) -> 14,940,017 | L52: 0 | N52: =VLOOKUP(A52,Maestro!A:C,3,FALSE) -> Equipos de transporte y otros activos
A53: 121800510 | B53: REVALUACION MOBILIARIO Y ALOJAMIENTO | C53: =SUMIF('Auxiliar Act. Revaluados'!G:G,'Movimiento por Cta.'!A53,'Auxiliar Act. Revaluados'!K:K)+'Auxiliar Act. Deterioro'!J27+'Auxiliar Act. Deterioro'!J51 -> 1,163,209 | D53: 0 | E53: 0 | F53: 0 | G53: 0 | H53: =SUM(C53:G53) -> 1,163,209 | J53: =VLOOKUP(A53,Balanza!A:C,3,FALSE) -> 1,163,209 | L53: 0 | N53: =VLOOKUP(A53,Maestro!A:C,3,FALSE) -> Mobiliario y equipos de oficina
A54: 122200510 | B54: REVALUACION CAMARAS Y VIDEOS | C54: =SUMIF('Auxiliar Act. Revaluados'!G:G,'Movimiento por Cta.'!A54,'Auxiliar Act. Revaluados'!K:K)+'Auxiliar Act. Deterioro'!J28+'Auxiliar Act. Deterioro'!J52 -> 1,948,436 | D54: 0 | E54: 0 | F54: 0 | G54: 0 | H54: =SUM(C54:G54) -> 1,948,436 | J54: =VLOOKUP(A54,Balanza!A:C,3,FALSE) -> 1,948,436 | L54: 0 | N54: =VLOOKUP(A54,Maestro!A:C,3,FALSE) -> Equipos de transporte y otros activos
A55: 122400510 | B55: REVALUACION PANELES ELECTRICOS Y AFINES | C55: =SUMIF('Auxiliar Act. Revaluados'!G:G,'Movimiento por Cta.'!A55,'Auxiliar Act. Revaluados'!K:K)+'Auxiliar Act. Deterioro'!J29+'Auxiliar Act. Deterioro'!J53 -> 114,990,168 | D55: 0 | E55: 0 | F55: 0 | G55: 0 | H55: =SUM(C55:G55) -> 114,990,168 | J55: =VLOOKUP(A55,Balanza!A:C,3,FALSE) -> 114,990,168 | L55: 0 | N55: =VLOOKUP(A55,Maestro!A:C,3,FALSE) -> Equipos de transporte y otros activos
B56: Sub - Total Propiedades, Plantas y Equipos | C56: =SUM(C38:C55) -> 13,610,565,177 | D56: =SUM(D38:D55) -> 0 | E56: 0 | F56: 0 | G56: 0 | H56: 13,610,565,177 | J56: 13,610,565,177 | L56: (0)
C58: DETERIORO
C59: Valor Inicial Al 1-Enero-2024 | D59: Adiciones | E59: Transferencias | F59: Retiros | G59: Ajustes | H59: Valor Actual
A60: 120200600 | B60: DETERIORO EDIFICIO | C60: =SUMIF('Auxiliar Act. Deterioro'!G:G,'Movimiento por Cta.'!A60,'Auxiliar Act. Deterioro'!J:J) -> (327,780,324) | D60: 0 | E60: 0 | F60: 0 | G60: 0 | H60: =SUM(C60:G60) -> (327,780,324) | J60: =VLOOKUP(A60,Balanza!A:C,3,FALSE) -> (327,780,324) | L60: =H60-J60 -> 0 | N60: =VLOOKUP(A60,Maestro!A:C,3,FALSE) -> Edificaciones
A61: 120400600 | B61: DETERIORO HIDROTURBINA MECANICA | C61: =SUMIF('Auxiliar Act. Deterioro'!G:G,'Movimiento por Cta.'!A61,'Auxiliar Act. Deterioro'!J:J) -> (59,210,562) | D61: 0 | E61: 0 | F61: 0 | G61: 0 | H61: =SUM(C61:G61) -> (59,210,562) | J61: =VLOOKUP(A61,Balanza!A:C,3,FALSE) -> (59,210,562) | L61: 0 | N61: =VLOOKUP(A61,Maestro!A:C,3,FALSE) -> Presas y equipos de subestación
A62: 120500600 | B62: DETERIORO GENERADORA ELECTRICA | C62: =SUMIF('Auxiliar Act. Deterioro'!G:G,'Movimiento por Cta.'!A62,'Auxiliar Act. Deterioro'!J:J) -> (331,678,880) | D62: 0 | E62: 0 | F62: 0 | G62: 0 | H62: =SUM(C62:G62) -> (331,678,880) | J62: =VLOOKUP(A62,Balanza!A:C,3,FALSE) -> (331,678,880) | L62: 0 | N62: =VLOOKUP(A62,Maestro!A:C,3,FALSE) -> Presas y equipos de subestación
A63: 120600600 | B63: DETERIORO MAQUINARIA Y EQUIPO MECANICO | C63: =SUMIF('Auxiliar Act. Deterioro'!G:G,'Movimiento por Cta.'!A63,'Auxiliar Act. Deterioro'!J:J) -> (1,890,474) | D63: 0 | E63: 0 | F63: 0 | G63: 0 | H63: =SUM(C63:G63) -> (1,890,474) | J63: =VLOOKUP(A63,Balanza!A:C,3,FALSE) -> (1,890,474) | L63: 0 | N63: =VLOOKUP(A63,Maestro!A:C,3,FALSE) -> Equipos de transporte y otros activos
A64: 120700600 | B64: DETERIORO MAQUINARIAS Y EQUIPOS ELECTRI | C64: =SUMIF('Auxiliar Act. Deterioro'!G:G,'Movimiento por Cta.'!A64,'Auxiliar Act. Deterioro'!J:J) -> (332,591,218) | D64: 0 | E64: 0 | F64: 0 | G64: 0 | H64: =SUM(C64:G64) -> (332,591,218) | J64: =VLOOKUP(A64,Balanza!A:C,3,FALSE) -> (332,591,218) | L64: 0 | N64: =VLOOKUP(A64,Maestro!A:C,3,FALSE) -> Equipos de transporte y otros activos
A65: 120800600 | B65: DETERIORO MOBILIARIOS Y EQUIPOS DE OFIN | C65: =SUMIF('Auxiliar Act. Deterioro'!G:G,'Movimiento por Cta.'!A65,'Auxiliar Act. Deterioro'!J:J) -> (501,582) | D65: 0 | E65: 0 | F65: 0 | G65: 0 | H65: =SUM(C65:G65) -> (501,582) | J65: =VLOOKUP(A65,Balanza!A:C,3,FALSE) -> (501,582) | L65: 0 | N65: =VLOOKUP(A65,Maestro!A:C,3,FALSE) -> Mobiliario y equipos de oficina
A66: 120900600 | B66: DETERIORO EQUIPOS DE TRANSPORTE | C66: =SUMIF('Auxiliar Act. Deterioro'!G:G,'Movimiento por Cta.'!A66,'Auxiliar Act. Deterioro'!J:J) -> (117,883) | D66: 0 | E66: 0 | F66: 0 | G66: 0 | H66: (117,883) | J66: =VLOOKUP(A66,Balanza!A:C,3,FALSE) -> (117,883) | L66: 0 | N66: =VLOOKUP(A66,Maestro!A:C,3,FALSE) -> Equipos de transporte y otros activos
A67: 121100600 | B67: DETERIORO EQUIPOS DE COMPUTO | C67: =SUMIF('Auxiliar Act. Deterioro'!G:G,'Movimiento por Cta.'!A67,'Auxiliar Act. Deterioro'!J:J) -> (438,185) | D67: 0 | E67: 0 | F67: 0 | G67: 0 | H67: (438,185) | J67: =VLOOKUP(A67,Balanza!A:C,3,FALSE) -> (438,185) | L67: 0 | N67: =VLOOKUP(A67,Maestro!A:C,3,FALSE) -> Equipos de transporte y otros activos
A68: 121110600 | B68: DETERIORO EQUIPOS AUDIOVISUALES | C68: =SUMIF('Auxiliar Act. Deterioro'!G:G,'Movimiento por Cta.'!A68,'Auxiliar Act. Deterioro'!J:J) -> (38,917) | D68: 0 | E68: 0 | F68: 0 | G68: 0 | H68: (38,917) | J68: =VLOOKUP(A68,Balanza!A:C,3,FALSE) -> (38,917) | L68: 0 | N68: =VLOOKUP(A68,Maestro!A:C,3,FALSE) -> Equipos de transporte y otros activos
A69: 121200600 | B69: DETERIORO EQUIPOS DE COMUNICACIOJN | C69: =SUMIF('Auxiliar Act. Deterioro'!G:G,'Movimiento por Cta.'!A69,'Auxiliar Act. Deterioro'!J:J) -> (1,553,699) | D69: 0 | E69: 0 | F69: 0 | G69: 0 | H69: (1,553,699) | J69: =VLOOKUP(A69,Balanza!A:C,3,FALSE) -> (1,553,699) | L69: 0 | N69: =VLOOKUP(A69,Maestro!A:C,3,FALSE) -> Equipos de transporte y otros activos
A70: 121300600 | B70: DETERIORO HERRAMIENTAS Y EQUIPOS DE TR | C70: =SUMIF('Auxiliar Act. Deterioro'!G:G,'Movimiento por Cta.'!A70,'Auxiliar Act. Deterioro'!J:J) -> (1,540,765) | D70: 0 | E70: 0 | F70: 0 | G70: 0 | H70: (1,540,765) | J70: =VLOOKUP(A70,Balanza!A:C,3,FALSE) -> (1,540,765) | L70: 0 | N70: =VLOOKUP(A70,Maestro!A:C,3,FALSE) -> Equipos de transporte y otros activos
A71: 121400600 | B71: DETERIORO EQUIPO DE SUB-ESTACION | C71: =SUMIF('Auxiliar Act. Deterioro'!G:G,'Movimiento por Cta.'!A71,'Auxiliar Act. Deterioro'!J:J) -> (8,346,331) | D71: 0 | E71: 0 | F71: 0 | G71: 0 | H71: (8,346,331) | J71: =VLOOKUP(A71,Balanza!A:C,3,FALSE) -> (8,346,331) | L71: 0 | N71: =VLOOKUP(A71,Maestro!A:C,3,FALSE) -> Presas y equipos de subestación
A72: 121500600 | B72: DETERIORO EQUIPOS MISCELANEOS | C72: =SUMIF('Auxiliar Act. Deterioro'!G:G,'Movimiento por Cta.'!A72,'Auxiliar Act. Deterioro'!J:J) -> (578,470) | D72: 0 | E72: 0 | F72: 0 | G72: 0 | H72: (578,470) | J72: =VLOOKUP(A72,Balanza!A:C,3,FALSE) -> (578,470) | L72: 0 | N72: =VLOOKUP(A72,Maestro!A:C,3,FALSE) -> Piezas y accesorios
A73: 121700600 | B73: DETERIORO ELECTRODOMESTICOS | C73: =SUMIF('Auxiliar Act. Deterioro'!G:G,'Movimiento por Cta.'!A73,'Auxiliar Act. Deterioro'!J:J) -> (440,454) | D73: 0 | E73: 0 | F73: 0 | G73: 0 | H73: (440,454) | J73: =VLOOKUP(A73,Balanza!A:C,3,FALSE) -> (440,454) | L73: 0 | N73: =VLOOKUP(A73,Maestro!A:C,3,FALSE) -> Equipos de transporte y otros activos
A74: 121800600 | B74: DETERIORO MOILIARIOS DE ALOJAMIENTO | C74: =SUMIF('Auxiliar Act. Deterioro'!G:G,'Movimiento por Cta.'!A74,'Auxiliar Act. Deterioro'!J:J) -> (163,563) | D74: 0 | E74: 0 | F74: 0 | G74: 0 | H74: (163,563) | J74: =VLOOKUP(A74,Balanza!A:C,3,FALSE) -> (163,563) | L74: 0 | N74: =VLOOKUP(A74,Maestro!A:C,3,FALSE) -> Mobiliario y equipos de oficina
A75: 122200600 | B75: DETERIORO CAMARAS Y VIDEOS | C75: =SUMIF('Auxiliar Act. Deterioro'!G:G,'Movimiento por Cta.'!A75,'Auxiliar Act. Deterioro'!J:J) -> (108,422) | D75: 0 | E75: 0 | F75: 0 | G75: 0 | H75: (108,422) | J75: =VLOOKUP(A75,Balanza!A:C,3,FALSE) -> (108,422) | L75: 0 | N75: =VLOOKUP(A75,Maestro!A:C,3,FALSE) -> Equipos de transporte y otros activos
A76: 122400600 | B76: DETERIORO PANELES ELECTRICOS Y AFINES | C76: =SUMIF('Auxiliar Act. Deterioro'!G:G,'Movimiento por Cta.'!A76,'Auxiliar Act. Deterioro'!J:J) -> (1,857,381) | D76: 0 | E76: 0 | F76: 0 | G76: 0 | H76: (1,857,381) | J76: =VLOOKUP(A76,Balanza!A:C,3,FALSE) -> (1,857,381) | L76: 0 | N76: =VLOOKUP(A76,Maestro!A:C,3,FALSE) -> Equipos de transporte y otros activos
B77: Sub - Total Propiedades, Plantas y Equipos | C77: =SUM(C60:C76) -> (1,068,837,111) | D77: 0 | E77: 0 | F77: 0 | G77: 0 | H77: (1,068,837,111) | J77: (1,068,837,111) | L77: =SUM(L60:L76) -> 0
C79: Depreciación Periodo comprendido desde el 1 de Enero al 31 de Diciembre 2024
C80: Valor Inicial Al 1-Enero-2024 | D80: Adiciones | E80: Transferencias | F80: Retiros | G80: Ajustes | H80: Depreciación Acumulada
A81: 120200200 | B81: DEPRECIACION ACUMULADA EDIFICIO | C81: =SUMIF('Auxiliar Costo Histórico'!F:F,'Movimiento por Cta.'!A4,'Auxiliar Costo Histórico'!T:T) -> (15,396,510,270) | D81: =SUMIF('Auxiliar Costo Histórico'!F:F,'Movimiento por Cta.'!A4,'Auxiliar Costo Histórico'!U:U) -> (1,922,125,576) | E81: 0 | F81: =SUMIF('Auxiliar Costo Histórico'!F:F,'Movimiento por Cta.'!A4,'Auxiliar Costo Histórico'!V:V) -> 0 | G81: 0 | H81: =SUM(C81:G81) -> (17,318,635,846) | J81: =VLOOKUP(A81,Balanza!A:C,3,FALSE) -> (17,318,635,846) | L81: =H81-J81 -> 0 | N81: =VLOOKUP(A81,Maestro!A:C,3,FALSE) -> Edificaciones
A82: 120300200 | B82: DEPRECIACION ACUMULADA PRESAS Y REPRESAS | C82: =SUMIF('Auxiliar Costo Histórico'!F:F,'Movimiento por Cta.'!A5,'Auxiliar Costo Histórico'!T:T) -> (85,095,824) | D82: =SUMIF('Auxiliar Costo Histórico'!F:F,'Movimiento por Cta.'!A5,'Auxiliar Costo Histórico'!U:U) -> (41,394,502) | E82: 0 | F82: =SUMIF('Auxiliar Costo Histórico'!F:F,'Movimiento por Cta.'!A5,'Auxiliar Costo Histórico'!V:V) -> 0 | G82: 0 | H82: (126,490,326) | J82: =VLOOKUP(A82,Balanza!A:C,3,FALSE) -> (126,490,326) | L82: =H82-J82 -> 0 | N82: =VLOOKUP(A82,Maestro!A:C,3,FALSE) -> Presas y equipos de subestación
A83: 120400200 | B83: DEPRECIACION ACUMULADA HIDROTURBINAS | C83: =SUMIF('Auxiliar Costo Histórico'!F:F,'Movimiento por Cta.'!A6,'Auxiliar Costo Histórico'!T:T) -> (2,659,674,326) | D83: =SUMIF('Auxiliar Costo Histórico'!F:F,'Movimiento por Cta.'!A6,'Auxiliar Costo Histórico'!U:U) -> (323,376,584) | E83: 0 | F83: =SUMIF('Auxiliar Costo Histórico'!F:F,'Movimiento por Cta.'!A6,'Auxiliar Costo Histórico'!V:V) -> 0 | G83: 0 | H83: (2,983,050,910) | J83: =VLOOKUP(A83,Balanza!A:C,3,FALSE) -> (2,983,050,910) | L83: 0 | N83: =VLOOKUP(A83,Maestro!A:C,3,FALSE) -> Presas y equipos de subestación
A84: 120500200 | B84: DEPRECIACION ACUMULADA GENERADORES | C84: =SUMIF('Auxiliar Costo Histórico'!F:F,'Movimiento por Cta.'!A7,'Auxiliar Costo Histórico'!T:T) -> (2,667,409,090) | D84: =SUMIF('Auxiliar Costo Histórico'!F:F,'Movimiento por Cta.'!A7,'Auxiliar Costo Histórico'!U:U) -> (330,132,394) | E84: 0 | F84: =SUMIF('Auxiliar Costo Histórico'!F:F,'Movimiento por Cta.'!A7,'Auxiliar Costo Histórico'!V:V) -> 0 | G84: 0 | H84: (2,997,541,484) | J84: =VLOOKUP(A84,Balanza!A:C,3,FALSE) -> (2,997,541,484) | L84: 0 | N84: =VLOOKUP(A84,Maestro!A:C,3,FALSE) -> Presas y equipos de subestación
A85: 120600200 | B85: DEP. ACUMULADA MAQ.Y EQ. MECANICO | C85: =SUMIF('Auxiliar Costo Histórico'!F:F,'Movimiento por Cta.'!A8,'Auxiliar Costo Histórico'!T:T) -> (389,339,227) | D85: =SUMIF('Auxiliar Costo Histórico'!F:F,'Movimiento por Cta.'!A8,'Auxiliar Costo Histórico'!U:U) -> (46,596,784) | E85: 0 | F85: =SUMIF('Auxiliar Costo Histórico'!F:F,'Movimiento por Cta.'!A8,'Auxiliar Costo Histórico'!V:V) -> 0 | G85: 0 | H85: (435,936,011) | J85: =VLOOKUP(A85,Balanza!A:C,3,FALSE) -> (435,936,011) | L85: 0 | N85: =VLOOKUP(A85,Maestro!A:C,3,FALSE) -> Equipos de transporte y otros activos
A86: 120700200 | B86: DEP. ACUMULADA MAQ.Y EQ. ELECTRICO | C86: =SUMIF('Auxiliar Costo Histórico'!F:F,'Movimiento por Cta.'!A9,'Auxiliar Costo Histórico'!T:T) -> (608,473,494) | D86: =SUMIF('Auxiliar Costo Histórico'!F:F,'Movimiento por Cta.'!A9,'Auxiliar Costo Histórico'!U:U) -> (68,802,891) | E86: 0 | F86: =SUMIF('Auxiliar Costo Histórico'!F:F,'Movimiento por Cta.'!A9,'Auxiliar Costo Histórico'!V:V) -> 0 | G86: 0 | H86: (677,276,386) | J86: =VLOOKUP(A86,Balanza!A:C,3,FALSE) -> (677,276,386) | L86: (0) | N86: =VLOOKUP(A86,Maestro!A:C,3,FALSE) -> Equipos de transporte y otros activos
A87: 120800200 | B87: DEP. ACUMULADA MOB. Y EQ. DE OFICINA | C87: =SUMIF('Auxiliar Costo Histórico'!F:F,'Movimiento por Cta.'!A10,'Auxiliar Costo Histórico'!T:T) -> (110,187,423) | D87: =SUMIF('Auxiliar Costo Histórico'!F:F,'Movimiento por Cta.'!A10,'Auxiliar Costo Histórico'!U:U) -> (4,908,614) | E87: 0 | F87: =SUMIF('Auxiliar Costo Histórico'!F:F,'Movimiento por Cta.'!A10,'Auxiliar Costo Histórico'!V:V) -> 0 | G87: 0 | H87: (115,096,037) | J87: =VLOOKUP(A87,Balanza!A:C,3,FALSE) -> (115,096,037) | L87: 0 | N87: =VLOOKUP(A87,Maestro!A:C,3,FALSE) -> Mobiliario y equipos de oficina
A88: 120900200 | B88: DEP. ACUMULADA EQ. DE TRANSPORTE | C88: =SUMIF('Auxiliar Costo Histórico'!F:F,'Movimiento por Cta.'!A11,'Auxiliar Costo Histórico'!T:T) -> (254,411,468) | D88: =SUMIF('Auxiliar Costo Histórico'!F:F,'Movimiento por Cta.'!A11,'Auxiliar Costo Histórico'!U:U) -> (89,939,409) | E88: 0 | F88: =SUMIF('Auxiliar Costo Histórico'!F:F,'Movimiento por Cta.'!A11,'Auxiliar Costo Histórico'!V:V) -> 0 | G88: 0 | H88: (344,350,877) | J88: =VLOOKUP(A88,Balanza!A:C,3,FALSE) -> (344,350,877) | L88: 0 | N88: =VLOOKUP(A88,Maestro!A:C,3,FALSE) -> Equipos de transporte y otros activos
A89: 121100200 | B89: DEP.ACUMULADA EQ. DE COMPUTOS | C89: =SUMIF('Auxiliar Costo Histórico'!F:F,'Movimiento por Cta.'!A12,'Auxiliar Costo Histórico'!T:T) -> (167,661,411) | D89: =SUMIF('Auxiliar Costo Histórico'!F:F,'Movimiento por Cta.'!A12,'Auxiliar Costo Histórico'!U:U) -> (24,301,708) | E89: 0 | F89: =SUMIF('Auxiliar Costo Histórico'!F:F,'Movimiento por Cta.'!A12,'Auxiliar Costo Histórico'!V:V) -> 0 | G89: 0 | H89: (191,963,118) | J89: =VLOOKUP(A89,Balanza!A:C,3,FALSE) -> (191,963,118) | L89: 0 | N89: =VLOOKUP(A89,Maestro!A:C,3,FALSE) -> Equipos de transporte y otros activos
A90: 121110200 | B90: DEP. ACUM. EQUIPOS AUDIO VISUALES | C90: =SUMIF('Auxiliar Costo Histórico'!F:F,'Movimiento por Cta.'!A13,'Auxiliar Costo Histórico'!T:T) -> (4,114,895) | D90: =SUMIF('Auxiliar Costo Histórico'!F:F,'Movimiento por Cta.'!A13,'Auxiliar Costo Histórico'!U:U) -> (155,319) | E90: 0 | F90: =SUMIF('Auxiliar Costo Histórico'!F:F,'Movimiento por Cta.'!A13,'Auxiliar Costo Histórico'!V:V) -> 0 | G90: 0 | H90: (4,270,214) | J90: =VLOOKUP(A90,Balanza!A:C,3,FALSE) -> (4,270,214) | L90: 0 | N90: =VLOOKUP(A90,Maestro!A:C,3,FALSE) -> Equipos de transporte y otros activos
A91: 121200200 | B91: DEP. ACUMULADA EQ. DE COMUNICACION | C91: =SUMIF('Auxiliar Costo Histórico'!F:F,'Movimiento por Cta.'!A14,'Auxiliar Costo Histórico'!T:T) -> (46,191,967) | D91: =SUMIF('Auxiliar Costo Histórico'!F:F,'Movimiento por Cta.'!A14,'Auxiliar Costo Histórico'!U:U) -> (5,847,947) | E91: 0 | F91: =SUMIF('Auxiliar Costo Histórico'!F:F,'Movimiento por Cta.'!A14,'Auxiliar Costo Histórico'!V:V) -> 0 | G91: 0 | H91: (52,039,914) | J91: =VLOOKUP(A91,Balanza!A:C,3,FALSE) -> (52,039,914) | L91: (0) | N91: =VLOOKUP(A91,Maestro!A:C,3,FALSE) -> Equipos de transporte y otros activos
A92: 121300200 | B92: DEP.ACUMULADA EQ. DE TRABAJO | C92: =SUMIF('Auxiliar Costo Histórico'!F:F,'Movimiento por Cta.'!A15,'Auxiliar Costo Histórico'!T:T) -> (77,482,130) | D92: =SUMIF('Auxiliar Costo Histórico'!F:F,'Movimiento por Cta.'!A15,'Auxiliar Costo Histórico'!U:U) -> (7,644,984) | E92: 0 | F92: =SUMIF('Auxiliar Costo Histórico'!F:F,'Movimiento por Cta.'!A15,'Auxiliar Costo Histórico'!V:V) -> 0 | G92: 0 | H92: (85,127,114) | J92: =VLOOKUP(A92,Balanza!A:C,3,FALSE) -> (85,127,114) | L92: (0) | N92: =VLOOKUP(A92,Maestro!A:C,3,FALSE) -> Equipos de transporte y otros activos
A93: 121400200 | B93: DEP. ACUMULADA EQ. SUB-ESTACION | C93: =SUMIF('Auxiliar Costo Histórico'!F:F,'Movimiento por Cta.'!A16,'Auxiliar Costo Histórico'!T:T) -> (992,781,208) | D93: =SUMIF('Auxiliar Costo Histórico'!F:F,'Movimiento por Cta.'!A16,'Auxiliar Costo Histórico'!U:U) -> (101,724,640) | E93: 0 | F93: =SUMIF('Auxiliar Costo Histórico'!F:F,'Movimiento por Cta.'!A16,'Auxiliar Costo Histórico'!V:V) -> 0 | G93: 0 | H93: (1,094,505,847) | J93: =VLOOKUP(A93,Balanza!A:C,3,FALSE) -> (1,094,505,847) | L93: 0 | N93: =VLOOKUP(A93,Maestro!A:C,3,FALSE) -> Presas y equipos de subestación
A94: 121500200 | B94: DEP. ACUMULADA EQ. MISCELANEOS | C94: =SUMIF('Auxiliar Costo Histórico'!F:F,'Movimiento por Cta.'!A17,'Auxiliar Costo Histórico'!T:T) -> (43,563,491) | D94: =SUMIF('Auxiliar Costo Histórico'!F:F,'Movimiento por Cta.'!A17,'Auxiliar Costo Histórico'!U:U) -> (2,895,153) | E94: 0 | F94: =SUMIF('Auxiliar Costo Histórico'!F:F,'Movimiento por Cta.'!A17,'Auxiliar Costo Histórico'!V:V) -> 0 | G94: 0 | H94: (46,458,644) | J94: =VLOOKUP(A94,Balanza!A:C,3,FALSE) -> (46,458,644) | L94: 0 | N94: =VLOOKUP(A94,Maestro!A:C,3,FALSE) -> Piezas y accesorios
A95: 121700200 | B95: DEP. ACUMULADA ELECTRODOMESTICOS | C95: =SUMIF('Auxiliar Costo Histórico'!F:F,'Movimiento por Cta.'!A18,'Auxiliar Costo Histórico'!T:T) -> (18,009,622) | D95: =SUMIF('Auxiliar Costo Histórico'!F:F,'Movimiento por Cta.'!A18,'Auxiliar Costo Histórico'!U:U) -> (2,784,189) | E95: 0 | F95: =SUMIF('Auxiliar Costo Histórico'!F:F,'Movimiento por Cta.'!A18,'Auxiliar Costo Histórico'!V:V) -> 0 | G95: 0 | H95: (20,793,811) | J95: =VLOOKUP(A95,Balanza!A:C,3,FALSE) -> (20,793,811) | L95: 0 | N95: =VLOOKUP(A95,Maestro!A:C,3,FALSE) -> Equipos de transporte y otros activos
A96: 121800200 | B96: DEP. ACUMULADA MOBILIARIOS DE ALOJAMIEN | C96: =SUMIF('Auxiliar Costo Histórico'!F:F,'Movimiento por Cta.'!A19,'Auxiliar Costo Histórico'!T:T) -> (2,724,905) | D96: =SUMIF('Auxiliar Costo Histórico'!F:F,'Movimiento por Cta.'!A19,'Auxiliar Costo Histórico'!U:U) -> (733,594) | E96: 0 | F96: =SUMIF('Auxiliar Costo Histórico'!F:F,'Movimiento por Cta.'!A19,'Auxiliar Costo Histórico'!V:V) -> 0 | G96: 0 | H96: (3,458,499) | J96: =VLOOKUP(A96,Balanza!A:C,3,FALSE) -> (3,458,499) | L96: 0 | N96: =VLOOKUP(A96,Maestro!A:C,3,FALSE) -> Mobiliario y equipos de oficina
A97: 121900200 | B97: DEP. ACUMULADA EQ. DE ELEVACION | C97: =SUMIF('Auxiliar Costo Histórico'!F:F,'Movimiento por Cta.'!A20,'Auxiliar Costo Histórico'!T:T) -> (4,200,907) | D97: =SUMIF('Auxiliar Costo Histórico'!F:F,'Movimiento por Cta.'!A20,'Auxiliar Costo Histórico'!U:U) -> (2,617,563) | E97: 0 | F97: =SUMIF('Auxiliar Costo Histórico'!F:F,'Movimiento por Cta.'!A20,'Auxiliar Costo Histórico'!V:V) -> 0 | G97: 0 | H97: =SUM(C97:G97) -> (6,818,470) | J97: =VLOOKUP(A97,Balanza!A:C,3,FALSE) -> (6,818,470) | L97: 0 | N97: =VLOOKUP(A97,Maestro!A:C,3,FALSE) -> Equipos de transporte y otros activos
A98: 122200200 | B98: DEP. ACUMULADA CAMARAS Y VIDEOS | C98: =SUMIF('Auxiliar Costo Histórico'!F:F,'Movimiento por Cta.'!A21,'Auxiliar Costo Histórico'!T:T) -> (7,771,453) | D98: =SUMIF('Auxiliar Costo Histórico'!F:F,'Movimiento por Cta.'!A21,'Auxiliar Costo Histórico'!U:U) -> (529,929) | E98: 0 | F98: =SUMIF('Auxiliar Costo Histórico'!F:F,'Movimiento por Cta.'!A21,'Auxiliar Costo Histórico'!V:V) -> 7,252 | G98: 0 | H98: (8,294,130) | J98: =VLOOKUP(A98,Balanza!A:C,3,FALSE) -> (8,294,130) | L98: 0 | N98: =VLOOKUP(A98,Maestro!A:C,3,FALSE) -> Equipos de transporte y otros activos
A99: 122400200 | B99: DEP. ACUMULADA PANELES ELECT. Y AFINES | C99: =SUMIF('Auxiliar Costo Histórico'!F:F,'Movimiento por Cta.'!A22,'Auxiliar Costo Histórico'!T:T) -> (545,839,078) | D99: =SUMIF('Auxiliar Costo Histórico'!F:F,'Movimiento por Cta.'!A22,'Auxiliar Costo Histórico'!U:U) -> (36,632,958) | E99: 0 | F99: =SUMIF('Auxiliar Costo Histórico'!F:F,'Movimiento por Cta.'!A22,'Auxiliar Costo Histórico'!V:V) -> 0 | G99: 0 | H99: (582,472,036) | J99: =VLOOKUP(A99,Balanza!A:C,3,FALSE) -> (582,472,036) | L99: 0 | N99: =VLOOKUP(A99,Maestro!A:C,3,FALSE) -> Equipos de transporte y otros activos
A100: 122500200 | B100: DEP. ACUM. EQ. DEFENSA Y SEGURIDAD (CAM | C100: =SUMIF('Auxiliar Costo Histórico'!F:F,'Movimiento por Cta.'!A23,'Auxiliar Costo Histórico'!T:T) -> (963,486) | D100: =SUMIF('Auxiliar Costo Histórico'!F:F,'Movimiento por Cta.'!A23,'Auxiliar Costo Histórico'!U:U) -> (447,194) | E100: 0 | F100: =SUMIF('Auxiliar Costo Histórico'!F:F,'Movimiento por Cta.'!A23,'Auxiliar Costo Histórico'!V:V) -> 21,071 | G100: 0 | H100: (1,389,608) | J100: =VLOOKUP(A100,Balanza!A:C,3,FALSE) -> (1,389,608) | L100: 0 | N100: =VLOOKUP(A100,Maestro!A:C,3,FALSE) -> Equipos de transporte y otros activos
C101: =SUM(C81:C100) -> (24,082,405,673) | D101: (3,013,591,934) | E101: 0 | F101: 28,324 | G101: 0 | H101: (27,095,969,283) | J101: =SUM(J81:J100) -> (27,095,969,283) | L101: =SUM(L81:L100) -> 0
C103: Depreciación Revaluación de Activos Periodo comprendido desde el 1 de Enero al 31 de Diciembre 2024
C104: Valor Inicial Al 1-Enero-2024 | D104: Adiciones | E104: Transferencias | F104: Retiros | G104: Ajustes | H104: Depreciación Acumulada
A105: 120200511 | B105: DEP. ACUM. REVA. EDIFICIO | C105: =SUMIF('Auxiliar Act. Revaluados'!G:G,A39,'Auxiliar Act. Revaluados'!L:L) -> (1,923,525,485) | D105: =SUMIF('Auxiliar Act. Revaluados'!G:G,A39,'Auxiliar Act. Revaluados'!X:X) -> (480,881,371) | E105: 0 | F105: 0 | G105: 0 | H105: =SUM(C105:G105) -> (2,404,406,856) | J105: =VLOOKUP(A105,Balanza!A:C,3,FALSE) -> (2,404,406,856) | L105: =H105-J105 -> 0 | N105: =VLOOKUP(A105,Maestro!A:C,3,FALSE) -> Edificaciones
A106: 120400511 | B106: DEP. ACUM. REVA. HIDROTURBINA | C106: =SUMIF('Auxiliar Act. Revaluados'!G:G,A40,'Auxiliar Act. Revaluados'!L:L) -> (413,725,090) | D106: =SUMIF('Auxiliar Act. Revaluados'!G:G,A40,'Auxiliar Act. Revaluados'!X:X) -> (103,431,273) | E106: 0 | F106: 0 | G106: 0 | H106: (517,156,363) | J106: =VLOOKUP(A106,Balanza!A:C,3,FALSE) -> (517,156,363) | L106: 0 | N106: =VLOOKUP(A106,Maestro!A:C,3,FALSE) -> Presas y equipos de subestación
A107: 120500511 | B107: DEP. ACUM. REVA. GENERADORES ELECTRICA | C107: =SUMIF('Auxiliar Act. Revaluados'!G:G,A41,'Auxiliar Act. Revaluados'!L:L) -> (263,079,759) | D107: =SUMIF('Auxiliar Act. Revaluados'!G:G,A41,'Auxiliar Act. Revaluados'!X:X) -> (65,769,940) | E107: 0 | F107: 0 | G107: 0 | H107: (328,849,699) | J107: =VLOOKUP(A107,Balanza!A:C,3,FALSE) -> (328,849,699) | L107: 0 | N107: =VLOOKUP(A107,Maestro!A:C,3,FALSE) -> Presas y equipos de subestación
A108: 120600511 | B108: DEP. ACUM. REVA. MAQUINARIA Y EQUIPO M | C108: =SUMIF('Auxiliar Act. Revaluados'!G:G,A42,'Auxiliar Act. Revaluados'!L:L) -> (159,191,304) | D108: =SUMIF('Auxiliar Act. Revaluados'!G:G,A42,'Auxiliar Act. Revaluados'!X:X) -> (39,790,127) | E108: 0 | F108: 0 | G108: 0 | H108: (198,981,431) | J108: =VLOOKUP(A108,Balanza!A:C,3,FALSE) -> (198,981,431) | L108: 0 | N108: =VLOOKUP(A108,Maestro!A:C,3,FALSE) -> Equipos de transporte y otros activos
A109: 120700511 | B109: DEP. ACUM. REVA. MAQUINARIA Y EQUIPOS E | C109: =SUMIF('Auxiliar Act. Revaluados'!G:G,A43,'Auxiliar Act. Revaluados'!L:L) -> (40,351,948) | D109: =SUMIF('Auxiliar Act. Revaluados'!G:G,A43,'Auxiliar Act. Revaluados'!X:X) -> (9,253,646) | E109: 0 | F109: 0 | G109: 0 | H109: (49,605,593) | J109: =VLOOKUP(A109,Balanza!A:C,3,FALSE) -> (49,605,593) | L109: 0 | N109: =VLOOKUP(A109,Maestro!A:C,3,FALSE) -> Equipos de transporte y otros activos
A110: 120800511 | B110: DEP. ACUM - REV.MOBILIARIO Y EQP. OFICI | C110: =SUMIF('Auxiliar Act. Revaluados'!G:G,A44,'Auxiliar Act. Revaluados'!L:L) -> (42,703,247) | D110: =SUMIF('Auxiliar Act. Revaluados'!G:G,A44,'Auxiliar Act. Revaluados'!X:X) -> (1) | E110: 0 | F110: 0 | G110: 0 | H110: (42,703,248) | J110: =VLOOKUP(A110,Balanza!A:C,3,FALSE) -> (42,703,248) | L110: (0) | N110: =VLOOKUP(A110,Maestro!A:C,3,FALSE) -> Mobiliario y equipos de oficina
A111: 120900511 | B111: DEP. ACUM - REV. EQUIPO DE TRANSPORTE | C111: =SUMIF('Auxiliar Act. Revaluados'!G:G,A45,'Auxiliar Act. Revaluados'!L:L) -> (116,034,771) | D111: =SUMIF('Auxiliar Act. Revaluados'!G:G,A45,'Auxiliar Act. Revaluados'!X:X) -> (0) | E111: 0 | F111: 0 | G111: 0 | H111: (116,034,772) | J111: =VLOOKUP(A111,Balanza!A:C,3,FALSE) -> (116,034,772) | L111: 0 | N111: =VLOOKUP(A111,Maestro!A:C,3,FALSE) -> Equipos de transporte y otros activos
A112: 121100511 | B112: DEP. ACU. REV. EQ. DE COMPUTOS. | C112: =SUMIF('Auxiliar Act. Revaluados'!G:G,A46,'Auxiliar Act. Revaluados'!L:L) -> (30,715,030) | D112: =SUMIF('Auxiliar Act. Revaluados'!G:G,A46,'Auxiliar Act. Revaluados'!X:X) -> (1) | E112: 0 | F112: 0 | G112: 0 | H112: (30,715,031) | J112: =VLOOKUP(A112,Balanza!A:C,3,FALSE) -> (30,715,031) | L112: 0 | N112: =VLOOKUP(A112,Maestro!A:C,3,FALSE) -> Equipos de transporte y otros activos
A113: 121110511 | B113: DEP. ACUM. REVA. EQUIPOS AUDIOVISUALES | C113: =SUMIF('Auxiliar Act. Revaluados'!G:G,A47,'Auxiliar Act. Revaluados'!L:L) -> (1,138,990) | D113: =SUMIF('Auxiliar Act. Revaluados'!G:G,A47,'Auxiliar Act. Revaluados'!X:X) -> (0) | E113: 0 | F113: 0 | G113: 0 | H113: (1,138,990) | J113: =VLOOKUP(A113,Balanza!A:C,3,FALSE) -> (1,138,990) | L113: 0 | N113: =VLOOKUP(A113,Maestro!A:C,3,FALSE) -> Equipos de transporte y otros activos
A114: 121200511 | B114: DEP. ACUM - REV EQUIPO DE COMUNICACION | C114: =SUMIF('Auxiliar Act. Revaluados'!G:G,A48,'Auxiliar Act. Revaluados'!L:L) -> (4,309,310) | D114: =SUMIF('Auxiliar Act. Revaluados'!G:G,A48,'Auxiliar Act. Revaluados'!X:X) -> (1,036,524) | E114: 0 | F114: 0 | G114: 0 | H114: (5,345,834) | J114: =VLOOKUP(A114,Balanza!A:C,3,FALSE) -> (5,345,834) | L114: 0 | N114: =VLOOKUP(A114,Maestro!A:C,3,FALSE) -> Equipos de transporte y otros activos
A115: 121300511 | B115: DEP. ACUM - REV. HERRAMIENTAS Y EQUIPOS | C115: =SUMIF('Auxiliar Act. Revaluados'!G:G,A49,'Auxiliar Act. Revaluados'!L:L) -> (12,878,437) | D115: =SUMIF('Auxiliar Act. Revaluados'!G:G,A49,'Auxiliar Act. Revaluados'!X:X) -> (3,116,194) | E115: 0 | F115: 0 | G115: 0 | H115: (15,994,631) | J115: =VLOOKUP(A115,Balanza!A:C,3,FALSE) -> (15,994,631) | L115: 0 | N115: =VLOOKUP(A115,Maestro!A:C,3,FALSE) -> Equipos de transporte y otros activos
A116: 121400511 | B116: DEP. ACUM -REV.EQUIPO SUB-ESTACION | C116: =SUMIF('Auxiliar Act. Revaluados'!G:G,A50,'Auxiliar Act. Revaluados'!L:L) -> (36,497,248) | D116: =SUMIF('Auxiliar Act. Revaluados'!G:G,A50,'Auxiliar Act. Revaluados'!X:X) -> (9,124,312) | E116: 0 | F116: 0 | G116: 0 | H116: (45,621,561) | J116: =VLOOKUP(A116,Balanza!A:C,3,FALSE) -> (45,621,561) | L116: 0 | N116: =VLOOKUP(A116,Maestro!A:C,3,FALSE) -> Presas y equipos de subestación
A117: 121500511 | B117: DEP. ACU. REV. EQ. MISCELANEOS | C117: =SUMIF('Auxiliar Act. Revaluados'!G:G,A51,'Auxiliar Act. Revaluados'!L:L) -> (7,759,434) | D117: =SUMIF('Auxiliar Act. Revaluados'!G:G,A51,'Auxiliar Act. Revaluados'!X:X) -> (1,666,841) | E117: 0 | F117: 0 | G117: 0 | H117: (9,426,275) | J117: =VLOOKUP(A117,Balanza!A:C,3,FALSE) -> (9,426,275) | L117: (0) | N117: =VLOOKUP(A117,Maestro!A:C,3,FALSE) -> Piezas y accesorios
A118: 121700511 | B118: DEP. ACUM. REVA. ELECTRODOMESTICOS | C118: =SUMIF('Auxiliar Act. Revaluados'!G:G,A52,'Auxiliar Act. Revaluados'!L:L) -> (14,940,017) | D118: =SUMIF('Auxiliar Act. Revaluados'!G:G,A52,'Auxiliar Act. Revaluados'!X:X) -> (0) | E118: 0 | F118: 0 | G118: 0 | H118: (14,940,017) | J118: =VLOOKUP(A118,Balanza!A:C,3,FALSE) -> (14,940,017) | L118: (0) | N118: =VLOOKUP(A118,Maestro!A:C,3,FALSE) -> Equipos de transporte y otros activos
A119: 121800511 | B119: DEP. ACUM. REVA. MOBILIARIO DE ALOJAMIE | C119: =SUMIF('Auxiliar Act. Revaluados'!G:G,A53,'Auxiliar Act. Revaluados'!L:L) -> (1,163,209) | D119: =SUMIF('Auxiliar Act. Revaluados'!G:G,A53,'Auxiliar Act. Revaluados'!X:X) -> (0) | E119: 0 | F119: 0 | G119: 0 | H119: (1,163,209) | J119: =VLOOKUP(A119,Balanza!A:C,3,FALSE) -> (1,163,209) | L119: 0 | N119: =VLOOKUP(A119,Maestro!A:C,3,FALSE) -> Mobiliario y equipos de oficina
A120: 122200511 | B120: DEP. ACUM. REVA. CAMARA Y VIDEO | C120: =SUMIF('Auxiliar Act. Revaluados'!G:G,A54,'Auxiliar Act. Revaluados'!L:L) -> (1,948,436) | D120: =SUMIF('Auxiliar Act. Revaluados'!G:G,A54,'Auxiliar Act. Revaluados'!X:X) -> (0) | E120: 0 | F120: 0 | G120: 0 | H120: (1,948,436) | J120: =VLOOKUP(A120,Balanza!A:C,3,FALSE) -> (1,948,436) | L120: 0 | N120: =VLOOKUP(A120,Maestro!A:C,3,FALSE) -> Equipos de transporte y otros activos
A121: 122400511 | B121: DEP. ACUM. REVA. PANELES ELECTRICOS Y A | C121: =SUMIF('Auxiliar Act. Revaluados'!G:G,A55,'Auxiliar Act. Revaluados'!L:L) -> (114,990,168) | D121: =SUMIF('Auxiliar Act. Revaluados'!G:G,A55,'Auxiliar Act. Revaluados'!X:X) -> 0 | E121: 0 | F121: 0 | G121: 0 | H121: (114,990,168) | J121: =VLOOKUP(A121,Balanza!A:C,3,FALSE) -> (114,990,168) | L121: 0 | N121: =VLOOKUP(A121,Maestro!A:C,3,FALSE) -> Equipos de transporte y otros activos
C122: =SUM(C105:C121) -> (3,184,951,883) | D122: (714,070,230) | E122: 0 | F122: 0 | G122: 0 | H122: (3,899,022,113) | J122: =SUM(J105:J121) -> (3,899,022,113) | L122: =SUM(L105:L121) -> (0)
B124: Valor de adquisición | C124: =C26+C56+C77 -> 106,992,844,792 | D124: =D26+D56+D77 -> 21,723,387 | E124: 0 | F124: (93,810) | G124: 0 | H124: 107,014,474,369 | J124: =J26+J56+J77 -> 107,014,453,594 | L124: 20,775
B125: Construcción en proceso | C125: =C31 -> 17,246,660,088 | D125: 11,338,959,282 | E125: 0 | F125: 0 | G125: 0 | H125: 28,585,619,370 | J125: =J31 -> 28,585,619,370 | L125: =L31 -> 0
B126: Depreciación acumulada | C126: =C101+C122 -> (27,267,357,556) | D126: =D101+D122 -> (3,727,662,164) | E126: 0 | F126: 28,324 | G126: 0 | H126: (30,994,991,396) | J126: (30,994,991,396) | L126: 0
C127: =SUM(C124:C126) -> 96,972,147,324 | D127: 7,633,020,506 | E127: 0 | F127: (65,487) | G127: 0 | H127: 104,605,102,343 | J127: =SUM(J124:J126) -> 104,605,081,568 | L127: =SUM(L124:L126) -> 20,775
A129: Cruce con Gastos de depreciación
A130: 501000100 | B130: DEP. EDIF. MAQ. Y EQUIPOS DE PRODUCCIO | C130: =VLOOKUP(A130,Balanza!A:C,3,FALSE) -> 2,374,373,798
A131: 501000200 | B131: DEP. HERRAM. Y EQUIPOS DE TRABAJO 15% A | C131: =VLOOKUP(A131,Balanza!A:C,3,FALSE) -> 1,100,318,507
A132: 501000300 | B132: DEP. EQUIPOS: TRANSP. OFIC COMPUTOS Y | C132: =VLOOKUP(A132,Balanza!A:C,3,FALSE) -> 54,395,174
A133: 601000100 | B133: DEP. EDIF. MAQ. Y EQUIPOS DE PRODUCCIO | C133: =VLOOKUP(A133,Balanza!A:C,3,FALSE) -> 37,886,795
A134: 601000200 | B134: DEP. HERRAM. Y EQUIPOS DE TRABAJO 15% A | C134: =VLOOKUP(A134,Balanza!A:C,3,FALSE) -> 46,631,831
A135: 601000300 | B135: DEP. EQUIPOS: TRANSP. OFIC COMPUTOS Y | C135: =VLOOKUP(A135,Balanza!A:C,3,FALSE) -> 114,056,059
C136: =SUM(C130:C135) -> 3,727,662,164
C137: =(D101+D122)+C136 -> 0
A139: 120200200 | B139: DEPRECIACION ACUMULADA EDIFICIO | C139: =D81+D105 -> (2,403,006,947) | D139: 5%
A140: 120300200 | B140: DEPRECIACION ACUMULADA PRESAS Y REPRESAS | C140: =D82 -> (41,394,502) | D140: 15%
A141: 120400200 | B141: DEPRECIACION ACUMULADA HIDROTURBINAS | C141: =D83+D106 -> (426,807,857) | D141: 15%
A142: 120500200 | B142: DEPRECIACION ACUMULADA GENERADORES | C142: (395,902,334) | D142: 15%
A143: 120600200 | B143: DEP. ACUMULADA MAQ.Y EQ. MECANICO | C143: (86,386,911) | D143: 15%
A144: 120700200 | B144: DEP. ACUMULADA MAQ.Y EQ. ELECTRICO | C144: (78,056,537) | D144: 15%
A145: 120800200 | B145: DEP. ACUMULADA MOB. Y EQ. DE OFICINA | C145: (4,908,615) | D145: 25%
A146: 120900200 | B146: DEP. ACUMULADA EQ. DE TRANSPORTE | C146: (89,939,409) | D146: 25%
A147: 121100200 | B147: DEP.ACUMULADA EQ. DE COMPUTOS | C147: (24,301,708) | D147: 25%
A148: 121110200 | B148: DEP. ACUM. EQUIPOS AUDIO VISUALES | C148: (155,319) | D148: 25%
A149: 121200200 | B149: DEP. ACUMULADA EQ. DE COMUNICACION | C149: (6,884,471) | D149: 15%
A150: 121300200 | B150: DEP.ACUMULADA EQ. DE TRABAJO | C150: (10,761,178) | D150: 15%
A151: 121400200 | B151: DEP. ACUMULADA EQ. SUB-ESTACION | C151: (110,848,952) | D151: 15%
A152: 121500200 | B152: DEP. ACUMULADA EQ. MISCELANEOS | C152: (4,561,994) | D152: 15%
A153: 121700200 | B153: DEP. ACUMULADA ELECTRODOMESTICOS | C153: (2,784,190) | D153: 25%
A154: 121800200 | B154: DEP. ACUMULADA MOBILIARIOS DE ALOJAMIEN | C154: (733,594) | D154: 25%
A155: 121900200 | B155: DEP. ACUMULADA EQ. DE ELEVACION | C155: =D97 -> (2,617,563) | D155: 25%
A156: 122200200 | B156: DEP. ACUMULADA CAMARAS Y VIDEOS | C156: =D98+D120 -> (529,929) | D156: 25%
A157: 122400200 | B157: DEP. ACUMULADA PANELES ELECT. Y AFINES | C157: =D99+D121 -> (36,632,958) | D157: 25%
A158: 122500200 | B158: DEP. ACUM. EQ. DEFENSA Y SEGURIDAD (CAM | C158: =D100 -> (447,194) | D158: 15%
C159: =SUM(C139:C158) -> (3,727,662,164)

Sheet Auxiliar Costo Histórico
A1: Activo fijo | B1: Subnúmero | C1: Sociedad | D1: División | E1: Pos.balance | F1: Cuenta balance CAP | G1: Cuenta balance CAP | H1: Clase activos fijos | I1: Capitalizado el | J1: Denominación del activo fijo | K1: Moneda | L1: Descapitalización el | M1: CAP iniEj | N1: Alta | O1: Baja | P1: Traslado | Q1: Postcapit. | R1: Fom.inversión | S1: CAP actuales | T1: Amo iniEj | U1: Amo del ejerc. | V1: Amo baja | W1: Amo traslado | X1: Amo postcapit. | Y1: Correcciones | Z1: Amo acumulada | AA1: ValCont. iniEj | AB1: -------(1)------- | AC1: Val.cont.act.
A2: 101110000096 | B2: 0 | C2: 2000 | E2: 8000000 | F2: 120100100 | G2: TERRENO | H2: 101-110 | I2: 2015-12-31 | J2: TERRENO 42,165.50 MS 2 CENTRAL AGUACATE | K2: DOP | M2: 245,234,850.00 | N2: 0.00 | O2: 0.00 | P2: 0.00 | Q2: 0.00 | R2: 0.00 | S2: 245,234,850.00 | T2: 0.00 | U2: 0.00 | V2: 0.00 | W2: 0.00 | X2: 0.00 | Y2: 0.00 | Z2: 0.00 | AA2: 245,234,850.00 | AC2: 245,234,850.00
A3: 101110000097 | B3: 0 | C3: 2000 | E3: 8000000 | F3: 120100100 | G3: TERRENO | H3: 101-110 | I3: 2015-12-31 | J3: TERRENO 42,165.50 MS 2 CENTRAL AGUACATE | K3: DOP | M3: 54,820,552.00 | N3: 0.00 | O3: 0.00 | P3: 0.00 | Q3: 0.00 | R3: 0.00 | S3: 54,820,552.00 | T3: 0.00 | U3: 0.00 | V3: 0.00 | W3: 0.00 | X3: 0.00 | Y3: 0.00 | Z3: 0.00 | AA3: 54,820,552.00 | AC3: 54,820,552.00
A4: 101110000098 | B4: 0 | C4: 2000 | E4: 8000000 | F4: 120100100 | G4: TERRENO | H4: 101-110 | I4: 2015-12-31 | J4: TERRENO 42,165.50 MS 2 CENTRAL AGUACATE | K4: DOP | M4: 14,504,144.00 | N4: 0.00 | O4: 0.00 | P4: 0.00 | Q4: 0.00 | R4: 0.00 | S4: 14,504,144.00 | T4: 0.00 | U4: 0.00 | V4: 0.00 | W4: 0.00 | X4: 0.00 | Y4: 0.00 | Z4: 0.00 | AA4: 14,504,144.00 | AC4: 14,504,144.00
A5: 101110000099 | B5: 0 | C5: 2000 | E5: 8000000 | F5: 120100100 | G5: TERRENO | H5: 101-110 | I5: 2015-12-31 | J5: TERRENO 42,165.50 MS 2 CENTRAL AGUACATE | K5: DOP | M5: 15,741,211.00 | N5: 0.00 | O5: 0.00 | P5: 0.00 | Q5: 0.00 | R5: 0.00 | S5: 15,741,211.00 | T5: 0.00 | U5: 0.00 | V5: 0.00 | W5: 0.00 | X5: 0.00 | Y5: 0.00 | Z5: 0.00 | AA5: 15,741,211.00 | AC5: 15,741,211.00
A6: 101110000100 | B6: 0 | C6: 2000 | E6: 8000000 | F6: 120100100 | G6: TERRENO | H6: 101-110 | I6: 2015-12-31 | J6: TERRENO, PARCELA NO. 4, DISTRITO CATASTRAL NO. 6, | K6: DOP | M6: 99,278,290.00 | N6: 0.00 | O6: 0.00 | P6: 0.00 | Q6: 0.00 | R6: 0.00 | S6: 99,278,290.00 | T6: 0.00 | U6: 0.00 | V6: 0.00 | W6: 0.00 | X6: 0.00 | Y6: 0.00 | Z6: 0.00 | AA6: 99,278,290.00 | AC6: 99,278,290.00
A7: 101110000101 | B7: 0 | C7: 2000 | E7: 8000000 | F7: 120100100 | G7: TERRENO | H7: 101-110 | I7: 2015-12-31 | J7: TERRENO DE 1,884.00 M 2 MINI ROSA J. CRUZ NAGUA | K7: DOP | M7: 7,271,341.00 | N7: 0.00 | O7: 0.00 | P7: 0.00 | Q7: 0.00 | R7: 0.00 | S7: 7,271,341.00 | T7: 0.00 | U7: 0.00 | V7: 0.00 | W7: 0.00 | X7: 0.00 | Y7: 0.00 | Z7: 0.00 | AA7: 7,271,341.00 | AC7: 7,271,341.00
A8: 101110000102 | B8: 0 | C8: 2000 | E8: 8000000 | F8: 120100100 | G8: TERRENO | H8: 101-110 | I8: 2015-12-31 | J8: TERRENO DE 2,515.44 M 2 MINI ROSA J. CRUZ NAGUA | K8: DOP | M8: 9,466,430.00 | N8: 0.00 | O8: 0.00 | P8: 0.00 | Q8: 0.00 | R8: 0.00 | S8: 9,466,430.00 | T8: 0.00 | U8: 0.00 | V8: 0.00 | W8: 0.00 | X8: 0.00 | Y8: 0.00 | Z8: 0.00 | AA8: 9,466,430.00 | AC8: 9,466,430.00
A9: 101110000103 | B9: 0 | C9: 2000 | E9: 8000000 | F9: 120100100 | G9: TERRENO | H9: 101-110 | I9: 2015-12-31 | J9: PARCELA DE 35,168.00 M 2 MINI CENTRAL RJC BOBA NAG | K9: DOP | M9: 46,461,273.00 | N9: 0.00 | O9: 0.00 | P9: 0.00 | Q9: 0.00 | R9: 0.00 | S9: 46,461,273.00 | T9: 0.00 | U9: 0.00 | V9: 0.00 | W9: 0.00 | X9: 0.00 | Y9: 0.00 | Z9: 0.00 | AA9: 46,461,273.00 | AC9: 46,461,273.00
A10: 101110000104 | B10: 0 | C10: 2000 | E10: 8000000 | F10: 120100100 | G10: TERRENO | H10: 101-110 | I10: 2015-12-31 | J10: TERRENO DE 74,054.55 M 2 CENTRAL DGO. RGUEZ S JUAN | K10: DOP | M10: 82,593,332.00 | N10: 0.00 | O10: 0.00 | P10: 0.00 | Q10: 0.00 | R10: 0.00 | S10: 82,593,332.00 | T10: 0.00 | U10: 0.00 | V10: 0.00 | W10: 0.00 | X10: 0.00 | Y10: 0.00 | Z10: 0.00 | AA10: 82,593,332.00 | AC10: 82,593,332.00
A11: 101110000105 | B11: 0 | C11: 2000 | E11: 8000000 | F11: 120100100 | G11: TERRENO | H11: 101-110 | I11: 2015-12-31 | J11: TERRENO 1,257.72 MS 2 CENTRAL MAGUEYAL AZUA | K11: DOP | M11: 5,018,321.00 | N11: 0.00 | O11: 0.00 | P11: 0.00 | Q11: 0.00 | R11: 0.00 | S11: 5,018,321.00 | T11: 0.00 | U11: 0.00 | V11: 0.00 | W11: 0.00 | X11: 0.00 | Y11: 0.00 | Z11: 0.00 | AA11: 5,018,321.00 | AC11: 5,018,321.00
A12: 101110000106 | B12: 0 | C12: 2000 | E12: 8000000 | F12: 120100100 | G12: TERRENO | H12: 101-110 | I12: 2015-12-31 | J12: TERRENO 263.61 MS 2 CENTRAL MAGUEYAL AZUA | K12: DOP | M12: 3,130,535.00 | N12: 0.00 | O12: 0.00 | P12: 0.00 | Q12: 0.00 | R12: 0.00 | S12: 3,130,535.00 | T12: 0.00 | U12: 0.00 | V12: 0.00 | W12: 0.00 | X12: 0.00 | Y12: 0.00 | Z12: 0.00 | AA12: 3,130,535.00 | AC12: 3,130,535.00
A13: 101110000107 | B13: 0 | C13: 2000 | E13: 8000000 | F13: 120100100 | G13: TERRENO | H13: 101-110 | I13: 2015-12-31 | J13: TERRENO 31,667.49 MS 2 CENTRAL PALOMINO SAN JUAN | K13: DOP | M13: 15,933,424.00 | N13: 0.00 | O13: 0.00 | P13: 0.00 | Q13: 0.00 | R13: 0.00 | S13: 15,933,424.00 | T13: 0.00 | U13: 0.00 | V13: 0.00 | W13: 0.00 | X13: 0.00 | Y13: 0.00 | Z13: 0.00 | AA13: 15,933,424.00 | AC13: 15,933,424.00
A14: 101110000108 | B14: 0 | C14: 2000 | E14: 8000000 | F14: 120100100 | G14: TERRENO | H14: 101-110 | I14: 2015-12-31 | J14: TERRENO 71,891.61 MS 2 CENTRAL PALOMINO SAN JUAN | K14: DOP | M14: 10,302,389.00 | N14: 0.00 | O14: 0.00 | P14: 0.00 | Q14: 0.00 | R14: 0.00 | S14: 10,302,389.00 | T14: 0.00 | U14: 0.00 | V14: 0.00 | W14: 0.00 | X14: 0.00 | Y14: 0.00 | Z14: 0.00 | AA14: 10,302,389.00 | AC14: 10,302,389.00
A15: 101110000109 | B15: 0 | C15: 2000 | E15: 8000000 | F15: 120100100 | G15: TERRENO | H15: 101-110 | I15: 2015-12-31 | J15: TERRENO 1,012,069.58 MS 2 CENTRAL PALOMINO S. JUAN | K15: DOP | M15: 15,067,946.00 | N15: 0.00 | O15: 0.00 | P15: 0.00 | Q15: 0.00 | R15: 0.00 | S15: 15,067,946.00 | T15: 0.00 | U15: 0.00 | V15: 0.00 | W15: 0.00 | X15: 0.00 | Y15: 0.00 | Z15: 0.00 | AA15: 15,067,946.00 | AC15: 15,067,946.00
A16: 101110000110 | B16: 0 | C16: 2000 | E16: 8000000 | F16: 120100100 | G16: TERRENO | H16: 101-110 | I16: 2015-12-31 | J16: TERRENO 6,586.77 METROS 2 CENTRAL AGUACATE | K16: DOP | M16: 15,740,809.00 | N16: 0.00 | O16: 0.00 | P16: 0.00 | Q16: 0.00 | R16: 0.00 | S16: 15,740,809.00 | T16: 0.00 | U16: 0.00 | V16: 0.00 | W16: 0.00 | X16: 0.00 | Y16: 0.00 | Z16: 0.00 | AA16: 15,740,809.00 | AC16: 15,740,809.00
A17: 101110000111 | B17: 0 | C17: 2000 | E17: 8000000 | F17: 120100100 | G17: TERRENO | H17: 101-110 | I17: 2015-12-31 | J17: TERRENO SIN CERTIFICADO DE TÍTULO, HENRY BELAMINO | K17: DOP | M17: 15,594,785.00 | N17: 0.00 | O17: 0.00 | P17: 0.00 | Q17: 0.00 | R17: 0.00 | S17: 15,594,785.00 | T17: 0.00 | U17: 0.00 | V17: 0.00 | W17: 0.00 | X17: 0.00 | Y17: 0.00 | Z17: 0.00 | AA17: 15,594,785.00 | AC17: 15,594,785.00
A18: 101110000112 | B18: 0 | C18: 2000 | E18: 8000000 | F18: 120100100 | G18: TERRENO | H18: 101-110 | I18: 2015-12-31 | J18: TERRENO SIN CERTIFICADO DE TÍTULO, ESTEBAN LUCIAN | K18: DOP | M18: 13,729,201.00 | N18: 0.00 | O18: 0.00 | P18: 0.00 | Q18: 0.00 | R18: 0.00 | S18: 13,729,201.00 | T18: 0.00 | U18: 0.00 | V18: 0.00 | W18: 0.00 | X18: 0.00 | Y18: 0.00 | Z18: 0.00 | AA18: 13,729,201.00 | AC18: 13,729,201.00
A19: 101110000113 | B19: 0 | C19: 2000 | E19: 8000000 | F19: 120100100 | G19: TERRENO | H19: 101-110 | I19: 2015-12-31 | J19: TERRENO SIN CERTIFICADO DE TÍTULO, JOSÉ ANTONIO S | K19: DOP | M19: 4,686,790.00 | N19: 0.00 | O19: 0.00 | P19: 0.00 | Q19: 0.00 | R19: 0.00 | S19: 4,686,790.00 | T19: 0.00 | U19: 0.00 | V19: 0.00 | W19: 0.00 | X19: 0.00 | Y19: 0.00 | Z19: 0.00 | AA19: 4,686,790.00 | AC19: 4,686,790.00
A20: 101110000114 | B20: 0 | C20: 2000 | E20: 8000000 | F20: 120100100 | G20: TERRENO | H20: 101-110 | I20: 2015-12-31 | J20: TERRENO SIN CERTIFICADO DE TÍTULO, MARTÍN DE LA R | K20: DOP | M20: 8,435,375.00 | N20: 0.00 | O20: 0.00 | P20: 0.00 | Q20: 0.00 | R20: 0.00 | S20: 8,435,375.00 | T20: 0.00 | U20: 0.00 | V20: 0.00 | W20: 0.00 | X20: 0.00 | Y20: 0.00 | Z20: 0.00 | AA20: 8,435,375.00 | AC20: 8,435,375.00
A21: 101110000115 | B21: 0 | C21: 2000 | E21: 8000000 | F21: 120100100 | G21: TERRENO | H21: 101-110 | I21: 2015-12-31 | J21: TERRENO SIN CERTIFICADO DE TÍTULO, CESARIO JIMENE | K21: DOP | M21: 7,210,240.00 | N21: 0.00 | O21: 0.00 | P21: 0.00 | Q21: 0.00 | R21: 0.00 | S21: 7,210,240.00 | T21: 0.00 | U21: 0.00 | V21: 0.00 | W21: 0.00 | X21: 0.00 | Y21: 0.00 | Z21: 0.00 | AA21: 7,210,240.00 | AC21: 7,210,240.00
A22: 101110000116 | B22: 0 | C22: 2000 | E22: 8000000 | F22: 120100100 | G22: TERRENO | H22: 101-110 | I22: 2015-12-31 | J22: TERRENO SIN CERTIFICADO DE TÍTULO, JUAN CONFESOR | K22: DOP | M22: 17,728,499.00 | N22: 0.00 | O22: 0.00 | P22: 0.00 | Q22: 0.00 | R22: 0.00 | S22: 17,728,499.00 | T22: 0.00 | U22: 0.00 | V22: 0.00 | W22: 0.00 | X22: 0.00 | Y22: 0.00 | Z22: 0.00 | AA22: 17,728,499.00 | AC22: 17,728,499.00
A23: 101110000117 | B23: 0 | C23: 2000 | E23: 8000000 | F23: 120100100 | G23: TERRENO | H23: 101-110 | I23: 2015-12-31 | J23: TERRENO SIN CERTIFICADO DE TÍTULO, AMAURIS JOSÉ A | K23: DOP | M23: 6,105,761.00 | N23: 0.00 | O23: 0.00 | P23: 0.00 | Q23: 0.00 | R23: 0.00 | S23: 6,105,761.00 | T23: 0.00 | U23: 0.00 | V23: 0.00 | W23: 0.00 | X23: 0.00 | Y23: 0.00 | Z23: 0.00 | AA23: 6,105,761.00 | AC23: 6,105,761.00
A24: 101110000118 | B24: 0 | C24: 2000 | E24: 8000000 | F24: 120100100 | G24: TERRENO | H24: 101-110 | I24: 2015-12-31 | J24: TERRENO SIN CERTIFICADO DE TÍTULO, AGROFORESTAL M | K24: DOP | M24: 13,152,346.00 | N24: 0.00 | O24: 0.00 | P24: 0.00 | Q24: 0.00 | R24: 0.00 | S24: 13,152,346.00 | T24: 0.00 | U24: 0.00 | V24: 0.00 | W24: 0.00 | X24: 0.00 | Y24: 0.00 | Z24: 0.00 | AA24: 13,152,346.00 | AC24: 13,152,346.00
A25: 101110000119 | B25: 0 | C25: 2000 | E25: 8000000 | F25: 120100100 | G25: TERRENO | H25: 101-110 | I25: 2015-12-31 | J25: TERRENO SIN CERTIFICADO DE TÍTULO, FLOR MIA SÁNCH | K25: DOP | M25: 10,459,379.00 | N25: 0.00 | O25: 0.00 | P25: 0.00 | Q25: 0.00 | R25: 0.00 | S25: 10,459,379.00 | T25: 0.00 | U25: 0.00 | V25: 0.00 | W25: 0.00 | X25: 0.00 | Y25: 0.00 | Z25: 0.00 | AA25: 10,459,379.00 | AC25: 10,459,379.00
A26: 101110000120 | B26: 0 | C26: 2000 | E26: 8000000 | F26: 120100100 | G26: TERRENO | H26: 101-110 | I26: 2015-12-31 | J26: TERRENO SIN CERTIFICADO DE TÍTULO, PAULIO AYBAR. | K26: DOP | M26: 5,846,278.00 | N26: 0.00 | O26: 0.00 | P26: 0.00 | Q26: 0.00 | R26: 0.00 | S26: 5,846,278.00 | T26: 0.00 | U26: 0.00 | V26: 0.00 | W26: 0.00 | X26: 0.00 | Y26: 0.00 | Z26: 0.00 | AA26: 5,846,278.00 | AC26: 5,846,278.00
A27: 101110000121 | B27: 0 | C27: 2000 | E27: 8000000 | F27: 120100100 | G27: TERRENO | H27: 101-110 | I27: 2015-12-31 | J27: TERRENO SIN CERTIFICADO DE TÍTULO, MIMINO CASTILL | K27: DOP | M27: 5,696,909.00 | N27: 0.00 | O27: 0.00 | P27: 0.00 | Q27: 0.00 | R27: 0.00 | S27: 5,696,909.00 | T27: 0.00 | U27: 0.00 | V27: 0.00 | W27: 0.00 | X27: 0.00 | Y27: 0.00 | Z27: 0.00 | AA27: 5,696,909.00 | AC27: 5,696,909.00
A28: 101110000122 | B28: 0 | C28: 2000 | E28: 8000000 | F28: 120100100 | G28: TERRENO | H28: 101-110 | I28: 2015-12-31 | J28: TERRENO SIN CERTIFICADO DE TÍTULO, FERNANDO FRENA | K28: DOP | M28: 10,525,472.00 | N28: 0.00 | O28: 0.00 | P28: 0.00 | Q28: 0.00 | R28: 0.00 | S28: 10,525,472.00 | T28: 0.00 | U28: 0.00 | V28: 0.00 | W28: 0.00 | X28: 0.00 | Y28: 0.00 | Z28: 0.00 | AA28: 10,525,472.00 | AC28: 10,525,472.00
A29: 101110000123 | B29: 0 | C29: 2000 | E29: 8000000 | F29: 120100100 | G29: TERRENO | H29: 101-110 | I29: 2015-12-31 | J29: TERRENO SIN CERTIFICADO DE TÍTULO, CLEMENTE LAPAI | K29: DOP | M29: 27,705,678.00 | N29: 0.00 | O29: 0.00 | P29: 0.00 | Q29: 0.00 | R29: 0.00 | S29: 27,705,678.00 | T29: 0.00 | U29: 0.00 | V29: 0.00 | W29: 0.00 | X29: 0.00 | Y29: 0.00 | Z29: 0.00 | AA29: 27,705,678.00 | AC29: 27,705,678.00
A30: 101110000124 | B30: 0 | C30: 2000 | E30: 8000000 | F30: 120100100 | G30: TERRENO | H30: 101-110 | I30: 2015-12-31 | J30: TERRENO SIN CERTIFICADO DE TÍTULO, SUCESORES TIMO | K30: DOP | M30: 27,486,050.00 | N30: 0.00 | O30: 0.00 | P30: 0.00 | Q30: 0.00 | R30: 0.00 | S30: 27,486,050.00 | T30: 0.00 | U30: 0.00 | V30: 0.00 | W30: 0.00 | X30: 0.00 | Y30: 0.00 | Z30: 0.00 | AA30: 27,486,050.00 | AC30: 27,486,050.00
A31: 101110000125 | B31: 0 | C31: 2000 | E31: 8000000 | F31: 120100100 | G31: TERRENO | H31: 101-110 | I31: 2015-12-31 | J31: TERRENO SIN CERTIFICADO DE TÍTULO, SANTO DELGADO | K31: DOP | M31: 27,657,860.00 | N31: 0.00 | O31: 0.00 | P31: 0.00 | Q31: 0.00 | R31: 0.00 | S31: 27,657,860.00 | T31: 0.00 | U31: 0.00 | V31: 0.00 | W31: 0.00 | X31: 0.00 | Y31: 0.00 | Z31: 0.00 | AA31: 27,657,860.00 | AC31: 27,657,860.00
A32: 101110000126 | B32: 0 | C32: 2000 | E32: 8000000 | F32: 120100100 | G32: TERRENO | H32: 101-110 | I32: 2015-12-31 | J32: TERRENO SIN CERTIFICADO DE TÍTULO, RAFAEL GALVA. | K32: DOP | M32: 29,557,126.00 | N32: 0.00 | O32: 0.00 | P32: 0.00 | Q32: 0.00 | R32: 0.00 | S32: 29,557,126.00 | T32: 0.00 | U32: 0.00 | V32: 0.00 | W32: 0.00 | X32: 0.00 | Y32: 0.00 | Z32: 0.00 | AA32: 29,557,126.00 | AC32: 29,557,126.00
A33: 101110000127 | B33: 0 | C33: 2000 | E33: 8000000 | F33: 120100100 | G33: TERRENO | H33: 101-110 | I33: 2015-12-31 | J33: TERRENO SIN CERTIFICADO DE TÍTULO, JOSÉ ALTAGRACI | K33: DOP | M33: 27,068,362.00 | N33: 0.00 | O33: 0.00 | P33: 0.00 | Q33: 0.00 | R33: 0.00 | S33: 27,068,362.00 | T33: 0.00 | U33: 0.00 | V33: 0.00 | W33: 0.00 | X33: 0.00 | Y33: 0.00 | Z33: 0.00 | AA33: 27,068,362.00 | AC33: 27,068,362.00
A34: 101110000128 | B34: 0 | C34: 2000 | E34: 8000000 | F34: 120100100 | G34: TERRENO | H34: 101-110 | I34: 2015-12-31 | J34: TERRENO SIN CERTIFICADO DE TÍTULO, NIRKA DE LA RO | K34: DOP | M34: 25,056,478.00 | N34: 0.00 | O34: 0.00 | P34: 0.00 | Q34: 0.00 | R34: 0.00 | S34: 25,056,478.00 | T34: 0.00 | U34: 0.00 | V34: 0.00 | W34: 0.00 | X34: 0.00 | Y34: 0.00 | Z34: 0.00 | AA34: 25,056,478.00 | AC34: 25,056,478.00
A35: 101110000129 | B35: 0 | C35: 2000 | E35: 8000000 | F35: 120100100 | G35: TERRENO | H35: 101-110 | I35: 2015-12-31 | J35: TERRENO SIN CERTIFICADO DE TÍTULO. | K35: DOP | M35: 19,034,637.00 | N35: 0.00 | O35: 0.00 | P35: 0.00 | Q35: 0.00 | R35: 0.00 | S35: 19,034,637.00 | T35: 0.00 | U35: 0.00 | V35: 0.00 | W35: 0.00 | X35: 0.00 | Y35: 0.00 | Z35: 0.00 | AA35: 19,034,637.00 | AC35: 19,034,637.00
A36: 101110000130 | B36: 0 | C36: 2000 | E36: 8000000 | F36: 120100100 | G36: TERRENO | H36: 101-110 | I36: 2015-12-31 | J36: TERRENO SIN CERTIFICADO DE TÍTULO, LIBRADO AYBAR. | K36: DOP | M36: 15,233,395.00 | N36: 0.00 | O36: 0.00 | P36: 0.00 | Q36: 0.00 | R36: 0.00 | S36: 15,233,395.00 | T36: 0.00 | U36: 0.00 | V36: 0.00 | W36: 0.00 | X36: 0.00 | Y36: 0.00 | Z36: 0.00 | AA36: 15,233,395.00 | AC36: 15,233,395.00
A37: 101110000131 | B37: 0 | C37: 2000 | E37: 8000000 | F37: 120100100 | G37: TERRENO | H37: 101-110 | I37: 2015-12-31 | J37: TERRENO SIN CERTIFICADO DE TÍTULO,GERTRUDIS DE LA | K37: DOP | M37: 15,142,330.00 | N37: 0.00 | O37: 0.00 | P37: 0.00 | Q37: 0.00 | R37: 0.00 | S37: 15,142,330.00 | T37: 0.00 | U37: 0.00 | V37: 0.00 | W37: 0.00 | X37: 0.00 | Y37: 0.00 | Z37: 0.00 | AA37: 15,142,330.00 | AC37: 15,142,330.00
A38: 101110000132 | B38: 0 | C38: 2000 | E38: 8000000 | F38: 120100100 | G38: TERRENO | H38: 101-110 | I38: 2015-12-31 | J38: TERRENO SIN CERTIFICADO DE TÍTULO, MAURO AYBAR. | K38: DOP | M38: 61,797,168.00 | N38: 0.00 | O38: 0.00 | P38: 0.00 | Q38: 0.00 | R38: 0.00 | S38: 61,797,168.00 | T38: 0.00 | U38: 0.00 | V38: 0.00 | W38: 0.00 | X38: 0.00 | Y38: 0.00 | Z38: 0.00 | AA38: 61,797,168.00 | AC38: 61,797,168.00
A39: 101110000133 | B39: 0 | C39: 2000 | E39: 8000000 | F39: 120100100 | G39: TERRENO | H39: 101-110 | I39: 2015-12-31 | J39: TERRENO SIN CERTIFICADO DE TÍTULO, ACCESO A TORRE | K39: DOP | M39: 2,196,751.00 | N39: 0.00 | O39: 0.00 | P39: 0.00 | Q39: 0.00 | R39: 0.00 | S39: 2,196,751.00 | T39: 0.00 | U39: 0.00 | V39: 0.00 | W39: 0.00 | X39: 0.00 | Y39: 0.00 | Z39: 0.00 | AA39: 2,196,751.00 | AC39: 2,196,751.00
A40: 101110000134 | B40: 0 | C40: 2000 | E40: 8000000 | F40: 120100100 | G40: TERRENO | H40: 101-110 | I40: 2015-12-31 | J40: TERRENO SIN CERTIFICADO DE TÍTULO, ANA MARÍA REYE | K40: DOP | M40: 3,632,157.00 | N40: 0.00 | O40: 0.00 | P40: 0.00 | Q40: 0.00 | R40: 0.00 | S40: 3,632,157.00 | T40: 0.00 | U40: 0.00 | V40: 0.00 | W40: 0.00 | X40: 0.00 | Y40: 0.00 | Z40: 0.00 | AA40: 3,632,157.00 | AC40: 3,632,157.00
A41: 101110000135 | B41: 0 | C41: 2000 | E41: 8000000 | F41: 120100100 | G41: TERRENO | H41: 101-110 | I41: 2015-12-31 | J41: TERRENO SIN CERTIFICADO DE TÍTULO, ANA AQUINO. | K41: DOP | M41: 3,446,335.00 | N41: 0.00 | O41: 0.00 | P41: 0.00 | Q41: 0.00 | R41: 0.00 | S41: 3,446,335.00 | T41: 0.00 | U41: 0.00 | V41: 0.00 | W41: 0.00 | X41: 0.00 | Y41: 0.00 | Z41: 0.00 | AA41: 3,446,335.00 | AC41: 3,446,335.00
A42: 101110000136 | B42: 0 | C42: 2000 | E42: 8000000 | F42: 120100100 | G42: TERRENO | H42: 101-110 | I42: 2015-12-31 | J42: TERRENO SIN CERTIFICADO DE TÍTULO, FRANCISCO COMA | K42: DOP | M42: 1,258,751.00 | N42: 0.00 | O42: 0.00 | P42: 0.00 | Q42: 0.00 | R42: 0.00 | S42: 1,258,751.00 | T42: 0.00 | U42: 0.00 | V42: 0.00 | W42: 0.00 | X42: 0.00 | Y42: 0.00 | Z42: 0.00 | AA42: 1,258,751.00 | AC42: 1,258,751.00
A43: 101110000137 | B43: 0 | C43: 2000 | E43: 8000000 | F43: 120100100 | G43: TERRENO | H43: 101-110 | I43: 2015-12-31 | J43: TERRENO SIN CERTIFICADO DE TÍTULO, FRANCISCO REYE | K43: DOP | M43: 1,637,276.00 | N43: 0.00 | O43: 0.00 | P43: 0.00 | Q43: 0.00 | R43: 0.00 | S43: 1,637,276.00 | T43: 0.00 | U43: 0.00 | V43: 0.00 | W43: 0.00 | X43: 0.00 | Y43: 0.00 | Z43: 0.00 | AA43: 1,637,276.00 | AC43: 1,637,276.00
A44: 101110000138 | B44: 0 | C44: 2000 | E44: 8000000 | F44: 120100100 | G44: TERRENO | H44: 101-110 | I44: 2015-12-31 | J44: TERRENO SIN CERTIFICADO DE TÍTULO, FELIPE AUGUSTO | K44: DOP | M44: 3,425,912.00 | N44: 0.00 | O44: 0.00 | P44: 0.00 | Q44: 0.00 | R44: 0.00 | S44: 3,425,912.00 | T44: 0.00 | U44: 0.00 | V44: 0.00 | W44: 0.00 | X44: 0.00 | Y44: 0.00 | Z44: 0.00 | AA44: 3,425,912.00 | AC44: 3,425,912.00
A45: 101110000139 | B45: 0 | C45: 2000 | E45: 8000000 | F45: 120100100 | G45: TERRENO | H45: 101-110 | I45: 2015-12-31 | J45: TERRENO SIN CERTIFICADO DE TÍTULO, APOLINAR REY, | K45: DOP | M45: 3,468,969.00 | N45: 0.00 | O45: 0.00 | P45: 0.00 | Q45: 0.00 | R45: 0.00 | S45: 3,468,969.00 | T45: 0.00 | U45: 0.00 | V45: 0.00 | W45: 0.00 | X45: 0.00 | Y45: 0.00 | Z45: 0.00 | AA45: 3,468,969.00 | AC45: 3,468,969.00
A46: 101110000140 | B46: 0 | C46: 2000 | E46: 8000000 | F46: 120100100 | G46: TERRENO | H46: 101-110 | I46: 2015-12-31 | J46: TERRENO SIN CERTIFICADO DE TÍTULO, JOSÉ REYES AQU | K46: DOP | M46: 1,950,049.00 | N46: 0.00 | O46: 0.00 | P46: 0.00 | Q46: 0.00 | R46: 0.00 | S46: 1,950,049.00 | T46: 0.00 | U46: 0.00 | V46: 0.00 | W46: 0.00 | X46: 0.00 | Y46: 0.00 | Z46: 0.00 | AA46: 1,950,049.00 | AC46: 1,950,049.00
A47: 101110000141 | B47: 0 | C47: 2000 | E47: 8000000 | F47: 120100100 | G47: TERRENO | H47: 101-110 | I47: 2015-12-31 | J47: TERRENO SIN CERTIFICADO DE TÍTULO, FERNANDO SÁNCH | K47: DOP | M47: 3,497,142.00 | N47: 0.00 | O47: 0.00 | P47: 0.00 | Q47: 0.00 | R47: 0.00 | S47: 3,497,142.00 | T47: 0.00 | U47: 0.00 | V47: 0.00 | W47: 0.00 | X47: 0.00 | Y47: 0.00 | Z47: 0.00 | AA47: 3,497,142.00 | AC47: 3,497,142.00
A48: 101110000142 | B48: 0 | C48: 2000 | E48: 8000000 | F48: 120100100 | G48: TERRENO | H48: 101-110 | I48: 2015-12-31 | J48: TERRENO 41,130.21 METROS 2 CASA MILITARES TAVERA | K48: DOP | M48: 13,342,493.00 | N48: 0.00 | O48: 0.00 | P48: 0.00 | Q48: 0.00 | R48: 0.00 | S48: 13,342,493.00 | T48: 0.00 | U48: 0.00 | V48: 0.00 | W48: 0.00 | X48: 0.00 | Y48: 0.00 | Z48: 0.00 | AA48: 13,342,493.00 | AC48: 13,342,493.00
A49: 101110000143 | B49: 0 | C49: 2000 | E49: 8000000 | F49: 120100100 | G49: TERRENO | H49: 101-110 | I49: 2015-12-31 | J49: TERRENO 1,270.78 M2 REUBIC. DESALOJADOS C. TAVERA | K49: DOP | M49: 28,930,275.00 | N49: 0.00 | O49: 0.00 | P49: 0.00 | Q49: 0.00 | R49: 0.00 | S49: 28,930,275.00 | T49: 0.00 | U49: 0.00 | V49: 0.00 | W49: 0.00 | X49: 0.00 | Y49: 0.00 | Z49: 0.00 | AA49: 28,930,275.00 | AC49: 28,930,275.00
A50: 101110000144 | B50: 0 | C50: 2000 | E50: 8000000 | F50: 120100100 | G50: TERRENO | H50: 101-110 | I50: 2015-12-31 | J50: TERRENO 42,420.11 M2 CAMPAMENTO CENTRAL ANGOSTURA | K50: DOP | M50: 17,313,102.00 | N50: 0.00 | O50: 0.00 | P50: 0.00 | Q50: 0.00 | R50: 0.00 | S50: 17,313,102.00 | T50: 0.00 | U50: 0.00 | V50: 0.00 | W50: 0.00 | X50: 0.00 | Y50: 0.00 | Z50: 0.00 | AA50: 17,313,102.00 | AC50: 17,313,102.00
A51: 101110000145 | B51: 0 | C51: 2000 | E51: 8000000 | F51: 120100100 | G51: TERRENO | H51: 101-110 | I51: 2015-12-31 | J51: TERRENO 3,803.48 M2 CAMPAMENTO CENTRAL TAVERA | K51: DOP | M51: 82,600,021.00 | N51: 0.00 | O51: 0.00 | P51: 0.00 | Q51: 0.00 | R51: 0.00 | S51: 82,600,021.00 | T51: 0.00 | U51: 0.00 | V51: 0.00 | W51: 0.00 | X51: 0.00 | Y51: 0.00 | Z51: 0.00 | AA51: 82,600,021.00 | AC51: 82,600,021.00
A52: 101110000146 | B52: 0 | C52: 2000 | E52: 8000000 | F52: 120100100 | G52: TERRENO | H52: 101-110 | I52: 2015-12-31 | J52: TERRENO 8,050.01 M2 CENTRAL TAVERA, SANTIAGO | K52: DOP | M52: 89,211,973.00 | N52: 0.00 | O52: 0.00 | P52: 0.00 | Q52: 0.00 | R52: 0.00 | S52: 89,211,973.00 | T52: 0.00 | U52: 0.00 | V52: 0.00 | W52: 0.00 | X52: 0.00 | Y52: 0.00 | Z52: 0.00 | AA52: 89,211,973.00 | AC52: 89,211,973.00
A53: 101110000147 | B53: 0 | C53: 2000 | E53: 8000000 | F53: 120100100 | G53: TERRENO | H53: 101-110 | I53: 2015-12-31 | J53: TERRENO DE 177,579.06 M-2, A. AMORTIGUAMIENTO C.J. | K53: DOP | M53: 37,199,499.00 | N53: 0.00 | O53: 0.00 | P53: 0.00 | Q53: 0.00 | R53: 0.00 | S53: 37,199,499.00 | T53: 0.00 | U53: 0.00 | V53: 0.00 | W53: 0.00 | X53: 0.00 | Y53: 0.00 | Z53: 0.00 | AA53: 37,199,499.00 | AC53: 37,199,499.00
A54: 101110000148 | B54: 0 | C54: 2000 | E54: 8000000 | F54: 120100100 | G54: TERRENO | H54: 101-110 | I54: 2015-12-31 | J54: PARCELA 207-B-8 DC 3 168,620.04 MTS REUB DESALOJAD | K54: DOP | M54: 26,422,480.00 | N54: 0.00 | O54: 0.00 | P54: 0.00 | Q54: 0.00 | R54: 0.00 | S54: 26,422,480.00 | T54: 0.00 | U54: 0.00 | V54: 0.00 | W54: 0.00 | X54: 0.00 | Y54: 0.00 | Z54: 0.00 | AA54: 26,422,480.00 | AC54: 26,422,480.00
A55: 101110000149 | B55: 0 | C55: 2000 | E55: 8000000 | F55: 120100100 | G55: TERRENO | H55: 101-110 | I55: 2015-12-31 | J55: PARCELA 207-B-6-A DC 3 344,864.07 REUB DESALOJADOS | K55: DOP | M55: 68,414,325.00 | N55: 0.00 | O55: 0.00 | P55: 0.00 | Q55: 0.00 | R55: 0.00 | S55: 68,414,325.00 | T55: 0.00 | U55: 0.00 | V55: 0.00 | W55: 0.00 | X55: 0.00 | Y55: 0.00 | Z55: 0.00 | AA55: 68,414,325.00 | AC55: 68,414,325.00
A56: 101110000150 | B56: 0 | C56: 2000 | E56: 8000000 | F56: 120100100 | G56: TERRENO | H56: 101-110 | I56: 2015-12-31 | J56: TERRENO DE 6,050.67 M2 REUB. DESALOJADOS TAVERA | K56: DOP | M56: 116,658,507.00 | N56: 0.00 | O56: 0.00 | P56: 0.00 | Q56: 0.00 | R56: 0.00 | S56: 116,658,507.00 | T56: 0.00 | U56: 0.00 | V56: 0.00 | W56: 0.00 | X56: 0.00 | Y56: 0.00 | Z56: 0.00 | AA56: 116,658,507.00 | AC56: 116,658,507.00
A57: 101110000151 | B57: 0 | C57: 2000 | E57: 8000000 | F57: 120100100 | G57: TERRENO | H57: 101-110 | I57: 2015-12-31 | J57: TERRENO 19,360.06 METROS 2 CENTRAL JIMENOA | K57: DOP | M57: 238,747,108.00 | N57: 0.00 | O57: 0.00 | P57: 0.00 | Q57: 0.00 | R57: 0.00 | S57: 238,747,108.00 | T57: 0.00 | U57: 0.00 | V57: 0.00 | W57: 0.00 | X57: 0.00 | Y57: 0.00 | Z57: 0.00 | AA57: 238,747,108.00 | AC57: 238,747,108.00
A58: 101110000152 | B58: 0 | C58: 2000 | E58: 8000000 | F58: 120100100 | G58: TERRENO | H58: 101-110 | I58: 2015-12-31 | J58: PARCELA 102 DC 19 DE 10,620.03 MTS REUB DESALOJADO | K58: DOP | M58: 138,023,861.00 | N58: 0.00 | O58: 0.00 | P58: 0.00 | Q58: 0.00 | R58: 0.00 | S58: 138,023,861.00 | T58: 0.00 | U58: 0.00 | V58: 0.00 | W58: 0.00 | X58: 0.00 | Y58: 0.00 | Z58: 0.00 | AA58: 138,023,861.00 | AC58: 138,023,861.00
A59: 101110000153 | B59: 0 | C59: 2000 | E59: 8000000 | F59: 120100100 | G59: TERRENO | H59: 101-110 | I59: 2015-12-31 | J59: TERRENO 72,740.21 REUBICACION DESALOJADOS TAVERA | K59: DOP | M59: 484,746,570.00 | N59: 0.00 | O59: 0.00 | P59: 0.00 | Q59: 0.00 | R59: 0.00 | S59: 484,746,570.00 | T59: 0.00 | U59: 0.00 | V59: 0.00 | W59: 0.00 | X59: 0.00 | Y59: 0.00 | Z59: 0.00 | AA59: 484,746,570.00 | AC59: 484,746,570.00
A60: 101110000154 | B60: 0 | C60: 2000 | E60: 8000000 | F60: 120100100 | G60: TERRENO | H60: 101-110 | I60: 2015-12-31 | J60: PARCELA DE 62,890.31 M2 REUB, DESALOJADOS TAVERA | K60: DOP | M60: 698,636,813.00 | N60: 0.00 | O60: 0.00 | P60: 0.00 | Q60: 0.00 | R60: 0.00 | S60: 698,636,813.00 | T60: 0.00 | U60: 0.00 | V60: 0.00 | W60: 0.00 | X60: 0.00 | Y60: 0.00 | Z60: 0.00 | AA60: 698,636,813.00 | AC60: 698,636,813.00
A61: 101110000155 | B61: 0 | C61: 2000 | E61: 8000000 | F61: 120100100 | G61: TERRENO | H61: 101-110 | I61: 2015-12-31 | J61: TERRENO DE 390,430.47 M2 REUB. DESALOJADOS TAVERA | K61: DOP | M61: 209,185,279.00 | N61: 0.00 | O61: 0.00 | P61: 0.00 | Q61: 0.00 | R61: 0.00 | S61: 209,185,279.00 | T61: 0.00 | U61: 0.00 | V61: 0.00 | W61: 0.00 | X61: 0.00 | Y61: 0.00 | Z61: 0.00 | AA61: 209,185,279.00 | AC61: 209,185,279.00
A62: 101110000156 | B62: 0 | C62: 2000 | E62: 8000000 | F62: 120100100 | G62: TERRENO | H62: 101-110 | I62: 2015-12-31 | J62: TERRENO 206,630.23 M2 REUBIC. DESALOJADOS TAVERA | K62: DOP | M62: 717,422,104.00 | N62: 0.00 | O62: 0.00 | P62: 0.00 | Q62: 0.00 | R62: 0.00 | S62: 717,422,104.00 | T62: 0.00 | U62: 0.00 | V62: 0.00 | W62: 0.00 | X62: 0.00 | Y62: 0.00 | Z62: 0.00 | AA62: 717,422,104.00 | AC62: 717,422,104.00
A63: 101110000157 | B63: 0 | C63: 2000 | E63: 8000000 | F63: 120100100 | G63: TERRENO | H63: 101-110 | I63: 2015-12-31 | J63: TERRENO 1,304.08 M 2 EDIFICIO PRINCIPAL D. N. | K63: DOP | M63: 176,499,500.00 | N63: 0.00 | O63: 0.00 | P63: 0.00 | Q63: 0.00 | R63: 0.00 | S63: 176,499,500.00 | T63: 0.00 | U63: 0.00 | V63: 0.00 | W63: 0.00 | X63: 0.00 | Y63: 0.00 | Z63: 0.00 | AA63: 176,499,500.00 | AC63: 176,499,500.00
A64: 101110000158 | B64: 0 | C64: 2000 | E64: 8000000 | F64: 120100100 | G64: TERRENO | H64: 101-110 | I64: 2015-12-31 | J64: TERRENO DE 1,355.88 M 2 PARQUEO P3 DIST. NAC. | K64: DOP | M64: 180,306,554.00 | N64: 0.00 | O64: 0.00 | P64: 0.00 | Q64: 0.00 | R64: 0.00 | S64: 180,306,554.00 | T64: 0.00 | U64: 0.00 | V64: 0.00 | W64: 0.00 | X64: 0.00 | Y64: 0.00 | Z64: 0.00 | AA64: 180,306,554.00 | AC64: 180,306,554.00
A65: 101110000159 | B65: 0 | C65: 2000 | E65: 8000000 | F65: 120100100 | G65: TERRENO | H65: 101-110 | I65: 2015-12-31 | J65: TERRENO 793.46 M2 CENTRO DE CONTROL HIDROELECTRICO | K65: DOP | M65: 107,975,966.00 | N65: 0.00 | O65: 0.00 | P65: 0.00 | Q65: 0.00 | R65: 0.00 | S65: 107,975,966.00 | T65: 0.00 | U65: 0.00 | V65: 0.00 | W65: 0.00 | X65: 0.00 | Y65: 0.00 | Z65: 0.00 | AA65: 107,975,966.00 | AC65: 107,975,966.00
A66: 101110000160 | B66: 0 | C66: 2000 | E66: 8000000 | F66: 120100100 | G66: TERRENO | H66: 101-110 | I66: 2018-11-30 | J66: TERRENO DE 995.40 M2 ALOJAMIENTO LA CASONA D. N. | K66: DOP | M66: 33,500,000.00 | N66: 0.00 | O66: 0.00 | P66: 0.00 | Q66: 0.00 | R66: 0.00 | S66: 33,500,000.00 | T66: 0.00 | U66: 0.00 | V66: 0.00 | W66: 0.00 | X66: 0.00 | Y66: 0.00 | Z66: 0.00 | AA66: 33,500,000.00 | AC66: 33,500,000.00
A67: 101110000161 | B67: 0 | C67: 2000 | E67: 8000000 | F67: 120100100 | G67: TERRENO | H67: 101-110 | I67: 2015-12-31 | J67: TERRENO 1,980.90 METROS 2 CONSTANZA PINALITO | K67: DOP | M67: 7,603,753.00 | N67: 0.00 | O67: 0.00 | P67: 0.00 | Q67: 0.00 | R67: 0.00 | S67: 7,603,753.00 | T67: 0.00 | U67: 0.00 | V67: 0.00 | W67: 0.00 | X67: 0.00 | Y67: 0.00 | Z67: 0.00 | AA67: 7,603,753.00 | AC67: 7,603,753.00
A68: 101110000162 | B68: 0 | C68: 2000 | E68: 8000000 | F68: 120100100 | G68: TERRENO | H68: 101-110 | I68: 2015-12-31 | J68: TERRENO 3,848.62 METROS 2 CONSTANZA PINALITO | K68: DOP | M68: 13,996,179.00 | N68: 0.00 | O68: 0.00 | P68: 0.00 | Q68: 0.00 | R68: 0.00 | S68: 13,996,179.00 | T68: 0.00 | U68: 0.00 | V68: 0.00 | W68: 0.00 | X68: 0.00 | Y68: 0.00 | Z68: 0.00 | AA68: 13,996,179.00 | AC68: 13,996,179.00
A69: 101110000163 | B69: 0 | C69: 2000 | E69: 8000000 | F69: 120100100 | G69: TERRENO | H69: 101-110 | I69: 2015-12-31 | J69: TERRENO 25,154.40 METROS 2 CONSTANZA PINALITO | K69: DOP | M69: 9,553,300.00 | N69: 0.00 | O69: 0.00 | P69: 0.00 | Q69: 0.00 | R69: 0.00 | S69: 9,553,300.00 | T69: 0.00 | U69: 0.00 | V69: 0.00 | W69: 0.00 | X69: 0.00 | Y69: 0.00 | Z69: 0.00 | AA69: 9,553,300.00 | AC69: 9,553,300.00
A70: 101110000164 | B70: 0 | C70: 2000 | E70: 8000000 | F70: 120100100 | G70: TERRENO | H70: 101-110 | I70: 2015-12-31 | J70: TERRENO 1,823.69 METROS 2 CONSTANZA PINALITO | K70: DOP | M70: 7,040,839.00 | N70: 0.00 | O70: 0.00 | P70: 0.00 | Q70: 0.00 | R70: 0.00 | S70: 7,040,839.00 | T70: 0.00 | U70: 0.00 | V70: 0.00 | W70: 0.00 | X70: 0.00 | Y70: 0.00 | Z70: 0.00 | AA70: 7,040,839.00 | AC70: 7,040,839.00
A71: 101110000165 | B71: 0 | C71: 2000 | E71: 8000000 | F71: 120100100 | G71: TERRENO | H71: 101-110 | I71: 2015-12-31 | J71: TERRENO 1, PARCELA 1203, JOSÉ DEL C. MARTÍNEZ, MU | K71: DOP | M71: 12,408,973.00 | N71: 0.00 | O71: 0.00 | P71: 0.00 | Q71: 0.00 | R71: 0.00 | S71: 12,408,973.00 | T71: 0.00 | U71: 0.00 | V71: 0.00 | W71: 0.00 | X71: 0.00 | Y71: 0.00 | Z71: 0.00 | AA71: 12,408,973.00 | AC71: 12,408,973.00
A72: 101110000166 | B72: 0 | C72: 2000 | E72: 8000000 | F72: 120100100 | G72: TERRENO | H72: 101-110 | I72: 2015-12-31 | J72: TERRENO 3,144.30 METROS 2 CONSTANZA PINALITO | K72: DOP | M72: 11,620,553.00 | N72: 0.00 | O72: 0.00 | P72: 0.00 | Q72: 0.00 | R72: 0.00 | S72: 11,620,553.00 | T72: 0.00 | U72: 0.00 | V72: 0.00 | W72: 0.00 | X72: 0.00 | Y72: 0.00 | Z72: 0.00 | AA72: 11,620,553.00 | AC72: 11,620,553.00
A73: 101110000167 | B73: 0 | C73: 2000 | E73: 8000000 | F73: 120100100 | G73: TERRENO | H73: 101-110 | I73: 2015-12-31 | J73: TERRENO 2,647.50 METROS 2 CONTANZA PINALITO | K73: DOP | M73: 9,921,803.00 | N73: 0.00 | O73: 0.00 | P73: 0.00 | Q73: 0.00 | R73: 0.00 | S73: 9,921,803.00 | T73: 0.00 | U73: 0.00 | V73: 0.00 | W73: 0.00 | X73: 0.00 | Y73: 0.00 | Z73: 0.00 | AA73: 9,921,803.00 | AC73: 9,921,803.00
A74: 101110000168 | B74: 0 | C74: 2000 | E74: 8000000 | F74: 120100100 | G74: TERRENO | H74: 101-110 | I74: 2015-12-31 | J74: TERRENO 1, PARCELA 1200, MORALES SUERO, MUNICIPIO | K74: DOP | M74: 9,466,430.00 | N74: 0.00 | O74: 0.00 | P74: 0.00 | Q74: 0.00 | R74: 0.00 | S74: 9,466,430.00 | T74: 0.00 | U74: 0.00 | V74: 0.00 | W74: 0.00 | X74: 0.00 | Y74: 0.00 | Z74: 0.00 | AA74: 9,466,430.00 | AC74: 9,466,430.00
A75: 101110000169 | B75: 0 | C75: 2000 | E75: 8000000 | F75: 120100100 | G75: TERRENO | H75: 101-110 | I75: 2015-12-31 | J75: TERRENO 1, PARCELA 1195, SAMUEL CIPRIAN A, MUNICI | K75: DOP | M75: 5,018,321.00 | N75: 0.00 | O75: 0.00 | P75: 0.00 | Q75: 0.00 | R75: 0.00 | S75: 5,018,321.00 | T75: 0.00 | U75: 0.00 | V75: 0.00 | W75: 0.00 | X75: 0.00 | Y75: 0.00 | Z75: 0.00 | AA75: 5,018,321.00 | AC75: 5,018,321.00
A76: 101110000170 | B76: 0 | C76: 2000 | E76: 8000000 | F76: 120100100 | G76: TERRENO | H76: 101-110 | I76: 2015-12-31 | J76: TERRENO 3,012.23 METROS 2 CONSTANZA PINALITO | K76: DOP | M76: 11,171,045.00 | N76: 0.00 | O76: 0.00 | P76: 0.00 | Q76: 0.00 | R76: 0.00 | S76: 11,171,045.00 | T76: 0.00 | U76: 0.00 | V76: 0.00 | W76: 0.00 | X76: 0.00 | Y76: 0.00 | Z76: 0.00 | AA76: 11,171,045.00 | AC76: 11,171,045.00
A77: 101110000171 | B77: 0 | C77: 2000 | E77: 8000000 | F77: 120100100 | G77: TERRENO | H77: 101-110 | I77: 2015-12-31 | J77: TERRENO 1,257.72 METROS 2 CONSTANZA PINALITO | K77: DOP | M77: 5,018,321.00 | N77: 0.00 | O77: 0.00 | P77: 0.00 | Q77: 0.00 | R77: 0.00 | S77: 5,018,321.00 | T77: 0.00 | U77: 0.00 | V77: 0.00 | W77: 0.00 | X77: 0.00 | Y77: 0.00 | Z77: 0.00 | AA77: 5,018,321.00 | AC77: 5,018,321.00
A78: 101110000172 | B78: 0 | C78: 2000 | E78: 8000000 | F78: 120100100 | G78: TERRENO | H78: 101-110 | I78: 2015-12-31 | J78: TERRENO DE 396.18 METROS 2 CONSTANZA PINALITO | K78: DOP | M78: 7,912,917.00 | N78: 0.00 | O78: 0.00 | P78: 0.00 | Q78: 0.00 | R78: 0.00 | S78: 7,912,917.00 | T78: 0.00 | U78: 0.00 | V78: 0.00 | W78: 0.00 | X78: 0.00 | Y78: 0.00 | Z78: 0.00 | AA78: 7,912,917.00 | AC78: 7,912,917.00
A79: 101110000173 | B79: 0 | C79: 2000 | E79: 8000000 | F79: 120100100 | G79: TERRENO | H79: 101-110 | I79: 2015-12-31 | J79: TERRENO 1,257.72 METROS 2 CONSTANZA PINALITO | K79: DOP | M79: 5,018,321.00 | N79: 0.00 | O79: 0.00 | P79: 0.00 | Q79: 0.00 | R79: 0.00 | S79: 5,018,321.00 | T79: 0.00 | U79: 0.00 | V79: 0.00 | W79: 0.00 | X79: 0.00 | Y79: 0.00 | Z79: 0.00 | AA79: 5,018,321.00 | AC79: 5,018,321.00
A80: 101110000174 | B80: 0 | C80: 2000 | E80: 8000000 | F80: 120100100 | G80: TERRENO | H80: 101-110 | I80: 2015-12-31 | J80: TERRENO 1,059.06 METROS 2 CONSTANZA PINALITO | K80: DOP | M80: 4,326,560.00 | N80: 0.00 | O80: 0.00 | P80: 0.00 | Q80: 0.00 | R80: 0.00 | S80: 4,326,560.00 | T80: 0.00 | U80: 0.00 | V80: 0.00 | W80: 0.00 | X80: 0.00 | Y80: 0.00 | Z80: 0.00 | AA80: 4,326,560.00 | AC80: 4,326,560.00
A81: 101110000175 | B81: 0 | C81: 2000 | E81: 8000000 | F81: 120100100 | G81: TERRENO | H81: 101-110 | I81: 2015-12-31 | J81: TERRENO 3,420.99 METROS 2 CONSTANZA PINALITO | K81: DOP | M81: 12,557,995.00 | N81: 0.00 | O81: 0.00 | P81: 0.00 | Q81: 0.00 | R81: 0.00 | S81: 12,557,995.00 | T81: 0.00 | U81: 0.00 | V81: 0.00 | W81: 0.00 | X81: 0.00 | Y81: 0.00 | Z81: 0.00 | AA81: 12,557,995.00 | AC81: 12,557,995.00
A82: 101110000176 | B82: 0 | C82: 2000 | E82: 8000000 | F82: 120100100 | G82: TERRENO | H82: 101-110 | I82: 2015-12-31 | J82: TERRENO 3,546.77 METROS 2 CONSTANZA PINALITO | K82: DOP | M82: 12,982,266.00 | N82: 0.00 | O82: 0.00 | P82: 0.00 | Q82: 0.00 | R82: 0.00 | S82: 12,982,266.00 | T82: 0.00 | U82: 0.00 | V82: 0.00 | W82: 0.00 | X82: 0.00 | Y82: 0.00 | Z82: 0.00 | AA82: 12,982,266.00 | AC82: 12,982,266.00
A83: 101110000177 | B83: 0 | C83: 2000 | E83: 8000000 | F83: 120100100 | G83: TERRENO | H83: 101-110 | I83: 2015-12-31 | J83: TERRENO 1,138.23 METROS 2 CONSTANZA PINALITO | K83: DOP | M83: 4,581,256.00 | N83: 0.00 | O83: 0.00 | P83: 0.00 | Q83: 0.00 | R83: 0.00 | S83: 4,581,256.00 | T83: 0.00 | U83: 0.00 | V83: 0.00 | W83: 0.00 | X83: 0.00 | Y83: 0.00 | Z83: 0.00 | AA83: 4,581,256.00 | AC83: 4,581,256.00
A84: 101110000178 | B84: 0 | C84: 2000 | E84: 8000000 | F84: 120100100 | G84: TERRENO | H84: 101-110 | I84: 2015-12-31 | J84: TERRENO 1,100.50 METROS 2 CONSTANZA PINALITO | K84: DOP | M84: 4,442,489.00 | N84: 0.00 | O84: 0.00 | P84: 0.00 | Q84: 0.00 | R84: 0.00 | S84: 4,442,489.00 | T84: 0.00 | U84: 0.00 | V84: 0.00 | W84: 0.00 | X84: 0.00 | Y84: 0.00 | Z84: 0.00 | AA84: 4,442,489.00 | AC84: 4,442,489.00
A85: 101110000179 | B85: 0 | C85: 2000 | E85: 8000000 | F85: 120100100 | G85: TERRENO | H85: 101-110 | I85: 2015-12-31 | J85: TERRENO 1, ULISES VELOR, MUNICIPIO BONAO. | K85: DOP | M85: 5,018,321.00 | N85: 0.00 | O85: 0.00 | P85: 0.00 | Q85: 0.00 | R85: 0.00 | S85: 5,018,321.00 | T85: 0.00 | U85: 0.00 | V85: 0.00 | W85: 0.00 | X85: 0.00 | Y85: 0.00 | Z85: 0.00 | AA85: 5,018,321.00 | AC85: 5,018,321.00
A86: 101110000180 | B86: 0 | C86: 2000 | E86: 8000000 | F86: 120100100 | G86: TERRENO | H86: 101-110 | I86: 2015-12-31 | J86: TERRENO 12,577.20 METROS 2 CONSTANZA PINALITO | K86: DOP | M86: 52,485,848.00 | N86: 0.00 | O86: 0.00 | P86: 0.00 | Q86: 0.00 | R86: 0.00 | S86: 52,485,848.00 | T86: 0.00 | U86: 0.00 | V86: 0.00 | W86: 0.00 | X86: 0.00 | Y86: 0.00 | Z86: 0.00 | AA86: 52,485,848.00 | AC86: 52,485,848.00
A87: 101110000181 | B87: 0 | C87: 2000 | E87: 8000000 | F87: 120100100 | G87: TERRENO | H87: 101-110 | I87: 2015-12-31 | J87: TERRENO, PARCELA NO. 1205, DISTRITO CATASTRAL NO. | K87: DOP | M87: 91,052,904.00 | N87: 0.00 | O87: 0.00 | P87: 0.00 | Q87: 0.00 | R87: 0.00 | S87: 91,052,904.00 | T87: 0.00 | U87: 0.00 | V87: 0.00 | W87: 0.00 | X87: 0.00 | Y87: 0.00 | Z87: 0.00 | AA87: 91,052,904.00 | AC87: 91,052,904.00
A88: 101110000182 | B88: 0 | C88: 2000 | E88: 8000000 | F88: 120100100 | G88: TERRENO | H88: 101-110 | I88: 2015-12-31 | J88: TERRENO 50,308.80 METROS 2 CONSTANZA PINALITO | K88: DOP | M88: 57,829,142.00 | N88: 0.00 | O88: 0.00 | P88: 0.00 | Q88: 0.00 | R88: 0.00 | S88: 57,829,142.00 | T88: 0.00 | U88: 0.00 | V88: 0.00 | W88: 0.00 | X88: 0.00 | Y88: 0.00 | Z88: 0.00 | AA88: 57,829,142.00 | AC88: 57,829,142.00
A89: 101110000183 | B89: 0 | C89: 2000 | E89: 8000000 | F89: 120100100 | G89: TERRENO | H89: 101-110 | I89: 2015-12-31 | J89: TERRENO 96,844.44 METROS 2 CONSTANZA PINALITO | K89: DOP | M89: 105,836,065.00 | N89: 0.00 | O89: 0.00 | P89: 0.00 | Q89: 0.00 | R89: 0.00 | S89: 105,836,065.00 | T89: 0.00 | U89: 0.00 | V89: 0.00 | W89: 0.00 | X89: 0.00 | Y89: 0.00 | Z89: 0.00 | AA89: 105,836,065.00 | AC89: 105,836,065.00
A90: 101110000184 | B90: 0 | C90: 2000 | E90: 8000000 | F90: 120100100 | G90: TERRENO | H90: 101-110 | I90: 2015-12-31 | J90: TERRENO 2,704.09 METROS 2 CONSTANZA PINALITO | K90: DOP | M90: 32,906,696.00 | N90: 0.00 | O90: 0.00 | P90: 0.00 | Q90: 0.00 | R90: 0.00 | S90: 32,906,696.00 | T90: 0.00 | U90: 0.00 | V90: 0.00 | W90: 0.00 | X90: 0.00 | Y90: 0.00 | Z90: 0.00 | AA90: 32,906,696.00 | AC90: 32,906,696.00
A91: 101110000185 | B91: 0 | C91: 2000 | E91: 8000000 | F91: 120100100 | G91: TERRENO | H91: 101-110 | I91: 2015-12-31 | J91: TERRENO 26,535.21 METROS 2 CONSTANZA PINALITO | K91: DOP | M91: 32,125,967.00 | N91: 0.00 | O91: 0.00 | P91: 0.00 | Q91: 0.00 | R91: 0.00 | S91: 32,125,967.00 | T91: 0.00 | U91: 0.00 | V91: 0.00 | W91: 0.00 | X91: 0.00 | Y91: 0.00 | Z91: 0.00 | AA91: 32,125,967.00 | AC91: 32,125,967.00
A92: 101110000186 | B92: 0 | C92: 2000 | E92: 8000000 | F92: 120100100 | G92: TERRENO | H92: 101-110 | I92: 2015-12-31 | J92: TERRENO 1, PARCELA NO. 1286, JAIME CABRAL, MUNICI | K92: DOP | M92: 46,421,843.00 | N92: 0.00 | O92: 0.00 | P92: 0.00 | Q92: 0.00 | R92: 0.00 | S92: 46,421,843.00 | T92: 0.00 | U92: 0.00 | V92: 0.00 | W92: 0.00 | X92: 0.00 | Y92: 0.00 | Z92: 0.00 | AA92: 46,421,843.00 | AC92: 46,421,843.00
A93: 101110000187 | B93: 0 | C93: 2000 | E93: 8000000 | F93: 120100100 | G93: TERRENO | H93: 101-110 | I93: 2015-12-31 | J93: TERRENO 68,790.99 METROS 2 CONSTANZA PINALITO | K93: DOP | M93: 60,751,488.00 | N93: 0.00 | O93: 0.00 | P93: 0.00 | Q93: 0.00 | R93: 0.00 | S93: 60,751,488.00 | T93: 0.00 | U93: 0.00 | V93: 0.00 | W93: 0.00 | X93: 0.00 | Y93: 0.00 | Z93: 0.00 | AA93: 60,751,488.00 | AC93: 60,751,488.00
A94: 101110000188 | B94: 0 | C94: 2000 | E94: 8000000 | F94: 120100100 | G94: TERRENO | H94: 101-110 | I94: 2015-12-31 | J94: TERRENO 45,277.92 METROS 2 CONSTANZA PINALITO | K94: DOP | M94: 52,485,549.00 | N94: 0.00 | O94: 0.00 | P94: 0.00 | Q94: 0.00 | R94: 0.00 | S94: 52,485,549.00 | T94: 0.00 | U94: 0.00 | V94: 0.00 | W94: 0.00 | X94: 0.00 | Y94: 0.00 | Z94: 0.00 | AA94: 52,485,549.00 | AC94: 52,485,549.00
A95: 101110000189 | B95: 0 | C95: 2000 | E95: 8000000 | F95: 120100100 | G95: TERRENO | H95: 101-110 | I95: 2015-12-31 | J95: TERRENO 1, PARCELA NO. 1110. ANA RITA INFANTE, MU | K95: DOP | M95: 54,728,142.00 | N95: 0.00 | O95: 0.00 | P95: 0.00 | Q95: 0.00 | R95: 0.00 | S95: 54,728,142.00 | T95: 0.00 | U95: 0.00 | V95: 0.00 | W95: 0.00 | X95: 0.00 | Y95: 0.00 | Z95: 0.00 | AA95: 54,728,142.00 | AC95: 54,728,142.00
A96: 101110000190 | B96: 0 | C96: 2000 | E96: 8000000 | F96: 120100100 | G96: TERRENO | H96: 101-110 | I96: 2015-12-31 | J96: TERRENO 18,865.80 METROS 2 CONSTANZA PINALITO | K96: DOP | M96: 23,520,982.00 | N96: 0.00 | O96: 0.00 | P96: 0.00 | Q96: 0.00 | R96: 0.00 | S96: 23,520,982.00 | T96: 0.00 | U96: 0.00 | V96: 0.00 | W96: 0.00 | X96: 0.00 | Y96: 0.00 | Z96: 0.00 | AA96: 23,520,982.00 | AC96: 23,520,982.00
A97: 101110000191 | B97: 0 | C97: 2000 | E97: 8000000 | F97: 120100100 | G97: TERRENO | H97: 101-110 | I97: 2015-12-31 | J97: TERRENO 4,402.02 METROS 2 CONSTANZA PINALITO | K97: DOP | M97: 10,887,847.00 | N97: 0.00 | O97: 0.00 | P97: 0.00 | Q97: 0.00 | R97: 0.00 | S97: 10,887,847.00 | T97: 0.00 | U97: 0.00 | V97: 0.00 | W97: 0.00 | X97: 0.00 | Y97: 0.00 | Z97: 0.00 | AA97: 10,887,847.00 | AC97: 10,887,847.00
A98: 101110000192 | B98: 0 | C98: 2000 | E98: 8000000 | F98: 120100100 | G98: TERRENO | H98: 101-110 | I98: 2015-12-31 | J98: TERRENO 10,772.37 METROS 2 CONSTANZA PINALITO | K98: DOP | M98: 24,724,252.00 | N98: 0.00 | O98: 0.00 | P98: 0.00 | Q98: 0.00 | R98: 0.00 | S98: 24,724,252.00 | T98: 0.00 | U98: 0.00 | V98: 0.00 | W98: 0.00 | X98: 0.00 | Y98: 0.00 | Z98: 0.00 | AA98: 24,724,252.00 | AC98: 24,724,252.00
A99: 101110000193 | B99: 0 | C99: 2000 | E99: 8000000 | F99: 120100100 | G99: TERRENO | H99: 101-110 | I99: 2015-12-31 | J99: TERRENO 9747.33 METROS 2 CONSTANZA PINALITO | K99: DOP | M99: 22,553,118.00 | N99: 0.00 | O99: 0.00 | P99: 0.00 | Q99: 0.00 | R99: 0.00 | S99: 22,553,118.00 | T99: 0.00 | U99: 0.00 | V99: 0.00 | W99: 0.00 | X99: 0.00 | Y99: 0.00 | Z99: 0.00 | AA99: 22,553,118.00 | AC99: 22,553,118.00
A100: 101110000194 | B100: 0 | C100: 2000 | E100: 8000000 | F100: 120100100 | G100: TERRENO | H100: 101-110 | I100: 2015-12-31 | J100: TERRENO 185,413.08 METROS 2 CONSTANZA PINALITO | K100: DOP | M100: 229,490,684.00 | N100: 0.00 | O100: 0.00 | P100: 0.00 | Q100: 0.00 | R100: 0.00 | S100: 229,490,684.00 | T100: 0.00 | U100: 0.00 | V100: 0.00 | W100: 0.00 | X100: 0.00 | Y100: 0.00 | Z100: 0.00 | AA100: 229,490,684.00 | AC100: 229,490,684.00
A101: 101110000195 | B101: 0 | C101: 2000 | E101: 8000000 | F101: 120100100 | G101: TERRENO | H101: 101-110 | I101: 2015-12-31 | J101: TERRENO 174,357.72 METROS 2 CONSTANZA PINALITO | K101: DOP | M101: 217,192,368.00 | N101: 0.00 | O101: 0.00 | P101: 0.00 | Q101: 0.00 | R101: 0.00 | S101: 217,192,368.00 | T101: 0.00 | U101: 0.00 | V101: 0.00 | W101: 0.00 | X101: 0.00 | Y101: 0.00 | Z101: 0.00 | AA101: 217,192,368.00 | AC101: 217,192,368.00
A102: 101110000196 | B102: 0 | C102: 2000 | E102: 8000000 | F102: 120100100 | G102: TERRENO | H102: 101-110 | I102: 2015-12-31 | J102: TERRENO 2,540.59 METROS 2 CONSTANZA PINALITO | K102: DOP | M102: 163,124,104.00 | N102: 0.00 | O102: 0.00 | P102: 0.00 | Q102: 0.00 | R102: 0.00 | S102: 163,124,104.00 | T102: 0.00 | U102: 0.00 | V102: 0.00 | W102: 0.00 | X102: 0.00 | Y102: 0.00 | Z102: 0.00 | AA102: 163,124,104.00 | AC102: 163,124,104.00
A103: 101110000197 | B103: 0 | C103: 2000 | E103: 8000000 | F103: 120100100 | G103: TERRENO | H103: 101-110 | I103: 2015-12-31 | J103: TERRENO 12,750.78 M2 CENTRAL EL SALTO CONSTANZA | K103: DOP | M103: 875,666,747.00 | N103: 0.00 | O103: 0.00 | P103: 0.00 | Q103: 0.00 | R103: 0.00 | S103: 875,666,747.00 | T103: 0.00 | U103: 0.00 | V103: 0.00 | W103: 0.00 | X103: 0.00 | Y103: 0.00 | Z103: 0.00 | AA103: 875,666,747.00 | AC103: 875,666,747.00
A104: 101110000198 | B104: 0 | C104: 2000 | E104: 8000000 | F104: 120100100 | G104: TERRENO | H104: 101-110 | I104: 2015-12-31 | J104: TERRENO, PARCELA NO. 1287, DISTRITO CATASTRAL NO. | K104: DOP | M104: 28,507,279.00 | N104: 0.00 | O104: 0.00 | P104: 0.00 | Q104: 0.00 | R104: 0.00 | S104: 28,507,279.00 | T104: 0.00 | U104: 0.00 | V104: 0.00 | W104: 0.00 | X104: 0.00 | Y104: 0.00 | Z104: 0.00 | AA104: 28,507,279.00 | AC104: 28,507,279.00
A105: 101110000199 | B105: 0 | C105: 2000 | E105: 8000000 | F105: 120100100 | G105: TERRENO | H105: 101-110 | I105: 2015-12-31 | J105: TERRENO 628.86 METROS 2 CONSTANZA PINALITO | K105: DOP | M105: 2,870,347.00 | N105: 0.00 | O105: 0.00 | P105: 0.00 | Q105: 0.00 | R105: 0.00 | S105: 2,870,347.00 | T105: 0.00 | U105: 0.00 | V105: 0.00 | W105: 0.00 | X105: 0.00 | Y105: 0.00 | Z105: 0.00 | AA105: 2,870,347.00 | AC105: 2,870,347.00
A106: 101110000200 | B106: 0 | C106: 2000 | E106: 8000000 | F106: 120100100 | G106: TERRENO | H106: 101-110 | I106: 2015-12-31 | J106: TERRENO 1, SULIS A. GEREZ, MUNICIPIO BONAO. | K106: DOP | M106: 1,678,031.00 | N106: 0.00 | O106: 0.00 | P106: 0.00 | Q106: 0.00 | R106: 0.00 | S106: 1,678,031.00 | T106: 0.00 | U106: 0.00 | V106: 0.00 | W106: 0.00 | X106: 0.00 | Y106: 0.00 | Z106: 0.00 | AA106: 1,678,031.00 | AC106: 1,678,031.00
A107: 101110000201 | B107: 0 | C107: 2000 | E107: 8000000 | F107: 120100100 | G107: TERRENO | H107: 101-110 | I107: 2015-12-31 | J107: TERRENO 1, JOSÉ A. BALDOMERA, MUNICIPIO BONAO. | K107: DOP | M107: 4,164,074.00 | N107: 0.00 | O107: 0.00 | P107: 0.00 | Q107: 0.00 | R107: 0.00 | S107: 4,164,074.00 | T107: 0.00 | U107: 0.00 | V107: 0.00 | W107: 0.00 | X107: 0.00 | Y107: 0.00 | Z107: 0.00 | AA107: 4,164,074.00 | AC107: 4,164,074.00
A108: 101110000202 | B108: 0 | C108: 2000 | E108: 8000000 | F108: 120100100 | G108: TERRENO | H108: 101-110 | I108: 2015-12-31 | J108: TERRENO 628.86 METROS 2 CONSTANZA PINALITO | K108: DOP | M108: 2,870,347.00 | N108: 0.00 | O108: 0.00 | P108: 0.00 | Q108: 0.00 | R108: 0.00 | S108: 2,870,347.00 | T108: 0.00 | U108: 0.00 | V108: 0.00 | W108: 0.00 | X108: 0.00 | Y108: 0.00 | Z108: 0.00 | AA108: 2,870,347.00 | AC108: 2,870,347.00
A109: 101110000203 | B109: 0 | C109: 2000 | E109: 8000000 | F109: 120100100 | G109: TERRENO | H109: 101-110 | I109: 2015-12-31 | J109: TERRENO 314.43 METROS 2 CONSTANZA PINALITO | K109: DOP | M109: 1,521,504.00 | N109: 0.00 | O109: 0.00 | P109: 0.00 | Q109: 0.00 | R109: 0.00 | S109: 1,521,504.00 | T109: 0.00 | U109: 0.00 | V109: 0.00 | W109: 0.00 | X109: 0.00 | Y109: 0.00 | Z109: 0.00 | AA109: 1,521,504.00 | AC109: 1,521,504.00
A110: 101110000204 | B110: 0 | C110: 2000 | E110: 8000000 | F110: 120100100 | G110: TERRENO | H110: 101-110 | I110: 2015-12-31 | J110: TERRENO 1, EZEQUIEL CONTRERAS, MUNICIPIO BONAO. | K110: DOP | M110: 2,870,347.00 | N110: 0.00 | O110: 0.00 | P110: 0.00 | Q110: 0.00 | R110: 0.00 | S110: 2,870,347.00 | T110: 0.00 | U110: 0.00 | V110: 0.00 | W110: 0.00 | X110: 0.00 | Y110: 0.00 | Z110: 0.00 | AA110: 2,870,347.00 | AC110: 2,870,347.00
A111: 101110000205 | B111: 0 | C111: 2000 | E111: 8000000 | F111: 120100100 | G111: TERRENO | H111: 101-110 | I111: 2015-12-31 | J111: TERRENO 176.08 METROS 2 CONSTANZA PINALITO | K111: DOP | M111: 897,001.00 | N111: 0.00 | O111: 0.00 | P111: 0.00 | Q111: 0.00 | R111: 0.00 | S111: 897,001.00 | T111: 0.00 | U111: 0.00 | V111: 0.00 | W111: 0.00 | X111: 0.00 | Y111: 0.00 | Z111: 0.00 | AA111: 897,001.00 | AC111: 897,001.00
A112: 101110000206 | B112: 0 | C112: 2000 | E112: 8000000 | F112: 120100100 | G112: TERRENO | H112: 101-110 | I112: 2015-12-31 | J112: TERRENO 404.47 METROS 2 CONSTANZA PINALITO | K112: DOP | M112: 1,906,699.00 | N112: 0.00 | O112: 0.00 | P112: 0.00 | Q112: 0.00 | R112: 0.00 | S112: 1,906,699.00 | T112: 0.00 | U112: 0.00 | V112: 0.00 | W112: 0.00 | X112: 0.00 | Y112: 0.00 | Z112: 0.00 | AA112: 1,906,699.00 | AC112: 1,906,699.00
A113: 101110000207 | B113: 0 | C113: 2000 | E113: 8000000 | F113: 120100100 | G113: TERRENO | H113: 101-110 | I113: 2015-12-31 | J113: TERRENO 2,068.96 METROS 2 CONSTANZA PINALITO | K113: DOP | M113: 1,879,421.00 | N113: 0.00 | O113: 0.00 | P113: 0.00 | Q113: 0.00 | R113: 0.00 | S113: 1,879,421.00 | T113: 0.00 | U113: 0.00 | V113: 0.00 | W113: 0.00 | X113: 0.00 | Y113: 0.00 | Z113: 0.00 | AA113: 1,879,421.00 | AC113: 1,879,421.00
A114: 101110000208 | B114: 0 | C114: 2000 | E114: 8000000 | F114: 120100100 | G114: TERRENO | H114: 101-110 | I114: 2015-12-31 | J114: TERRENO 628.86 METROS 2 CONSTANZA PINALITO | K114: DOP | M114: 2,870,347.00 | N114: 0.00 | O114: 0.00 | P114: 0.00 | Q114: 0.00 | R114: 0.00 | S114: 2,870,347.00 | T114: 0.00 | U114: 0.00 | V114: 0.00 | W114: 0.00 | X114: 0.00 | Y114: 0.00 | Z114: 0.00 | AA114: 2,870,347.00 | AC114: 2,870,347.00
A115: 101110000209 | B115: 0 | C115: 2000 | E115: 8000000 | F115: 120100100 | G115: TERRENO | H115: 101-110 | I115: 2015-12-31 | J115: TERRENO 1, PARCELA 1103-A, BELARMINO GÓMEZ, MUNIC | K115: DOP | M115: 2,870,347.00 | N115: 0.00 | O115: 0.00 | P115: 0.00 | Q115: 0.00 | R115: 0.00 | S115: 2,870,347.00 | T115: 0.00 | U115: 0.00 | V115: 0.00 | W115: 0.00 | X115: 0.00 | Y115: 0.00 | Z115: 0.00 | AA115: 2,870,347.00 | AC115: 2,870,347.00
A116: 101110000210 | B116: 0 | C116: 2000 | E116: 8000000 | F116: 120100100 | G116: TERRENO | H116: 101-110 | I116: 2015-12-31 | J116: TERRENO 1, PARCELA 1164, BELARMINO GÓMEZ, MUNICIP | K116: DOP | M116: 2,870,347.00 | N116: 0.00 | O116: 0.00 | P116: 0.00 | Q116: 0.00 | R116: 0.00 | S116: 2,870,347.00 | T116: 0.00 | U116: 0.00 | V116: 0.00 | W116: 0.00 | X116: 0.00 | Y116: 0.00 | Z116: 0.00 | AA116: 2,870,347.00 | AC116: 2,870,347.00
A117: 101110000211 | B117: 0 | C117: 2000 | E117: 8000000 | F117: 120100100 | G117: TERRENO | H117: 101-110 | I117: 2015-12-31 | J117: TERRENO 1, MANUEL ANT. PENA, MUNICIPIO BONAO. | K117: DOP | M117: 2,870,347.00 | N117: 0.00 | O117: 0.00 | P117: 0.00 | Q117: 0.00 | R117: 0.00 | S117: 2,870,347.00 | T117: 0.00 | U117: 0.00 | V117: 0.00 | W117: 0.00 | X117: 0.00 | Y117: 0.00 | Z117: 0.00 | AA117: 2,870,347.00 | AC117: 2,870,347.00
A118: 101110000212 | B118: 0 | C118: 2000 | E118: 8000000 | F118: 120100100 | G118: TERRENO | H118: 101-110 | I118: 2015-12-31 | J118: TERRENO 1, NATALIO ANT. VITRAS, MUNICIPIO BONAO. | K118: DOP | M118: 2,870,347.00 | N118: 0.00 | O118: 0.00 | P118: 0.00 | Q118: 0.00 | R118: 0.00 | S118: 2,870,347.00 | T118: 0.00 | U118: 0.00 | V118: 0.00 | W118: 0.00 | X118: 0.00 | Y118: 0.00 | Z118: 0.00 | AA118: 2,870,347.00 | AC118: 2,870,347.00
A119: 101110000213 | B119: 0 | C119: 2000 | E119: 8000000 | F119: 120100100 | G119: TERRENO | H119: 101-110 | I119: 2015-12-31 | J119: TERRENO 1, PARCELA 1202, JOSÉ ANTONIO ROSA, MUNIC | K119: DOP | M119: 19,973,848.00 | N119: 0.00 | O119: 0.00 | P119: 0.00 | Q119: 0.00 | R119: 0.00 | S119: 19,973,848.00 | T119: 0.00 | U119: 0.00 | V119: 0.00 | W119: 0.00 | X119: 0.00 | Y119: 0.00 | Z119: 0.00 | AA119: 19,973,848.00 | AC119: 19,973,848.00
A120: 101110000214 | B120: 0 | C120: 2000 | E120: 8000000 | F120: 120100100 | G120: TERRENO | H120: 101-110 | I120: 2004-12-31 | J120: TEREENO 13,206.06 MS 2 CENTRAL DGO. RGUEZ SAN JUAN | K120: DOP | M120: 296,529.00 | N120: 0.00 | O120: 0.00 | P120: 0.00 | Q120: 0.00 | R120: 0.00 | S120: 296,529.00 | T120: 0.00 | U120: 0.00 | V120: 0.00 | W120: 0.00 | X120: 0.00 | Y120: 0.00 | Z120: 0.00 | AA120: 296,529.00 | AC120: 296,529.00
A121: 101110000216 | B121: 0 | C121: 2000 | E121: 8000000 | F121: 120100100 | G121: TERRENO | H121: 101-110 | I121: 2019-08-19 | J121: TERRENO DE 324.23 METROS 2 DETRAS PARQUEO | K121: DOP | M121: 14,500,000.00 | N121: 0.00 | O121: 0.00 | P121: 0.00 | Q121: 0.00 | R121: 0.00 | S121: 14,500,000.00 | T121: 0.00 | U121: 0.00 | V121: 0.00 | W121: 0.00 | X121: 0.00 | Y121: 0.00 | Z121: 0.00 | AA121: 14,500,000.00 | AC121: 14,500,000.00
A122: 101110000217 | B122: 0 | C122: 2000 | E122: 8000000 | F122: 120100100 | G122: TERRENO | H122: 101-110 | I122: 2019-10-09 | J122: TERRENO 648.48 METROS 2 UBICADO EN SAN JUAN | K122: DOP | M122: 5,143,700.00 | N122: 0.00 | O122: 0.00 | P122: 0.00 | Q122: 0.00 | R122: 0.00 | S122: 5,143,700.00 | T122: 0.00 | U122: 0.00 | V122: 0.00 | W122: 0.00 | X122: 0.00 | Y122: 0.00 | Z122: 0.00 | AA122: 5,143,700.00 | AC122: 5,143,700.00
A123: 101110000219 | B123: 0 | C123: 2000 | E123: 8000000 | F123: 120100100 | G123: TERRENO | H123: 101-110 | I123: 2020-04-17 | J123: TERRENO 345.72 MTS2 PARC122-A-1-A DC03 DN B.VISTA | K123: DOP | M123: 9,000,000.00 | N123: 0.00 | O123: 0.00 | P123: 0.00 | Q123: 0.00 | R123: 0.00 | S123: 9,000,000.00 | T123: 0.00 | U123: 0.00 | V123: 0.00 | W123: 0.00 | X123: 0.00 | Y123: 0.00 | Z123: 0.00 | AA123: 9,000,000.00 | AC123: 9,000,000.00
A124: 101110000223 | B124: 0 | C124: 2000 | E124: 8000000 | F124: 120100100 | G124: TERRENO | H124: 101-110 | I124: 2019-12-31 | J124: TERRENO 3,262.33 METROS 2 VIVERO SAN JOSE DE OCOA | K124: DOP | M124: 3,147,824.67 | N124: 0.00 | O124: 0.00 | P124: 0.00 | Q124: 0.00 | R124: 0.00 | S124: 3,147,824.67 | T124: 0.00 | U124: 0.00 | V124: 0.00 | W124: 0.00 | X124: 0.00 | Y124: 0.00 | Z124: 0.00 | AA124: 3,147,824.67 | AC124: 3,147,824.67
A125: 101110000224 | B125: 0 | C125: 2000 | E125: 8000000 | F125: 120100100 | G125: TERRENO | H125: 101-110 | I125: 2019-12-31 | J125: TERRENO DE 2,437.74 METROS VIVERO SAN JOSE DE OCOA | K125: DOP | M125: 2,352,175.33 | N125: 0.00 | O125: 0.00 | P125: 0.00 | Q125: 0.00 | R125: 0.00 | S125: 2,352,175.33 | T125: 0.00 | U125: 0.00 | V125: 0.00 | W125: 0.00 | X125: 0.00 | Y125: 0.00 | Z125: 0.00 | AA125: 2,352,175.33 | AC125: 2,352,175.33
A126: 101110000225 | B126: 0 | C126: 2000 | E126: 8000000 | F126: 120100100 | G126: TERRENO | H126: 101-110 | I126: 2019-12-31 | J126: TERRENO DE 2,000 METROS 2 SUB-ESTACION JARABACOA | K126: DOP | M126: 5,000,000.00 | N126: 0.00 | O126: 0.00 | P126: 0.00 | Q126: 0.00 | R126: 0.00 | S126: 5,000,000.00 | T126: 0.00 | U126: 0.00 | V126: 0.00 | W126: 0.00 | X126: 0.00 | Y126: 0.00 | Z126: 0.00 | AA126: 5,000,000.00 | AC126: 5,000,000.00
A127: 101120000034 | B127: 0 | C127: 2000 | E127: 8000000 | F127: 120200100 | G127: EDIFICIO | H127: 101-120 | I127: 2020-01-31 | J127: EDIFICIO PARA ARCHIVO | K127: DOP | M127: 20,303,044.82 | N127: 0.00 | O127: 0.00 | P127: 0.00 | Q127: 0.00 | R127: 0.00 | S127: 20,303,044.82 | T127: -3,976,012.94 | U127: -1,015,152.24 | V127: 0.00 | W127: 0.00 | X127: 0.00 | Y127: 0.00 | Z127: -4,991,165.18 | AA127: 16,327,031.88 | AC127: 15,311,879.64
A128: 101120000086 | B128: 0 | C128: 2000 | E128: 8000000 | F128: 120200100 | G128: EDIFICIO | H128: 101-120 | I128: 2014-09-30 | J128: EDIFICIO DE OFICINAS 300 M2 | K128: DOP | M128: 4,441,579.00 | N128: 0.00 | O128: 0.00 | P128: 0.00 | Q128: 0.00 | R128: 0.00 | S128: 4,441,579.00 | T128: -846,015.04 | U128: -105,751.88 | V128: 0.00 | W128: 0.00 | X128: 0.00 | Y128: 0.00 | Z128: -951,766.92 | AA128: 3,595,563.96 | AC128: 3,489,812.08
A129: 101120000087 | B129: 0 | C129: 2000 | E129: 8000000 | F129: 120200100 | G129: EDIFICIO | H129: 101-120 | I129: 2012-10-31 | J129: DESTACAMENTO MILITAR BLOQUES DE CONCRETO | K129: DOP | M129: 484,982.00 | N129: 0.00 | O129: 0.00 | P129: 0.00 | Q129: 0.00 | R129: 0.00 | S129: 484,982.00 | T129: -484,982.00 | U129: 0.00 | V129: 0.00 | W129: 0.00 | X129: 0.00 | Y129: 0.00 | Z129: -484,982.00 | AA129: 0.00 | AC129: 0.00
A130: 101120000088 | B130: 0 | C130: 2000 | E130: 8000000 | F130: 120200100 | G130: EDIFICIO | H130: 101-120 | I130: 2015-12-31 | J130: REHABILITACION DE OBRAS CIVILES. S.G. S.G. | K130: DOP | M130: 815,595,281.00 | N130: 0.00 | O130: 0.00 | P130: 0.00 | Q130: 0.00 | R130: 0.00 | S130: 815,595,281.00 | T130: -155,351,482.08 | U130: -19,418,935.26 | V130: 0.00 | W130: 0.00 | X130: 0.00 | Y130: 0.00 | Z130: -174,770,417.34 | AA130: 660,243,798.92 | AC130: 640,824,863.66
A131: 101120000090 | B131: 0 | C131: 2000 | E131: 8000000 | F131: 120200100 | G131: EDIFICIO | H131: 101-120 | I131: 2015-12-31 | J131: COMPUERTA ENTRADA DE TOMA VERTICAL METAL | K131: DOP | M131: 2,129,250.00 | N131: 0.00 | O131: 0.00 | P131: 0.00 | Q131: 0.00 | R131: 0.00 | S131: 2,129,250.00 | T131: -655,153.84 | U131: -81,894.23 | V131: 0.00 | W131: 0.00 | X131: 0.00 | Y131: 0.00 | Z131: -737,048.07 | AA131: 1,474,096.16 | AC131: 1,392,201.93
A132: 101120000091 | B132: 0 | C132: 2000 | E132: 8000000 | F132: 120200100 | G132: EDIFICIO | H132: 101-120 | I132: 2015-12-31 | J132: COMPUERTA DESARENADOR PEQUEÑO OBRA DE TOMA | K132: DOP | M132: 515,240.00 | N132: 0.00 | O132: 0.00 | P132: 0.00 | Q132: 0.00 | R132: 0.00 | S132: 515,240.00 | T132: -196,281.92 | U132: -24,535.24 | V132: 0.00 | W132: 0.00 | X132: 0.00 | Y132: 0.00 | Z132: -220,817.16 | AA132: 318,958.08 | AC132: 294,422.84
A133: 101120000092 | B133: 0 | C133: 2000 | E133: 8000000 | F133: 120200100 | G133: EDIFICIO | H133: 101-120 | I133: 2015-12-31 | J133: CASA DE MAQUINA / EDIFICIO CONCRETO AZUL | K133: DOP | M133: 19,617,588.00 | N133: 0.00 | O133: 0.00 | P133: 0.00 | Q133: 0.00 | R133: 0.00 | S133: 19,617,588.00 | T133: -3,736,683.44 | U133: -467,085.43 | V133: 0.00 | W133: 0.00 | X133: 0.00 | Y133: 0.00 | Z133: -4,203,768.87 | AA133: 15,880,904.56 | AC133: 15,413,819.13
A134: 101120000093 | B134: 0 | C134: 2000 | E134: 8000000 | F134: 120200100 | G134: EDIFICIO | H134: 101-120 | I134: 2015-12-31 | J134: OBRA DE TOMA | K134: DOP | M134: 15,389,372.00 | N134: 0.00 | O134: 0.00 | P134: 0.00 | Q134: 0.00 | R134: 0.00 | S134: 15,389,372.00 | T134: -2,931,308.96 | U134: -366,413.62 | V134: 0.00 | W134: 0.00 | X134: 0.00 | Y134: 0.00 | Z134: -3,297,722.58 | AA134: 12,458,063.04 | AC134: 12,091,649.42
A135: 101120000094 | B135: 0 | C135: 2000 | E135: 8000000 | F135: 120200100 | G135: EDIFICIO | H135: 101-120 | I135: 2015-12-31 | J135: CANAL CONCRETO | K135: DOP | M135: 71,262,361.00 | N135: 0.00 | O135: 0.00 | P135: 0.00 | Q135: 0.00 | R135: 0.00 | S135: 71,262,361.00 | T135: -13,573,783.04 | U135: -1,696,722.88 | V135: 0.00 | W135: 0.00 | X135: 0.00 | Y135: 0.00 | Z135: -15,270,505.92 | AA135: 57,688,577.96 | AC135: 55,991,855.08
A136: 101120000095 | B136: 0 | C136: 2000 | E136: 8000000 | F136: 120200100 | G136: EDIFICIO | H136: 101-120 | I136: 2015-12-31 | J136: TUBERIA FORZADA VERDE | K136: DOP | M136: 3,118,871.00 | N136: 0.00 | O136: 0.00 | P136: 0.00 | Q136: 0.00 | R136: 0.00 | S136: 3,118,871.00 | T136: -594,070.64 | U136: -74,258.83 | V136: 0.00 | W136: 0.00 | X136: 0.00 | Y136: 0.00 | Z136: -668,329.47 | AA136: 2,524,800.36 | AC136: 2,450,541.53
A137: 101120000096 | B137: 0 | C137: 2000 | E137: 8000000 | F137: 120200100 | G137: EDIFICIO | H137: 101-120 | I137: 2015-12-31 | J137: DESARENADOR CONCRETO | K137: DOP | M137: 2,181,179.00 | N137: 0.00 | O137: 0.00 | P137: 0.00 | Q137: 0.00 | R137: 0.00 | S137: 2,181,179.00 | T137: -415,462.64 | U137: -51,932.83 | V137: 0.00 | W137: 0.00 | X137: 0.00 | Y137: 0.00 | Z137: -467,395.47 | AA137: 1,765,716.36 | AC137: 1,713,783.53
A138: 101120000097 | B138: 0 | C138: 2000 | E138: 8000000 | F138: 120200100 | G138: EDIFICIO | H138: 101-120 | I138: 2015-12-31 | J138: EDIFICIO OFICINA,COCINA,CASETA DIESEL | K138: DOP | M138: 1,120,448.00 | N138: 0.00 | O138: 0.00 | P138: 0.00 | Q138: 0.00 | R138: 0.00 | S138: 1,120,448.00 | T138: -213,418.64 | U138: -26,677.33 | V138: 0.00 | W138: 0.00 | X138: 0.00 | Y138: 0.00 | Z138: -240,095.97 | AA138: 907,029.36 | AC138: 880,352.03
A139: 101120000098 | B139: 0 | C139: 2000 | E139: 8000000 | F139: 120200100 | G139: EDIFICIO | H139: 101-120 | I139: 2015-12-31 | J139: TRABAJOS PRELIMINARES, INVESTIGACION DE SUELOS Y | K139: DOP | M139: 7,472,214.00 | N139: 0.00 | O139: 0.00 | P139: 0.00 | Q139: 0.00 | R139: 0.00 | S139: 7,472,214.00 | T139: -2,391,108.48 | U139: -298,888.56 | V139: 0.00 | W139: 0.00 | X139: 0.00 | Y139: 0.00 | Z139: -2,689,997.04 | AA139: 5,081,105.52 | AC139: 4,782,216.96
A140: 101120000099 | B140: 0 | C140: 2000 | E140: 8000000 | F140: 120200100 | G140: EDIFICIO | H140: 101-120 | I140: 2015-12-31 | J140: NIVELACION, RELLENO Y COMPACTACION DEL TERRENO. S | K140: DOP | M140: 326,434.00 | N140: 0.00 | O140: 0.00 | P140: 0.00 | Q140: 0.00 | R140: 0.00 | S140: 326,434.00 | T140: -93,266.88 | U140: -11,658.36 | V140: 0.00 | W140: 0.00 | X140: 0.00 | Y140: 0.00 | Z140: -104,925.24 | AA140: 233,167.12 | AC140: 221,508.76
A141: 101120000100 | B141: 0 | C141: 2000 | E141: 8000000 | F141: 120200100 | G141: EDIFICIO | H141: 101-120 | I141: 2015-12-31 | J141: DRENAJES CENTRAL ANIANA VARGAS | K141: DOP | M141: 27,305.00 | N141: 0.00 | O141: 0.00 | P141: 0.00 | Q141: 0.00 | R141: 0.00 | S141: 27,305.00 | T141: -7,801.44 | U141: -975.18 | V141: 0.00 | W141: 0.00 | X141: 0.00 | Y141: 0.00 | Z141: -8,776.62 | AA141: 19,503.56 | AC141: 18,528.38
A142: 101120000101 | B142: 0 | C142: 2000 | E142: 8000000 | F142: 120200100 | G142: EDIFICIO | H142: 101-120 | I142: 2015-12-31 | J142: SOPORTES MONOLITICOS | K142: DOP | M142: 1,594,027.00 | N142: 0.00 | O142: 0.00 | P142: 0.00 | Q142: 0.00 | R142: 0.00 | S142: 1,594,027.00 | T142: -455,436.32 | U142: -56,929.54 | V142: 0.00 | W142: 0.00 | X142: 0.00 | Y142: 0.00 | Z142: -512,365.86 | AA142: 1,138,590.68 | AC142: 1,081,661.14
A143: 101120000102 | B143: 0 | C143: 2000 | E143: 8000000 | F143: 120200100 | G143: EDIFICIO | H143: 101-120 | I143: 2015-12-31 | J143: CANALETAS CENTRAL ANIANA VARGAS | K143: DOP | M143: 37,429.00 | N143: 0.00 | O143: 0.00 | P143: 0.00 | Q143: 0.00 | R143: 0.00 | S143: 37,429.00 | T143: -10,694.00 | U143: -1,336.75 | V143: 0.00 | W143: 0.00 | X143: 0.00 | Y143: 0.00 | Z143: -12,030.75 | AA143: 26,735.00 | AC143: 25,398.25
A144: 101120000103 | B144: 0 | C144: 2000 | E144: 8000000 | F144: 120200100 | G144: EDIFICIO | H144: 101-120 | I144: 2015-12-31 | J144: ACERAS CENTRAL ANIANA VARGAS | K144: DOP | M144: 7,560.00 | N144: 0.00 | O144: 0.00 | P144: 0.00 | Q144: 0.00 | R144: 0.00 | S144: 7,560.00 | T144: -2,160.00 | U144: -270.00 | V144: 0.00 | W144: 0.00 | X144: 0.00 | Y144: 0.00 | Z144: -2,430.00 | AA144: 5,400.00 | AC144: 5,130.00
A145: 101120000104 | B145: 0 | C145: 2000 | E145: 8000000 | F145: 120200100 | G145: EDIFICIO | H145: 101-120 | I145: 2015-12-31 | J145: AREA CUADRADA CENTRAL ANIANA VARGAS | K145: DOP | M145: 63,657.00 | N145: 0.00 | O145: 0.00 | P145: 0.00 | Q145: 0.00 | R145: 0.00 | S145: 63,657.00 | T145: -18,187.68 | U145: -2,273.46 | V145: 0.00 | W145: 0.00 | X145: 0.00 | Y145: 0.00 | Z145: -20,461.14 | AA145: 45,469.32 | AC145: 43,195.86
A146: 101120000105 | B146: 0 | C146: 2000 | E146: 8000000 | F146: 120200100 | G146: EDIFICIO | H146: 101-120 | I146: 2015-12-31 | J146: PRESA ANIANA VARGAS | K146: DOP | M146: 152,392,902.00 | N146: 0.00 | O146: 0.00 | P146: 0.00 | Q146: 0.00 | R146: 0.00 | S146: 152,392,902.00 | T146: -29,027,219.44 | U146: -3,628,402.43 | V146: 0.00 | W146: 0.00 | X146: 0.00 | Y146: 0.00 | Z146: -32,655,621.87 | AA146: 123,365,682.56 | AC146: 119,737,280.13
A147: 101120000106 | B147: 0 | C147: 2000 | E147: 8000000 | F147: 120200100 | G147: EDIFICIO | H147: 101-120 | I147: 2015-12-31 | J147: PRESA | K147: DOP | M147: 47,904,122.00 | N147: 0.00 | O147: 0.00 | P147: 0.00 | Q147: 0.00 | R147: 0.00 | S147: 47,904,122.00 | T147: -15,329,319.04 | U147: -1,916,164.88 | V147: 0.00 | W147: 0.00 | X147: 0.00 | Y147: 0.00 | Z147: -17,245,483.92 | AA147: 32,574,802.96 | AC147: 30,658,638.08
A148: 101120000108 | B148: 0 | C148: 2000 | E148: 8000000 | F148: 120200100 | G148: EDIFICIO | H148: 101-120 | I148: 2015-12-31 | J148: CASETA DE GUARDA. 12 M2. | K148: DOP | M148: 188,053.00 | N148: 0.00 | O148: 0.00 | P148: 0.00 | Q148: 0.00 | R148: 0.00 | S148: 188,053.00 | T148: -60,176.96 | U148: -7,522.12 | V148: 0.00 | W148: 0.00 | X148: 0.00 | Y148: 0.00 | Z148: -67,699.08 | AA148: 127,876.04 | AC148: 120,353.92
A149: 101120000109 | B149: 0 | C149: 2000 | E149: 8000000 | F149: 120200100 | G149: EDIFICIO | H149: 101-120 | I149: 2015-12-31 | J149: TUBERIA CONDUCCION | K149: DOP | M149: 98,467,223.00 | N149: 0.00 | O149: 0.00 | P149: 0.00 | Q149: 0.00 | R149: 0.00 | S149: 98,467,223.00 | T149: -28,133,492.32 | U149: -3,516,686.54 | V149: 0.00 | W149: 0.00 | X149: 0.00 | Y149: 0.00 | Z149: -31,650,178.86 | AA149: 70,333,730.68 | AC149: 66,817,044.14
A150: 101120000110 | B150: 0 | C150: 2000 | E150: 8000000 | F150: 120200100 | G150: EDIFICIO | H150: 101-120 | I150: 2015-12-31 | J150: TUBERIA PRESION | K150: DOP | M150: 90,261,621.00 | N150: 0.00 | O150: 0.00 | P150: 0.00 | Q150: 0.00 | R150: 0.00 | S150: 90,261,621.00 | T150: -25,789,034.56 | U150: -3,223,629.32 | V150: 0.00 | W150: 0.00 | X150: 0.00 | Y150: 0.00 | Z150: -29,012,663.88 | AA150: 64,472,586.44 | AC150: 61,248,957.12
A151: 101120000111 | B151: 0 | C151: 2000 | E151: 8000000 | F151: 120200100 | G151: EDIFICIO | H151: 101-120 | I151: 2015-12-31 | J151: VIALIDAD DE ACCESO. S.G | K151: DOP | M151: 16,411,204.00 | N151: 0.00 | O151: 0.00 | P151: 0.00 | Q151: 0.00 | R151: 0.00 | S151: 16,411,204.00 | T151: -5,251,585.28 | U151: -656,448.16 | V151: 0.00 | W151: 0.00 | X151: 0.00 | Y151: 0.00 | Z151: -5,908,033.44 | AA151: 11,159,618.72 | AC151: 10,503,170.56
A152: 101120000112 | B152: 0 | C152: 2000 | E152: 8000000 | F152: 120200100 | G152: EDIFICIO | H152: 101-120 | I152: 2015-12-31 | J152: VERJA PERIMETRAL CENTRAL BRAZO DERECHO | K152: DOP | M152: 2,051,400.00 | N152: 0.00 | O152: 0.00 | P152: 0.00 | Q152: 0.00 | R152: 0.00 | S152: 2,051,400.00 | T152: -656,448.00 | U152: -82,056.00 | V152: 0.00 | W152: 0.00 | X152: 0.00 | Y152: 0.00 | Z152: -738,504.00 | AA152: 1,394,952.00 | AC152: 1,312,896.00
A153: 101120000113 | B153: 0 | C153: 2000 | E153: 8000000 | F153: 120200100 | G153: EDIFICIO | H153: 101-120 | I153: 2015-12-31 | J153: CANAL DE DESCARGA. S.G. | K153: DOP | M153: 65,644,816.00 | N153: 0.00 | O153: 0.00 | P153: 0.00 | Q153: 0.00 | R153: 0.00 | S153: 65,644,816.00 | T153: -18,755,661.68 | U153: -2,344,457.71 | V153: 0.00 | W153: 0.00 | X153: 0.00 | Y153: 0.00 | Z153: -21,100,119.39 | AA153: 46,889,154.32 | AC153: 44,544,696.61
A154: 101120000114 | B154: 0 | C154: 2000 | E154: 8000000 | F154: 120200100 | G154: EDIFICIO | H154: 101-120 | I154: 2015-12-31 | J154: CASA DE MAQUINAS | K154: DOP | M154: 205,140,049.00 | N154: 0.00 | O154: 0.00 | P154: 0.00 | Q154: 0.00 | R154: 0.00 | S154: 205,140,049.00 | T154: -39,074,295.04 | U154: -4,884,286.88 | V154: 0.00 | W154: 0.00 | X154: 0.00 | Y154: 0.00 | Z154: -43,958,581.92 | AA154: 166,065,753.96 | AC154: 161,181,467.08
A155: 101120000115 | B155: 0 | C155: 2000 | E155: 8000000 | F155: 120200100 | G155: EDIFICIO | H155: 101-120 | I155: 2015-02-28 | J155: DESTACAMENTO MILITAR 40 M2 | K155: DOP | M155: 626,843.00 | N155: 0.00 | O155: 0.00 | P155: 0.00 | Q155: 0.00 | R155: 0.00 | S155: 626,843.00 | T155: -179,098.00 | U155: -22,387.25 | V155: 0.00 | W155: 0.00 | X155: 0.00 | Y155: 0.00 | Z155: -201,485.25 | AA155: 447,745.00 | AC155: 425,357.75
A156: 101120000116 | B156: 0 | C156: 2000 | E156: 8000000 | F156: 120200100 | G156: EDIFICIO | H156: 101-120 | I156: 2015-12-31 | J156: VERJA PERIMETRAL CAMPAMENTO SEGURIDAD MILITAR | K156: DOP | M156: 2,871,961.00 | N156: 0.00 | O156: 0.00 | P156: 0.00 | Q156: 0.00 | R156: 0.00 | S156: 2,871,961.00 | T156: -919,027.52 | U156: -114,878.44 | V156: 0.00 | W156: 0.00 | X156: 0.00 | Y156: 0.00 | Z156: -1,033,905.96 | AA156: 1,952,933.48 | AC156: 1,838,055.04
A157: 101120000117 | B157: 0 | C157: 2000 | E157: 8000000 | F157: 120200100 | G157: EDIFICIO | H157: 101-120 | I157: 2015-12-31 | J157: CASETA DE GUARDA DE LA OBRA DE TOMA. 10 M2. | K157: DOP | M157: 156,711.00 | N157: 0.00 | O157: 0.00 | P157: 0.00 | Q157: 0.00 | R157: 0.00 | S157: 156,711.00 | T157: -50,147.52 | U157: -6,268.44 | V157: 0.00 | W157: 0.00 | X157: 0.00 | Y157: 0.00 | Z157: -56,415.96 | AA157: 106,563.48 | AC157: 100,295.04
A158: 101120000118 | B158: 0 | C158: 2000 | E158: 8000000 | F158: 120200100 | G158: EDIFICIO | H158: 101-120 | I158: 2015-12-31 | J158: OBRA DE TOMA | K158: DOP | M158: 139,495,233.00 | N158: 0.00 | O158: 0.00 | P158: 0.00 | Q158: 0.00 | R158: 0.00 | S158: 139,495,233.00 | T158: -39,855,780.88 | U158: -4,981,972.61 | V158: 0.00 | W158: 0.00 | X158: 0.00 | Y158: 0.00 | Z158: -44,837,753.49 | AA158: 99,639,452.12 | AC158: 94,657,479.51
A159: 101120000119 | B159: 0 | C159: 2000 | E159: 8000000 | F159: 120200100 | G159: EDIFICIO | H159: 101-120 | I159: 2015-12-31 | J159: VERJA PERIMETRAL DE LA OBRA DE TOMA. | K159: DOP | M159: 820,560.00 | N159: 0.00 | O159: 0.00 | P159: 0.00 | Q159: 0.00 | R159: 0.00 | S159: 820,560.00 | T159: -262,579.20 | U159: -32,822.40 | V159: 0.00 | W159: 0.00 | X159: 0.00 | Y159: 0.00 | Z159: -295,401.60 | AA159: 557,980.80 | AC159: 525,158.40
A160: 101120000120 | B160: 0 | C160: 2000 | E160: 8000000 | F160: 120200100 | G160: EDIFICIO | H160: 101-120 | I160: 2015-12-31 | J160: INGENIERIA BASICA Y DE DISEÑO CENTRAL BRAZO DEREC | K160: DOP | M160: 41,028,010.00 | N160: 0.00 | O160: 0.00 | P160: 0.00 | Q160: 0.00 | R160: 0.00 | S160: 41,028,010.00 | T160: -7,814,859.04 | U160: -976,857.38 | V160: 0.00 | W160: 0.00 | X160: 0.00 | Y160: 0.00 | Z160: -8,791,716.42 | AA160: 33,213,150.96 | AC160: 32,236,293.58
A161: 101120000121 | B161: 0 | C161: 2000 | E161: 8000000 | F161: 120200100 | G161: EDIFICIO | H161: 101-120 | I161: 2015-12-31 | J161: TUBERIA FORZADA | K161: DOP | M161: 429,421,203.00 | N161: 0.00 | O161: 0.00 | P161: 0.00 | Q161: 0.00 | R161: 0.00 | S161: 429,421,203.00 | T161: -81,794,514.88 | U161: -10,224,314.36 | V161: 0.00 | W161: 0.00 | X161: 0.00 | Y161: 0.00 | Z161: -92,018,829.24 | AA161: 347,626,688.12 | AC161: 337,402,373.76
A162: 101120000122 | B162: 0 | C162: 2000 | E162: 8000000 | F162: 120200100 | G162: EDIFICIO | H162: 101-120 | I162: 2015-12-31 | J162: TUBERIA ACERO AL CARBONO | K162: DOP | M162: 218,505.00 | N162: 0.00 | O162: 0.00 | P162: 0.00 | Q162: 0.00 | R162: 0.00 | S162: 218,505.00 | T162: -158,912.72 | U162: -19,864.09 | V162: 0.00 | W162: 0.00 | X162: 0.00 | Y162: 0.00 | Z162: -178,776.81 | AA162: 59,592.28 | AC162: 39,728.19
A163: 101120000123 | B163: 0 | C163: 2000 | E163: 8000000 | F163: 120200100 | G163: EDIFICIO | H163: 101-120 | I163: 2015-12-31 | J163: OBRA DE TOMA COMPUERTA DESARENADOR CAMARA DE CA | K163: DOP | M163: 1,027,240.00 | N163: 0.00 | O163: 0.00 | P163: 0.00 | Q163: 0.00 | R163: 0.00 | S163: 1,027,240.00 | T163: -357,300.88 | U163: -44,662.61 | V163: 0.00 | W163: 0.00 | X163: 0.00 | Y163: 0.00 | Z163: -401,963.49 | AA163: 669,939.12 | AC163: 625,276.51
A164: 101120000124 | B164: 0 | C164: 2000 | E164: 8000000 | F164: 120200100 | G164: EDIFICIO | H164: 101-120 | I164: 2015-12-31 | J164: OBRA DE TOMA COMPUERTA DE CANAL DE CAMARA DE CA | K164: DOP | M164: 1,812,420.00 | N164: 0.00 | O164: 0.00 | P164: 0.00 | Q164: 0.00 | R164: 0.00 | S164: 1,812,420.00 | T164: -630,406.96 | U164: -78,800.87 | V164: 0.00 | W164: 0.00 | X164: 0.00 | Y164: 0.00 | Z164: -709,207.83 | AA164: 1,182,013.04 | AC164: 1,103,212.17
A165: 101120000125 | B165: 0 | C165: 2000 | E165: 8000000 | F165: 120200100 | G165: EDIFICIO | H165: 101-120 | I165: 2015-12-31 | J165: CASA MAQUINAS | K165: DOP | M165: 137,328,855.00 | N165: 0.00 | O165: 0.00 | P165: 0.00 | Q165: 0.00 | R165: 0.00 | S165: 137,328,855.00 | T165: -26,157,877.12 | U165: -3,269,734.64 | V165: 0.00 | W165: 0.00 | X165: 0.00 | Y165: 0.00 | Z165: -29,427,611.76 | AA165: 111,170,977.88 | AC165: 107,901,243.24
A166: 101120000126 | B166: 0 | C166: 2000 | E166: 8000000 | F166: 120200100 | G166: EDIFICIO | H166: 101-120 | I166: 2015-12-31 | J166: EDIFICIO MAMPOSTERIA DE CONCRETO, PISO CERAMIC | K166: DOP | M166: 11,036,936.00 | N166: 0.00 | O166: 0.00 | P166: 0.00 | Q166: 0.00 | R166: 0.00 | S166: 11,036,936.00 | T166: -2,102,273.52 | U166: -262,784.19 | V166: 0.00 | W166: 0.00 | X166: 0.00 | Y166: 0.00 | Z166: -2,365,057.71 | AA166: 8,934,662.48 | AC166: 8,671,878.29
A167: 101120000127 | B167: 0 | C167: 2000 | E167: 8000000 | F167: 120200100 | G167: EDIFICIO | H167: 101-120 | I167: 2015-12-31 | J167: CAMARA MAMPOSTERIA DE CONCRETO, PISO CERAMICO, R | K167: DOP | M167: 7,786,432.00 | N167: 0.00 | O167: 0.00 | P167: 0.00 | Q167: 0.00 | R167: 0.00 | S167: 7,786,432.00 | T167: -2,224,694.88 | U167: -278,086.86 | V167: 0.00 | W167: 0.00 | X167: 0.00 | Y167: 0.00 | Z167: -2,502,781.74 | AA167: 5,561,737.12 | AC167: 5,283,650.26
A168: 101120000128 | B168: 0 | C168: 2000 | E168: 8000000 | F168: 120200100 | G168: EDIFICIO | H168: 101-120 | I168: 2015-12-31 | J168: CAMARA ESTRUCTURA METALICA SECCIONES I O H, CUBI | K168: DOP | M168: 2,295,894.00 | N168: 0.00 | O168: 0.00 | P168: 0.00 | Q168: 0.00 | R168: 0.00 | S168: 2,295,894.00 | T168: -655,969.68 | U168: -81,996.21 | V168: 0.00 | W168: 0.00 | X168: 0.00 | Y168: 0.00 | Z168: -737,965.89 | AA168: 1,639,924.32 | AC168: 1,557,928.11
A169: 101120000129 | B169: 0 | C169: 2000 | E169: 8000000 | F169: 120200100 | G169: EDIFICIO | H169: 101-120 | I169: 2015-12-31 | J169: CANAL DE ALIMENTACION CENTRAL DOMINGO RODRIGUEZ | K169: DOP | M169: 6,829,276.00 | N169: 0.00 | O169: 0.00 | P169: 0.00 | Q169: 0.00 | R169: 0.00 | S169: 6,829,276.00 | T169: -1,951,221.68 | U169: -243,902.71 | V169: 0.00 | W169: 0.00 | X169: 0.00 | Y169: 0.00 | Z169: -2,195,124.39 | AA169: 4,878,054.32 | AC169: 4,634,151.61
A170: 101120000130 | B170: 0 | C170: 2000 | E170: 8000000 | F170: 120200100 | G170: EDIFICIO | H170: 101-120 | I170: 2015-12-31 | J170: OBRA DE TOMA | K170: DOP | M170: 95,482,417.00 | N170: 0.00 | O170: 0.00 | P170: 0.00 | Q170: 0.00 | R170: 0.00 | S170: 95,482,417.00 | T170: -27,280,690.56 | U170: -3,410,086.32 | V170: 0.00 | W170: 0.00 | X170: 0.00 | Y170: 0.00 | Z170: -30,690,776.88 | AA170: 68,201,726.44 | AC170: 64,791,640.12
A171: 101120000131 | B171: 0 | C171: 2000 | E171: 8000000 | F171: 120200100 | G171: EDIFICIO | H171: 101-120 | I171: 2015-12-31 | J171: TUBERIA | K171: DOP | M171: 14,738,508.00 | N171: 0.00 | O171: 0.00 | P171: 0.00 | Q171: 0.00 | R171: 0.00 | S171: 14,738,508.00 | T171: -4,211,002.32 | U171: -526,375.29 | V171: 0.00 | W171: 0.00 | X171: 0.00 | Y171: 0.00 | Z171: -4,737,377.61 | AA171: 10,527,505.68 | AC171: 10,001,130.39
A172: 101120000132 | B172: 0 | C172: 2000 | E172: 8000000 | F172: 120200100 | G172: EDIFICIO | H172: 101-120 | I172: 2015-12-31 | J172: VERJA PERIMETRAL | K172: DOP | M172: 1,714,418.00 | N172: 0.00 | O172: 0.00 | P172: 0.00 | Q172: 0.00 | R172: 0.00 | S172: 1,714,418.00 | T172: -548,613.76 | U172: -68,576.72 | V172: 0.00 | W172: 0.00 | X172: 0.00 | Y172: 0.00 | Z172: -617,190.48 | AA172: 1,165,804.24 | AC172: 1,097,227.52
A173: 101120000133 | B173: 0 | C173: 2000 | E173: 8000000 | F173: 120200100 | G173: EDIFICIO | H173: 101-120 | I173: 2015-12-31 | J173: VERJA PERIMETRAL | K173: DOP | M173: 3,042,122.00 | N173: 0.00 | O173: 0.00 | P173: 0.00 | Q173: 0.00 | R173: 0.00 | S173: 3,042,122.00 | T173: -973,479.04 | U173: -121,684.88 | V173: 0.00 | W173: 0.00 | X173: 0.00 | Y173: 0.00 | Z173: -1,095,163.92 | AA173: 2,068,642.96 | AC173: 1,946,958.08
A174: 101120000134 | B174: 0 | C174: 2000 | E174: 8000000 | F174: 120200100 | G174: EDIFICIO | H174: 101-120 | I174: 2015-12-31 | J174: VIALIDAD | K174: DOP | M174: 7,179,563.00 | N174: 0.00 | O174: 0.00 | P174: 0.00 | Q174: 0.00 | R174: 0.00 | S174: 7,179,563.00 | T174: -2,297,460.16 | U174: -287,182.52 | V174: 0.00 | W174: 0.00 | X174: 0.00 | Y174: 0.00 | Z174: -2,584,642.68 | AA174: 4,882,102.84 | AC174: 4,594,920.32
A175: 101120000135 | B175: 0 | C175: 2000 | E175: 8000000 | F175: 120200100 | G175: EDIFICIO | H175: 101-120 | I175: 2015-12-31 | J175: TRABAJOS PRELIMINARES PARA EL ACCIONAMIENTO DE LA | K175: DOP | M175: 387,598.00 | N175: 0.00 | O175: 0.00 | P175: 0.00 | Q175: 0.00 | R175: 0.00 | S175: 387,598.00 | T175: -110,742.32 | U175: -13,842.79 | V175: 0.00 | W175: 0.00 | X175: 0.00 | Y175: 0.00 | Z175: -124,585.11 | AA175: 276,855.68 | AC175: 263,012.89
A176: 101120000136 | B176: 0 | C176: 2000 | E176: 8000000 | F176: 120200100 | G176: EDIFICIO | H176: 101-120 | I176: 2015-12-31 | J176: NIVELACION, RELLENO Y COMPACTACION DEL TERRENO. S | K176: DOP | M176: 17,400.00 | N176: 0.00 | O176: 0.00 | P176: 0.00 | Q176: 0.00 | R176: 0.00 | S176: 17,400.00 | T176: -4,971.44 | U176: -621.43 | V176: 0.00 | W176: 0.00 | X176: 0.00 | Y176: 0.00 | Z176: -5,592.87 | AA176: 12,428.56 | AC176: 11,807.13
A177: 101120000137 | B177: 0 | C177: 2000 | E177: 8000000 | F177: 120200100 | G177: EDIFICIO | H177: 101-120 | I177: 2015-12-31 | J177: DRENAJES SISTEMA DE REGULACION DE VELOCIDAD TURB | K177: DOP | M177: 42,203.00 | N177: 0.00 | O177: 0.00 | P177: 0.00 | Q177: 0.00 | R177: 0.00 | S177: 42,203.00 | T177: -12,058.00 | U177: -1,507.25 | V177: 0.00 | W177: 0.00 | X177: 0.00 | Y177: 0.00 | Z177: -13,565.25 | AA177: 30,145.00 | AC177: 28,637.75
A178: 101120000138 | B178: 0 | C178: 2000 | E178: 8000000 | F178: 120200100 | G178: EDIFICIO | H178: 101-120 | I178: 2015-12-31 | J178: SOPORTES MONOLITICOS | K178: DOP | M178: 1,885,031.00 | N178: 0.00 | O178: 0.00 | P178: 0.00 | Q178: 0.00 | R178: 0.00 | S178: 1,885,031.00 | T178: -538,580.32 | U178: -67,322.54 | V178: 0.00 | W178: 0.00 | X178: 0.00 | Y178: 0.00 | Z178: -605,902.86 | AA178: 1,346,450.68 | AC178: 1,279,128.14
A179: 101120000139 | B179: 0 | C179: 2000 | E179: 8000000 | F179: 120200100 | G179: EDIFICIO | H179: 101-120 | I179: 2015-12-31 | J179: CONDUCTORES DIAMETRO DE SALIDA DE CADA BOMBA | K179: DOP | M179: 44,149.00 | N179: 0.00 | O179: 0.00 | P179: 0.00 | Q179: 0.00 | R179: 0.00 | S179: 44,149.00 | T179: -12,614.00 | U179: -1,576.75 | V179: 0.00 | W179: 0.00 | X179: 0.00 | Y179: 0.00 | Z179: -14,190.75 | AA179: 31,535.00 | AC179: 29,958.25
A180: 101120000140 | B180: 0 | C180: 2000 | E180: 8000000 | F180: 120200100 | G180: EDIFICIO | H180: 101-120 | I180: 2015-12-31 | J180: ACERAS | K180: DOP | M180: 8,976.00 | N180: 0.00 | O180: 0.00 | P180: 0.00 | Q180: 0.00 | R180: 0.00 | S180: 8,976.00 | T180: -2,564.56 | U180: -320.57 | V180: 0.00 | W180: 0.00 | X180: 0.00 | Y180: 0.00 | Z180: -2,885.13 | AA180: 6,411.44 | AC180: 6,090.87
A181: 101120000141 | B181: 0 | C181: 2000 | E181: 8000000 | F181: 120200100 | G181: EDIFICIO | H181: 101-120 | I181: 2015-12-31 | J181: AREA CUADRADA | K181: DOP | M181: 40,556.00 | N181: 0.00 | O181: 0.00 | P181: 0.00 | Q181: 0.00 | R181: 0.00 | S181: 40,556.00 | T181: -11,587.44 | U181: -1,448.43 | V181: 0.00 | W181: 0.00 | X181: 0.00 | Y181: 0.00 | Z181: -13,035.87 | AA181: 28,968.56 | AC181: 27,520.13
A182: 101120000142 | B182: 0 | C182: 2000 | E182: 8000000 | F182: 120200100 | G182: EDIFICIO | H182: 101-120 | I182: 2015-12-31 | J182: TRABAJOS PRELIMINARES, INVESTIGACION DE SUELOS Y | K182: DOP | M182: 2,549,981.00 | N182: 0.00 | O182: 0.00 | P182: 0.00 | Q182: 0.00 | R182: 0.00 | S182: 2,549,981.00 | T182: -658,059.60 | U182: -82,257.45 | V182: 0.00 | W182: 0.00 | X182: 0.00 | Y182: 0.00 | Z182: -740,317.05 | AA182: 1,891,921.40 | AC182: 1,809,663.95
A183: 101120000143 | B183: 0 | C183: 2000 | E183: 8000000 | F183: 120200100 | G183: EDIFICIO | H183: 101-120 | I183: 2015-12-31 | J183: NIVELACION, RELLENO Y COMPACTACION DEL TERRENO. S | K183: DOP | M183: 1,416,761.00 | N183: 0.00 | O183: 0.00 | P183: 0.00 | Q183: 0.00 | R183: 0.00 | S183: 1,416,761.00 | T183: -365,615.76 | U183: -45,701.97 | V183: 0.00 | W183: 0.00 | X183: 0.00 | Y183: 0.00 | Z183: -411,317.73 | AA183: 1,051,145.24 | AC183: 1,005,443.27
A184: 101120000144 | B184: 0 | C184: 2000 | E184: 8000000 | F184: 120200100 | G184: EDIFICIO | H184: 101-120 | I184: 2015-12-31 | J184: DRENAJES | K184: DOP | M184: 1,111,174.00 | N184: 0.00 | O184: 0.00 | P184: 0.00 | Q184: 0.00 | R184: 0.00 | S184: 1,111,174.00 | T184: -286,754.56 | U184: -35,844.32 | V184: 0.00 | W184: 0.00 | X184: 0.00 | Y184: 0.00 | Z184: -322,598.88 | AA184: 824,419.44 | AC184: 788,575.12
A185: 101120000145 | B185: 0 | C185: 2000 | E185: 8000000 | F185: 120200100 | G185: EDIFICIO | H185: 101-120 | I185: 2015-12-31 | J185: SOPORTES MONOLITICOS, FOSAS, BASES DE PISOS, CONC | K185: DOP | M185: 3,200,438.00 | N185: 0.00 | O185: 0.00 | P185: 0.00 | Q185: 0.00 | R185: 0.00 | S185: 3,200,438.00 | T185: -825,919.52 | U185: -103,239.94 | V185: 0.00 | W185: 0.00 | X185: 0.00 | Y185: 0.00 | Z185: -929,159.46 | AA185: 2,374,518.48 | AC185: 2,271,278.54
A186: 101120000146 | B186: 0 | C186: 2000 | E186: 8000000 | F186: 120200100 | G186: EDIFICIO | H186: 101-120 | I186: 2015-12-31 | J186: CANALETAS, CONDUCTORES Y CABLES 619 M | K186: DOP | M186: 1,160,500.00 | N186: 0.00 | O186: 0.00 | P186: 0.00 | Q186: 0.00 | R186: 0.00 | S186: 1,160,500.00 | T186: -299,483.84 | U186: -37,435.48 | V186: 0.00 | W186: 0.00 | X186: 0.00 | Y186: 0.00 | Z186: -336,919.32 | AA186: 861,016.16 | AC186: 823,580.68
A187: 101120000147 | B187: 0 | C187: 2000 | E187: 8000000 | F187: 120200100 | G187: EDIFICIO | H187: 101-120 | I187: 2015-12-31 | J187: ACERAS DE ESTACION METEREOLOGICA CON PANEL SOLAR | K187: DOP | M187: 233,772.00 | N187: 0.00 | O187: 0.00 | P187: 0.00 | Q187: 0.00 | R187: 0.00 | S187: 233,772.00 | T187: -60,328.24 | U187: -7,541.03 | V187: 0.00 | W187: 0.00 | X187: 0.00 | Y187: 0.00 | Z187: -67,869.27 | AA187: 173,443.76 | AC187: 165,902.73
A188: 101120000148 | B188: 0 | C188: 2000 | E188: 8000000 | F188: 120200100 | G188: EDIFICIO | H188: 101-120 | I188: 2015-12-31 | J188: AREA CUADRADA DE EQUIPO CAMPO | K188: DOP | M188: 3,302,873.00 | N188: 0.00 | O188: 0.00 | P188: 0.00 | Q188: 0.00 | R188: 0.00 | S188: 3,302,873.00 | T188: -852,354.32 | U188: -106,544.29 | V188: 0.00 | W188: 0.00 | X188: 0.00 | Y188: 0.00 | Z188: -958,898.61 | AA188: 2,450,518.68 | AC188: 2,343,974.39
A189: 101120000149 | B189: 0 | C189: 2000 | E189: 8000000 | F189: 120200100 | G189: EDIFICIO | H189: 101-120 | I189: 2015-12-31 | J189: VERJA PERIMETRAL | K189: DOP | M189: 1,522,549.00 | N189: 0.00 | O189: 0.00 | P189: 0.00 | Q189: 0.00 | R189: 0.00 | S189: 1,522,549.00 | T189: -468,476.64 | U189: -58,559.58 | V189: 0.00 | W189: 0.00 | X189: 0.00 | Y189: 0.00 | Z189: -527,036.22 | AA189: 1,054,072.36 | AC189: 995,512.78
A190: 101120000150 | B190: 0 | C190: 2000 | E190: 8000000 | F190: 120200100 | G190: EDIFICIO | H190: 101-120 | I190: 2004-12-31 | J190: COMPUERTA DE LA OBRA DE TOMA 126 PULG 20150817 | K190: DOP | M190: 4,626,290.00 | N190: 0.00 | O190: 0.00 | P190: 0.00 | Q190: 0.00 | R190: 0.00 | S190: 4,626,290.00 | T190: -1,947,911.60 | U190: -243,488.95 | V190: 0.00 | W190: 0.00 | X190: 0.00 | Y190: 0.00 | Z190: -2,191,400.55 | AA190: 2,678,378.40 | AC190: 2,434,889.45
A191: 101120000151 | B191: 0 | C191: 2000 | E191: 8000000 | F191: 120200100 | G191: EDIFICIO | H191: 101-120 | I191: 2015-12-31 | J191: CASA VERANEO VERANEO JARABACOA. 220 M2 CASA R | K191: DOP | M191: 12,711,301.00 | N191: 0.00 | O191: 0.00 | P191: 0.00 | Q191: 0.00 | R191: 0.00 | S191: 12,711,301.00 | T191: -12,711,301.00 | U191: 0.00 | V191: 0.00 | W191: 0.00 | X191: 0.00 | Y191: 0.00 | Z191: -12,711,301.00 | AA191: 0.00 | AC191: 0.00
A192: 101120000153 | B192: 0 | C192: 2000 | E192: 8000000 | F192: 120200100 | G192: EDIFICIO | H192: 101-120 | I192: 2014-07-31 | J192: DESTACAMENTO MILITAR MAMPOSTERIA DE CONCRETO | K192: DOP | M192: 1,500,007.00 | N192: 0.00 | O192: 0.00 | P192: 0.00 | Q192: 0.00 | R192: 0.00 | S192: 1,500,007.00 | T192: -428,573.44 | U192: -53,571.68 | V192: 0.00 | W192: 0.00 | X192: 0.00 | Y192: 0.00 | Z192: -482,145.12 | AA192: 1,071,433.56 | AC192: 1,017,861.88
A193: 101120000154 | B193: 0 | C193: 2000 | E193: 8000000 | F193: 120200100 | G193: EDIFICIO | H193: 101-120 | I193: 2015-12-31 | J193: REHABILITACION DE OBRAS CIVILES. S.G. S.G. JIGUEY | K193: DOP | M193: 728,865,179.00 | N193: 0.00 | O193: 0.00 | P193: 0.00 | Q193: 0.00 | R193: 0.00 | S193: 728,865,179.00 | T193: -138,831,462.64 | U193: -17,353,932.83 | V193: 0.00 | W193: 0.00 | X193: 0.00 | Y193: 0.00 | Z193: -156,185,395.47 | AA193: 590,033,716.36 | AC193: 572,679,783.53
A194: 101120000156 | B194: 0 | C194: 2000 | E194: 8000000 | F194: 120200100 | G194: EDIFICIO | H194: 101-120 | I194: 2001-12-31 | J194: TURBINA VERTICAL TURBO INSTITUT FRANCIS TF-82-0 | K194: DOP | M194: 122,381,150.00 | N194: 0.00 | O194: 0.00 | P194: 0.00 | Q194: 0.00 | R194: 0.00 | S194: 122,381,150.00 | T194: -37,655,738.48 | U194: -4,706,967.31 | V194: 0.00 | W194: 0.00 | X194: 0.00 | Y194: 0.00 | Z194: -42,362,705.79 | AA194: 84,725,411.52 | AC194: 80,018,444.21
A195: 101120000157 | B195: 0 | C195: 2000 | E195: 8000000 | F195: 120200100 | G195: EDIFICIO | H195: 101-120 | I195: 2009-12-31 | J195: CASA DE OPERADORES PRESA 218 M2 AMARILLO | K195: DOP | M195: 3,416,293.00 | N195: 0.00 | O195: 0.00 | P195: 0.00 | Q195: 0.00 | R195: 0.00 | S195: 3,416,293.00 | T195: -976,083.68 | U195: -122,010.46 | V195: 0.00 | W195: 0.00 | X195: 0.00 | Y195: 0.00 | Z195: -1,098,094.14 | AA195: 2,440,209.32 | AC195: 2,318,198.86
A196: 101120000160 | B196: 0 | C196: 2000 | E196: 8000000 | F196: 120200100 | G196: EDIFICIO | H196: 101-120 | I196: 2009-12-31 | J196: COMPUERTA RADIAL OPPERMAN 1976 50:1 DIMENSIONE | K196: DOP | M196: 24,435,760.00 | N196: 0.00 | O196: 0.00 | P196: 0.00 | Q196: 0.00 | R196: 0.00 | S196: 24,435,760.00 | T196: -13,032,405.36 | U196: -1,629,050.67 | V196: 0.00 | W196: 0.00 | X196: 0.00 | Y196: 0.00 | Z196: -14,661,456.03 | AA196: 11,403,354.64 | AC196: 9,774,303.97
A197: 101120000161 | B197: 0 | C197: 2000 | E197: 8000000 | F197: 120200100 | G197: EDIFICIO | H197: 101-120 | I197: 2009-12-31 | J197: COMPUERTA RADIAL OPPERMAN NSH6 1976 50:1 DIME | K197: DOP | M197: 24,435,760.00 | N197: 0.00 | O197: 0.00 | P197: 0.00 | Q197: 0.00 | R197: 0.00 | S197: 24,435,760.00 | T197: -13,032,405.36 | U197: -1,629,050.67 | V197: 0.00 | W197: 0.00 | X197: 0.00 | Y197: 0.00 | Z197: -14,661,456.03 | AA197: 11,403,354.64 | AC197: 9,774,303.97
A198: 101120000162 | B198: 0 | C198: 2000 | E198: 8000000 | F198: 120200100 | G198: EDIFICIO | H198: 101-120 | I198: 2009-12-31 | J198: COMPUERTA RADIAL OPPERMAN NSH6 1976 50:1 DIME | K198: DOP | M198: 24,435,760.00 | N198: 0.00 | O198: 0.00 | P198: 0.00 | Q198: 0.00 | R198: 0.00 | S198: 24,435,760.00 | T198: -13,032,405.36 | U198: -1,629,050.67 | V198: 0.00 | W198: 0.00 | X198: 0.00 | Y198: 0.00 | Z198: -14,661,456.03 | AA198: 11,403,354.64 | AC198: 9,774,303.97
A199: 101120000163 | B199: 0 | C199: 2000 | E199: 8000000 | F199: 120200100 | G199: EDIFICIO | H199: 101-120 | I199: 2009-12-31 | J199: COMPUERTA RADIAL OPPERMAN NSH6 1976 50:1 DIME | K199: DOP | M199: 24,435,760.00 | N199: 0.00 | O199: 0.00 | P199: 0.00 | Q199: 0.00 | R199: 0.00 | S199: 24,435,760.00 | T199: -13,032,405.36 | U199: -1,629,050.67 | V199: 0.00 | W199: 0.00 | X199: 0.00 | Y199: 0.00 | Z199: -14,661,456.03 | AA199: 11,403,354.64 | AC199: 9,774,303.97
A200: 101120000164 | B200: 0 | C200: 2000 | E200: 8000000 | F200: 120200100 | G200: EDIFICIO | H200: 101-120 | I200: 2009-12-31 | J200: COMPUERTA RADIAL OPPERMAN NSH6 1976 50:1 DIME | K200: DOP | M200: 24,435,760.00 | N200: 0.00 | O200: 0.00 | P200: 0.00 | Q200: 0.00 | R200: 0.00 | S200: 24,435,760.00 | T200: -13,032,405.36 | U200: -1,629,050.67 | V200: 0.00 | W200: 0.00 | X200: 0.00 | Y200: 0.00 | Z200: -14,661,456.03 | AA200: 11,403,354.64 | AC200: 9,774,303.97
... 2050 more rows

Sheet Auxiliar Act. Revaluados
A1: Activo fijo | B1: Subnúmero | C1: Sociedad | D1: División | E1: Pos.balance | F1: Clase activos fijos | G1: Cuenta balance CAP | H1: Nombre de la Cuenta Contable | I1: Capitalizado el | J1: Denominación del activo fijo | K1: Val.adq.acum. | L1: Amo ac. | M1: Iniio val.cont. | N1: Moneda | O1: -------(1)------- | P1: Clave amortización | Q1: Amortización normal | R1: Duración | S1: Amo especial | T1: Cantidad | U1: Unidad medida base | V1: -------(2)------- | W1: Val.valor adq. | X1: Amo prev. | Y1: -------(3)------- | Z1: Centro | AA1: Centro de coste | AB1: Emplazamiento | AC1: Acreedor | AD1: Elemento PEP | AE1: -------(4)------- | AF1: Correcciones | AG1: Val.Amo acumul. | AH1: Val.neto final | AI1: AmoN acum. | AJ1: AmoE acum. | AK1: AmoNP acum. | AL1: Amo acum.mín. | AM1: AmoN prev. | AN1: AmoE prev. | AO1: AmoNP prev. | AP1: Amo mín.prev. | AQ1: Val.AmoE acum. | AR1: Val.Amo acum.A | AS1: Val.Amo acum.M | AT1: Val.Amo acum.N | AU1: Val.adq.sep.ac. | AV1: AmoN sep.acum. | AW1: AmoN sep.prev. | AX1: -------(5)------- | AY1: -------(6)-------
A2: 101120000086 | B2: 0 | C2: 2000 | E2: 8000000 | F2: 101-120 | G2: 120200510 | H2: Edificio | I2: 2014-09-30 | J2: EDIFICIO DE OFICINAS 300 M2 | K2: 365,268.52 | L2: -73,053.72 | M2: 292,214.80 | N2: DOP | P2: ZLIN | Q2: 2014-10-01 | R2: 020/000 | T2: 1 | U2: UN | W2: 0.00 | X2: -18,263.43 | AA2: 2107080200 | AF2: 0.00 | AG2: 0.00 | AH2: 273,951.37 | AI2: -73,053.72 | AJ2: 0.00 | AK2: 0.00 | AL2: 0.00 | AM2: -18,263.43 | AN2: 0.00 | AO2: 0.00 | AP2: 0.00 | AQ2: 0.00 | AR2: 0.00 | AS2: 0.00 | AT2: 0.00 | AU2: 365,268.52 | AV2: -73,053.72 | AW2: -18,263.43
A3: 101120000087 | B3: 0 | C3: 2000 | E3: 8000000 | F3: 101-120 | G3: 120200510 | H3: Edificio | I3: 2012-10-31 | J3: DESTACAMENTO MILITAR BLOQUES DE CONCRETO | K3: 65,959.32 | L3: -13,191.88 | M3: 52,767.44 | N3: DOP | P3: ZLIN | Q3: 2012-11-01 | R3: 020/000 | T3: 1 | U3: UN | W3: 0.00 | X3: -3,297.97 | AA3: 2107080200 | AF3: 0.00 | AG3: 0.00 | AH3: 49,469.47 | AI3: -13,191.88 | AJ3: 0.00 | AK3: 0.00 | AL3: 0.00 | AM3: -3,297.97 | AN3: 0.00 | AO3: 0.00 | AP3: 0.00 | AQ3: 0.00 | AR3: 0.00 | AS3: 0.00 | AT3: 0.00 | AU3: 65,959.32 | AV3: -13,191.88 | AW3: -3,297.97
A4: 101120000088 | B4: 0 | C4: 2000 | E4: 8000000 | F4: 101-120 | G4: 120200510 | H4: Edificio | I4: 2015-12-31 | J4: REHABILITACION DE OBRAS CIVILES. S.G. S.G. | K4: 67,073,150.04 | L4: -13,414,630.00 | M4: 53,658,520.04 | N4: DOP | P4: ZLIN | Q4: 2016-01-01 | R4: 020/000 | T4: 1 | U4: UN | W4: 0.00 | X4: -3,353,657.50 | AA4: 2107080200 | AF4: 0.00 | AG4: 0.00 | AH4: 50,304,862.54 | AI4: -13,414,630.00 | AJ4: 0.00 | AK4: 0.00 | AL4: 0.00 | AM4: -3,353,657.50 | AN4: 0.00 | AO4: 0.00 | AP4: 0.00 | AQ4: 0.00 | AR4: 0.00 | AS4: 0.00 | AT4: 0.00 | AU4: 67,073,150.04 | AV4: -13,414,630.00 | AW4: -3,353,657.50
A5: 101120000090 | B5: 0 | C5: 2000 | E5: 8000000 | F5: 101-120 | G5: 120200510 | H5: Edificio | I5: 2015-12-31 | J5: COMPUERTA ENTRADA DE TOMA VERTICAL METAL | K5: 92,746.92 | L5: -18,549.40 | M5: 74,197.52 | N5: DOP | P5: ZLIN | Q5: 2016-01-01 | R5: 020/000 | T5: 1 | U5: UN | W5: 0.00 | X5: -4,637.35 | AA5: 2107090700 | AF5: 0.00 | AG5: 0.00 | AH5: 69,560.17 | AI5: -18,549.40 | AJ5: 0.00 | AK5: 0.00 | AL5: 0.00 | AM5: -4,637.35 | AN5: 0.00 | AO5: 0.00 | AP5: 0.00 | AQ5: 0.00 | AR5: 0.00 | AS5: 0.00 | AT5: 0.00 | AU5: 92,746.92 | AV5: -18,549.40 | AW5: -4,637.35
A6: 101120000091 | B6: 0 | C6: 2000 | E6: 8000000 | F6: 101-120 | G6: 120200510 | H6: Edificio | I6: 2015-12-31 | J6: COMPUERTA DESARENADOR PEQUEÑO OBRA DE TOMA | K6: 9,090.96 | L6: -1,818.20 | M6: 7,272.76 | N6: DOP | P6: ZLIN | Q6: 2016-01-01 | R6: 020/000 | T6: 1 | U6: UN | W6: 0.00 | X6: -454.55 | AA6: 2107090700 | AF6: 0.00 | AG6: 0.00 | AH6: 6,818.21 | AI6: -1,818.20 | AJ6: 0.00 | AK6: 0.00 | AL6: 0.00 | AM6: -454.55 | AN6: 0.00 | AO6: 0.00 | AP6: 0.00 | AQ6: 0.00 | AR6: 0.00 | AS6: 0.00 | AT6: 0.00 | AU6: 9,090.96 | AV6: -1,818.20 | AW6: -454.55
A7: 101120000092 | B7: 0 | C7: 2000 | E7: 8000000 | F7: 101-120 | G7: 120200510 | H7: Edificio | I7: 2015-12-31 | J7: CASA DE MAQUINA / EDIFICIO CONCRETO AZUL | K7: 4,174,603.72 | L7: -834,920.76 | M7: 3,339,682.96 | N7: DOP | P7: ZLIN | Q7: 2016-01-01 | R7: 020/000 | T7: 1 | U7: UN | W7: 0.00 | X7: -208,730.19 | AA7: 2107090700 | AF7: 0.00 | AG7: 0.00 | AH7: 3,130,952.77 | AI7: -834,920.76 | AJ7: 0.00 | AK7: 0.00 | AL7: 0.00 | AM7: -208,730.19 | AN7: 0.00 | AO7: 0.00 | AP7: 0.00 | AQ7: 0.00 | AR7: 0.00 | AS7: 0.00 | AT7: 0.00 | AU7: 4,174,603.72 | AV7: -834,920.76 | AW7: -208,730.19
A8: 101120000093 | B8: 0 | C8: 2000 | E8: 8000000 | F8: 101-120 | G8: 120200510 | H8: Edificio | I8: 2015-12-31 | J8: OBRA DE TOMA | K8: 3,894,612.48 | L8: -778,922.48 | M8: 3,115,690.00 | N8: DOP | P8: ZLIN | Q8: 2016-01-01 | R8: 020/000 | T8: 1 | U8: UN | W8: 0.00 | X8: -194,730.62 | AA8: 2107090700 | AF8: 0.00 | AG8: 0.00 | AH8: 2,920,959.38 | AI8: -778,922.48 | AJ8: 0.00 | AK8: 0.00 | AL8: 0.00 | AM8: -194,730.62 | AN8: 0.00 | AO8: 0.00 | AP8: 0.00 | AQ8: 0.00 | AR8: 0.00 | AS8: 0.00 | AT8: 0.00 | AU8: 3,894,612.48 | AV8: -778,922.48 | AW8: -194,730.62
A9: 101120000094 | B9: 0 | C9: 2000 | E9: 8000000 | F9: 101-120 | G9: 120200510 | H9: Edificio | I9: 2015-12-31 | J9: CANAL CONCRETO | K9: 18,034,480.52 | L9: -3,606,896.12 | M9: 14,427,584.40 | N9: DOP | P9: ZLIN | Q9: 2016-01-01 | R9: 020/000 | T9: 1 | U9: UN | W9: 0.00 | X9: -901,724.03 | AA9: 2107090700 | AF9: 0.00 | AG9: 0.00 | AH9: 13,525,860.37 | AI9: -3,606,896.12 | AJ9: 0.00 | AK9: 0.00 | AL9: 0.00 | AM9: -901,724.03 | AN9: 0.00 | AO9: 0.00 | AP9: 0.00 | AQ9: 0.00 | AR9: 0.00 | AS9: 0.00 | AT9: 0.00 | AU9: 18,034,480.52 | AV9: -3,606,896.12 | AW9: -901,724.03
A10: 101120000095 | B10: 0 | C10: 2000 | E10: 8000000 | F10: 101-120 | G10: 120200510 | H10: Edificio | I10: 2015-12-31 | J10: TUBERIA FORZADA VERDE | K10: 789,304.32 | L10: -157,860.88 | M10: 631,443.44 | N10: DOP | P10: ZLIN | Q10: 2016-01-01 | R10: 020/000 | T10: 1 | U10: UN | W10: 0.00 | X10: -39,465.22 | AA10: 2107090700 | AF10: 0.00 | AG10: 0.00 | AH10: 591,978.22 | AI10: -157,860.88 | AJ10: 0.00 | AK10: 0.00 | AL10: 0.00 | AM10: -39,465.22 | AN10: 0.00 | AO10: 0.00 | AP10: 0.00 | AQ10: 0.00 | AR10: 0.00 | AS10: 0.00 | AT10: 0.00 | AU10: 789,304.32 | AV10: -157,860.88 | AW10: -39,465.22
A11: 101120000096 | B11: 0 | C11: 2000 | E11: 8000000 | F11: 101-120 | G11: 120200510 | H11: Edificio | I11: 2015-12-31 | J11: DESARENADOR CONCRETO | K11: 551,992.32 | L11: -110,398.48 | M11: 441,593.84 | N11: DOP | P11: ZLIN | Q11: 2016-01-01 | R11: 020/000 | T11: 1 | U11: UN | W11: 0.00 | X11: -27,599.62 | AA11: 2107090700 | AF11: 0.00 | AG11: 0.00 | AH11: 413,994.22 | AI11: -110,398.48 | AJ11: 0.00 | AK11: 0.00 | AL11: 0.00 | AM11: -27,599.62 | AN11: 0.00 | AO11: 0.00 | AP11: 0.00 | AQ11: 0.00 | AR11: 0.00 | AS11: 0.00 | AT11: 0.00 | AU11: 551,992.32 | AV11: -110,398.48 | AW11: -27,599.62
A12: 101120000097 | B12: 0 | C12: 2000 | E12: 8000000 | F12: 101-120 | G12: 120200510 | H12: Edificio | I12: 2015-12-31 | J12: EDIFICIO OFICINA,COCINA,CASETA DIESEL | K12: 238,431.32 | L12: -47,686.28 | M12: 190,745.04 | N12: DOP | P12: ZLIN | Q12: 2016-01-01 | R12: 020/000 | T12: 1 | U12: UN | W12: 0.00 | X12: -11,921.57 | AA12: 2107090700 | AF12: 0.00 | AG12: 0.00 | AH12: 178,823.47 | AI12: -47,686.28 | AJ12: 0.00 | AK12: 0.00 | AL12: 0.00 | AM12: -11,921.57 | AN12: 0.00 | AO12: 0.00 | AP12: 0.00 | AQ12: 0.00 | AR12: 0.00 | AS12: 0.00 | AT12: 0.00 | AU12: 238,431.32 | AV12: -47,686.28 | AW12: -11,921.57
A13: 101120000098 | B13: 0 | C13: 2000 | E13: 8000000 | F13: 101-120 | G13: 120200510 | H13: Edificio | I13: 2015-12-31 | J13: TRABAJOS PRELIMINARES, INVESTIGACION DE SUELOS Y | K13: 1,472,870.24 | L13: -294,574.04 | M13: 1,178,296.20 | N13: DOP | P13: ZLIN | Q13: 2016-01-01 | R13: 020/000 | T13: 1 | U13: UN | W13: 0.00 | X13: -73,643.51 | AA13: 2107090700 | AF13: 0.00 | AG13: 0.00 | AH13: 1,104,652.69 | AI13: -294,574.04 | AJ13: 0.00 | AK13: 0.00 | AL13: 0.00 | AM13: -73,643.51 | AN13: 0.00 | AO13: 0.00 | AP13: 0.00 | AQ13: 0.00 | AR13: 0.00 | AS13: 0.00 | AT13: 0.00 | AU13: 1,472,870.24 | AV13: -294,574.04 | AW13: -73,643.51
A14: 101120000099 | B14: 0 | C14: 2000 | E14: 8000000 | F14: 101-120 | G14: 120200510 | H14: Edificio | I14: 2015-12-31 | J14: NIVELACION, RELLENO Y COMPACTACION DEL TERRENO. S | K14: 72,799.44 | L14: -14,559.88 | M14: 58,239.56 | N14: DOP | P14: ZLIN | Q14: 2016-01-01 | R14: 020/000 | T14: 1 | U14: UN | W14: 0.00 | X14: -3,639.97 | AA14: 2107090700 | AF14: 0.00 | AG14: 0.00 | AH14: 54,599.59 | AI14: -14,559.88 | AJ14: 0.00 | AK14: 0.00 | AL14: 0.00 | AM14: -3,639.97 | AN14: 0.00 | AO14: 0.00 | AP14: 0.00 | AQ14: 0.00 | AR14: 0.00 | AS14: 0.00 | AT14: 0.00 | AU14: 72,799.44 | AV14: -14,559.88 | AW14: -3,639.97
A15: 101120000100 | B15: 0 | C15: 2000 | E15: 8000000 | F15: 101-120 | G15: 120200510 | H15: Edificio | I15: 2015-12-31 | J15: DRENAJES CENTRAL ANIANA VARGAS | K15: 6,605.72 | L15: -1,321.16 | M15: 5,284.56 | N15: DOP | P15: ZLIN | Q15: 2016-01-01 | R15: 020/000 | T15: 1 | U15: UN | W15: 0.00 | X15: -330.29 | AA15: 2107090700 | AF15: 0.00 | AG15: 0.00 | AH15: 4,954.27 | AI15: -1,321.16 | AJ15: 0.00 | AK15: 0.00 | AL15: 0.00 | AM15: -330.29 | AN15: 0.00 | AO15: 0.00 | AP15: 0.00 | AQ15: 0.00 | AR15: 0.00 | AS15: 0.00 | AT15: 0.00 | AU15: 6,605.72 | AV15: -1,321.16 | AW15: -330.29
A16: 101120000101 | B16: 0 | C16: 2000 | E16: 8000000 | F16: 101-120 | G16: 120200510 | H16: Edificio | I16: 2015-12-31 | J16: SOPORTES MONOLITICOS | K16: 279,311.16 | L16: -55,862.24 | M16: 223,448.92 | N16: DOP | P16: ZLIN | Q16: 2016-01-01 | R16: 020/000 | T16: 1 | U16: UN | W16: 0.00 | X16: -13,965.56 | AA16: 2107090700 | AF16: 0.00 | AG16: 0.00 | AH16: 209,483.36 | AI16: -55,862.24 | AJ16: 0.00 | AK16: 0.00 | AL16: 0.00 | AM16: -13,965.56 | AN16: 0.00 | AO16: 0.00 | AP16: 0.00 | AQ16: 0.00 | AR16: 0.00 | AS16: 0.00 | AT16: 0.00 | AU16: 279,311.16 | AV16: -55,862.24 | AW16: -13,965.56
A17: 101120000102 | B17: 0 | C17: 2000 | E17: 8000000 | F17: 101-120 | G17: 120200510 | H17: Edificio | I17: 2015-12-31 | J17: CANALETAS CENTRAL ANIANA VARGAS | K17: 20,518.00 | L17: -4,103.60 | M17: 16,414.40 | N17: DOP | P17: ZLIN | Q17: 2016-01-01 | R17: 020/000 | T17: 1 | U17: UN | W17: 0.00 | X17: -1,025.90 | AA17: 2107090700 | AF17: 0.00 | AG17: 0.00 | AH17: 15,388.50 | AI17: -4,103.60 | AJ17: 0.00 | AK17: 0.00 | AL17: 0.00 | AM17: -1,025.90 | AN17: 0.00 | AO17: 0.00 | AP17: 0.00 | AQ17: 0.00 | AR17: 0.00 | AS17: 0.00 | AT17: 0.00 | AU17: 20,518.00 | AV17: -4,103.60 | AW17: -1,025.90
A18: 101120000103 | B18: 0 | C18: 2000 | E18: 8000000 | F18: 101-120 | G18: 120200510 | H18: Edificio | I18: 2015-12-31 | J18: ACERAS CENTRAL ANIANA VARGAS | K18: 1,330.00 | L18: -266.00 | M18: 1,064.00 | N18: DOP | P18: ZLIN | Q18: 2016-01-01 | R18: 020/000 | T18: 1 | U18: UN | W18: 0.00 | X18: -66.50 | AA18: 2107090700 | AF18: 0.00 | AG18: 0.00 | AH18: 997.50 | AI18: -266.00 | AJ18: 0.00 | AK18: 0.00 | AL18: 0.00 | AM18: -66.50 | AN18: 0.00 | AO18: 0.00 | AP18: 0.00 | AQ18: 0.00 | AR18: 0.00 | AS18: 0.00 | AT18: 0.00 | AU18: 1,330.00 | AV18: -266.00 | AW18: -66.50
A19: 101120000104 | B19: 0 | C19: 2000 | E19: 8000000 | F19: 101-120 | G19: 120200510 | H19: Edificio | I19: 2015-12-31 | J19: AREA CUADRADA CENTRAL ANIANA VARGAS | K19: 12,976.84 | L19: -2,595.36 | M19: 10,381.48 | N19: DOP | P19: ZLIN | Q19: 2016-01-01 | R19: 020/000 | T19: 1 | U19: UN | W19: 0.00 | X19: -648.84 | AA19: 2107090700 | AF19: 0.00 | AG19: 0.00 | AH19: 9,732.64 | AI19: -2,595.36 | AJ19: 0.00 | AK19: 0.00 | AL19: 0.00 | AM19: -648.84 | AN19: 0.00 | AO19: 0.00 | AP19: 0.00 | AQ19: 0.00 | AR19: 0.00 | AS19: 0.00 | AT19: 0.00 | AU19: 12,976.84 | AV19: -2,595.36 | AW19: -648.84
A20: 101120000105 | B20: 0 | C20: 2000 | E20: 8000000 | F20: 101-120 | G20: 120200510 | H20: Edificio | I20: 2015-12-31 | J20: PRESA ANIANA VARGAS | K20: 10,722,787.72 | L20: -2,144,557.56 | M20: 8,578,230.16 | N20: DOP | P20: ZLIN | Q20: 2016-01-01 | R20: 020/000 | T20: 1 | U20: UN | W20: 0.00 | X20: -536,139.39 | AA20: 2107090700 | AF20: 0.00 | AG20: 0.00 | AH20: 8,042,090.77 | AI20: -2,144,557.56 | AJ20: 0.00 | AK20: 0.00 | AL20: 0.00 | AM20: -536,139.39 | AN20: 0.00 | AO20: 0.00 | AP20: 0.00 | AQ20: 0.00 | AR20: 0.00 | AS20: 0.00 | AT20: 0.00 | AU20: 10,722,787.72 | AV20: -2,144,557.56 | AW20: -536,139.39
A21: 101120000106 | B21: 0 | C21: 2000 | E21: 8000000 | F21: 101-120 | G21: 120200510 | H21: Edificio | I21: 2015-12-31 | J21: PRESA | K21: 3,110,427.52 | L21: -622,085.52 | M21: 2,488,342.00 | N21: DOP | P21: ZLIN | Q21: 2016-01-01 | R21: 020/000 | T21: 1 | U21: UN | W21: 0.00 | X21: -155,521.38 | AA21: 2107040500 | AF21: 0.00 | AG21: 0.00 | AH21: 2,332,820.62 | AI21: -622,085.52 | AJ21: 0.00 | AK21: 0.00 | AL21: 0.00 | AM21: -155,521.38 | AN21: 0.00 | AO21: 0.00 | AP21: 0.00 | AQ21: 0.00 | AR21: 0.00 | AS21: 0.00 | AT21: 0.00 | AU21: 3,110,427.52 | AV21: -622,085.52 | AW21: -155,521.38
A22: 101120000108 | B22: 0 | C22: 2000 | E22: 8000000 | F22: 101-120 | G22: 120200510 | H22: Edificio | I22: 2015-12-31 | J22: CASETA DE GUARDA. 12 M2. | K22: 6,285.48 | L22: -1,257.08 | M22: 5,028.40 | N22: DOP | P22: ZLIN | Q22: 2016-01-01 | R22: 020/000 | T22: 1 | U22: UN | W22: 0.00 | X22: -314.27 | AA22: 2107031400 | AF22: 0.00 | AG22: 0.00 | AH22: 4,714.13 | AI22: -1,257.08 | AJ22: 0.00 | AK22: 0.00 | AL22: 0.00 | AM22: -314.27 | AN22: 0.00 | AO22: 0.00 | AP22: 0.00 | AQ22: 0.00 | AR22: 0.00 | AS22: 0.00 | AT22: 0.00 | AU22: 6,285.48 | AV22: -1,257.08 | AW22: -314.27
A23: 101120000109 | B23: 0 | C23: 2000 | E23: 8000000 | F23: 101-120 | G23: 120200510 | H23: Edificio | I23: 2015-12-31 | J23: TUBERIA CONDUCCION | K23: 6,761,503.16 | L23: -1,352,300.64 | M23: 5,409,202.52 | N23: DOP | P23: ZLIN | Q23: 2016-01-01 | R23: 020/000 | T23: 1 | U23: UN | W23: 0.00 | X23: -338,075.16 | AA23: 2107031400 | AF23: 0.00 | AG23: 0.00 | AH23: 5,071,127.36 | AI23: -1,352,300.64 | AJ23: 0.00 | AK23: 0.00 | AL23: 0.00 | AM23: -338,075.16 | AN23: 0.00 | AO23: 0.00 | AP23: 0.00 | AQ23: 0.00 | AR23: 0.00 | AS23: 0.00 | AT23: 0.00 | AU23: 6,761,503.16 | AV23: -1,352,300.64 | AW23: -338,075.16
A24: 101120000110 | B24: 0 | C24: 2000 | E24: 8000000 | F24: 101-120 | G24: 120200510 | H24: Edificio | I24: 2015-12-31 | J24: TUBERIA PRESION | K24: 6,198,046.28 | L24: -1,239,609.24 | M24: 4,958,437.04 | N24: DOP | P24: ZLIN | Q24: 2016-01-01 | R24: 020/000 | T24: 1 | U24: UN | W24: 0.00 | X24: -309,902.31 | AA24: 2107031400 | AF24: 0.00 | AG24: 0.00 | AH24: 4,648,534.73 | AI24: -1,239,609.24 | AJ24: 0.00 | AK24: 0.00 | AL24: 0.00 | AM24: -309,902.31 | AN24: 0.00 | AO24: 0.00 | AP24: 0.00 | AQ24: 0.00 | AR24: 0.00 | AS24: 0.00 | AT24: 0.00 | AU24: 6,198,046.28 | AV24: -1,239,609.24 | AW24: -309,902.31
A25: 101120000111 | B25: 0 | C25: 2000 | E25: 8000000 | F25: 101-120 | G25: 120200510 | H25: Edificio | I25: 2015-12-31 | J25: VIALIDAD DE ACCESO. S.G | K25: 807,298.64 | L25: -161,459.72 | M25: 645,838.92 | N25: DOP | P25: ZLIN | Q25: 2016-01-01 | R25: 020/000 | T25: 1 | U25: UN | W25: 0.00 | X25: -40,364.93 | AA25: 2107031400 | AF25: 0.00 | AG25: 0.00 | AH25: 605,473.99 | AI25: -161,459.72 | AJ25: 0.00 | AK25: 0.00 | AL25: 0.00 | AM25: -40,364.93 | AN25: 0.00 | AO25: 0.00 | AP25: 0.00 | AQ25: 0.00 | AR25: 0.00 | AS25: 0.00 | AT25: 0.00 | AU25: 807,298.64 | AV25: -161,459.72 | AW25: -40,364.93
A26: 101120000112 | B26: 0 | C26: 2000 | E26: 8000000 | F26: 101-120 | G26: 120200510 | H26: Edificio | I26: 2015-12-31 | J26: VERJA PERIMETRAL CENTRAL BRAZO DERECHO | K26: 68,624.00 | L26: -13,724.80 | M26: 54,899.20 | N26: DOP | P26: ZLIN | Q26: 2016-01-01 | R26: 020/000 | T26: 1 | U26: UN | W26: 0.00 | X26: -3,431.20 | AA26: 2107031400 | AF26: 0.00 | AG26: 0.00 | AH26: 51,468.00 | AI26: -13,724.80 | AJ26: 0.00 | AK26: 0.00 | AL26: 0.00 | AM26: -3,431.20 | AN26: 0.00 | AO26: 0.00 | AP26: 0.00 | AQ26: 0.00 | AR26: 0.00 | AS26: 0.00 | AT26: 0.00 | AU26: 68,624.00 | AV26: -13,724.80 | AW26: -3,431.20
A27: 101120000113 | B27: 0 | C27: 2000 | E27: 8000000 | F27: 101-120 | G27: 120200510 | H27: Edificio | I27: 2015-12-31 | J27: CANAL DE DESCARGA. S.G. | K27: 4,507,664.84 | L27: -901,532.96 | M27: 3,606,131.88 | N27: DOP | P27: ZLIN | Q27: 2016-01-01 | R27: 020/000 | T27: 1 | U27: UN | W27: 0.00 | X27: -225,383.24 | AA27: 2107031400 | AF27: 0.00 | AG27: 0.00 | AH27: 3,380,748.64 | AI27: -901,532.96 | AJ27: 0.00 | AK27: 0.00 | AL27: 0.00 | AM27: -225,383.24 | AN27: 0.00 | AO27: 0.00 | AP27: 0.00 | AQ27: 0.00 | AR27: 0.00 | AS27: 0.00 | AT27: 0.00 | AU27: 4,507,664.84 | AV27: -901,532.96 | AW27: -225,383.24
A28: 101120000114 | B28: 0 | C28: 2000 | E28: 8000000 | F28: 101-120 | G28: 120200510 | H28: Edificio | I28: 2015-12-31 | J28: CASA DE MAQUINAS | K28: 7,476,408.52 | L28: -1,495,281.72 | M28: 5,981,126.80 | N28: DOP | P28: ZLIN | Q28: 2016-01-01 | R28: 020/000 | T28: 1 | U28: UN | W28: 0.00 | X28: -373,820.43 | AA28: 2107031400 | AF28: 0.00 | AG28: 0.00 | AH28: 5,607,306.37 | AI28: -1,495,281.72 | AJ28: 0.00 | AK28: 0.00 | AL28: 0.00 | AM28: -373,820.43 | AN28: 0.00 | AO28: 0.00 | AP28: 0.00 | AQ28: 0.00 | AR28: 0.00 | AS28: 0.00 | AT28: 0.00 | AU28: 7,476,408.52 | AV28: -1,495,281.72 | AW28: -373,820.43
A29: 101120000115 | B29: 0 | C29: 2000 | E29: 8000000 | F29: 101-120 | G29: 120200510 | H29: Edificio | I29: 2015-02-28 | J29: DESTACAMENTO MILITAR 40 M2 | K29: 22,856.00 | L29: -4,571.20 | M29: 18,284.80 | N29: DOP | P29: ZLIN | Q29: 2015-03-01 | R29: 020/000 | T29: 1 | U29: UN | W29: 0.00 | X29: -1,142.80 | AA29: 2107031400 | AF29: 0.00 | AG29: 0.00 | AH29: 17,142.00 | AI29: -4,571.20 | AJ29: 0.00 | AK29: 0.00 | AL29: 0.00 | AM29: -1,142.80 | AN29: 0.00 | AO29: 0.00 | AP29: 0.00 | AQ29: 0.00 | AR29: 0.00 | AS29: 0.00 | AT29: 0.00 | AU29: 22,856.00 | AV29: -4,571.20 | AW29: -1,142.80
A30: 101120000116 | B30: 0 | C30: 2000 | E30: 8000000 | F30: 101-120 | G30: 120200510 | H30: Edificio | I30: 2015-12-31 | J30: VERJA PERIMETRAL CAMPAMENTO SEGURIDAD MILITAR | K30: 96,082.76 | L30: -19,216.56 | M30: 76,866.20 | N30: DOP | P30: ZLIN | Q30: 2016-01-01 | R30: 020/000 | T30: 1 | U30: UN | W30: 0.00 | X30: -4,804.14 | AA30: 2107031400 | AF30: 0.00 | AG30: 0.00 | AH30: 72,062.06 | AI30: -19,216.56 | AJ30: 0.00 | AK30: 0.00 | AL30: 0.00 | AM30: -4,804.14 | AN30: 0.00 | AO30: 0.00 | AP30: 0.00 | AQ30: 0.00 | AR30: 0.00 | AS30: 0.00 | AT30: 0.00 | AU30: 96,082.76 | AV30: -19,216.56 | AW30: -4,804.14
A31: 101120000117 | B31: 0 | C31: 2000 | E31: 8000000 | F31: 101-120 | G31: 120200510 | H31: Edificio | I31: 2015-12-31 | J31: CASETA DE GUARDA DE LA OBRA DE TOMA. 10 M2. | K31: 5,242.76 | L31: -1,048.56 | M31: 4,194.20 | N31: DOP | P31: ZLIN | Q31: 2016-01-01 | R31: 020/000 | T31: 1 | U31: UN | W31: 0.00 | X31: -262.14 | AA31: 2107031400 | AF31: 0.00 | AG31: 0.00 | AH31: 3,932.06 | AI31: -1,048.56 | AJ31: 0.00 | AK31: 0.00 | AL31: 0.00 | AM31: -262.14 | AN31: 0.00 | AO31: 0.00 | AP31: 0.00 | AQ31: 0.00 | AR31: 0.00 | AS31: 0.00 | AT31: 0.00 | AU31: 5,242.76 | AV31: -1,048.56 | AW31: -262.14
A32: 101120000118 | B32: 0 | C32: 2000 | E32: 8000000 | F32: 101-120 | G32: 120200510 | H32: Edificio | I32: 2015-12-31 | J32: OBRA DE TOMA | K32: 9,578,797.44 | L32: -1,915,759.48 | M32: 7,663,037.96 | N32: DOP | P32: ZLIN | Q32: 2016-01-01 | R32: 020/000 | T32: 1 | U32: UN | W32: 0.00 | X32: -478,939.87 | AA32: 2107031400 | AF32: 0.00 | AG32: 0.00 | AH32: 7,184,098.09 | AI32: -1,915,759.48 | AJ32: 0.00 | AK32: 0.00 | AL32: 0.00 | AM32: -478,939.87 | AN32: 0.00 | AO32: 0.00 | AP32: 0.00 | AQ32: 0.00 | AR32: 0.00 | AS32: 0.00 | AT32: 0.00 | AU32: 9,578,797.44 | AV32: -1,915,759.48 | AW32: -478,939.87
A33: 101120000119 | B33: 0 | C33: 2000 | E33: 8000000 | F33: 101-120 | G33: 120200510 | H33: Edificio | I33: 2015-12-31 | J33: VERJA PERIMETRAL DE LA OBRA DE TOMA. | K33: 27,449.60 | L33: -5,489.92 | M33: 21,959.68 | N33: DOP | P33: ZLIN | Q33: 2016-01-01 | R33: 020/000 | T33: 1 | U33: UN | W33: 0.00 | X33: -1,372.48 | AA33: 2107031400 | AF33: 0.00 | AG33: 0.00 | AH33: 20,587.20 | AI33: -5,489.92 | AJ33: 0.00 | AK33: 0.00 | AL33: 0.00 | AM33: -1,372.48 | AN33: 0.00 | AO33: 0.00 | AP33: 0.00 | AQ33: 0.00 | AR33: 0.00 | AS33: 0.00 | AT33: 0.00 | AU33: 27,449.60 | AV33: -5,489.92 | AW33: -1,372.48
A34: 101120000120 | B34: 0 | C34: 2000 | E34: 8000000 | F34: 101-120 | G34: 120200510 | H34: Edificio | I34: 2015-12-31 | J34: INGENIERIA BASICA Y DE DISEÑO CENTRAL BRAZO DEREC | K34: 1,495,279.52 | L34: -299,055.92 | M34: 1,196,223.60 | N34: DOP | P34: ZLIN | Q34: 2016-01-01 | R34: 020/000 | T34: 1 | U34: UN | W34: 0.00 | X34: -74,763.98 | AA34: 2107031400 | AF34: 0.00 | AG34: 0.00 | AH34: 1,121,459.62 | AI34: -299,055.92 | AJ34: 0.00 | AK34: 0.00 | AL34: 0.00 | AM34: -74,763.98 | AN34: 0.00 | AO34: 0.00 | AP34: 0.00 | AQ34: 0.00 | AR34: 0.00 | AS34: 0.00 | AT34: 0.00 | AU34: 1,495,279.52 | AV34: -299,055.92 | AW34: -74,763.98
A35: 101120000121 | B35: 0 | C35: 2000 | E35: 8000000 | F35: 101-120 | G35: 120200510 | H35: Edificio | I35: 2015-12-31 | J35: TUBERIA FORZADA | K35: 33,856,474.44 | L35: -6,771,294.88 | M35: 27,085,179.56 | N35: DOP | P35: ZLIN | Q35: 2016-01-01 | R35: 020/000 | T35: 1 | U35: UN | W35: 0.00 | X35: -1,692,823.72 | AA35: 2107031400 | AF35: 0.00 | AG35: 0.00 | AH35: 25,392,355.84 | AI35: -6,771,294.88 | AJ35: 0.00 | AK35: 0.00 | AL35: 0.00 | AM35: -1,692,823.72 | AN35: 0.00 | AO35: 0.00 | AP35: 0.00 | AQ35: 0.00 | AR35: 0.00 | AS35: 0.00 | AT35: 0.00 | AU35: 33,856,474.44 | AV35: -6,771,294.88 | AW35: -1,692,823.72
A36: 101120000122 | B36: 0 | C36: 2000 | E36: 8000000 | F36: 101-120 | G36: 120200510 | H36: Edificio | I36: 2015-12-31 | J36: TUBERIA ACERO AL CARBONO | K36: 93,881.36 | L36: -18,776.28 | M36: 75,105.08 | N36: DOP | P36: ZLIN | Q36: 2016-01-01 | R36: 020/000 | T36: 1 | U36: UN | W36: 0.00 | X36: -4,694.07 | AA36: 2107041200 | AF36: 0.00 | AG36: 0.00 | AH36: 70,411.01 | AI36: -18,776.28 | AJ36: 0.00 | AK36: 0.00 | AL36: 0.00 | AM36: -4,694.07 | AN36: 0.00 | AO36: 0.00 | AP36: 0.00 | AQ36: 0.00 | AR36: 0.00 | AS36: 0.00 | AT36: 0.00 | AU36: 93,881.36 | AV36: -18,776.28 | AW36: -4,694.07
A37: 101120000123 | B37: 0 | C37: 2000 | E37: 8000000 | F37: 101-120 | G37: 120200510 | H37: Edificio | I37: 2015-12-31 | J37: OBRA DE TOMA COMPUERTA DESARENADOR CAMARA DE CA | K37: 64,240.44 | L37: -12,848.08 | M37: 51,392.36 | N37: DOP | P37: ZLIN | Q37: 2016-01-01 | R37: 020/000 | T37: 1 | U37: UN | W37: 0.00 | X37: -3,212.02 | AA37: 2107041200 | AF37: 0.00 | AG37: 0.00 | AH37: 48,180.34 | AI37: -12,848.08 | AJ37: 0.00 | AK37: 0.00 | AL37: 0.00 | AM37: -3,212.02 | AN37: 0.00 | AO37: 0.00 | AP37: 0.00 | AQ37: 0.00 | AR37: 0.00 | AS37: 0.00 | AT37: 0.00 | AU37: 64,240.44 | AV37: -12,848.08 | AW37: -3,212.02
A38: 101120000124 | B38: 0 | C38: 2000 | E38: 8000000 | F38: 101-120 | G38: 120200510 | H38: Edificio | I38: 2015-12-31 | J38: OBRA DE TOMA COMPUERTA DE CANAL DE CAMARA DE CA | K38: 123,523.48 | L38: -24,704.68 | M38: 98,818.80 | N38: DOP | P38: ZLIN | Q38: 2016-01-01 | R38: 020/000 | T38: 1 | U38: UN | W38: 0.00 | X38: -6,176.17 | AA38: 2107041200 | AF38: 0.00 | AG38: 0.00 | AH38: 92,642.63 | AI38: -24,704.68 | AJ38: 0.00 | AK38: 0.00 | AL38: 0.00 | AM38: -6,176.17 | AN38: 0.00 | AO38: 0.00 | AP38: 0.00 | AQ38: 0.00 | AR38: 0.00 | AS38: 0.00 | AT38: 0.00 | AU38: 123,523.48 | AV38: -24,704.68 | AW38: -6,176.17
A39: 101120000125 | B39: 0 | C39: 2000 | E39: 8000000 | F39: 101-120 | G39: 120200510 | H39: Edificio | I39: 2015-12-31 | J39: CASA MAQUINAS | K39: 10,827,293.56 | L39: -2,165,458.72 | M39: 8,661,834.84 | N39: DOP | P39: ZLIN | Q39: 2016-01-01 | R39: 020/000 | T39: 1 | U39: UN | W39: 0.00 | X39: -541,364.68 | AA39: 2107041200 | AF39: 0.00 | AG39: 0.00 | AH39: 8,120,470.16 | AI39: -2,165,458.72 | AJ39: 0.00 | AK39: 0.00 | AL39: 0.00 | AM39: -541,364.68 | AN39: 0.00 | AO39: 0.00 | AP39: 0.00 | AQ39: 0.00 | AR39: 0.00 | AS39: 0.00 | AT39: 0.00 | AU39: 10,827,293.56 | AV39: -2,165,458.72 | AW39: -541,364.68
A40: 101120000126 | B40: 0 | C40: 2000 | E40: 8000000 | F40: 101-120 | G40: 120200510 | H40: Edificio | I40: 2015-12-31 | J40: EDIFICIO MAMPOSTERIA DE CONCRETO, PISO CERAMIC | K40: 402,240.76 | L40: -80,448.16 | M40: 321,792.60 | N40: DOP | P40: ZLIN | Q40: 2016-01-01 | R40: 020/000 | T40: 1 | U40: UN | W40: 0.00 | X40: -20,112.04 | AA40: 2107041200 | AF40: 0.00 | AG40: 0.00 | AH40: 301,680.56 | AI40: -80,448.16 | AJ40: 0.00 | AK40: 0.00 | AL40: 0.00 | AM40: -20,112.04 | AN40: 0.00 | AO40: 0.00 | AP40: 0.00 | AQ40: 0.00 | AR40: 0.00 | AS40: 0.00 | AT40: 0.00 | AU40: 402,240.76 | AV40: -80,448.16 | AW40: -20,112.04
A41: 101120000127 | B41: 0 | C41: 2000 | E41: 8000000 | F41: 101-120 | G41: 120200510 | H41: Edificio | I41: 2015-12-31 | J41: CAMARA MAMPOSTERIA DE CONCRETO, PISO CERAMICO, R | K41: 283,935.44 | L41: -56,787.08 | M41: 227,148.36 | N41: DOP | P41: ZLIN | Q41: 2016-01-01 | R41: 020/000 | T41: 1 | U41: UN | W41: 0.00 | X41: -14,196.77 | AA41: 2107041200 | AF41: 0.00 | AG41: 0.00 | AH41: 212,951.59 | AI41: -56,787.08 | AJ41: 0.00 | AK41: 0.00 | AL41: 0.00 | AM41: -14,196.77 | AN41: 0.00 | AO41: 0.00 | AP41: 0.00 | AQ41: 0.00 | AR41: 0.00 | AS41: 0.00 | AT41: 0.00 | AU41: 283,935.44 | AV41: -56,787.08 | AW41: -14,196.77
A42: 101120000128 | B42: 0 | C42: 2000 | E42: 8000000 | F42: 101-120 | G42: 120200510 | H42: Edificio | I42: 2015-12-31 | J42: CAMARA ESTRUCTURA METALICA SECCIONES I O H, CUBI | K42: 83,720.84 | L42: -16,744.16 | M42: 66,976.68 | N42: DOP | P42: ZLIN | Q42: 2016-01-01 | R42: 020/000 | T42: 1 | U42: UN | W42: 0.00 | X42: -4,186.04 | AA42: 2107041200 | AF42: 0.00 | AG42: 0.00 | AH42: 62,790.64 | AI42: -16,744.16 | AJ42: 0.00 | AK42: 0.00 | AL42: 0.00 | AM42: -4,186.04 | AN42: 0.00 | AO42: 0.00 | AP42: 0.00 | AQ42: 0.00 | AR42: 0.00 | AS42: 0.00 | AT42: 0.00 | AU42: 83,720.84 | AV42: -16,744.16 | AW42: -4,186.04
A43: 101120000129 | B43: 0 | C43: 2000 | E43: 8000000 | F43: 101-120 | G43: 120200510 | H43: Edificio | I43: 2015-12-31 | J43: CANAL DE ALIMENTACION CENTRAL DOMINGO RODRIGUEZ | K43: 468,944.84 | L43: -93,788.96 | M43: 375,155.88 | N43: DOP | P43: ZLIN | Q43: 2016-01-01 | R43: 020/000 | T43: 1 | U43: UN | W43: 0.00 | X43: -23,447.24 | AA43: 2107041200 | AF43: 0.00 | AG43: 0.00 | AH43: 351,708.64 | AI43: -93,788.96 | AJ43: 0.00 | AK43: 0.00 | AL43: 0.00 | AM43: -23,447.24 | AN43: 0.00 | AO43: 0.00 | AP43: 0.00 | AQ43: 0.00 | AR43: 0.00 | AS43: 0.00 | AT43: 0.00 | AU43: 468,944.84 | AV43: -93,788.96 | AW43: -23,447.24
A44: 101120000130 | B44: 0 | C44: 2000 | E44: 8000000 | F44: 101-120 | G44: 120200510 | H44: Edificio | I44: 2015-12-31 | J44: OBRA DE TOMA | K44: 6,556,538.28 | L44: -1,311,307.64 | M44: 5,245,230.64 | N44: DOP | P44: ZLIN | Q44: 2016-01-01 | R44: 020/000 | T44: 1 | U44: UN | W44: 0.00 | X44: -327,826.91 | AA44: 2107041200 | AF44: 0.00 | AG44: 0.00 | AH44: 4,917,403.73 | AI44: -1,311,307.64 | AJ44: 0.00 | AK44: 0.00 | AL44: 0.00 | AM44: -327,826.91 | AN44: 0.00 | AO44: 0.00 | AP44: 0.00 | AQ44: 0.00 | AR44: 0.00 | AS44: 0.00 | AT44: 0.00 | AU44: 6,556,538.28 | AV44: -1,311,307.64 | AW44: -327,826.91
A45: 101120000131 | B45: 0 | C45: 2000 | E45: 8000000 | F45: 101-120 | G45: 120200510 | H45: Edificio | I45: 2015-12-31 | J45: TUBERIA | K45: 1,012,053.16 | L45: -202,410.64 | M45: 809,642.52 | N45: DOP | P45: ZLIN | Q45: 2016-01-01 | R45: 020/000 | T45: 1 | U45: UN | W45: 0.00 | X45: -50,602.66 | AA45: 2107041200 | AF45: 0.00 | AG45: 0.00 | AH45: 759,039.86 | AI45: -202,410.64 | AJ45: 0.00 | AK45: 0.00 | AL45: 0.00 | AM45: -50,602.66 | AN45: 0.00 | AO45: 0.00 | AP45: 0.00 | AQ45: 0.00 | AR45: 0.00 | AS45: 0.00 | AT45: 0.00 | AU45: 1,012,053.16 | AV45: -202,410.64 | AW45: -50,602.66
A46: 101120000132 | B46: 0 | C46: 2000 | E46: 8000000 | F46: 101-120 | G46: 120200510 | H46: Edificio | I46: 2015-12-31 | J46: VERJA PERIMETRAL | K46: 57,358.88 | L46: -11,471.76 | M46: 45,887.12 | N46: DOP | P46: ZLIN | Q46: 2016-01-01 | R46: 020/000 | T46: 1 | U46: UN | W46: 0.00 | X46: -2,867.94 | AA46: 2107041200 | AF46: 0.00 | AG46: 0.00 | AH46: 43,019.18 | AI46: -11,471.76 | AJ46: 0.00 | AK46: 0.00 | AL46: 0.00 | AM46: -2,867.94 | AN46: 0.00 | AO46: 0.00 | AP46: 0.00 | AQ46: 0.00 | AR46: 0.00 | AS46: 0.00 | AT46: 0.00 | AU46: 57,358.88 | AV46: -11,471.76 | AW46: -2,867.94
A47: 101120000133 | B47: 0 | C47: 2000 | E47: 8000000 | F47: 101-120 | G47: 120200510 | H47: Edificio | I47: 2015-12-31 | J47: VERJA PERIMETRAL | K47: 101,767.52 | L47: -20,353.52 | M47: 81,414.00 | N47: DOP | P47: ZLIN | Q47: 2016-01-01 | R47: 020/000 | T47: 1 | U47: UN | W47: 0.00 | X47: -5,088.38 | AA47: 2107041200 | AF47: 0.00 | AG47: 0.00 | AH47: 76,325.62 | AI47: -20,353.52 | AJ47: 0.00 | AK47: 0.00 | AL47: 0.00 | AM47: -5,088.38 | AN47: 0.00 | AO47: 0.00 | AP47: 0.00 | AQ47: 0.00 | AR47: 0.00 | AS47: 0.00 | AT47: 0.00 | AU47: 101,767.52 | AV47: -20,353.52 | AW47: -5,088.38
A48: 101120000134 | B48: 0 | C48: 2000 | E48: 8000000 | F48: 101-120 | G48: 120200510 | H48: Edificio | I48: 2015-12-31 | J48: VIALIDAD | K48: 353,177.08 | L48: -70,635.40 | M48: 282,541.68 | N48: DOP | P48: ZLIN | Q48: 2016-01-01 | R48: 020/000 | T48: 1 | U48: UN | W48: 0.00 | X48: -17,658.85 | AA48: 2107041200 | AF48: 0.00 | AG48: 0.00 | AH48: 264,882.83 | AI48: -70,635.40 | AJ48: 0.00 | AK48: 0.00 | AL48: 0.00 | AM48: -17,658.85 | AN48: 0.00 | AO48: 0.00 | AP48: 0.00 | AQ48: 0.00 | AR48: 0.00 | AS48: 0.00 | AT48: 0.00 | AU48: 353,177.08 | AV48: -70,635.40 | AW48: -17,658.85
A49: 101120000135 | B49: 0 | C49: 2000 | E49: 8000000 | F49: 101-120 | G49: 120200510 | H49: Edificio | I49: 2015-12-31 | J49: TRABAJOS PRELIMINARES PARA EL ACCIONAMIENTO DE LA | K49: 26,613.16 | L49: -5,322.64 | M49: 21,290.52 | N49: DOP | P49: ZLIN | Q49: 2016-01-01 | R49: 020/000 | T49: 1 | U49: UN | W49: 0.00 | X49: -1,330.66 | AA49: 2107041200 | AF49: 0.00 | AG49: 0.00 | AH49: 19,959.86 | AI49: -5,322.64 | AJ49: 0.00 | AK49: 0.00 | AL49: 0.00 | AM49: -1,330.66 | AN49: 0.00 | AO49: 0.00 | AP49: 0.00 | AQ49: 0.00 | AR49: 0.00 | AS49: 0.00 | AT49: 0.00 | AU49: 26,613.16 | AV49: -5,322.64 | AW49: -1,330.66
A50: 101120000136 | B50: 0 | C50: 2000 | E50: 8000000 | F50: 101-120 | G50: 120200510 | H50: Edificio | I50: 2015-12-31 | J50: NIVELACION, RELLENO Y COMPACTACION DEL TERRENO. S | K50: 915.72 | L50: -183.16 | M50: 732.56 | N50: DOP | P50: ZLIN | Q50: 2016-01-01 | R50: 020/000 | T50: 1 | U50: UN | W50: 0.00 | X50: -45.79 | AA50: 2107041200 | AF50: 0.00 | AG50: 0.00 | AH50: 686.77 | AI50: -183.16 | AJ50: 0.00 | AK50: 0.00 | AL50: 0.00 | AM50: -45.79 | AN50: 0.00 | AO50: 0.00 | AP50: 0.00 | AQ50: 0.00 | AR50: 0.00 | AS50: 0.00 | AT50: 0.00 | AU50: 915.72 | AV50: -183.16 | AW50: -45.79
A51: 101120000137 | B51: 0 | C51: 2000 | E51: 8000000 | F51: 101-120 | G51: 120200510 | H51: Edificio | I51: 2015-12-31 | J51: DRENAJES SISTEMA DE REGULACION DE VELOCIDAD TURB | K51: 2,896.00 | L51: -579.20 | M51: 2,316.80 | N51: DOP | P51: ZLIN | Q51: 2016-01-01 | R51: 020/000 | T51: 1 | U51: UN | W51: 0.00 | X51: -144.80 | AA51: 2107041200 | AF51: 0.00 | AG51: 0.00 | AH51: 2,172.00 | AI51: -579.20 | AJ51: 0.00 | AK51: 0.00 | AL51: 0.00 | AM51: -144.80 | AN51: 0.00 | AO51: 0.00 | AP51: 0.00 | AQ51: 0.00 | AR51: 0.00 | AS51: 0.00 | AT51: 0.00 | AU51: 2,896.00 | AV51: -579.20 | AW51: -144.80
A52: 101120000138 | B52: 0 | C52: 2000 | E52: 8000000 | F52: 101-120 | G52: 120200510 | H52: Edificio | I52: 2015-12-31 | J52: SOPORTES MONOLITICOS | K52: 23,209.16 | L52: -4,641.84 | M52: 18,567.32 | N52: DOP | P52: ZLIN | Q52: 2016-01-01 | R52: 020/000 | T52: 1 | U52: UN | W52: 0.00 | X52: -1,160.46 | AA52: 2107041200 | AF52: 0.00 | AG52: 0.00 | AH52: 17,406.86 | AI52: -4,641.84 | AJ52: 0.00 | AK52: 0.00 | AL52: 0.00 | AM52: -1,160.46 | AN52: 0.00 | AO52: 0.00 | AP52: 0.00 | AQ52: 0.00 | AR52: 0.00 | AS52: 0.00 | AT52: 0.00 | AU52: 23,209.16 | AV52: -4,641.84 | AW52: -1,160.46
A53: 101120000139 | B53: 0 | C53: 2000 | E53: 8000000 | F53: 101-120 | G53: 120200510 | H53: Edificio | I53: 2015-12-31 | J53: CONDUCTORES DIAMETRO DE SALIDA DE CADA BOMBA | K53: 14,408.00 | L53: -2,881.60 | M53: 11,526.40 | N53: DOP | P53: ZLIN | Q53: 2016-01-01 | R53: 020/000 | T53: 1 | U53: UN | W53: 0.00 | X53: -720.40 | AA53: 2107041200 | AF53: 0.00 | AG53: 0.00 | AH53: 10,806.00 | AI53: -2,881.60 | AJ53: 0.00 | AK53: 0.00 | AL53: 0.00 | AM53: -720.40 | AN53: 0.00 | AO53: 0.00 | AP53: 0.00 | AQ53: 0.00 | AR53: 0.00 | AS53: 0.00 | AT53: 0.00 | AU53: 14,408.00 | AV53: -2,881.60 | AW53: -720.40
A54: 101120000140 | B54: 0 | C54: 2000 | E54: 8000000 | F54: 101-120 | G54: 120200510 | H54: Edificio | I54: 2015-12-31 | J54: ACERAS | K54: 116.28 | L54: -23.24 | M54: 93.04 | N54: DOP | P54: ZLIN | Q54: 2016-01-01 | R54: 020/000 | T54: 1 | U54: UN | W54: 0.00 | X54: -5.81 | AA54: 2107041200 | AF54: 0.00 | AG54: 0.00 | AH54: 87.23 | AI54: -23.24 | AJ54: 0.00 | AK54: 0.00 | AL54: 0.00 | AM54: -5.81 | AN54: 0.00 | AO54: 0.00 | AP54: 0.00 | AQ54: 0.00 | AR54: 0.00 | AS54: 0.00 | AT54: 0.00 | AU54: 116.28 | AV54: -23.24 | AW54: -5.81
A55: 101120000141 | B55: 0 | C55: 2000 | E55: 8000000 | F55: 101-120 | G55: 120200510 | H55: Edificio | I55: 2015-12-31 | J55: AREA CUADRADA | K55: 1,477.72 | L55: -295.56 | M55: 1,182.16 | N55: DOP | P55: ZLIN | Q55: 2016-01-01 | R55: 020/000 | T55: 1 | U55: UN | W55: 0.00 | X55: -73.89 | AA55: 2107041200 | AF55: 0.00 | AG55: 0.00 | AH55: 1,108.27 | AI55: -295.56 | AJ55: 0.00 | AK55: 0.00 | AL55: 0.00 | AM55: -73.89 | AN55: 0.00 | AO55: 0.00 | AP55: 0.00 | AQ55: 0.00 | AR55: 0.00 | AS55: 0.00 | AT55: 0.00 | AU55: 1,477.72 | AV55: -295.56 | AW55: -73.89
A56: 101120000142 | B56: 0 | C56: 2000 | E56: 8000000 | F56: 101-120 | G56: 120200510 | H56: Edificio | I56: 2015-12-31 | J56: TRABAJOS PRELIMINARES, INVESTIGACION DE SUELOS Y | K56: 148,548.80 | L56: -29,709.76 | M56: 118,839.04 | N56: DOP | P56: ZLIN | Q56: 2016-01-01 | R56: 020/000 | T56: 1 | U56: UN | W56: 0.00 | X56: -7,427.44 | AA56: 2107040900 | AF56: 0.00 | AG56: 0.00 | AH56: 111,411.60 | AI56: -29,709.76 | AJ56: 0.00 | AK56: 0.00 | AL56: 0.00 | AM56: -7,427.44 | AN56: 0.00 | AO56: 0.00 | AP56: 0.00 | AQ56: 0.00 | AR56: 0.00 | AS56: 0.00 | AT56: 0.00 | AU56: 148,548.80 | AV56: -29,709.76 | AW56: -7,427.44
A57: 101120000143 | B57: 0 | C57: 2000 | E57: 8000000 | F57: 101-120 | G57: 120200510 | H57: Edificio | I57: 2015-12-31 | J57: NIVELACION, RELLENO Y COMPACTACION DEL TERRENO. S | K57: 106,256.88 | L57: -21,251.36 | M57: 85,005.52 | N57: DOP | P57: ZLIN | Q57: 2016-01-01 | R57: 020/000 | T57: 1 | U57: UN | W57: 0.00 | X57: -5,312.84 | AA57: 2107040900 | AF57: 0.00 | AG57: 0.00 | AH57: 79,692.68 | AI57: -21,251.36 | AJ57: 0.00 | AK57: 0.00 | AL57: 0.00 | AM57: -5,312.84 | AN57: 0.00 | AO57: 0.00 | AP57: 0.00 | AQ57: 0.00 | AR57: 0.00 | AS57: 0.00 | AT57: 0.00 | AU57: 106,256.88 | AV57: -21,251.36 | AW57: -5,312.84
A58: 101120000144 | B58: 0 | C58: 2000 | E58: 8000000 | F58: 101-120 | G58: 120200510 | H58: Edificio | I58: 2015-12-31 | J58: DRENAJES | K58: 101,943.28 | L58: -20,388.64 | M58: 81,554.64 | N58: DOP | P58: ZLIN | Q58: 2016-01-01 | R58: 020/000 | T58: 1 | U58: UN | W58: 0.00 | X58: -5,097.16 | AA58: 2107040900 | AF58: 0.00 | AG58: 0.00 | AH58: 76,457.48 | AI58: -20,388.64 | AJ58: 0.00 | AK58: 0.00 | AL58: 0.00 | AM58: -5,097.16 | AN58: 0.00 | AO58: 0.00 | AP58: 0.00 | AQ58: 0.00 | AR58: 0.00 | AS58: 0.00 | AT58: 0.00 | AU58: 101,943.28 | AV58: -20,388.64 | AW58: -5,097.16
A59: 101120000145 | B59: 0 | C59: 2000 | E59: 8000000 | F59: 101-120 | G59: 120200510 | H59: Edificio | I59: 2015-12-31 | J59: SOPORTES MONOLITICOS, FOSAS, BASES DE PISOS, CONC | K59: 240,021.76 | L59: -48,004.36 | M59: 192,017.40 | N59: DOP | P59: ZLIN | Q59: 2016-01-01 | R59: 020/000 | T59: 1 | U59: UN | W59: 0.00 | X59: -12,001.09 | AA59: 2107040900 | AF59: 0.00 | AG59: 0.00 | AH59: 180,016.31 | AI59: -48,004.36 | AJ59: 0.00 | AK59: 0.00 | AL59: 0.00 | AM59: -12,001.09 | AN59: 0.00 | AO59: 0.00 | AP59: 0.00 | AQ59: 0.00 | AR59: 0.00 | AS59: 0.00 | AT59: 0.00 | AU59: 240,021.76 | AV59: -48,004.36 | AW59: -12,001.09
A60: 101120000146 | B60: 0 | C60: 2000 | E60: 8000000 | F60: 101-120 | G60: 120200510 | H60: Edificio | I60: 2015-12-31 | J60: CANALETAS, CONDUCTORES Y CABLES 619 M | K60: 417,341.92 | L60: -83,468.40 | M60: 333,873.52 | N60: DOP | P60: ZLIN | Q60: 2016-01-01 | R60: 020/000 | T60: 1 | U60: UN | W60: 0.00 | X60: -20,867.10 | AA60: 2107040900 | AF60: 0.00 | AG60: 0.00 | AH60: 313,006.42 | AI60: -83,468.40 | AJ60: 0.00 | AK60: 0.00 | AL60: 0.00 | AM60: -20,867.10 | AN60: 0.00 | AO60: 0.00 | AP60: 0.00 | AQ60: 0.00 | AR60: 0.00 | AS60: 0.00 | AT60: 0.00 | AU60: 417,341.92 | AV60: -83,468.40 | AW60: -20,867.10
A61: 101120000147 | B61: 0 | C61: 2000 | E61: 8000000 | F61: 101-120 | G61: 120200510 | H61: Edificio | I61: 2015-12-31 | J61: ACERAS DE ESTACION METEREOLOGICA CON PANEL SOLAR | K61: 21,442.12 | L61: -4,288.44 | M61: 17,153.68 | N61: DOP | P61: ZLIN | Q61: 2016-01-01 | R61: 020/000 | T61: 1 | U61: UN | W61: 0.00 | X61: -1,072.11 | AA61: 2107040900 | AF61: 0.00 | AG61: 0.00 | AH61: 16,081.57 | AI61: -4,288.44 | AJ61: 0.00 | AK61: 0.00 | AL61: 0.00 | AM61: -1,072.11 | AN61: 0.00 | AO61: 0.00 | AP61: 0.00 | AQ61: 0.00 | AR61: 0.00 | AS61: 0.00 | AT61: 0.00 | AU61: 21,442.12 | AV61: -4,288.44 | AW61: -1,072.11
A62: 101120000148 | B62: 0 | C62: 2000 | E62: 8000000 | F62: 101-120 | G62: 120200510 | H62: Edificio | I62: 2015-12-31 | J62: AREA CUADRADA DE EQUIPO CAMPO | K62: 192,414.16 | L62: -38,482.84 | M62: 153,931.32 | N62: DOP | P62: ZLIN | Q62: 2016-01-01 | R62: 020/000 | T62: 1 | U62: UN | W62: 0.00 | X62: -9,620.71 | AA62: 2107040900 | AF62: 0.00 | AG62: 0.00 | AH62: 144,310.61 | AI62: -38,482.84 | AJ62: 0.00 | AK62: 0.00 | AL62: 0.00 | AM62: -9,620.71 | AN62: 0.00 | AO62: 0.00 | AP62: 0.00 | AQ62: 0.00 | AR62: 0.00 | AS62: 0.00 | AT62: 0.00 | AU62: 192,414.16 | AV62: -38,482.84 | AW62: -9,620.71
A63: 101120000149 | B63: 0 | C63: 2000 | E63: 8000000 | F63: 101-120 | G63: 120200510 | H63: Edificio | I63: 2015-12-31 | J63: VERJA PERIMETRAL | K63: 50,779.32 | L63: -10,155.88 | M63: 40,623.44 | N63: DOP | P63: ZLIN | Q63: 2016-01-01 | R63: 020/000 | T63: 1 | U63: UN | W63: 0.00 | X63: -2,538.97 | AA63: 2107040900 | AF63: 0.00 | AG63: 0.00 | AH63: 38,084.47 | AI63: -10,155.88 | AJ63: 0.00 | AK63: 0.00 | AL63: 0.00 | AM63: -2,538.97 | AN63: 0.00 | AO63: 0.00 | AP63: 0.00 | AQ63: 0.00 | AR63: 0.00 | AS63: 0.00 | AT63: 0.00 | AU63: 50,779.32 | AV63: -10,155.88 | AW63: -2,538.97
A64: 101120000150 | B64: 0 | C64: 2000 | E64: 8000000 | F64: 101-120 | G64: 120200510 | H64: Edificio | I64: 2004-12-31 | J64: COMPUERTA DE LA OBRA DE TOMA 126 PULG 20150817 | K64: 109,765.80 | L64: -21,953.16 | M64: 87,812.64 | N64: DOP | P64: ZLIN | Q64: 2005-01-01 | R64: 020/000 | T64: 1 | U64: UN | W64: 0.00 | X64: -5,488.29 | AA64: 2107090200 | AF64: 0.00 | AG64: 0.00 | AH64: 82,324.35 | AI64: -21,953.16 | AJ64: 0.00 | AK64: 0.00 | AL64: 0.00 | AM64: -5,488.29 | AN64: 0.00 | AO64: 0.00 | AP64: 0.00 | AQ64: 0.00 | AR64: 0.00 | AS64: 0.00 | AT64: 0.00 | AU64: 109,765.80 | AV64: -21,953.16 | AW64: -5,488.29
A65: 101120000151 | B65: 0 | C65: 2000 | E65: 8000000 | F65: 101-120 | G65: 120200510 | H65: Edificio | I65: 2015-12-31 | J65: CASA VERANEO VERANEO JARABACOA. 220 M2 CASA R | K65: 3,394,829.68 | L65: -678,965.92 | M65: 2,715,863.76 | N65: DOP | P65: ZLIN | Q65: 2016-01-01 | R65: 020/000 | T65: 1 | U65: UN | W65: 0.00 | X65: -169,741.48 | AA65: 2107080300 | AF65: 0.00 | AG65: 0.00 | AH65: 2,546,122.28 | AI65: -678,965.92 | AJ65: 0.00 | AK65: 0.00 | AL65: 0.00 | AM65: -169,741.48 | AN65: 0.00 | AO65: 0.00 | AP65: 0.00 | AQ65: 0.00 | AR65: 0.00 | AS65: 0.00 | AT65: 0.00 | AU65: 3,394,829.68 | AV65: -678,965.92 | AW65: -169,741.48
A66: 101120000153 | B66: 0 | C66: 2000 | E66: 8000000 | F66: 101-120 | G66: 120200510 | H66: Edificio | I66: 2014-07-31 | J66: DESTACAMENTO MILITAR MAMPOSTERIA DE CONCRETO | K66: 70,999.72 | L66: -14,199.96 | M66: 56,799.76 | N66: DOP | P66: ZLIN | Q66: 2014-08-01 | R66: 020/000 | T66: 1 | U66: UN | W66: 0.00 | X66: -3,549.99 | AA66: 2107080300 | AF66: 0.00 | AG66: 0.00 | AH66: 53,249.77 | AI66: -14,199.96 | AJ66: 0.00 | AK66: 0.00 | AL66: 0.00 | AM66: -3,549.99 | AN66: 0.00 | AO66: 0.00 | AP66: 0.00 | AQ66: 0.00 | AR66: 0.00 | AS66: 0.00 | AT66: 0.00 | AU66: 70,999.72 | AV66: -14,199.96 | AW66: -3,549.99
A67: 101120000154 | B67: 0 | C67: 2000 | E67: 8000000 | F67: 101-120 | G67: 120200510 | H67: Edificio | I67: 2015-12-31 | J67: REHABILITACION DE OBRAS CIVILES. S.G. S.G. JIGUEY | K67: 59,929,882.32 | L67: -11,985,976.48 | M67: 47,943,905.84 | N67: DOP | P67: ZLIN | Q67: 2016-01-01 | R67: 020/000 | T67: 1 | U67: UN | W67: 0.00 | X67: -2,996,494.12 | AA67: 2107080300 | AF67: 0.00 | AG67: 0.00 | AH67: 44,947,411.72 | AI67: -11,985,976.48 | AJ67: 0.00 | AK67: 0.00 | AL67: 0.00 | AM67: -2,996,494.12 | AN67: 0.00 | AO67: 0.00 | AP67: 0.00 | AQ67: 0.00 | AR67: 0.00 | AS67: 0.00 | AT67: 0.00 | AU67: 59,929,882.32 | AV67: -11,985,976.48 | AW67: -2,996,494.12
A68: 101120000156 | B68: 0 | C68: 2000 | E68: 8000000 | F68: 101-120 | G68: 120200510 | H68: Edificio | I68: 2001-12-31 | J68: TURBINA VERTICAL TURBO INSTITUT FRANCIS TF-82-0 | K68: 0.00 | L68: 0.00 | M68: 0.00 | N68: DOP | P68: ZLIN | Q68: 2002-01-01 | R68: 020/000 | T68: 1 | U68: UN | W68: 0.00 | X68: 0.00 | AA68: 2107090300 | AF68: 0.00 | AG68: 0.00 | AH68: 0.00 | AI68: 0.00 | AJ68: 0.00 | AK68: 0.00 | AL68: 0.00 | AM68: 0.00 | AN68: 0.00 | AO68: 0.00 | AP68: 0.00 | AQ68: 0.00 | AR68: 0.00 | AS68: 0.00 | AT68: 0.00 | AU68: 0.00 | AV68: 0.00 | AW68: 0.00
A69: 101120000157 | B69: 0 | C69: 2000 | E69: 8000000 | F69: 101-120 | G69: 120200510 | H69: Edificio | I69: 2009-12-31 | J69: CASA DE OPERADORES PRESA 218 M2 AMARILLO | K69: 347,368.84 | L69: -69,473.76 | M69: 277,895.08 | N69: DOP | P69: ZLIN | Q69: 2010-01-01 | R69: 020/000 | T69: 1 | U69: UN | W69: 0.00 | X69: -17,368.44 | AA69: 2107090300 | AF69: 0.00 | AG69: 0.00 | AH69: 260,526.64 | AI69: -69,473.76 | AJ69: 0.00 | AK69: 0.00 | AL69: 0.00 | AM69: -17,368.44 | AN69: 0.00 | AO69: 0.00 | AP69: 0.00 | AQ69: 0.00 | AR69: 0.00 | AS69: 0.00 | AT69: 0.00 | AU69: 347,368.84 | AV69: -69,473.76 | AW69: -17,368.44
A70: 101120000160 | B70: 0 | C70: 2000 | E70: 8000000 | F70: 101-120 | G70: 120200510 | H70: Edificio | I70: 2009-12-31 | J70: COMPUERTA RADIAL OPPERMAN 1976 50:1 DIMENSIONE | K70: 27,160,322.68 | L70: -5,432,064.52 | M70: 21,728,258.16 | N70: DOP | P70: ZLIN | Q70: 2010-01-01 | R70: 020/000 | T70: 1 | U70: UN | W70: 0.00 | X70: -1,358,016.13 | AA70: 2107080400 | AF70: 0.00 | AG70: 0.00 | AH70: 20,370,242.03 | AI70: -5,432,064.52 | AJ70: 0.00 | AK70: 0.00 | AL70: 0.00 | AM70: -1,358,016.13 | AN70: 0.00 | AO70: 0.00 | AP70: 0.00 | AQ70: 0.00 | AR70: 0.00 | AS70: 0.00 | AT70: 0.00 | AU70: 27,160,322.68 | AV70: -5,432,064.52 | AW70: -1,358,016.13
A71: 101120000161 | B71: 0 | C71: 2000 | E71: 8000000 | F71: 101-120 | G71: 120200510 | H71: Edificio | I71: 2009-12-31 | J71: COMPUERTA RADIAL OPPERMAN NSH6 1976 50:1 DIME | K71: 27,160,322.68 | L71: -5,432,064.52 | M71: 21,728,258.16 | N71: DOP | P71: ZLIN | Q71: 2010-01-01 | R71: 020/000 | T71: 1 | U71: UN | W71: 0.00 | X71: -1,358,016.13 | AA71: 2107080400 | AF71: 0.00 | AG71: 0.00 | AH71: 20,370,242.03 | AI71: -5,432,064.52 | AJ71: 0.00 | AK71: 0.00 | AL71: 0.00 | AM71: -1,358,016.13 | AN71: 0.00 | AO71: 0.00 | AP71: 0.00 | AQ71: 0.00 | AR71: 0.00 | AS71: 0.00 | AT71: 0.00 | AU71: 27,160,322.68 | AV71: -5,432,064.52 | AW71: -1,358,016.13
A72: 101120000162 | B72: 0 | C72: 2000 | E72: 8000000 | F72: 101-120 | G72: 120200510 | H72: Edificio | I72: 2009-12-31 | J72: COMPUERTA RADIAL OPPERMAN NSH6 1976 50:1 DIME | K72: 27,160,322.68 | L72: -5,432,064.52 | M72: 21,728,258.16 | N72: DOP | P72: ZLIN | Q72: 2010-01-01 | R72: 020/000 | T72: 1 | U72: UN | W72: 0.00 | X72: -1,358,016.13 | AA72: 2107080400 | AF72: 0.00 | AG72: 0.00 | AH72: 20,370,242.03 | AI72: -5,432,064.52 | AJ72: 0.00 | AK72: 0.00 | AL72: 0.00 | AM72: -1,358,016.13 | AN72: 0.00 | AO72: 0.00 | AP72: 0.00 | AQ72: 0.00 | AR72: 0.00 | AS72: 0.00 | AT72: 0.00 | AU72: 27,160,322.68 | AV72: -5,432,064.52 | AW72: -1,358,016.13
A73: 101120000163 | B73: 0 | C73: 2000 | E73: 8000000 | F73: 101-120 | G73: 120200510 | H73: Edificio | I73: 2009-12-31 | J73: COMPUERTA RADIAL OPPERMAN NSH6 1976 50:1 DIME | K73: 27,160,322.68 | L73: -5,432,064.52 | M73: 21,728,258.16 | N73: DOP | P73: ZLIN | Q73: 2010-01-01 | R73: 020/000 | T73: 1 | U73: UN | W73: 0.00 | X73: -1,358,016.13 | AA73: 2107080400 | AF73: 0.00 | AG73: 0.00 | AH73: 20,370,242.03 | AI73: -5,432,064.52 | AJ73: 0.00 | AK73: 0.00 | AL73: 0.00 | AM73: -1,358,016.13 | AN73: 0.00 | AO73: 0.00 | AP73: 0.00 | AQ73: 0.00 | AR73: 0.00 | AS73: 0.00 | AT73: 0.00 | AU73: 27,160,322.68 | AV73: -5,432,064.52 | AW73: -1,358,016.13
A74: 101120000164 | B74: 0 | C74: 2000 | E74: 8000000 | F74: 101-120 | G74: 120200510 | H74: Edificio | I74: 2009-12-31 | J74: COMPUERTA RADIAL OPPERMAN NSH6 1976 50:1 DIME | K74: 27,160,322.68 | L74: -5,432,064.52 | M74: 21,728,258.16 | N74: DOP | P74: ZLIN | Q74: 2010-01-01 | R74: 020/000 | T74: 1 | U74: UN | W74: 0.00 | X74: -1,358,016.13 | AA74: 2107080400 | AF74: 0.00 | AG74: 0.00 | AH74: 20,370,242.03 | AI74: -5,432,064.52 | AJ74: 0.00 | AK74: 0.00 | AL74: 0.00 | AM74: -1,358,016.13 | AN74: 0.00 | AO74: 0.00 | AP74: 0.00 | AQ74: 0.00 | AR74: 0.00 | AS74: 0.00 | AT74: 0.00 | AU74: 27,160,322.68 | AV74: -5,432,064.52 | AW74: -1,358,016.13
A75: 101120000165 | B75: 0 | C75: 2000 | E75: 8000000 | F75: 101-120 | G75: 120200510 | H75: Edificio | I75: 2009-12-31 | J75: COMPUERTA RADIAL OPPERMAN NSH6 1976 50:1 DIME | K75: 27,160,322.68 | L75: -5,432,064.52 | M75: 21,728,258.16 | N75: DOP | P75: ZLIN | Q75: 2010-01-01 | R75: 020/000 | T75: 1 | U75: UN | W75: 0.00 | X75: -1,358,016.13 | AA75: 2107080400 | AF75: 0.00 | AG75: 0.00 | AH75: 20,370,242.03 | AI75: -5,432,064.52 | AJ75: 0.00 | AK75: 0.00 | AL75: 0.00 | AM75: -1,358,016.13 | AN75: 0.00 | AO75: 0.00 | AP75: 0.00 | AQ75: 0.00 | AR75: 0.00 | AS75: 0.00 | AT75: 0.00 | AU75: 27,160,322.68 | AV75: -5,432,064.52 | AW75: -1,358,016.13
A76: 101120000166 | B76: 0 | C76: 2000 | E76: 8000000 | F76: 101-120 | G76: 120200510 | H76: Edificio | I76: 2009-12-31 | J76: COMPUERTA RADIAL OPPERMAN NSH6 1976 50:1 DIME | K76: 27,160,322.68 | L76: -5,432,064.52 | M76: 21,728,258.16 | N76: DOP | P76: ZLIN | Q76: 2010-01-01 | R76: 020/000 | T76: 1 | U76: UN | W76: 0.00 | X76: -1,358,016.13 | AA76: 2107080400 | AF76: 0.00 | AG76: 0.00 | AH76: 20,370,242.03 | AI76: -5,432,064.52 | AJ76: 0.00 | AK76: 0.00 | AL76: 0.00 | AM76: -1,358,016.13 | AN76: 0.00 | AO76: 0.00 | AP76: 0.00 | AQ76: 0.00 | AR76: 0.00 | AS76: 0.00 | AT76: 0.00 | AU76: 27,160,322.68 | AV76: -5,432,064.52 | AW76: -1,358,016.13
A77: 101120000167 | B77: 0 | C77: 2000 | E77: 8000000 | F77: 101-120 | G77: 120200510 | H77: Edificio | I77: 2009-12-31 | J77: COMPUERTA RADIAL OPPERMAN NSH6 1976 50:1 DIME | K77: 27,160,322.68 | L77: -5,432,064.52 | M77: 21,728,258.16 | N77: DOP | P77: ZLIN | Q77: 2010-01-01 | R77: 020/000 | T77: 1 | U77: UN | W77: 0.00 | X77: -1,358,016.13 | AA77: 2107080400 | AF77: 0.00 | AG77: 0.00 | AH77: 20,370,242.03 | AI77: -5,432,064.52 | AJ77: 0.00 | AK77: 0.00 | AL77: 0.00 | AM77: -1,358,016.13 | AN77: 0.00 | AO77: 0.00 | AP77: 0.00 | AQ77: 0.00 | AR77: 0.00 | AS77: 0.00 | AT77: 0.00 | AU77: 27,160,322.68 | AV77: -5,432,064.52 | AW77: -1,358,016.13
A78: 101120000191 | B78: 0 | C78: 2000 | E78: 8000000 | F78: 101-120 | G78: 120200510 | H78: Edificio | I78: 2009-12-31 | J78: PUENTE DE ACCESO, PUENTE VIAL EN CONCRETO ARMADO | K78: 8,426,182.68 | L78: -1,685,236.52 | M78: 6,740,946.16 | N78: DOP | P78: ZLIN | Q78: 2010-01-01 | R78: 020/000 | T78: 1 | U78: UN | W78: 0.00 | X78: -421,309.13 | AA78: 2107080400 | AF78: 0.00 | AG78: 0.00 | AH78: 6,319,637.03 | AI78: -1,685,236.52 | AJ78: 0.00 | AK78: 0.00 | AL78: 0.00 | AM78: -421,309.13 | AN78: 0.00 | AO78: 0.00 | AP78: 0.00 | AQ78: 0.00 | AR78: 0.00 | AS78: 0.00 | AT78: 0.00 | AU78: 8,426,182.68 | AV78: -1,685,236.52 | AW78: -421,309.13
A79: 101120000192 | B79: 0 | C79: 2000 | E79: 8000000 | F79: 101-120 | G79: 120200510 | H79: Edificio | I79: 2009-12-31 | J79: VIALIDAD DE ACCESO. 3.805 M2 MAMPOSTERIA, PISO TE | K79: 3,372,949.72 | L79: -674,589.96 | M79: 2,698,359.76 | N79: DOP | P79: ZLIN | Q79: 2010-01-01 | R79: 020/000 | T79: 1 | U79: UN | W79: 0.00 | X79: -168,647.49 | AA79: 2107080400 | AF79: 0.00 | AG79: 0.00 | AH79: 2,529,712.27 | AI79: -674,589.96 | AJ79: 0.00 | AK79: 0.00 | AL79: 0.00 | AM79: -168,647.49 | AN79: 0.00 | AO79: 0.00 | AP79: 0.00 | AQ79: 0.00 | AR79: 0.00 | AS79: 0.00 | AT79: 0.00 | AU79: 3,372,949.72 | AV79: -674,589.96 | AW79: -168,647.49
A80: 101120000193 | B80: 0 | C80: 2000 | E80: 8000000 | F80: 101-120 | G80: 120200510 | H80: Edificio | I80: 2009-12-31 | J80: CASETA DE PLANTA DE EMERGENCIA DEL CONTROL DE COM | K80: 10,242.76 | L80: -2,048.56 | M80: 8,194.20 | N80: DOP | P80: ZLIN | Q80: 2010-01-01 | R80: 020/000 | T80: 1 | U80: UN | W80: 0.00 | X80: -512.14 | AA80: 2107080400 | AF80: 0.00 | AG80: 0.00 | AH80: 7,682.06 | AI80: -2,048.56 | AJ80: 0.00 | AK80: 0.00 | AL80: 0.00 | AM80: -512.14 | AN80: 0.00 | AO80: 0.00 | AP80: 0.00 | AQ80: 0.00 | AR80: 0.00 | AS80: 0.00 | AT80: 0.00 | AU80: 10,242.76 | AV80: -2,048.56 | AW80: -512.14
A81: 101120000194 | B81: 0 | C81: 2000 | E81: 8000000 | F81: 101-120 | G81: 120200510 | H81: Edificio | I81: 2009-12-31 | J81: CASETA DE CONTROL DE COMPUERTA. 17 M2. | K81: 17,407.28 | L81: -3,481.44 | M81: 13,925.84 | N81: DOP | P81: ZLIN | Q81: 2010-01-01 | R81: 020/000 | T81: 1 | U81: UN | W81: 0.00 | X81: -870.36 | AA81: 2107080400 | AF81: 0.00 | AG81: 0.00 | AH81: 13,055.48 | AI81: -3,481.44 | AJ81: 0.00 | AK81: 0.00 | AL81: 0.00 | AM81: -870.36 | AN81: 0.00 | AO81: 0.00 | AP81: 0.00 | AQ81: 0.00 | AR81: 0.00 | AS81: 0.00 | AT81: 0.00 | AU81: 17,407.28 | AV81: -3,481.44 | AW81: -870.36
A82: 101120000195 | B82: 0 | C82: 2000 | E82: 8000000 | F82: 101-120 | G82: 120200510 | H82: Edificio | I82: 2009-12-31 | J82: CERCA DE PROTECCION PLANTA DE EMERGENCIA. 21 ML. | K82: 9,397.44 | L82: -1,879.48 | M82: 7,517.96 | N82: DOP | P82: ZLIN | Q82: 2010-01-01 | R82: 020/000 | T82: 1 | U82: UN | W82: 0.00 | X82: -469.87 | AA82: 2107080400 | AF82: 0.00 | AG82: 0.00 | AH82: 7,048.09 | AI82: -1,879.48 | AJ82: 0.00 | AK82: 0.00 | AL82: 0.00 | AM82: -469.87 | AN82: 0.00 | AO82: 0.00 | AP82: 0.00 | AQ82: 0.00 | AR82: 0.00 | AS82: 0.00 | AT82: 0.00 | AU82: 9,397.44 | AV82: -1,879.48 | AW82: -469.87
A83: 101120000196 | B83: 0 | C83: 2000 | E83: 8000000 | F83: 101-120 | G83: 120200510 | H83: Edificio | I83: 2009-12-31 | J83: CASETA DE VIGILANCIA MILITAR. 12 M2. | K83: 0.00 | L83: 0.00 | M83: 0.00 | N83: DOP | P83: ZLIN | Q83: 2010-01-01 | R83: 020/000 | T83: 1 | U83: UN | W83: 0.00 | X83: 0.00 | AA83: 2107080400 | AF83: 0.00 | AG83: 0.00 | AH83: 0.00 | AI83: 0.00 | AJ83: 0.00 | AK83: 0.00 | AL83: 0.00 | AM83: 0.00 | AN83: 0.00 | AO83: 0.00 | AP83: 0.00 | AQ83: 0.00 | AR83: 0.00 | AS83: 0.00 | AT83: 0.00 | AU83: 0.00 | AV83: 0.00 | AW83: 0.00
A84: 101120000197 | B84: 0 | C84: 2000 | E84: 8000000 | F84: 101-120 | G84: 120200510 | H84: Edificio | I84: 2009-12-31 | J84: CASETA DE VIGILANCIA NO. 1. 4 M2. | K84: 4,095.44 | L84: -819.08 | M84: 3,276.36 | N84: DOP | P84: ZLIN | Q84: 2010-01-01 | R84: 020/000 | T84: 1 | U84: UN | W84: 0.00 | X84: -204.77 | AA84: 2107080400 | AF84: 0.00 | AG84: 0.00 | AH84: 3,071.59 | AI84: -819.08 | AJ84: 0.00 | AK84: 0.00 | AL84: 0.00 | AM84: -204.77 | AN84: 0.00 | AO84: 0.00 | AP84: 0.00 | AQ84: 0.00 | AR84: 0.00 | AS84: 0.00 | AT84: 0.00 | AU84: 4,095.44 | AV84: -819.08 | AW84: -204.77
A85: 101120000198 | B85: 0 | C85: 2000 | E85: 8000000 | F85: 101-120 | G85: 120200510 | H85: Edificio | I85: 2009-12-31 | J85: CASETA DE MANDO DE CONTROLES DE COMPUERTAS. 2.4 M2 | K85: 4,095.44 | L85: -819.08 | M85: 3,276.36 | N85: DOP | P85: ZLIN | Q85: 2010-01-01 | R85: 020/000 | T85: 1 | U85: UN | W85: 0.00 | X85: -204.77 | AA85: 2107080400 | AF85: 0.00 | AG85: 0.00 | AH85: 3,071.59 | AI85: -819.08 | AJ85: 0.00 | AK85: 0.00 | AL85: 0.00 | AM85: -204.77 | AN85: 0.00 | AO85: 0.00 | AP85: 0.00 | AQ85: 0.00 | AR85: 0.00 | AS85: 0.00 | AT85: 0.00 | AU85: 4,095.44 | AV85: -819.08 | AW85: -204.77
A86: 101120000199 | B86: 0 | C86: 2000 | E86: 8000000 | F86: 101-120 | G86: 120200510 | H86: Edificio | I86: 2009-12-31 | J86: INGENIERIA BASICA Y DE DISEÑO CENTRAL LAS BARIAS | K86: 2,298,052.04 | L86: -459,610.40 | M86: 1,838,441.64 | N86: DOP | P86: ZLIN | Q86: 2010-01-01 | R86: 020/000 | T86: 1 | U86: UN | W86: 0.00 | X86: -114,902.60 | AA86: 2107080400 | AF86: 0.00 | AG86: 0.00 | AH86: 1,723,539.04 | AI86: -459,610.40 | AJ86: 0.00 | AK86: 0.00 | AL86: 0.00 | AM86: -114,902.60 | AN86: 0.00 | AO86: 0.00 | AP86: 0.00 | AQ86: 0.00 | AR86: 0.00 | AS86: 0.00 | AT86: 0.00 | AU86: 2,298,052.04 | AV86: -459,610.40 | AW86: -114,902.60
A87: 101120000200 | B87: 0 | C87: 2000 | E87: 8000000 | F87: 101-120 | G87: 120200510 | H87: Edificio | I87: 2009-12-31 | J87: CASA DE MAQUINAS 1528 M2 AZUL/AMARILLO | K87: 1,272,278.76 | L87: -254,455.76 | M87: 1,017,823.00 | N87: DOP | P87: ZLIN | Q87: 2010-01-01 | R87: 020/000 | T87: 1 | U87: UN | W87: 0.00 | X87: -63,613.94 | AA87: 2107080400 | AF87: 0.00 | AG87: 0.00 | AH87: 954,209.06 | AI87: -254,455.76 | AJ87: 0.00 | AK87: 0.00 | AL87: 0.00 | AM87: -63,613.94 | AN87: 0.00 | AO87: 0.00 | AP87: 0.00 | AQ87: 0.00 | AR87: 0.00 | AS87: 0.00 | AT87: 0.00 | AU87: 1,272,278.76 | AV87: -254,455.76 | AW87: -63,613.94
A88: 101120000201 | B88: 0 | C88: 2000 | E88: 8000000 | F88: 101-120 | G88: 120200510 | H88: Edificio | I88: 2009-12-31 | J88: TRABAJOS PRELIMINARES, INVESTIGACION DE SUELOS Y | K88: 39,713.16 | L88: -7,942.64 | M88: 31,770.52 | N88: DOP | P88: ZLIN | Q88: 2010-01-01 | R88: 020/000 | T88: 1 | U88: UN | W88: 0.00 | X88: -1,985.66 | AA88: 2107080400 | AF88: 0.00 | AG88: 0.00 | AH88: 29,784.86 | AI88: -7,942.64 | AJ88: 0.00 | AK88: 0.00 | AL88: 0.00 | AM88: -1,985.66 | AN88: 0.00 | AO88: 0.00 | AP88: 0.00 | AQ88: 0.00 | AR88: 0.00 | AS88: 0.00 | AT88: 0.00 | AU88: 39,713.16 | AV88: -7,942.64 | AW88: -1,985.66
A89: 101120000202 | B89: 0 | C89: 2000 | E89: 8000000 | F89: 101-120 | G89: 120200510 | H89: Edificio | I89: 2009-12-31 | J89: NIVELACION, RELLENO Y COMPACTACION DEL TERRENO. S | K89: 1,485.72 | L89: -297.16 | M89: 1,188.56 | N89: DOP | P89: ZLIN | Q89: 2010-01-01 | R89: 020/000 | T89: 1 | U89: UN | W89: 0.00 | X89: -74.29 | AA89: 2107080400 | AF89: 0.00 | AG89: 0.00 | AH89: 1,114.27 | AI89: -297.16 | AJ89: 0.00 | AK89: 0.00 | AL89: 0.00 | AM89: -74.29 | AN89: 0.00 | AO89: 0.00 | AP89: 0.00 | AQ89: 0.00 | AR89: 0.00 | AS89: 0.00 | AT89: 0.00 | AU89: 1,485.72 | AV89: -297.16 | AW89: -74.29
A90: 101120000203 | B90: 0 | C90: 2000 | E90: 8000000 | F90: 101-120 | G90: 120200510 | H90: Edificio | I90: 2009-12-31 | J90: DRENAJES | K90: 3,366.00 | L90: -673.20 | M90: 2,692.80 | N90: DOP | P90: ZLIN | Q90: 2010-01-01 | R90: 020/000 | T90: 1 | U90: UN | W90: 0.00 | X90: -168.30 | AA90: 2107040300 | AF90: 0.00 | AG90: 0.00 | AH90: 2,524.50 | AI90: -673.20 | AJ90: 0.00 | AK90: 0.00 | AL90: 0.00 | AM90: -168.30 | AN90: 0.00 | AO90: 0.00 | AP90: 0.00 | AQ90: 0.00 | AR90: 0.00 | AS90: 0.00 | AT90: 0.00 | AU90: 3,366.00 | AV90: -673.20 | AW90: -168.30
A91: 101120000204 | B91: 0 | C91: 2000 | E91: 8000000 | F91: 101-120 | G91: 120200510 | H91: Edificio | I91: 2009-12-31 | J91: SOPORTES MONOLITICOS, FOSAS, BASES DE PISOS, CONC | K91: 1,618,761.44 | L91: -323,752.28 | M91: 1,295,009.16 | N91: DOP | P91: ZLIN | Q91: 2010-01-01 | R91: 020/000 | T91: 1 | U91: UN | W91: 0.00 | X91: -80,938.07 | AA91: 2107040300 | AF91: 0.00 | AG91: 0.00 | AH91: 1,214,071.09 | AI91: -323,752.28 | AJ91: 0.00 | AK91: 0.00 | AL91: 0.00 | AM91: -80,938.07 | AN91: 0.00 | AO91: 0.00 | AP91: 0.00 | AQ91: 0.00 | AR91: 0.00 | AS91: 0.00 | AT91: 0.00 | AU91: 1,618,761.44 | AV91: -323,752.28 | AW91: -80,938.07
A92: 101120000205 | B92: 0 | C92: 2000 | E92: 8000000 | F92: 101-120 | G92: 120200510 | H92: Edificio | I92: 2009-12-31 | J92: CANALETAS, CONDUCTORES Y CABLES | K92: 15,038.00 | L92: -3,007.60 | M92: 12,030.40 | N92: DOP | P92: ZLIN | Q92: 2010-01-01 | R92: 020/000 | T92: 1 | U92: UN | W92: 0.00 | X92: -751.90 | AA92: 2107040300 | AF92: 0.00 | AG92: 0.00 | AH92: 11,278.50 | AI92: -3,007.60 | AJ92: 0.00 | AK92: 0.00 | AL92: 0.00 | AM92: -751.90 | AN92: 0.00 | AO92: 0.00 | AP92: 0.00 | AQ92: 0.00 | AR92: 0.00 | AS92: 0.00 | AT92: 0.00 | AU92: 15,038.00 | AV92: -3,007.60 | AW92: -751.90
A93: 101120000206 | B93: 0 | C93: 2000 | E93: 8000000 | F93: 101-120 | G93: 120200510 | H93: Edificio | I93: 2009-12-31 | J93: ACERAS | K93: 206.28 | L93: -41.24 | M93: 165.04 | N93: DOP | P93: ZLIN | Q93: 2010-01-01 | R93: 020/000 | T93: 1 | U93: UN | W93: 0.00 | X93: -10.31 | AA93: 2107040300 | AF93: 0.00 | AG93: 0.00 | AH93: 154.73 | AI93: -41.24 | AJ93: 0.00 | AK93: 0.00 | AL93: 0.00 | AM93: -10.31 | AN93: 0.00 | AO93: 0.00 | AP93: 0.00 | AQ93: 0.00 | AR93: 0.00 | AS93: 0.00 | AT93: 0.00 | AU93: 206.28 | AV93: -41.24 | AW93: -10.31
A94: 101120000207 | B94: 0 | C94: 2000 | E94: 8000000 | F94: 101-120 | G94: 120200510 | H94: Edificio | I94: 2009-12-31 | J94: AREA CUADRADA DE EQUIPO CAMPO | K94: 51,097.72 | L94: -10,219.56 | M94: 40,878.16 | N94: DOP | P94: ZLIN | Q94: 2010-01-01 | R94: 020/000 | T94: 1 | U94: UN | W94: 0.00 | X94: -2,554.89 | AA94: 2107040300 | AF94: 0.00 | AG94: 0.00 | AH94: 38,323.27 | AI94: -10,219.56 | AJ94: 0.00 | AK94: 0.00 | AL94: 0.00 | AM94: -2,554.89 | AN94: 0.00 | AO94: 0.00 | AP94: 0.00 | AQ94: 0.00 | AR94: 0.00 | AS94: 0.00 | AT94: 0.00 | AU94: 51,097.72 | AV94: -10,219.56 | AW94: -2,554.89
A95: 101120000208 | B95: 0 | C95: 2000 | E95: 8000000 | F95: 101-120 | G95: 120200510 | H95: Edificio | I95: 2009-12-31 | J95: VERJA PERIMETRAL | K95: 28,551.52 | L95: -5,710.32 | M95: 22,841.20 | N95: DOP | P95: ZLIN | Q95: 2010-01-01 | R95: 020/000 | T95: 1 | U95: UN | W95: 0.00 | X95: -1,427.58 | AA95: 2107080400 | AF95: 0.00 | AG95: 0.00 | AH95: 21,413.62 | AI95: -5,710.32 | AJ95: 0.00 | AK95: 0.00 | AL95: 0.00 | AM95: -1,427.58 | AN95: 0.00 | AO95: 0.00 | AP95: 0.00 | AQ95: 0.00 | AR95: 0.00 | AS95: 0.00 | AT95: 0.00 | AU95: 28,551.52 | AV95: -5,710.32 | AW95: -1,427.58
A96: 101120000209 | B96: 0 | C96: 2000 | E96: 8000000 | F96: 101-120 | G96: 120200510 | H96: Edificio | I96: 2015-12-31 | J96: REHABILITACION DE OBRAS CIVILES. S.G. S.G. LAS BA | K96: 24,957,576.28 | L96: -4,991,515.24 | M96: 19,966,061.04 | N96: DOP | P96: ZLIN | Q96: 2016-01-01 | R96: 020/000 | T96: 1 | U96: UN | W96: 0.00 | X96: -1,247,878.81 | AA96: 2107080400 | AF96: 0.00 | AG96: 0.00 | AH96: 18,718,182.23 | AI96: -4,991,515.24 | AJ96: 0.00 | AK96: 0.00 | AL96: 0.00 | AM96: -1,247,878.81 | AN96: 0.00 | AO96: 0.00 | AP96: 0.00 | AQ96: 0.00 | AR96: 0.00 | AS96: 0.00 | AT96: 0.00 | AU96: 24,957,576.28 | AV96: -4,991,515.24 | AW96: -1,247,878.81
A97: 101120000210 | B97: 0 | C97: 2000 | E97: 8000000 | F97: 101-120 | G97: 120200510 | H97: Edificio | I97: 2015-12-31 | J97: OBRA DE TOMA | K97: 4,444,498.28 | L97: -888,899.64 | M97: 3,555,598.64 | N97: DOP | P97: ZLIN | Q97: 2016-01-01 | R97: 020/000 | T97: 1 | U97: UN | W97: 0.00 | X97: -222,224.91 | AA97: 2107080400 | AF97: 0.00 | AG97: 0.00 | AH97: 3,333,373.73 | AI97: -888,899.64 | AJ97: 0.00 | AK97: 0.00 | AL97: 0.00 | AM97: -222,224.91 | AN97: 0.00 | AO97: 0.00 | AP97: 0.00 | AQ97: 0.00 | AR97: 0.00 | AS97: 0.00 | AT97: 0.00 | AU97: 4,444,498.28 | AV97: -888,899.64 | AW97: -222,224.91
A98: 101120000211 | B98: 0 | C98: 2000 | E98: 8000000 | F98: 101-120 | G98: 120200510 | H98: Edificio | I98: 2015-12-31 | J98: TUBERIA FORZADA. S.G. | K98: 3,333,371.44 | L98: -666,674.28 | M98: 2,666,697.16 | N98: DOP | P98: ZLIN | Q98: 2016-01-01 | R98: 020/000 | T98: 1 | U98: UN | W98: 0.00 | X98: -166,668.57 | AA98: 2107080400 | AF98: 0.00 | AG98: 0.00 | AH98: 2,500,028.59 | AI98: -666,674.28 | AJ98: 0.00 | AK98: 0.00 | AL98: 0.00 | AM98: -166,668.57 | AN98: 0.00 | AO98: 0.00 | AP98: 0.00 | AQ98: 0.00 | AR98: 0.00 | AS98: 0.00 | AT98: 0.00 | AU98: 3,333,371.44 | AV98: -666,674.28 | AW98: -166,668.57
A99: 101120000212 | B99: 0 | C99: 2000 | E99: 8000000 | F99: 101-120 | G99: 120200510 | H99: Edificio | I99: 2015-12-31 | J99: CANAL DE DESCARGA. S.G. | K99: 2,962,989.16 | L99: -592,597.84 | M99: 2,370,391.32 | N99: DOP | P99: ZLIN | Q99: 2016-01-01 | R99: 020/000 | T99: 1 | U99: UN | W99: 0.00 | X99: -148,149.46 | AA99: 2107080400 | AF99: 0.00 | AG99: 0.00 | AH99: 2,222,241.86 | AI99: -592,597.84 | AJ99: 0.00 | AK99: 0.00 | AL99: 0.00 | AM99: -148,149.46 | AN99: 0.00 | AO99: 0.00 | AP99: 0.00 | AQ99: 0.00 | AR99: 0.00 | AS99: 0.00 | AT99: 0.00 | AU99: 2,962,989.16 | AV99: -592,597.84 | AW99: -148,149.46
A100: 101120000214 | B100: 0 | C100: 2000 | E100: 8000000 | F100: 101-120 | G100: 120200510 | H100: Edificio | I100: 2015-12-31 | J100: INGENIERIA BASICA | K100: 9,874,630.20 | L100: -1,974,926.04 | M100: 7,899,704.16 | N100: DOP | P100: ZLIN | Q100: 2016-01-01 | R100: 020/000 | T100: 1 | U100: UN | W100: 0.00 | X100: -493,731.51 | AA100: 2106000400 | AF100: 0.00 | AG100: 0.00 | AH100: 7,405,972.65 | AI100: -1,974,926.04 | AJ100: 0.00 | AK100: 0.00 | AL100: 0.00 | AM100: -493,731.51 | AN100: 0.00 | AO100: 0.00 | AP100: 0.00 | AQ100: 0.00 | AR100: 0.00 | AS100: 0.00 | AT100: 0.00 | AU100: 9,874,630.20 | AV100: -1,974,926.04 | AW100: -493,731.51
A101: 101120000215 | B101: 0 | C101: 2000 | E101: 8000000 | F101: 101-120 | G101: 120200510 | H101: Edificio | I101: 2015-12-31 | J101: CASETA CONCRETO AMARILLO MEDIDAS 10,89 M² POR | K101: 1,189.12 | L101: -237.84 | M101: 951.28 | N101: DOP | P101: ZLIN | Q101: 2016-01-01 | R101: 020/000 | T101: 1 | U101: UN | W101: 0.00 | X101: -59.46 | AA101: 2107040500 | AF101: 0.00 | AG101: 0.00 | AH101: 891.82 | AI101: -237.84 | AJ101: 0.00 | AK101: 0.00 | AL101: 0.00 | AM101: -59.46 | AN101: 0.00 | AO101: 0.00 | AP101: 0.00 | AQ101: 0.00 | AR101: 0.00 | AS101: 0.00 | AT101: 0.00 | AU101: 1,189.12 | AV101: -237.84 | AW101: -59.46
A102: 101120000216 | B102: 0 | C102: 2000 | E102: 8000000 | F102: 101-120 | G102: 120200510 | H102: Edificio | I102: 2015-12-31 | J102: CASETA CONCRETO MEDIDAS 11,628 M², POR 3,30 | K102: 1,295.48 | L102: -259.08 | M102: 1,036.40 | N102: DOP | P102: ZLIN | Q102: 2016-01-01 | R102: 020/000 | T102: 1 | U102: UN | W102: 0.00 | X102: -64.77 | AA102: 2107040500 | AF102: 0.00 | AG102: 0.00 | AH102: 971.63 | AI102: -259.08 | AJ102: 0.00 | AK102: 0.00 | AL102: 0.00 | AM102: -64.77 | AN102: 0.00 | AO102: 0.00 | AP102: 0.00 | AQ102: 0.00 | AR102: 0.00 | AS102: 0.00 | AT102: 0.00 | AU102: 1,295.48 | AV102: -259.08 | AW102: -64.77
A103: 101120000217 | B103: 0 | C103: 2000 | E103: 8000000 | F103: 101-120 | G103: 120200510 | H103: Edificio | I103: 2015-12-31 | J103: CASA CONCRETO MEDIDAS 36,54 MTS ², ALTURA 2,8 | K103: 3,993.64 | L103: -798.72 | M103: 3,194.92 | N103: DOP | P103: ZLIN | Q103: 2016-01-01 | R103: 020/000 | T103: 1 | U103: UN | W103: 0.00 | X103: -199.68 | AA103: 2107040500 | AF103: 0.00 | AG103: 0.00 | AH103: 2,995.24 | AI103: -798.72 | AJ103: 0.00 | AK103: 0.00 | AL103: 0.00 | AM103: -199.68 | AN103: 0.00 | AO103: 0.00 | AP103: 0.00 | AQ103: 0.00 | AR103: 0.00 | AS103: 0.00 | AT103: 0.00 | AU103: 3,993.64 | AV103: -798.72 | AW103: -199.68
A104: 101120000218 | B104: 0 | C104: 2000 | E104: 8000000 | F104: 101-120 | G104: 120200510 | H104: Edificio | I104: 2015-12-31 | J104: CASETA CONCRETO MEDIDAS 5,06 MTS ², ALTURA 2, | K104: 541.80 | L104: -108.36 | M104: 433.44 | N104: DOP | P104: ZLIN | Q104: 2016-01-01 | R104: 020/000 | T104: 1 | U104: UN | W104: 0.00 | X104: -27.09 | AA104: 2107040500 | AF104: 0.00 | AG104: 0.00 | AH104: 406.35 | AI104: -108.36 | AJ104: 0.00 | AK104: 0.00 | AL104: 0.00 | AM104: -27.09 | AN104: 0.00 | AO104: 0.00 | AP104: 0.00 | AQ104: 0.00 | AR104: 0.00 | AS104: 0.00 | AT104: 0.00 | AU104: 541.80 | AV104: -108.36 | AW104: -27.09
A105: 101120000219 | B105: 0 | C105: 2000 | E105: 8000000 | F105: 101-120 | G105: 120200510 | H105: Edificio | I105: 2015-12-31 | J105: VERJA PERIMETRAL ALFAJOL/CONCRETO GRIS/BLANCO M | K105: 100,841.84 | L105: -20,168.36 | M105: 80,673.48 | N105: DOP | P105: ZLIN | Q105: 2016-01-01 | R105: 020/000 | T105: 1 | U105: UN | W105: 0.00 | X105: -5,042.09 | AA105: 2107040500 | AF105: 0.00 | AG105: 0.00 | AH105: 75,631.39 | AI105: -20,168.36 | AJ105: 0.00 | AK105: 0.00 | AL105: 0.00 | AM105: -5,042.09 | AN105: 0.00 | AO105: 0.00 | AP105: 0.00 | AQ105: 0.00 | AR105: 0.00 | AS105: 0.00 | AT105: 0.00 | AU105: 100,841.84 | AV105: -20,168.36 | AW105: -5,042.09
A106: 101120000222 | B106: 0 | C106: 2000 | E106: 8000000 | F106: 101-120 | G106: 120200510 | H106: Edificio | I106: 2015-12-31 | J106: CASA DE MAQUINAS MICROCENTRAL LOS PINOS DEL EDEN | K106: 282,823.84 | L106: -56,564.76 | M106: 226,259.08 | N106: DOP | P106: ZLIN | Q106: 2016-01-01 | R106: 020/000 | T106: 1 | U106: UN | W106: 0.00 | X106: -14,141.19 | AA106: 2107041100 | AF106: 0.00 | AG106: 0.00 | AH106: 212,117.89 | AI106: -56,564.76 | AJ106: 0.00 | AK106: 0.00 | AL106: 0.00 | AM106: -14,141.19 | AN106: 0.00 | AO106: 0.00 | AP106: 0.00 | AQ106: 0.00 | AR106: 0.00 | AS106: 0.00 | AT106: 0.00 | AU106: 282,823.84 | AV106: -56,564.76 | AW106: -14,141.19
A107: 101120000224 | B107: 0 | C107: 2000 | E107: 8000000 | F107: 101-120 | G107: 120200510 | H107: Edificio | I107: 2014-07-31 | J107: CASA MILITAR 42 M2 MAMPOSTERIA DE CONCRETO, PISO | K107: 26,060.56 | L107: -5,212.12 | M107: 20,848.44 | N107: DOP | P107: ZLIN | Q107: 2014-08-01 | R107: 020/000 | T107: 1 | U107: UN | W107: 0.00 | X107: -1,303.03 | AA107: 2107040500 | AF107: 0.00 | AG107: 0.00 | AH107: 19,545.41 | AI107: -5,212.12 | AJ107: 0.00 | AK107: 0.00 | AL107: 0.00 | AM107: -1,303.03 | AN107: 0.00 | AO107: 0.00 | AP107: 0.00 | AQ107: 0.00 | AR107: 0.00 | AS107: 0.00 | AT107: 0.00 | AU107: 26,060.56 | AV107: -5,212.12 | AW107: -1,303.03
A108: 101120000225 | B108: 0 | C108: 2000 | E108: 8000000 | F108: 101-120 | G108: 120200510 | H108: Edificio | I108: 2009-12-31 | J108: GRUA PORTICO ESTRUCTURA METALICA AMARILLO 9.25 TM | K108: 280,894.12 | L108: -56,178.84 | M108: 224,715.28 | N108: DOP | P108: ZLIN | Q108: 2010-01-01 | R108: 020/000 | T108: 1 | U108: UN | W108: 0.00 | X108: -14,044.71 | AA108: 2107041000 | AF108: 0.00 | AG108: 0.00 | AH108: 210,670.57 | AI108: -56,178.84 | AJ108: 0.00 | AK108: 0.00 | AL108: 0.00 | AM108: -14,044.71 | AN108: 0.00 | AO108: 0.00 | AP108: 0.00 | AQ108: 0.00 | AR108: 0.00 | AS108: 0.00 | AT108: 0.00 | AU108: 280,894.12 | AV108: -56,178.84 | AW108: -14,044.71
A109: 101120000233 | B109: 0 | C109: 2000 | E109: 8000000 | F109: 101-120 | G109: 120200510 | H109: Edificio | I109: 2009-12-31 | J109: SISTEMA DE REGULACION HIDRAULICA MAGNETO AZUL UN-2 | K109: 172,855.56 | L109: -34,571.12 | M109: 138,284.44 | N109: DOP | P109: ZLIN | Q109: 2010-01-01 | R109: 020/000 | T109: 1 | U109: UN | W109: 0.00 | X109: -8,642.78 | AA109: 2107041000 | AF109: 0.00 | AG109: 0.00 | AH109: 129,641.66 | AI109: -34,571.12 | AJ109: 0.00 | AK109: 0.00 | AL109: 0.00 | AM109: -8,642.78 | AN109: 0.00 | AO109: 0.00 | AP109: 0.00 | AQ109: 0.00 | AR109: 0.00 | AS109: 0.00 | AT109: 0.00 | AU109: 172,855.56 | AV109: -34,571.12 | AW109: -8,642.78
A110: 101120000239 | B110: 0 | C110: 2000 | E110: 8000000 | F110: 101-120 | G110: 120200510 | H110: Edificio | I110: 2009-12-31 | J110: SISTEMA DE REGULACION HIDRAULICA MAGNETO AZUL UN-1 | K110: 172,855.56 | L110: -34,571.12 | M110: 138,284.44 | N110: DOP | P110: ZLIN | Q110: 2010-01-01 | R110: 020/000 | T110: 1 | U110: UN | W110: 0.00 | X110: -8,642.78 | AA110: 2107041000 | AF110: 0.00 | AG110: 0.00 | AH110: 129,641.66 | AI110: -34,571.12 | AJ110: 0.00 | AK110: 0.00 | AL110: 0.00 | AM110: -8,642.78 | AN110: 0.00 | AO110: 0.00 | AP110: 0.00 | AQ110: 0.00 | AR110: 0.00 | AS110: 0.00 | AT110: 0.00 | AU110: 172,855.56 | AV110: -34,571.12 | AW110: -8,642.78
A111: 101120000281 | B111: 0 | C111: 2000 | E111: 8000000 | F111: 101-120 | G111: 120200510 | H111: Edificio | I111: 2009-12-31 | J111: INGENIERIA BASICA Y DE DISEÑO CENTRAL MAGUEYAL Y | K111: 2,519,809.48 | L111: -503,961.88 | M111: 2,015,847.60 | N111: DOP | P111: ZLIN | Q111: 2010-01-01 | R111: 020/000 | T111: 1 | U111: UN | W111: 0.00 | X111: -125,990.47 | AA111: 2107041000 | AF111: 0.00 | AG111: 0.00 | AH111: 1,889,857.13 | AI111: -503,961.88 | AJ111: 0.00 | AK111: 0.00 | AL111: 0.00 | AM111: -125,990.47 | AN111: 0.00 | AO111: 0.00 | AP111: 0.00 | AQ111: 0.00 | AR111: 0.00 | AS111: 0.00 | AT111: 0.00 | AU111: 2,519,809.48 | AV111: -503,961.88 | AW111: -125,990.47
A112: 101120000282 | B112: 0 | C112: 2000 | E112: 8000000 | F112: 101-120 | G112: 120200510 | H112: Edificio | I112: 2009-12-31 | J112: CASA DE MAQUINAS OBRA DE TOMA, TUBERIA FORZADA, | K112: 18,150,834.04 | L112: -3,630,166.80 | M112: 14,520,667.24 | N112: DOP | P112: ZLIN | Q112: 2010-01-01 | R112: 020/000 | T112: 1 | U112: UN | W112: 0.00 | X112: -907,541.70 | AA112: 2107041000 | AF112: 0.00 | AG112: 0.00 | AH112: 13,613,125.54 | AI112: -3,630,166.80 | AJ112: 0.00 | AK112: 0.00 | AL112: 0.00 | AM112: -907,541.70 | AN112: 0.00 | AO112: 0.00 | AP112: 0.00 | AQ112: 0.00 | AR112: 0.00 | AS112: 0.00 | AT112: 0.00 | AU112: 18,150,834.04 | AV112: -3,630,166.80 | AW112: -907,541.70
A113: 101120000283 | B113: 0 | C113: 2000 | E113: 8000000 | F113: 101-120 | G113: 120200510 | H113: Edificio | I113: 2009-12-31 | J113: OBRA DE TOMA | K113: 5,269,492.56 | L113: -1,053,898.52 | M113: 4,215,594.04 | N113: DOP | P113: ZLIN | Q113: 2010-01-01 | R113: 020/000 | T113: 1 | U113: UN | W113: 0.00 | X113: -263,474.63 | AA113: 2107041000 | AF113: 0.00 | AG113: 0.00 | AH113: 3,952,119.41 | AI113: -1,053,898.52 | AJ113: 0.00 | AK113: 0.00 | AL113: 0.00 | AM113: -263,474.63 | AN113: 0.00 | AO113: 0.00 | AP113: 0.00 | AQ113: 0.00 | AR113: 0.00 | AS113: 0.00 | AT113: 0.00 | AU113: 5,269,492.56 | AV113: -1,053,898.52 | AW113: -263,474.63
A114: 101120000284 | B114: 0 | C114: 2000 | E114: 8000000 | F114: 101-120 | G114: 120200510 | H114: Edificio | I114: 2009-12-31 | J114: CASA DE MAQUINAS CONTRAEMBALSE | K114: 18,150,834.04 | L114: -3,630,166.80 | M114: 14,520,667.24 | N114: DOP | P114: ZLIN | Q114: 2010-01-01 | R114: 020/000 | T114: 1 | U114: UN | W114: 0.00 | X114: -907,541.70 | AA114: 2107030600 | AF114: 0.00 | AG114: 0.00 | AH114: 13,613,125.54 | AI114: -3,630,166.80 | AJ114: 0.00 | AK114: 0.00 | AL114: 0.00 | AM114: -907,541.70 | AN114: 0.00 | AO114: 0.00 | AP114: 0.00 | AQ114: 0.00 | AR114: 0.00 | AS114: 0.00 | AT114: 0.00 | AU114: 18,150,834.04 | AV114: -3,630,166.80 | AW114: -907,541.70
A115: 101120000285 | B115: 0 | C115: 2000 | E115: 8000000 | F115: 101-120 | G115: 120200510 | H115: Edificio | I115: 2009-12-31 | J115: CASETA DE ENTRADA. 3 M2. | K115: 63,869.08 | L115: -12,773.80 | M115: 51,095.28 | N115: DOP | P115: ZLIN | Q115: 2010-01-01 | R115: 020/000 | T115: 1 | U115: UN | W115: 0.00 | X115: -3,193.45 | AA115: 2107041000 | AF115: 0.00 | AG115: 0.00 | AH115: 47,901.83 | AI115: -12,773.80 | AJ115: 0.00 | AK115: 0.00 | AL115: 0.00 | AM115: -3,193.45 | AN115: 0.00 | AO115: 0.00 | AP115: 0.00 | AQ115: 0.00 | AR115: 0.00 | AS115: 0.00 | AT115: 0.00 | AU115: 63,869.08 | AV115: -12,773.80 | AW115: -3,193.45
A116: 101120000286 | B116: 0 | C116: 2000 | E116: 8000000 | F116: 101-120 | G116: 120200510 | H116: Edificio | I116: 2009-12-31 | J116: EDIFICIO ADMINISTRATIVO. 155 M2. | K116: 488,947.16 | L116: -97,789.44 | M116: 391,157.72 | N116: DOP | P116: ZLIN | Q116: 2010-01-01 | R116: 020/000 | T116: 1 | U116: UN | W116: 0.00 | X116: -24,447.36 | AA116: 2107041000 | AF116: 0.00 | AG116: 0.00 | AH116: 366,710.36 | AI116: -97,789.44 | AJ116: 0.00 | AK116: 0.00 | AL116: 0.00 | AM116: -24,447.36 | AN116: 0.00 | AO116: 0.00 | AP116: 0.00 | AQ116: 0.00 | AR116: 0.00 | AS116: 0.00 | AT116: 0.00 | AU116: 488,947.16 | AV116: -97,789.44 | AW116: -24,447.36
A117: 101120000287 | B117: 0 | C117: 2000 | E117: 8000000 | F117: 101-120 | G117: 120200510 | H117: Edificio | I117: 2009-12-31 | J117: EDIFICIO COMEDOR. 72 M2 | K117: 41,151.16 | L117: -8,230.24 | M117: 32,920.92 | N117: DOP | P117: ZLIN | Q117: 2010-01-01 | R117: 020/000 | T117: 1 | U117: UN | W117: 0.00 | X117: -2,057.56 | AA117: 2107041000 | AF117: 0.00 | AG117: 0.00 | AH117: 30,863.36 | AI117: -8,230.24 | AJ117: 0.00 | AK117: 0.00 | AL117: 0.00 | AM117: -2,057.56 | AN117: 0.00 | AO117: 0.00 | AP117: 0.00 | AQ117: 0.00 | AR117: 0.00 | AS117: 0.00 | AT117: 0.00 | AU117: 41,151.16 | AV117: -8,230.24 | AW117: -2,057.56
A118: 101120000289 | B118: 0 | C118: 2000 | E118: 8000000 | F118: 101-120 | G118: 120200510 | H118: Edificio | I118: 2009-12-31 | J118: BODEGA DE MANTENIMIENTO. 9 M2. | K118: 4,716.40 | L118: -943.28 | M118: 3,773.12 | N118: DOP | P118: ZLIN | Q118: 2010-01-01 | R118: 020/000 | T118: 1 | U118: UN | W118: 0.00 | X118: -235.82 | AA118: 2107041000 | AF118: 0.00 | AG118: 0.00 | AH118: 3,537.30 | AI118: -943.28 | AJ118: 0.00 | AK118: 0.00 | AL118: 0.00 | AM118: -235.82 | AN118: 0.00 | AO118: 0.00 | AP118: 0.00 | AQ118: 0.00 | AR118: 0.00 | AS118: 0.00 | AT118: 0.00 | AU118: 4,716.40 | AV118: -943.28 | AW118: -235.82
A119: 101120000290 | B119: 0 | C119: 2000 | E119: 8000000 | F119: 101-120 | G119: 120200510 | H119: Edificio | I119: 2009-12-31 | J119: VIALIDAD DE ACCESO. S.G. | K119: 3,764,986.56 | L119: -752,997.32 | M119: 3,011,989.24 | N119: DOP | P119: ZLIN | Q119: 2010-01-01 | R119: 020/000 | T119: 1 | U119: UN | W119: 0.00 | X119: -188,249.33 | AA119: 2107041000 | AF119: 0.00 | AG119: 0.00 | AH119: 2,823,739.91 | AI119: -752,997.32 | AJ119: 0.00 | AK119: 0.00 | AL119: 0.00 | AM119: -188,249.33 | AN119: 0.00 | AO119: 0.00 | AP119: 0.00 | AQ119: 0.00 | AR119: 0.00 | AS119: 0.00 | AT119: 0.00 | AU119: 3,764,986.56 | AV119: -752,997.32 | AW119: -188,249.33
A120: 101120000291 | B120: 0 | C120: 2000 | E120: 8000000 | F120: 101-120 | G120: 120200510 | H120: Edificio | I120: 2015-12-31 | J120: TUBERIA FORZADA. S.G. | K120: 3,512,991.72 | L120: -702,598.36 | M120: 2,810,393.36 | N120: DOP | P120: ZLIN | Q120: 2016-01-01 | R120: 020/000 | T120: 1 | U120: UN | W120: 0.00 | X120: -175,649.59 | AA120: 2107041000 | AF120: 0.00 | AG120: 0.00 | AH120: 2,634,743.77 | AI120: -702,598.36 | AJ120: 0.00 | AK120: 0.00 | AL120: 0.00 | AM120: -175,649.59 | AN120: 0.00 | AO120: 0.00 | AP120: 0.00 | AQ120: 0.00 | AR120: 0.00 | AS120: 0.00 | AT120: 0.00 | AU120: 3,512,991.72 | AV120: -702,598.36 | AW120: -175,649.59
A121: 101120000292 | B121: 0 | C121: 2000 | E121: 8000000 | F121: 101-120 | G121: 120200510 | H121: Edificio | I121: 2015-12-31 | J121: CANAL DE DESCARGA. S.G. | K121: 3,161,685.72 | L121: -632,337.16 | M121: 2,529,348.56 | N121: DOP | P121: ZLIN | Q121: 2016-01-01 | R121: 020/000 | T121: 1 | U121: UN | W121: 0.00 | X121: -158,084.29 | AA121: 2107041000 | AF121: 0.00 | AG121: 0.00 | AH121: 2,371,264.27 | AI121: -632,337.16 | AJ121: 0.00 | AK121: 0.00 | AL121: 0.00 | AM121: -158,084.29 | AN121: 0.00 | AO121: 0.00 | AP121: 0.00 | AQ121: 0.00 | AR121: 0.00 | AS121: 0.00 | AT121: 0.00 | AU121: 3,161,685.72 | AV121: -632,337.16 | AW121: -158,084.29
A122: 101120000294 | B122: 0 | C122: 2000 | E122: 8000000 | F122: 101-120 | G122: 120200510 | H122: Edificio | I122: 2014-07-31 | J122: DESTACAMENTO MILITAR PRESA MONCION | K122: 133,477.48 | L122: -26,695.48 | M122: 106,782.00 | N122: DOP | P122: ZLIN | Q122: 2014-08-01 | R122: 020/000 | T122: 1 | U122: UN | W122: 0.00 | X122: -6,673.87 | AA122: 2107030600 | AF122: 0.00 | AG122: 0.00 | AH122: 100,108.13 | AI122: -26,695.48 | AJ122: 0.00 | AK122: 0.00 | AL122: 0.00 | AM122: -6,673.87 | AN122: 0.00 | AO122: 0.00 | AP122: 0.00 | AQ122: 0.00 | AR122: 0.00 | AS122: 0.00 | AT122: 0.00 | AU122: 133,477.48 | AV122: -26,695.48 | AW122: -6,673.87
A123: 101120000295 | B123: 0 | C123: 2000 | E123: 8000000 | F123: 101-120 | G123: 120200510 | H123: Edificio | I123: 2012-08-30 | J123: ALMACEN 279 M2. PRINCIPAL C.H. MONCION | K123: 444,576.00 | L123: -88,915.20 | M123: 355,660.80 | N123: DOP | P123: ZLIN | Q123: 2012-09-01 | R123: 020/000 | T123: 1 | U123: UN | W123: 0.00 | X123: -22,228.80 | AA123: 2107030600 | AF123: 0.00 | AG123: 0.00 | AH123: 333,432.00 | AI123: -88,915.20 | AJ123: 0.00 | AK123: 0.00 | AL123: 0.00 | AM123: -22,228.80 | AN123: 0.00 | AO123: 0.00 | AP123: 0.00 | AQ123: 0.00 | AR123: 0.00 | AS123: 0.00 | AT123: 0.00 | AU123: 444,576.00 | AV123: -88,915.20 | AW123: -22,228.80
A124: 101120000296 | B124: 0 | C124: 2000 | E124: 8000000 | F124: 101-120 | G124: 120200510 | H124: Edificio | I124: 2014-10-31 | J124: COMEDOR Y COCINA 58 M2 CENTRAL MONCION | K124: 87,317.16 | L124: -17,463.44 | M124: 69,853.72 | N124: DOP | P124: ZLIN | Q124: 2014-11-01 | R124: 020/000 | T124: 1 | U124: UN | W124: 0.00 | X124: -4,365.86 | AA124: 2107030600 | AF124: 0.00 | AG124: 0.00 | AH124: 65,487.86 | AI124: -17,463.44 | AJ124: 0.00 | AK124: 0.00 | AL124: 0.00 | AM124: -4,365.86 | AN124: 0.00 | AO124: 0.00 | AP124: 0.00 | AQ124: 0.00 | AR124: 0.00 | AS124: 0.00 | AT124: 0.00 | AU124: 87,317.16 | AV124: -17,463.44 | AW124: -4,365.86
A125: 101120000298 | B125: 0 | C125: 2000 | E125: 8000000 | F125: 101-120 | G125: 120200510 | H125: Edificio | I125: 2015-12-31 | J125: CELDA PISCICOLA 1. 5.000 M2. ABB | K125: 682,766.00 | L125: -136,553.20 | M125: 546,212.80 | N125: DOP | P125: ZLIN | Q125: 2016-01-01 | R125: 020/000 | T125: 1 | U125: UN | W125: 0.00 | X125: -34,138.30 | AA125: 2107041600 | AF125: 0.00 | AG125: 0.00 | AH125: 512,074.50 | AI125: -136,553.20 | AJ125: 0.00 | AK125: 0.00 | AL125: 0.00 | AM125: -34,138.30 | AN125: 0.00 | AO125: 0.00 | AP125: 0.00 | AQ125: 0.00 | AR125: 0.00 | AS125: 0.00 | AT125: 0.00 | AU125: 682,766.00 | AV125: -136,553.20 | AW125: -34,138.30
A126: 101120000299 | B126: 0 | C126: 2000 | E126: 8000000 | F126: 101-120 | G126: 120200510 | H126: Edificio | I126: 2015-12-31 | J126: CELDA PISCICOLA 2. 5.000 M2. ABB 15 KV, 13, | K126: 800,622.68 | L126: -160,124.52 | M126: 640,498.16 | N126: DOP | P126: ZLIN | Q126: 2016-01-01 | R126: 020/000 | T126: 1 | U126: UN | W126: 0.00 | X126: -40,031.13 | AA126: 2107041600 | AF126: 0.00 | AG126: 0.00 | AH126: 600,467.03 | AI126: -160,124.52 | AJ126: 0.00 | AK126: 0.00 | AL126: 0.00 | AM126: -40,031.13 | AN126: 0.00 | AO126: 0.00 | AP126: 0.00 | AQ126: 0.00 | AR126: 0.00 | AS126: 0.00 | AT126: 0.00 | AU126: 800,622.68 | AV126: -160,124.52 | AW126: -40,031.13
A127: 101120000300 | B127: 0 | C127: 2000 | E127: 8000000 | F127: 101-120 | G127: 120200510 | H127: Edificio | I127: 2015-12-31 | J127: CASETA DE ENTRADA A COMPLEJO CASA DE MAQUINAS. | K127: 22,249.12 | L127: -4,449.84 | M127: 17,799.28 | N127: DOP | P127: ZLIN | Q127: 2016-01-01 | R127: 020/000 | T127: 1 | U127: UN | W127: 0.00 | X127: -1,112.46 | AA127: 2107041600 | AF127: 0.00 | AG127: 0.00 | AH127: 16,686.82 | AI127: -4,449.84 | AJ127: 0.00 | AK127: 0.00 | AL127: 0.00 | AM127: -1,112.46 | AN127: 0.00 | AO127: 0.00 | AP127: 0.00 | AQ127: 0.00 | AR127: 0.00 | AS127: 0.00 | AT127: 0.00 | AU127: 22,249.12 | AV127: -4,449.84 | AW127: -1,112.46
A128: 101120000301 | B128: 0 | C128: 2000 | E128: 8000000 | F128: 101-120 | G128: 120200510 | H128: Edificio | I128: 2015-12-31 | J128: VENTILADOR DE AIRE DE PARED GRIS | K128: 1,024,346.84 | L128: -204,869.36 | M128: 819,477.48 | N128: DOP | P128: ZLIN | Q128: 2016-01-01 | R128: 020/000 | T128: 1 | U128: UN | W128: 0.00 | X128: -51,217.34 | AA128: 2107040900 | AF128: 0.00 | AG128: 0.00 | AH128: 768,260.14 | AI128: -204,869.36 | AJ128: 0.00 | AK128: 0.00 | AL128: 0.00 | AM128: -51,217.34 | AN128: 0.00 | AO128: 0.00 | AP128: 0.00 | AQ128: 0.00 | AR128: 0.00 | AS128: 0.00 | AT128: 0.00 | AU128: 1,024,346.84 | AV128: -204,869.36 | AW128: -51,217.34
A129: 101120000302 | B129: 0 | C129: 2000 | E129: 8000000 | F129: 101-120 | G129: 120200510 | H129: Edificio | I129: 2014-07-31 | J129: EDIFICIO COMEDOR MAMPOSTERIA DE CONCRETO, PISO | K129: 1,152,388.84 | L129: -230,477.76 | M129: 921,911.08 | N129: DOP | P129: ZLIN | Q129: 2014-08-01 | R129: 020/000 | T129: 1 | U129: UN | W129: 0.00 | X129: -57,619.44 | AA129: 2107041600 | AF129: 0.00 | AG129: 0.00 | AH129: 864,291.64 | AI129: -230,477.76 | AJ129: 0.00 | AK129: 0.00 | AL129: 0.00 | AM129: -57,619.44 | AN129: 0.00 | AO129: 0.00 | AP129: 0.00 | AQ129: 0.00 | AR129: 0.00 | AS129: 0.00 | AT129: 0.00 | AU129: 1,152,388.84 | AV129: -230,477.76 | AW129: -57,619.44
A130: 101120000303 | B130: 0 | C130: 2000 | E130: 8000000 | F130: 101-120 | G130: 120200510 | H130: Edificio | I130: 2015-12-31 | J130: CASA DE PANELES ELECTRICOS. S.G. MAMPOSTERIA DE C | K130: 312,725.12 | L130: -62,545.04 | M130: 250,180.08 | N130: DOP | P130: ZLIN | Q130: 2016-01-01 | R130: 020/000 | T130: 1 | U130: UN | W130: 0.00 | X130: -15,636.26 | AA130: 2107041600 | AF130: 0.00 | AG130: 0.00 | AH130: 234,543.82 | AI130: -62,545.04 | AJ130: 0.00 | AK130: 0.00 | AL130: 0.00 | AM130: -15,636.26 | AN130: 0.00 | AO130: 0.00 | AP130: 0.00 | AQ130: 0.00 | AR130: 0.00 | AS130: 0.00 | AT130: 0.00 | AU130: 312,725.12 | AV130: -62,545.04 | AW130: -15,636.26
A131: 101120000304 | B131: 0 | C131: 2000 | E131: 8000000 | F131: 101-120 | G131: 120200510 | H131: Edificio | I131: 2015-12-31 | J131: EDIFICIO ADMINISTRATIVO MAMPOSTERIA Y CONCRETO | K131: 23,586,823.44 | L131: -4,717,364.68 | M131: 18,869,458.76 | N131: DOP | P131: ZLIN | Q131: 2016-01-01 | R131: 020/000 | T131: 1 | U131: UN | W131: 0.00 | X131: -1,179,341.17 | AA131: 2107041600 | AF131: 0.00 | AG131: 0.00 | AH131: 17,690,117.59 | AI131: -4,717,364.68 | AJ131: 0.00 | AK131: 0.00 | AL131: 0.00 | AM131: -1,179,341.17 | AN131: 0.00 | AO131: 0.00 | AP131: 0.00 | AQ131: 0.00 | AR131: 0.00 | AS131: 0.00 | AT131: 0.00 | AU131: 23,586,823.44 | AV131: -4,717,364.68 | AW131: -1,179,341.17
A132: 101120000305 | B132: 0 | C132: 2000 | E132: 8000000 | F132: 101-120 | G132: 120200510 | H132: Edificio | I132: 2015-12-31 | J132: CASETA DEL GENERADOR DE EMERGENCIA. S.G. MAMPOSTE | K132: 273,638.44 | L132: -54,727.68 | M132: 218,910.76 | N132: DOP | P132: ZLIN | Q132: 2016-01-01 | R132: 020/000 | T132: 1 | U132: UN | W132: 0.00 | X132: -13,681.92 | AA132: 2107041600 | AF132: 0.00 | AG132: 0.00 | AH132: 205,228.84 | AI132: -54,727.68 | AJ132: 0.00 | AK132: 0.00 | AL132: 0.00 | AM132: -13,681.92 | AN132: 0.00 | AO132: 0.00 | AP132: 0.00 | AQ132: 0.00 | AR132: 0.00 | AS132: 0.00 | AT132: 0.00 | AU132: 273,638.44 | AV132: -54,727.68 | AW132: -13,681.92
A133: 101120000306 | B133: 0 | C133: 2000 | E133: 8000000 | F133: 101-120 | G133: 120200510 | H133: Edificio | I133: 2015-12-31 | J133: CASA 1 DEL CAMPAMENTO. S.G. MAMPOSTERIA | K133: 1,120,378.56 | L133: -224,075.72 | M133: 896,302.84 | N133: DOP | P133: ZLIN | Q133: 2016-01-01 | R133: 020/000 | T133: 1 | U133: UN | W133: 0.00 | X133: -56,018.93 | AA133: 2107041600 | AF133: 0.00 | AG133: 0.00 | AH133: 840,283.91 | AI133: -224,075.72 | AJ133: 0.00 | AK133: 0.00 | AL133: 0.00 | AM133: -56,018.93 | AN133: 0.00 | AO133: 0.00 | AP133: 0.00 | AQ133: 0.00 | AR133: 0.00 | AS133: 0.00 | AT133: 0.00 | AU133: 1,120,378.56 | AV133: -224,075.72 | AW133: -56,018.93
A134: 101120000307 | B134: 0 | C134: 2000 | E134: 8000000 | F134: 101-120 | G134: 120200510 | H134: Edificio | I134: 2015-12-31 | J134: CASA 2 DEL CAMPAMENTO. S.G. MAMPOSTERIA | K134: 1,120,378.56 | L134: -224,075.72 | M134: 896,302.84 | N134: DOP | P134: ZLIN | Q134: 2016-01-01 | R134: 020/000 | T134: 1 | U134: UN | W134: 0.00 | X134: -56,018.93 | AA134: 2107041600 | AF134: 0.00 | AG134: 0.00 | AH134: 840,283.91 | AI134: -224,075.72 | AJ134: 0.00 | AK134: 0.00 | AL134: 0.00 | AM134: -56,018.93 | AN134: 0.00 | AO134: 0.00 | AP134: 0.00 | AQ134: 0.00 | AR134: 0.00 | AS134: 0.00 | AT134: 0.00 | AU134: 1,120,378.56 | AV134: -224,075.72 | AW134: -56,018.93
A135: 101120000308 | B135: 0 | C135: 2000 | E135: 8000000 | F135: 101-120 | G135: 120200510 | H135: Edificio | I135: 2015-12-31 | J135: CASA 3 DEL CAMPAMENTO. S.G. MAMPOSTERIA | K135: 1,120,378.56 | L135: -224,075.72 | M135: 896,302.84 | N135: DOP | P135: ZLIN | Q135: 2016-01-01 | R135: 020/000 | T135: 1 | U135: UN | W135: 0.00 | X135: -56,018.93 | AA135: 2107041600 | AF135: 0.00 | AG135: 0.00 | AH135: 840,283.91 | AI135: -224,075.72 | AJ135: 0.00 | AK135: 0.00 | AL135: 0.00 | AM135: -56,018.93 | AN135: 0.00 | AO135: 0.00 | AP135: 0.00 | AQ135: 0.00 | AR135: 0.00 | AS135: 0.00 | AT135: 0.00 | AU135: 1,120,378.56 | AV135: -224,075.72 | AW135: -56,018.93
A136: 101120000309 | B136: 0 | C136: 2000 | E136: 8000000 | F136: 101-120 | G136: 120200510 | H136: Edificio | I136: 2015-12-31 | J136: VERJA PERIMETRAL | K136: 461,503.56 | L136: -92,300.72 | M136: 369,202.84 | N136: DOP | P136: ZLIN | Q136: 2016-01-01 | R136: 020/000 | T136: 1 | U136: UN | W136: 0.00 | X136: -23,075.18 | AA136: 2107041600 | AF136: 0.00 | AG136: 0.00 | AH136: 346,127.66 | AI136: -92,300.72 | AJ136: 0.00 | AK136: 0.00 | AL136: 0.00 | AM136: -23,075.18 | AN136: 0.00 | AO136: 0.00 | AP136: 0.00 | AQ136: 0.00 | AR136: 0.00 | AS136: 0.00 | AT136: 0.00 | AU136: 461,503.56 | AV136: -92,300.72 | AW136: -23,075.18
A137: 101120000310 | B137: 0 | C137: 2000 | E137: 8000000 | F137: 101-120 | G137: 120200510 | H137: Edificio | I137: 2015-12-31 | J137: CASA 4. LAVANDERIA. S.G. MAMPOSTERIA | K137: 1,120,378.56 | L137: -224,075.72 | M137: 896,302.84 | N137: DOP | P137: ZLIN | Q137: 2016-01-01 | R137: 020/000 | T137: 1 | U137: UN | W137: 0.00 | X137: -56,018.93 | AA137: 2107041600 | AF137: 0.00 | AG137: 0.00 | AH137: 840,283.91 | AI137: -224,075.72 | AJ137: 0.00 | AK137: 0.00 | AL137: 0.00 | AM137: -56,018.93 | AN137: 0.00 | AO137: 0.00 | AP137: 0.00 | AQ137: 0.00 | AR137: 0.00 | AS137: 0.00 | AT137: 0.00 | AU137: 1,120,378.56 | AV137: -224,075.72 | AW137: -56,018.93
A138: 101120000311 | B138: 0 | C138: 2000 | E138: 8000000 | F138: 101-120 | G138: 120200510 | H138: Edificio | I138: 2015-12-31 | J138: CASA 5. ANTIGUO GIMNASIO. MAMPOSTERIA | K138: 1,120,378.56 | L138: -224,075.72 | M138: 896,302.84 | N138: DOP | P138: ZLIN | Q138: 2016-01-01 | R138: 020/000 | T138: 1 | U138: UN | W138: 0.00 | X138: -56,018.93 | AA138: 2107041600 | AF138: 0.00 | AG138: 0.00 | AH138: 840,283.91 | AI138: -224,075.72 | AJ138: 0.00 | AK138: 0.00 | AL138: 0.00 | AM138: -56,018.93 | AN138: 0.00 | AO138: 0.00 | AP138: 0.00 | AQ138: 0.00 | AR138: 0.00 | AS138: 0.00 | AT138: 0.00 | AU138: 1,120,378.56 | AV138: -224,075.72 | AW138: -56,018.93
A139: 101120000312 | B139: 0 | C139: 2000 | E139: 8000000 | F139: 101-120 | G139: 120200510 | H139: Edificio | I139: 2015-12-31 | J139: GALPON ALMACEN DE SUMINISTROS. S.G. ESTRUCTURA ME | K139: 5,430,650.00 | L139: -1,086,130.00 | M139: 4,344,520.00 | N139: DOP | P139: ZLIN | Q139: 2016-01-01 | R139: 020/000 | T139: 1 | U139: UN | W139: 0.00 | X139: -271,532.50 | AA139: 2107041600 | AF139: 0.00 | AG139: 0.00 | AH139: 4,072,987.50 | AI139: -1,086,130.00 | AJ139: 0.00 | AK139: 0.00 | AL139: 0.00 | AM139: -271,532.50 | AN139: 0.00 | AO139: 0.00 | AP139: 0.00 | AQ139: 0.00 | AR139: 0.00 | AS139: 0.00 | AT139: 0.00 | AU139: 5,430,650.00 | AV139: -1,086,130.00 | AW139: -271,532.50
A140: 101120000313 | B140: 0 | C140: 2000 | E140: 8000000 | F140: 101-120 | G140: 120200510 | H140: Edificio | I140: 2015-12-31 | J140: DESTACAMENTO MILITAR 124 M2 MAMPOSTERIA DE CONCRE | K140: 260,949.72 | L140: -52,189.96 | M140: 208,759.76 | N140: DOP | P140: ZLIN | Q140: 2016-01-01 | R140: 020/000 | T140: 1 | U140: UN | W140: 0.00 | X140: -13,047.49 | AA140: 2107041600 | AF140: 0.00 | AG140: 0.00 | AH140: 195,712.27 | AI140: -52,189.96 | AJ140: 0.00 | AK140: 0.00 | AL140: 0.00 | AM140: -13,047.49 | AN140: 0.00 | AO140: 0.00 | AP140: 0.00 | AQ140: 0.00 | AR140: 0.00 | AS140: 0.00 | AT140: 0.00 | AU140: 260,949.72 | AV140: -52,189.96 | AW140: -13,047.49
A141: 101120000314 | B141: 0 | C141: 2000 | E141: 8000000 | F141: 101-120 | G141: 120200510 | H141: Edificio | I141: 2015-12-31 | J141: INGENIERIA BASICA Y DE DISEÑO CENTRAL PALOMINO. S | K141: 76,054,664.44 | L141: -15,210,932.88 | M141: 60,843,731.56 | N141: DOP | P141: ZLIN | Q141: 2016-01-01 | R141: 020/000 | T141: 1 | U141: UN | W141: 0.00 | X141: -3,802,733.22 | AA141: 2107041600 | AF141: 0.00 | AG141: 0.00 | AH141: 57,040,998.34 | AI141: -15,210,932.88 | AJ141: 0.00 | AK141: 0.00 | AL141: 0.00 | AM141: -3,802,733.22 | AN141: 0.00 | AO141: 0.00 | AP141: 0.00 | AQ141: 0.00 | AR141: 0.00 | AS141: 0.00 | AT141: 0.00 | AU141: 76,054,664.44 | AV141: -15,210,932.88 | AW141: -3,802,733.22
A142: 101120000315 | B142: 0 | C142: 2000 | E142: 8000000 | F142: 101-120 | G142: 120200510 | H142: Edificio | I142: 2015-12-31 | J142: PREPRACION DEL SITIO: MOVIMIENTO DE TIERRA, ESTUD | K142: 16,264,478.24 | L142: -3,252,895.64 | M142: 13,011,582.60 | N142: DOP | P142: ZLIN | Q142: 2016-01-01 | R142: 020/000 | T142: 1 | U142: UN | W142: 0.00 | X142: -813,223.91 | AA142: 2107041600 | AF142: 0.00 | AG142: 0.00 | AH142: 12,198,358.69 | AI142: -3,252,895.64 | AJ142: 0.00 | AK142: 0.00 | AL142: 0.00 | AM142: -813,223.91 | AN142: 0.00 | AO142: 0.00 | AP142: 0.00 | AQ142: 0.00 | AR142: 0.00 | AS142: 0.00 | AT142: 0.00 | AU142: 16,264,478.24 | AV142: -3,252,895.64 | AW142: -813,223.91
A143: 101120000316 | B143: 0 | C143: 2000 | E143: 8000000 | F143: 101-120 | G143: 120200510 | H143: Edificio | I143: 2015-12-31 | J143: VIALIDAD DE ACCESO PATIO TBM Y CASA DE MAQUINAS | K143: 16,977,291.08 | L143: -3,395,458.20 | M143: 13,581,832.88 | N143: DOP | P143: ZLIN | Q143: 2016-01-01 | R143: 020/000 | T143: 1 | U143: UN | W143: 0.00 | X143: -848,864.55 | AA143: 2107041600 | AF143: 0.00 | AG143: 0.00 | AH143: 12,732,968.33 | AI143: -3,395,458.20 | AJ143: 0.00 | AK143: 0.00 | AL143: 0.00 | AM143: -848,864.55 | AN143: 0.00 | AO143: 0.00 | AP143: 0.00 | AQ143: 0.00 | AR143: 0.00 | AS143: 0.00 | AT143: 0.00 | AU143: 16,977,291.08 | AV143: -3,395,458.20 | AW143: -848,864.55
A144: 101120000317 | B144: 0 | C144: 2000 | E144: 8000000 | F144: 101-120 | G144: 120200510 | H144: Edificio | I144: 2015-12-31 | J144: VIALIDAD DE ACCESO A LA PRESA. S.G. | K144: 120,631,875.20 | L144: -24,126,375.04 | M144: 96,505,500.16 | N144: DOP | P144: ZLIN | Q144: 2016-01-01 | R144: 020/000 | T144: 1 | U144: UN | W144: 0.00 | X144: -6,031,593.76 | AA144: 2107041600 | AF144: 0.00 | AG144: 0.00 | AH144: 90,473,906.40 | AI144: -24,126,375.04 | AJ144: 0.00 | AK144: 0.00 | AL144: 0.00 | AM144: -6,031,593.76 | AN144: 0.00 | AO144: 0.00 | AP144: 0.00 | AQ144: 0.00 | AR144: 0.00 | AS144: 0.00 | AT144: 0.00 | AU144: 120,631,875.20 | AV144: -24,126,375.04 | AW144: -6,031,593.76
A145: 101120000318 | B145: 0 | C145: 2000 | E145: 8000000 | F145: 101-120 | G145: 120200510 | H145: Edificio | I145: 2015-12-31 | J145: OBRAS DE DESVIO DEL RIO. S.G. | K145: 53,562,827.28 | L145: -10,712,565.44 | M145: 42,850,261.84 | N145: DOP | P145: ZLIN | Q145: 2016-01-01 | R145: 020/000 | T145: 1 | U145: UN | W145: 0.00 | X145: -2,678,141.36 | AA145: 2107041600 | AF145: 0.00 | AG145: 0.00 | AH145: 40,172,120.48 | AI145: -10,712,565.44 | AJ145: 0.00 | AK145: 0.00 | AL145: 0.00 | AM145: -2,678,141.36 | AN145: 0.00 | AO145: 0.00 | AP145: 0.00 | AQ145: 0.00 | AR145: 0.00 | AS145: 0.00 | AT145: 0.00 | AU145: 53,562,827.28 | AV145: -10,712,565.44 | AW145: -2,678,141.36
A146: 101120000319 | B146: 0 | C146: 2000 | E146: 8000000 | F146: 101-120 | G146: 120200510 | H146: Edificio | I146: 2015-12-31 | J146: PUENTE DE ACCESO VIAL. S.G | K146: 9,089,007.16 | L146: -1,817,801.44 | M146: 7,271,205.72 | N146: DOP | P146: ZLIN | Q146: 2016-01-01 | R146: 020/000 | T146: 1 | U146: UN | W146: 0.00 | X146: -454,450.36 | AA146: 2107041600 | AF146: 0.00 | AG146: 0.00 | AH146: 6,816,755.36 | AI146: -1,817,801.44 | AJ146: 0.00 | AK146: 0.00 | AL146: 0.00 | AM146: -454,450.36 | AN146: 0.00 | AO146: 0.00 | AP146: 0.00 | AQ146: 0.00 | AR146: 0.00 | AS146: 0.00 | AT146: 0.00 | AU146: 9,089,007.16 | AV146: -1,817,801.44 | AW146: -454,450.36
A147: 101120000320 | B147: 0 | C147: 2000 | E147: 8000000 | F147: 101-120 | G147: 120200510 | H147: Edificio | I147: 2015-12-31 | J147: OFICINA EN CASA DE MAQUINAS. | K147: 55,350,082.72 | L147: -11,070,016.56 | M147: 44,280,066.16 | N147: DOP | P147: ZLIN | Q147: 2016-01-01 | R147: 020/000 | T147: 1 | U147: UN | W147: 0.00 | X147: -2,767,504.14 | AA147: 2107041600 | AF147: 0.00 | AG147: 0.00 | AH147: 41,512,562.02 | AI147: -11,070,016.56 | AJ147: 0.00 | AK147: 0.00 | AL147: 0.00 | AM147: -2,767,504.14 | AN147: 0.00 | AO147: 0.00 | AP147: 0.00 | AQ147: 0.00 | AR147: 0.00 | AS147: 0.00 | AT147: 0.00 | AU147: 55,350,082.72 | AV147: -11,070,016.56 | AW147: -2,767,504.14
A148: 101120000321 | B148: 0 | C148: 2000 | E148: 8000000 | F148: 101-120 | G148: 120200510 | H148: Edificio | I148: 2015-12-31 | J148: VERTEDERO | K148: 82,219,358.84 | L148: -16,443,871.76 | M148: 65,775,487.08 | N148: DOP | P148: ZLIN | Q148: 2016-01-01 | R148: 020/000 | T148: 1 | U148: UN | W148: 0.00 | X148: -4,110,967.94 | AA148: 2107041600 | AF148: 0.00 | AG148: 0.00 | AH148: 61,664,519.14 | AI148: -16,443,871.76 | AJ148: 0.00 | AK148: 0.00 | AL148: 0.00 | AM148: -4,110,967.94 | AN148: 0.00 | AO148: 0.00 | AP148: 0.00 | AQ148: 0.00 | AR148: 0.00 | AS148: 0.00 | AT148: 0.00 | AU148: 82,219,358.84 | AV148: -16,443,871.76 | AW148: -4,110,967.94
A149: 101120000322 | B149: 0 | C149: 2000 | E149: 8000000 | F149: 101-120 | G149: 120200510 | H149: Edificio | I149: 2015-12-31 | J149: CUARTO DE EXTRACTORES DE AIRE DE LA GALERIA. S.G | K149: 234,541.76 | L149: -46,908.36 | M149: 187,633.40 | N149: DOP | P149: ZLIN | Q149: 2016-01-01 | R149: 020/000 | T149: 1 | U149: UN | W149: 0.00 | X149: -11,727.09 | AA149: 2107041600 | AF149: 0.00 | AG149: 0.00 | AH149: 175,906.31 | AI149: -46,908.36 | AJ149: 0.00 | AK149: 0.00 | AL149: 0.00 | AM149: -11,727.09 | AN149: 0.00 | AO149: 0.00 | AP149: 0.00 | AQ149: 0.00 | AR149: 0.00 | AS149: 0.00 | AT149: 0.00 | AU149: 234,541.76 | AV149: -46,908.36 | AW149: -11,727.09
A150: 101120000323 | B150: 0 | C150: 2000 | E150: 8000000 | F150: 101-120 | G150: 120200510 | H150: Edificio | I150: 2015-12-31 | J150: REPRESA LINEA CAMPO 5 (Q5) A BARRA 1 | K150: 386,736,755.30 | L150: -77,347,351.08 | M150: 309,389,404.22 | N150: DOP | P150: ZLIN | Q150: 2016-01-01 | R150: 020/000 | T150: 1 | U150: UN | W150: 0.00 | X150: -19,336,837.77 | AA150: 2107041600 | AF150: 0.00 | AG150: 0.00 | AH150: 290,052,566.45 | AI150: -77,347,351.08 | AJ150: 0.00 | AK150: 0.00 | AL150: 0.00 | AM150: -19,336,837.77 | AN150: 0.00 | AO150: 0.00 | AP150: 0.00 | AQ150: 0.00 | AR150: 0.00 | AS150: 0.00 | AT150: 0.00 | AU150: 386,736,755.30 | AV150: -77,347,351.08 | AW150: -19,336,837.77
A151: 101120000324 | B151: 0 | C151: 2000 | E151: 8000000 | F151: 101-120 | G151: 120200510 | H151: Edificio | I151: 2015-12-31 | J151: CASETA LINEA Q5 BARRA 2 | K151: 195,454.24 | L151: -39,090.84 | M151: 156,363.40 | N151: DOP | P151: ZLIN | Q151: 2016-01-01 | R151: 020/000 | T151: 1 | U151: UN | W151: 0.00 | X151: -9,772.71 | AA151: 2107041600 | AF151: 0.00 | AG151: 0.00 | AH151: 146,590.69 | AI151: -39,090.84 | AJ151: 0.00 | AK151: 0.00 | AL151: 0.00 | AM151: -9,772.71 | AN151: 0.00 | AO151: 0.00 | AP151: 0.00 | AQ151: 0.00 | AR151: 0.00 | AS151: 0.00 | AT151: 0.00 | AU151: 195,454.24 | AV151: -39,090.84 | AW151: -9,772.71
A152: 101120000325 | B152: 0 | C152: 2000 | E152: 8000000 | F152: 101-120 | G152: 120200510 | H152: Edificio | I152: 2015-12-31 | J152: DESAGUE DE FONDO. S.G. | K152: 64,079,747.16 | L152: -12,815,949.44 | M152: 51,263,797.72 | N152: DOP | P152: ZLIN | Q152: 2016-01-01 | R152: 020/000 | T152: 1 | U152: UN | W152: 0.00 | X152: -3,203,987.36 | AA152: 2107041600 | AF152: 0.00 | AG152: 0.00 | AH152: 48,059,810.36 | AI152: -12,815,949.44 | AJ152: 0.00 | AK152: 0.00 | AL152: 0.00 | AM152: -3,203,987.36 | AN152: 0.00 | AO152: 0.00 | AP152: 0.00 | AQ152: 0.00 | AR152: 0.00 | AS152: 0.00 | AT152: 0.00 | AU152: 64,079,747.16 | AV152: -12,815,949.44 | AW152: -3,203,987.36
A153: 101120000326 | B153: 0 | C153: 2000 | E153: 8000000 | F153: 101-120 | G153: 120200510 | H153: Edificio | I153: 2015-12-31 | J153: TOMA DE AGUA. S.G. | K153: 25,374,900.00 | L153: -5,074,980.00 | M153: 20,299,920.00 | N153: DOP | P153: ZLIN | Q153: 2016-01-01 | R153: 020/000 | T153: 1 | U153: UN | W153: 0.00 | X153: -1,268,745.00 | AA153: 2107041600 | AF153: 0.00 | AG153: 0.00 | AH153: 19,031,175.00 | AI153: -5,074,980.00 | AJ153: 0.00 | AK153: 0.00 | AL153: 0.00 | AM153: -1,268,745.00 | AN153: 0.00 | AO153: 0.00 | AP153: 0.00 | AQ153: 0.00 | AR153: 0.00 | AS153: 0.00 | AT153: 0.00 | AU153: 25,374,900.00 | AV153: -5,074,980.00 | AW153: -1,268,745.00
A154: 101120000327 | B154: 0 | C154: 2000 | E154: 8000000 | F154: 101-120 | G154: 120200510 | H154: Edificio | I154: 2015-12-31 | J154: TUNEL DE ADUCCION. S.G. | K154: 918,812,969.70 | L154: -183,762,593.96 | M154: 735,050,375.74 | N154: DOP | P154: ZLIN | Q154: 2016-01-01 | R154: 020/000 | T154: 1 | U154: UN | W154: 0.00 | X154: -45,940,648.49 | AA154: 2107041600 | AF154: 0.00 | AG154: 0.00 | AH154: 689,109,727.25 | AI154: -183,762,593.96 | AJ154: 0.00 | AK154: 0.00 | AL154: 0.00 | AM154: -45,940,648.49 | AN154: 0.00 | AO154: 0.00 | AP154: 0.00 | AQ154: 0.00 | AR154: 0.00 | AS154: 0.00 | AT154: 0.00 | AU154: 918,812,969.70 | AV154: -183,762,593.96 | AW154: -45,940,648.49
A155: 101120000328 | B155: 0 | C155: 2000 | E155: 8000000 | F155: 101-120 | G155: 120200510 | H155: Edificio | I155: 2015-12-31 | J155: EDIFICIO CASA DE MAQUINAS | K155: 111,155,223.70 | L155: -22,231,044.76 | M155: 88,924,178.94 | N155: DOP | P155: ZLIN | Q155: 2016-01-01 | R155: 020/000 | T155: 1 | U155: UN | W155: 0.00 | X155: -5,557,761.19 | AA155: 2107041600 | AF155: 0.00 | AG155: 0.00 | AH155: 83,366,417.75 | AI155: -22,231,044.76 | AJ155: 0.00 | AK155: 0.00 | AL155: 0.00 | AM155: -5,557,761.19 | AN155: 0.00 | AO155: 0.00 | AP155: 0.00 | AQ155: 0.00 | AR155: 0.00 | AS155: 0.00 | AT155: 0.00 | AU155: 111,155,223.70 | AV155: -22,231,044.76 | AW155: -5,557,761.19
A156: 101120000329 | B156: 0 | C156: 2000 | E156: 8000000 | F156: 101-120 | G156: 120200510 | H156: Edificio | I156: 2015-12-31 | J156: CHIMENEA DE EQUILIBRIO Y TUNEL DE POZO DE PRE | K156: 183,399,756.00 | L156: -36,679,951.20 | M156: 146,719,804.80 | N156: DOP | P156: ZLIN | Q156: 2016-01-01 | R156: 020/000 | T156: 1 | U156: UN | W156: 0.00 | X156: -9,169,987.80 | AA156: 2107041600 | AF156: 0.00 | AG156: 0.00 | AH156: 137,549,817.00 | AI156: -36,679,951.20 | AJ156: 0.00 | AK156: 0.00 | AL156: 0.00 | AM156: -9,169,987.80 | AN156: 0.00 | AO156: 0.00 | AP156: 0.00 | AQ156: 0.00 | AR156: 0.00 | AS156: 0.00 | AT156: 0.00 | AU156: 183,399,756.00 | AV156: -36,679,951.20 | AW156: -9,169,987.80
A157: 101120000330 | B157: 0 | C157: 2000 | E157: 8000000 | F157: 101-120 | G157: 120200510 | H157: Edificio | I157: 2015-12-31 | J157: TUNEL DE PRESION. S.G. | K157: 146,995,223.40 | L157: -29,399,044.68 | M157: 117,596,178.72 | N157: DOP | P157: ZLIN | Q157: 2016-01-01 | R157: 020/000 | T157: 1 | U157: UN | W157: 0.00 | X157: -7,349,761.17 | AA157: 2107041600 | AF157: 0.00 | AG157: 0.00 | AH157: 110,246,417.55 | AI157: -29,399,044.68 | AJ157: 0.00 | AK157: 0.00 | AL157: 0.00 | AM157: -7,349,761.17 | AN157: 0.00 | AO157: 0.00 | AP157: 0.00 | AQ157: 0.00 | AR157: 0.00 | AS157: 0.00 | AT157: 0.00 | AU157: 146,995,223.40 | AV157: -29,399,044.68 | AW157: -7,349,761.17
A158: 101120000331 | B158: 0 | C158: 2000 | E158: 8000000 | F158: 101-120 | G158: 120200510 | H158: Edificio | I158: 2015-12-31 | J158: TUNEL 1 Y 2 AGUAS ABAJO CASA DE MAQUINAS. S.G. D | K158: 3,745,285.16 | L158: -749,057.04 | M158: 2,996,228.12 | N158: DOP | P158: ZLIN | Q158: 2016-01-01 | R158: 020/000 | T158: 1 | U158: UN | W158: 0.00 | X158: -187,264.26 | AA158: 2107041600 | AF158: 0.00 | AG158: 0.00 | AH158: 2,808,963.86 | AI158: -749,057.04 | AJ158: 0.00 | AK158: 0.00 | AL158: 0.00 | AM158: -187,264.26 | AN158: 0.00 | AO158: 0.00 | AP158: 0.00 | AQ158: 0.00 | AR158: 0.00 | AS158: 0.00 | AT158: 0.00 | AU158: 3,745,285.16 | AV158: -749,057.04 | AW158: -187,264.26
A159: 101120000332 | B159: 0 | C159: 2000 | E159: 8000000 | F159: 101-120 | G159: 120200510 | H159: Edificio | I159: 2015-12-31 | J159: POZO DE OSCILACION Y COMPUERTAS. S.G. | K159: 30,604,584.28 | L159: -6,120,916.84 | M159: 24,483,667.44 | N159: DOP | P159: ZLIN | Q159: 2016-01-01 | R159: 020/000 | T159: 1 | U159: UN | W159: 0.00 | X159: -1,530,229.21 | AA159: 2107041600 | AF159: 0.00 | AG159: 0.00 | AH159: 22,953,438.23 | AI159: -6,120,916.84 | AJ159: 0.00 | AK159: 0.00 | AL159: 0.00 | AM159: -1,530,229.21 | AN159: 0.00 | AO159: 0.00 | AP159: 0.00 | AQ159: 0.00 | AR159: 0.00 | AS159: 0.00 | AT159: 0.00 | AU159: 30,604,584.28 | AV159: -6,120,916.84 | AW159: -1,530,229.21
A160: 101120000333 | B160: 0 | C160: 2000 | E160: 8000000 | F160: 101-120 | G160: 120200510 | H160: Edificio | I160: 2015-12-31 | J160: TUNEL DE DESFOGUE. S.G. | K160: 189,413,780.30 | L160: -37,882,756.08 | M160: 151,531,024.22 | N160: DOP | P160: ZLIN | Q160: 2016-01-01 | R160: 020/000 | T160: 1 | U160: UN | W160: 0.00 | X160: -9,470,689.02 | AA160: 2107041600 | AF160: 0.00 | AG160: 0.00 | AH160: 142,060,335.20 | AI160: -37,882,756.08 | AJ160: 0.00 | AK160: 0.00 | AL160: 0.00 | AM160: -9,470,689.02 | AN160: 0.00 | AO160: 0.00 | AP160: 0.00 | AQ160: 0.00 | AR160: 0.00 | AS160: 0.00 | AT160: 0.00 | AU160: 189,413,780.30 | AV160: -37,882,756.08 | AW160: -9,470,689.02
A161: 101120000334 | B161: 0 | C161: 2000 | E161: 8000000 | F161: 101-120 | G161: 120200510 | H161: Edificio | I161: 2015-12-31 | J161: PLATAFORMA Y TUNELES AUXILIARES. S.G. | K161: 137,741,824.60 | L161: -27,548,364.92 | M161: 110,193,459.68 | N161: DOP | P161: ZLIN | Q161: 2016-01-01 | R161: 020/000 | T161: 1 | U161: UN | W161: 0.00 | X161: -6,887,091.23 | AA161: 2107041600 | AF161: 0.00 | AG161: 0.00 | AH161: 103,306,368.45 | AI161: -27,548,364.92 | AJ161: 0.00 | AK161: 0.00 | AL161: 0.00 | AM161: -6,887,091.23 | AN161: 0.00 | AO161: 0.00 | AP161: 0.00 | AQ161: 0.00 | AR161: 0.00 | AS161: 0.00 | AT161: 0.00 | AU161: 137,741,824.60 | AV161: -27,548,364.92 | AW161: -6,887,091.23
A162: 101120000335 | B162: 0 | C162: 2000 | E162: 8000000 | F162: 101-120 | G162: 120200510 | H162: Edificio | I162: 2015-12-31 | J162: PLATAFORMA SUB ESTACION. S.G. | K162: 6,017,058.56 | L162: -1,203,411.72 | M162: 4,813,646.84 | N162: DOP | P162: ZLIN | Q162: 2016-01-01 | R162: 020/000 | T162: 1 | U162: UN | W162: 0.00 | X162: -300,852.93 | AA162: 2107041600 | AF162: 0.00 | AG162: 0.00 | AH162: 4,512,793.91 | AI162: -1,203,411.72 | AJ162: 0.00 | AK162: 0.00 | AL162: 0.00 | AM162: -300,852.93 | AN162: 0.00 | AO162: 0.00 | AP162: 0.00 | AQ162: 0.00 | AR162: 0.00 | AS162: 0.00 | AT162: 0.00 | AU162: 6,017,058.56 | AV162: -1,203,411.72 | AW162: -300,852.93
A163: 101120000336 | B163: 0 | C163: 2000 | E163: 8000000 | F163: 101-120 | G163: 120200510 | H163: Edificio | I163: 2015-12-31 | J163: TRABAJOS PRELIMINARES, INVESTIGACION DE SUELOS Y | K163: 331,590.84 | L163: -66,318.16 | M163: 265,272.68 | N163: DOP | P163: ZLIN | Q163: 2016-01-01 | R163: 020/000 | T163: 1 | U163: UN | W163: 0.00 | X163: -16,579.54 | AA163: 2107041600 | AF163: 0.00 | AG163: 0.00 | AH163: 248,693.14 | AI163: -66,318.16 | AJ163: 0.00 | AK163: 0.00 | AL163: 0.00 | AM163: -16,579.54 | AN163: 0.00 | AO163: 0.00 | AP163: 0.00 | AQ163: 0.00 | AR163: 0.00 | AS163: 0.00 | AT163: 0.00 | AU163: 331,590.84 | AV163: -66,318.16 | AW163: -16,579.54
A164: 101120000337 | B164: 0 | C164: 2000 | E164: 8000000 | F164: 101-120 | G164: 120200510 | H164: Edificio | I164: 2015-12-31 | J164: NIVELACION, RELLENO Y COMPACTACION DEL TERRENO. S | K164: 208,739.72 | L164: -41,747.96 | M164: 166,991.76 | N164: DOP | P164: ZLIN | Q164: 2016-01-01 | R164: 020/000 | T164: 1 | U164: UN | W164: 0.00 | X164: -10,436.99 | AA164: 2107041600 | AF164: 0.00 | AG164: 0.00 | AH164: 156,554.77 | AI164: -41,747.96 | AJ164: 0.00 | AK164: 0.00 | AL164: 0.00 | AM164: -10,436.99 | AN164: 0.00 | AO164: 0.00 | AP164: 0.00 | AQ164: 0.00 | AR164: 0.00 | AS164: 0.00 | AT164: 0.00 | AU164: 208,739.72 | AV164: -41,747.96 | AW164: -10,436.99
A165: 101120000338 | B165: 0 | C165: 2000 | E165: 8000000 | F165: 101-120 | G165: 120200510 | H165: Edificio | I165: 2015-12-31 | J165: DRENAJES | K165: 182,938.56 | L165: -36,587.72 | M165: 146,350.84 | N165: DOP | P165: ZLIN | Q165: 2016-01-01 | R165: 020/000 | T165: 1 | U165: UN | W165: 0.00 | X165: -9,146.93 | AA165: 2107041600 | AF165: 0.00 | AG165: 0.00 | AH165: 137,203.91 | AI165: -36,587.72 | AJ165: 0.00 | AK165: 0.00 | AL165: 0.00 | AM165: -9,146.93 | AN165: 0.00 | AO165: 0.00 | AP165: 0.00 | AQ165: 0.00 | AR165: 0.00 | AS165: 0.00 | AT165: 0.00 | AU165: 182,938.56 | AV165: -36,587.72 | AW165: -9,146.93
A166: 101120000339 | B166: 0 | C166: 2000 | E166: 8000000 | F166: 101-120 | G166: 120200510 | H166: Edificio | I166: 2015-12-31 | J166: SOPORTES MONOLITICOS, FOSAS, BASES DE PISOS, CONC | K166: 333,137.44 | L166: -66,627.48 | M166: 266,509.96 | N166: DOP | P166: ZLIN | Q166: 2016-01-01 | R166: 020/000 | T166: 1 | U166: UN | W166: 0.00 | X166: -16,656.87 | AA166: 2107041600 | AF166: 0.00 | AG166: 0.00 | AH166: 249,853.09 | AI166: -66,627.48 | AJ166: 0.00 | AK166: 0.00 | AL166: 0.00 | AM166: -16,656.87 | AN166: 0.00 | AO166: 0.00 | AP166: 0.00 | AQ166: 0.00 | AR166: 0.00 | AS166: 0.00 | AT166: 0.00 | AU166: 333,137.44 | AV166: -66,627.48 | AW166: -16,656.87
A167: 101120000340 | B167: 0 | C167: 2000 | E167: 8000000 | F167: 101-120 | G167: 120200510 | H167: Edificio | I167: 2015-12-31 | J167: CANALETAS, CONDUCTORES Y CABLES 619 M | K167: 512,248.00 | L167: -102,449.60 | M167: 409,798.40 | N167: DOP | P167: ZLIN | Q167: 2016-01-01 | R167: 020/000 | T167: 1 | U167: UN | W167: 0.00 | X167: -25,612.40 | AA167: 2107041600 | AF167: 0.00 | AG167: 0.00 | AH167: 384,186.00 | AI167: -102,449.60 | AJ167: 0.00 | AK167: 0.00 | AL167: 0.00 | AM167: -25,612.40 | AN167: 0.00 | AO167: 0.00 | AP167: 0.00 | AQ167: 0.00 | AR167: 0.00 | AS167: 0.00 | AT167: 0.00 | AU167: 512,248.00 | AV167: -102,449.60 | AW167: -25,612.40
A168: 101120000341 | B168: 0 | C168: 2000 | E168: 8000000 | F168: 101-120 | G168: 120200510 | H168: Edificio | I168: 2015-12-31 | J168: ACERAS | K168: 24,337.72 | L168: -4,867.56 | M168: 19,470.16 | N168: DOP | P168: ZLIN | Q168: 2016-01-01 | R168: 020/000 | T168: 1 | U168: UN | W168: 0.00 | X168: -1,216.89 | AA168: 2107041600 | AF168: 0.00 | AG168: 0.00 | AH168: 18,253.27 | AI168: -4,867.56 | AJ168: 0.00 | AK168: 0.00 | AL168: 0.00 | AM168: -1,216.89 | AN168: 0.00 | AO168: 0.00 | AP168: 0.00 | AQ168: 0.00 | AR168: 0.00 | AS168: 0.00 | AT168: 0.00 | AU168: 24,337.72 | AV168: -4,867.56 | AW168: -1,216.89
A169: 101120000342 | B169: 0 | C169: 2000 | E169: 8000000 | F169: 101-120 | G169: 120200510 | H169: Edificio | I169: 2015-12-31 | J169: AREA CUADRADA DE EQUIPO CAMPO | K169: 429,495.72 | L169: -85,899.16 | M169: 343,596.56 | N169: DOP | P169: ZLIN | Q169: 2016-01-01 | R169: 020/000 | T169: 1 | U169: UN | W169: 0.00 | X169: -21,474.79 | AA169: 2107041600 | AF169: 0.00 | AG169: 0.00 | AH169: 322,121.77 | AI169: -85,899.16 | AJ169: 0.00 | AK169: 0.00 | AL169: 0.00 | AM169: -21,474.79 | AN169: 0.00 | AO169: 0.00 | AP169: 0.00 | AQ169: 0.00 | AR169: 0.00 | AS169: 0.00 | AT169: 0.00 | AU169: 429,495.72 | AV169: -85,899.16 | AW169: -21,474.79
